Workbook

Sheet 2015legmax.xls
F1: Col 1 | I1: Col 2 | K1: Col 3 | L1: Col 4 | M1: Col 4(a) | O1: Col 4(b) | S1: Col 4(c) | T1: Col 5 | U1: Col 6 | X1: Col 7 | Y1: Col 7(a) | Z1: Col 8 | AA1: Col 8(a) | AB1: Col 9 | AC1: Col 9(a) | AD1: Col 9(b) | AG1: Col 10 | AH1: Col 10(a) | AI1: Col 11 | AJ1: Col 11(a) | AK1: Col 12 | AL1: Col 13 | AM1: Col 14 | AN1: Col 15 | AO1: Col 16 | AP1: Col 17 | AQ1: Col 17(a) | AT1: Col 18 | AU1: Col 19 | AZ1: Col 20 | BA1: Col 20(a) | BB1: Col 20(b) | BF1: Col 20(c) | BG1: Col 20(d) | BH1: Col 21 | BI1: Col 21(a) | BJ1: Col 21(b) | BK1: Col 21(c) | BL1: Col 21(d)
B2: 2015-06-22 | BN2: Table I Low & High Enrollment | BX2: Table II Transportation | CC2: Table III Tax Appeal Amounts | CI2: Table IV High Density At Risk | CN2: Table V Virtual Weighting | CW2: Table VI Authorized Transfers
A3: USD # | B3: County | C3: District Name | D3: FTE Enroll (exc 4 yr old at-risk & virtual) 9/20/2012 | E3: FTE Enroll (exc 4 yr old at-risk & virtual) 2/20/2013 | F3: FTE Enroll (exc 4 yr old at-risk exc virtual) 9/20/2012 2/20/2013 | G3: FTE Enroll (exc 4 yr old at-risk & virtual) 9/20/2013 | H3: FTE Enroll (exc 4 yr old at-risk & virtual) 2/20/2014 | I3: FTE Enroll (exc 4 yr old at-risk exc virtual) 9/20/2013 2/20/2014 | J3: FTE Enroll (exc 4 yr old at-risk inc virtual) 9/20/2014 | K3: FTE Enroll (exc 4 yr old at-risk exc virtual) 9/20/2014 | L3: Declining Enrollment Provision | M3: FTE Enroll (exc 4 yr old at-risk) 2/20/2014 | N3: Adjusted Enrollment (inc 2/20 exc virtual) | O3: 4 yr old at-risk (inc 9/20 inc 2/20) | P3: FTE Enroll (inc 4 yr old at-risk exc virtual) 9/20/2014 | Q3: FTE Enroll (inc 4 yr old at-risk inc virtual) 9/20/2014 | R3: FTE Enroll (inc 4 yr old at-risk inc virtual inc 2/20) 9/20/2014 | S3: Total Adjusted Enrollment | T3: Virtual FTE (Info Only) 9/20/14 | U3: Low and High Enroll Weighted FTE | V3: Low Enroll | W3: High Enroll | X3: CTE Contact Hrs | Y3: CTE Weighted FTE | Z3: Bilingual Contact Hrs | AA3: Bilingual Weighted FTE | AB3: At-Risk Headcount | AC3: At-Risk Weighted FTE | AD3: High At-Risk Weighted FTE | AE3: 2013-14 Non-Proficient Headcount | AF3: Non-Proficient Weighted FTE | AG3: New Facilities FTE | AH3: New Facilities Weighted FTE | AI3: Transp Over 2.5 Current Year | AJ3: Transp Weighted FTE | AK3: Ancillary Weighted FTE | AL3: Declining Enroll Weighted FTE | AM3: Cost of Living FTE | AN3: Virtual Weighted FTE | AO3: KAMS FTE | AP3: FY 15 Spec Ed State Aid | AQ3: Spec Ed Weighted FTE | AR3: 2014-15 Subtotal Weighted FTE (exc Spec Ed) | AS3: 2013-14 Subtotal Weighted FTE (exc COL) | AT3: 2014-15 Total Weighted FTE | AU3: Authorized Transfers | AV3: Sequence Number | AW3: Audit | AX3: Republished | AY3: Computed General Fund (exc Spec Ed) | AZ3: Computed General Fund (inc Spec Ed) | BA3: Adopted General Fund | BB3: 2014-15 General Fund (Before reductions) | BC3: Budget Law Violation | BD3: 2013-14 Trans Audit Adjust | BE3: 2013-14 Bilingual Vocational At-Risk Audit Adj | BF3: 2013-14 Total Reduction | BG3: 2014-15 Adjusted Legal General Fund Budget | BH3: LOB Base General Fund | BI3: 2014-15 LOB Authorized Percent | BJ3: Max Computed LOB Authorized | BK3: Adopted LOB | BL3: Legal LOB | BM3: LOB Percent Used | BN3: 0-99.9 | BR3: 100-299.9 | BV3: 300-1621.9 | BW3: 1622 and higher | BX3: Area in Square Miles | BY3: Index | BZ3: Density Cost Per Pupil | CA3: Transp Weighting Factor | CB3: Trans Weighted FTE | CC3: Board of Tax Appeals (Ancillary) | CD3: Board of Tax Appeals (Declining Enrollment) | CE3: Board of Tax Appeals (Cost of Living) | CF3: Cost of Living Authorized Percent | CG3: Max Computed Cost of Living | CH3: Cost of Living Authority | CI3: 2014-15 Percent of Free Lunch (Current Year) | CJ3: Students Per Square mile | CK3: Ftee Lunch >=50% | CL3: Free Lunch >35.1% and >212 per square mile | CM3: Free Lunch >=35% <50% | CN3: Virtual FTE 9/20/2014 | CO3: 9/20/2014 Weighting | CP3: Virtual Non Proficient Headcount | CQ3: Virtual Non Proficient Weighting | CR3: Virtual AP Course 1st Semester | CS3: 1st Semester Weighting | CT3: Virtual AP Course 2nd Semester | CU3: 2nd Semester Weighting | CV3: Estimated Virtual FTE | CW3: Total Transfers | CX3: Max Balance ($250 * Subtotal Weighted FTE exc Spec Ed) | CY3: Authorized Transfers | CZ3: D0 #
A4: Total | C4: STATE TOTALS | D4: =SUM(D5:D290) -> 447961.7 | E4: 914.8 | F4: =SUM(F5:F290) -> 448876.5 | G4: =SUM(G5:G290) -> 450333.5 | H4: 834.9 | I4: 451168.4 | J4: =SUM(J5:J290) -> 459111.7 | K4: =SUM(K5:K290) -> 452822.4 | L4: =SUM(L5:L290) -> 455926.9 | M4: =SUM(M5:M290) -> 624.7 | N4: =SUM(N5:N290) -> 456551.6 | O4: =SUM(O5:O290) -> 3530 | P4: =SUM(P5:P290) -> 456352.4 | Q4: =SUM(Q5:Q290) -> 462641.7 | R4: =SUM(R5:R290) -> 463266.4 | S4: =SUM(S5:S290) -> 460081.6 | T4: =SUM(T5:T290) -> 6289.3 | U4: =SUM(U5:U290) -> 54403.3 | V4: =SUM(V5:V290) -> 42492.9 | W4: =SUM(W5:W290) -> 11910.4 | X4: =SUM(X5:X290) -> 96427.1 | Y4: =SUM(Y5:Y290) -> 8036.5 | Z4: =SUM(Z5:Z290) -> 157412.7 | AA4: =SUM(AA5:AA290) -> 10362.8 | AB4: =SUM(AB5:AB290) -> 193253 | AC4: =SUM(AC5:AC290) -> 88122.9 | AD4: =SUM(AD5:AD290) -> 13223.8 | AE4: =SUM(AE5:AE290) -> 0 | AF4: =SUM(AF5:AF290) -> 0 | AG4: =SUM(AG5:AG290) -> 7366.7 | AH4: =SUM(AH5:AH290) -> 1842.3 | AI4: =SUM(AI5:AI290) -> 133449.1 | AJ4: =SUM(AJ5:AJ290) -> 26365.9 | AK4: =SUM(AK5:AK290) -> 5657.1 | AL4: =SUM(AL5:AL290) -> 952.9 | AM4: =SUM(AM5:AM290) -> 5213.6 | AN4: =SUM(AN5:AN290) -> 6608.4 | AO4: =SUM(AO5:AO290) -> 31 | AP4: =SUM(AP5:AP290) -> 420476221 | AQ4: =SUM(AQ5:AQ290) -> 109157.8 | AR4: =SUM(AR5:AR290) -> 680902.1 | AS4: =SUM(AS5:AS290) -> 784846.3 | AT4: =SUM(AT5:AT290) -> 790059.9 | AU4: =SUM(AU5:AU290) -> 8400417 | AY4: =SUM(AY5:AY290) -> 2636750811 | AZ4: =SUM(AZ5:AZ290) -> 3057226655 | BA4: =SUM(BA5:BA290) -> 3121502859 | BB4: =SUM(BB5:BB290) -> 3057226655 | BC4: =SUM(BC5:BC290) -> 0 | BD4: =SUM(BD5:BD290) -> -120012 | BE4: =SUM(BE5:BE290) -> -4524 | BF4: =SUM(BF5:BF290) -> -124536 | BG4: =SUM(BG5:BG290) -> 3057102119 | BH4: =SUM(BH5:BH290) -> 3473306047 | BI4: =SUM(BI5:BI290) -> 86.67 | BJ4: =SUM(BJ5:BJ290) -> 1065498885 | BK4: =SUM(BK5:BK290) -> 1071517223 | BL4: =SUM(BL5:BL290) -> 1056637742 | BM4: =SUM(BM5:BM290)/296 -> 0.2872 | BN4: =SUM(BN5:BN290) -> 440.8 | BR4: =SUM(BR5:BR290) -> 9610 | BV4: =SUM(BV5:BV290) -> 32442.1 | BW4: =SUM(BW5:BW290) -> 11910.4 | BX4: =SUM(BX5:BX290) -> 82019.7 | BY4: =SUM(BY5:BY290) -> 1367.2 | BZ4: =SUM(BZ5:BZ290) -> 337071.12 | CA4: =SUM(CA5:CA290) -> 87.5055 | CB4: =SUM(CB5:CB290) -> 26365.9 | CC4: =SUM(CC5:CC290) -> 21791313 | CD4: =SUM(CD5:CD290) -> 3670673 | CE4: =SUM(CE5:CE290) -> 20405207 | CH4: 20082717 | CK4: =SUM(CK5:CK290) -> 11284.1 | CL4: 6896.4 | CM4: 1939.7 | CN4: =SUM(CN5:CN290) -> 6289.3 | CO4: =SUM(CO5:CO290) -> 6604.8 | CP4: =SUM(CP5:CP290) -> 0 | CQ4: =SUM(CQ5:CQ290) -> 0 | CR4: =SUM(CR5:CR290) -> 16 | CS4: =SUM(CS5:CS290) -> 1.3 | CT4: =SUM(CT5:CT290) -> 29 | CU4: =SUM(CU5:CU290) -> 2.3 | CV4: =SUM(CV5:CV290) -> 6608.4 | CW4: =SUM(CW5:CW290) -> 9792328 | CX4: =SUM(CX5:CX290) -> 34754325 | CY4: =SUM(CY5:CY290) -> 9789503
A5: 101 | B5: Neosho | C5: Erie-Galesburg | D5: 520 | E5: 0 | F5: =D5+E5 -> 520 | G5: 509 | H5: 0 | I5: =G5+H5 -> 509 | J5: =K5+T5 -> 529.5 | K5: =IF(ISNA(VLOOKUP($CZ5,'Audit Values'!$A$2:$AE$346,2,FALSE)),'Preliminary SO66'!B2,VLOOKUP($CZ5,'Audit Values'!$A$2:$AE$346,31,FALSE)) -> 522.5 | L5: =MAX(K5, I5,AVERAGE(F5, I5, K5)) -> 522.5 | M5: =IF(ISNA(VLOOKUP($CZ5,'Audit Values'!$A$2:$AE$346,2,FALSE)),'Preliminary SO66'!Z2,VLOOKUP($CZ5,'Audit Values'!$A$2:$AE$346,26,FALSE)) -> 0 | N5: =L5+M5 -> 522.5 | O5: =IF(ISNA(VLOOKUP($CZ5,'Audit Values'!$A$2:$AE$346,2,FALSE)),'Preliminary SO66'!C2,IF(VLOOKUP($CZ5,'Audit Values'!$A$2:$AE$346,28,FALSE)="",VLOOKUP($CZ5,'Audit Values'!$A$2:$AE$346,3,FALSE),VLOOKUP($CZ5,'Audit Values'!$A$2:$AE$346,28,FALSE))) -> 6 | P5: =K5+O5 -> 528.5 | Q5: =J5+O5 -> 535.5 | R5: =J5+O5+M5 -> 535.5 | S5: =L5+M5+O5 -> 528.5 | T5: =CN5 -> 7 | U5: =IF(L5>0,MAX(BN5,BR5,BV5,BW5),0) -> 214.9 | V5: =MAX(BN5,BR5,BV5) -> 214.9 | W5: =BW5 -> 0 | X5: =IF(ISNA(VLOOKUP($CZ5,'Audit Values'!$A$2:$AE$346,2,FALSE)),'Preliminary SO66'!D2,VLOOKUP($CZ5,'Audit Values'!$A$2:$AE$346,4,FALSE)) -> 102.9 | Y5: =ROUND((X5/6)*Weightings!$M$6,1) -> 8.6 | Z5: =IF(ISNA(VLOOKUP($CZ5,'Audit Values'!$A$2:$AE$346,2,FALSE)),'Preliminary SO66'!F2,VLOOKUP($CZ5,'Audit Values'!$A$2:$AE$346,6,FALSE)) -> 7 | AA5: =ROUND((Z5/6)*Weightings!$M$7,1) -> 0.5 | AB5: =IF(ISNA(VLOOKUP($CZ5,'Audit Values'!$A$2:$AE$346,2,FALSE)),'Preliminary SO66'!H2,VLOOKUP($CZ5,'Audit Values'!$A$2:$AE$346,9,FALSE)) -> 265 | AC5: =ROUND(AB5*Weightings!$M$8,1) -> 120.8 | AD5: =MAX(CK5,CL5,CM5) -> 27.8 | AE5: 0 | AF5: =AE5*Weightings!$M$9 -> 0 | AG5: =IF(ISNA(VLOOKUP($CZ5,'Audit Values'!$A$2:$AE$346,2,FALSE)),'Preliminary SO66'!L2,VLOOKUP($CZ5,'Audit Values'!$A$2:$AE$346,12,FALSE)) -> 0 | AH5: =ROUND(AG5*Weightings!$M$10,1) -> 0 | AI5: =IF(ISNA(VLOOKUP($CZ5,'Audit Values'!$A$2:$AE$346,2,FALSE)),'Preliminary SO66'!O2,VLOOKUP($CZ5,'Audit Values'!$A$2:$AE$346,15,FALSE)) -> 275.5 | AJ5: =CB5 -> 78.9 | AK5: =CC5/Weightings!$M$5 -> 0 | AL5: =CD5/Weightings!$M$5 -> 0 | AM5: =CH5/Weightings!$M$5 -> 0 | AN5: =CV5 -> 7.4 | AO5: =IF(ISNA(VLOOKUP($CZ5,'Audit Values'!$A$2:$AE$346,2,FALSE)),'Preliminary SO66'!X2,VLOOKUP($CZ5,'Audit Values'!$A$2:$AE$346,24,FALSE)) -> 0 | AP5: 661874 | AQ5: =AP5/Weightings!$M$5 -> 171.8 | AR5: =SUM(S5+ U5+ Y5+ AA5+ AC5+ AH5+ AJ5+ AK5+ AL5+ AD5+AF5+AM5+AN5+AO5) -> 987.4 | AS5: =SUM(S5+U5+Y5+AA5+AC5+AH5+AJ5+AK5+AL5+AD5+AF5+AQ5+AN5+AO5) -> 1159.2 | AT5: =SUM(S5+U5+Y5+AA5+AC5+AH5+AJ5+AK5+AL5+AQ5+AD5+AF5+AM5+AN5+AO5) -> 1159.2 | AU5: 0 | AV5: =IF(ISNA(VLOOKUP($CZ5,'Audit Values'!$A$2:$AC$355,2,FALSE)),"",IF(AND(Weightings!H5>0,VLOOKUP($CZ5,'Audit Values'!$A$2:$AC$355,29,FALSE)<Weightings!H5),Weightings!H5,VLOOKUP($CZ5,'Audit Values'!$A$2:$AC$355,29,FALSE))) -> 2 | AW5: =IF(ISNA(VLOOKUP($CZ5,'Audit Values'!$A$2:$AD$355,2,FALSE)),"",VLOOKUP($CZ5,'Audit Values'!$A$2:$AD$355,30,FALSE)) -> A | AX5: =IF(Weightings!G5="","",IF(Weightings!I5="Pending","PX","R")) ->  | AY5: =AR5*Weightings!$M$5+AU5 -> 3803465 | AZ5: =AT5*Weightings!$M$5+AU5 -> 4465238 | BA5: =IF(Weightings!G5>0,Weightings!G5,'Preliminary SO66'!AB2) -> 4497904 | BB5: =MIN(AZ5,BA5) -> 4465238 | BD5: =Weightings!E5 -> -4720 | BE5: =Weightings!F5 -> 0 | BF5: =SUM(BC5:BE5) -> -4720 | BG5: =BB5+BF5 -> 4460518 | BH5: =MAX(ROUND(((AR5-AO5-AN5)*Weightings!$M$12)+AP5,0),ROUND(((AR5-AO5-AN5)*Weightings!$M$12)+Weightings!B5,0)) -> 5131367 | BI5: 0.3 | BJ5: =BH5*BI5 -> 1539410 | BK5: 1525940 | BL5: =MIN(BJ5,BK5) -> 1525940 | BM5: =BL5/BH5 -> 0.2974 | BN5: =ROUND(IF(S5<=99.9,(S5*1.014331),0),1) -> 0 | BO5: =AND(S5>99.9,S5<=299.9) -> FALSE | BP5: =IF(BO5=TRUE,ROUND((S5-100)*9.655,3),0) -> 0 | BQ5: =IF(BO5=TRUE,ROUND(((7337-BP5)/3642.4)-1,6),0) -> 0 | BR5: =ROUND(S5*BQ5,1) -> 0 | BS5: =AND(S5>299.9,S5<=1621.9) -> TRUE | BT5: =IF(BS5=TRUE,ROUND((S5-300)*1.2375,4),0) -> 282.7688 | BU5: =IF(BS5=TRUE,ROUND(((5406-BT5)/3642.4)-1,6),0) -> 0.406554 | BV5: =ROUND(BU5*S5,1) -> 214.9 | BW5: =ROUND(IF(S5>=1622,(S5*0.03504),0),1) -> 0 | BX5: 325 | BY5: =AI5/BX5 -> 0.85 | BZ5: =IF(ROUND((Weightings!$P$5*BY5^Weightings!$P$6*Weightings!$P$8 ),2)<Weightings!$P$7,Weightings!$P$7,ROUND((Weightings!$P$5*BY5^Weightings!$P$6*Weightings!$P$8 ),2)) -> 1103.68 | CA5: =ROUND(BZ5/Weightings!$M$5,4) -> 0.2865 | CB5: =ROUND(IF(AI5>0,CA5*AI5,0),1) -> 78.9 | CC5: 0 | CD5: 0 | CE5: 0 | CF5: 0 | CG5: =AS5*Weightings!$M$5*CF5 -> 0 | CH5: =IF(CE5>CG5,CG5,CE5) -> 0 | CI5: =ROUND(AB5/S5,3) -> 0.501 | CJ5: =ROUND(S5/BX5,1) -> 1.6 | CK5: =IF(CI5>=50%,AB5*10.5%,0) -> 27.8 | CL5: =IF(AND(CI5>=35.1%,CJ5>212),AB5*0.105,0) -> 0 | CM5: =IF(AND((CI5-0.35)>0,CI5<0.5),AB5*(CI5-0.35)*0.7,0) -> 0 | CN5: =IF(ISNA(VLOOKUP($CZ5,'Audit Values'!$A$2:$AE$346,2,FALSE)),'Preliminary SO66'!T2,VLOOKUP($CZ5,'Audit Values'!$A$2:$AE$346,20,FALSE)) -> 7 | CO5: =CN5*1.05 -> 7.4 | CP5: 0 | CQ5: =CP5*0.25 -> 0 | CR5: =IF(ISNA(VLOOKUP($CZ5,'Audit Values'!$A$2:$AE$346,2,FALSE)),'Preliminary SO66'!V2,VLOOKUP($CZ5,'Audit Values'!$A$2:$AE$346,22,FALSE)) -> 0 | CS5: =CR5*0.08 -> 0 | CT5: =IF(ISNA(VLOOKUP($CZ5,'Audit Values'!$A$2:$AE$346,2,FALSE)),'Preliminary SO66'!W2,VLOOKUP($CZ5,'Audit Values'!$A$2:$AE$346,23,FALSE)) -> 0 | CU5: =CT5*0.08 -> 0 | CV5: =CO5+CQ5+CS5+CU5 -> 7.4 | CW5: 50000 | CX5: =IF(CW5>0,Weightings!$M$11*AR5,0) -> 246850 | CY5: =MIN(CW5,CX5) -> 50000 | CZ5: D0101
A6: 102 | B6: Gray | C6: Cimmaron-Ensign | D6: 643.4 | E6: 0 | F6: =D6+E6 -> 643.4 | G6: 633.4 | H6: 0 | I6: =G6+H6 -> 633.4 | J6: 635.3 | K6: =IF(ISNA(VLOOKUP($CZ6,'Audit Values'!$A$2:$AE$346,2,FALSE)),'Preliminary SO66'!B3,VLOOKUP($CZ6,'Audit Values'!$A$2:$AE$346,31,FALSE)) -> 626.7 | L6: 634.5 | M6: =IF(ISNA(VLOOKUP($CZ6,'Audit Values'!$A$2:$AE$346,2,FALSE)),'Preliminary SO66'!Z3,VLOOKUP($CZ6,'Audit Values'!$A$2:$AE$346,26,FALSE)) -> 0 | N6: 634.5 | O6: =IF(ISNA(VLOOKUP($CZ6,'Audit Values'!$A$2:$AE$346,2,FALSE)),'Preliminary SO66'!C3,IF(VLOOKUP($CZ6,'Audit Values'!$A$2:$AE$346,28,FALSE)="",VLOOKUP($CZ6,'Audit Values'!$A$2:$AE$346,3,FALSE),VLOOKUP($CZ6,'Audit Values'!$A$2:$AE$346,28,FALSE))) -> 7.5 | P6: 634.2 | Q6: 642.8 | R6: 642.8 | S6: 642 | T6: 8.6 | U6: 236.3 | V6: 236.3 | W6: 0 | X6: =IF(ISNA(VLOOKUP($CZ6,'Audit Values'!$A$2:$AE$346,2,FALSE)),'Preliminary SO66'!D3,VLOOKUP($CZ6,'Audit Values'!$A$2:$AE$346,4,FALSE)) -> 104.4 | Y6: =ROUND((X6/6)*Weightings!$M$6,1) -> 8.7 | Z6: =IF(ISNA(VLOOKUP($CZ6,'Audit Values'!$A$2:$AE$346,2,FALSE)),'Preliminary SO66'!F3,VLOOKUP($CZ6,'Audit Values'!$A$2:$AE$346,6,FALSE)) -> 680.2 | AA6: =ROUND((Z6/6)*Weightings!$M$7,1) -> 44.8 | AB6: =IF(ISNA(VLOOKUP($CZ6,'Audit Values'!$A$2:$AE$346,2,FALSE)),'Preliminary SO66'!H3,VLOOKUP($CZ6,'Audit Values'!$A$2:$AE$346,9,FALSE)) -> 241 | AC6: =ROUND(AB6*Weightings!$M$8,1) -> 109.9 | AD6: =MAX(CK6,CL6,CM6) -> 4.2 | AE6: 0 | AF6: =AE6*Weightings!$M$9 -> 0 | AG6: =IF(ISNA(VLOOKUP($CZ6,'Audit Values'!$A$2:$AE$346,2,FALSE)),'Preliminary SO66'!L3,VLOOKUP($CZ6,'Audit Values'!$A$2:$AE$346,12,FALSE)) -> 139.5 | AH6: =ROUND(AG6*Weightings!$M$10,1) -> 34.9 | AI6: =IF(ISNA(VLOOKUP($CZ6,'Audit Values'!$A$2:$AE$346,2,FALSE)),'Preliminary SO66'!O3,VLOOKUP($CZ6,'Audit Values'!$A$2:$AE$346,15,FALSE)) -> 100 | AJ6: 40.2 | AK6: =CC6/Weightings!$M$5 -> 0 | AL6: =CD6/Weightings!$M$5 -> 0 | AM6: =CH6/Weightings!$M$5 -> 0 | AN6: =CV6 -> 9 | AO6: =IF(ISNA(VLOOKUP($CZ6,'Audit Values'!$A$2:$AE$346,2,FALSE)),'Preliminary SO66'!X3,VLOOKUP($CZ6,'Audit Values'!$A$2:$AE$346,24,FALSE)) -> 1 | AP6: 464597 | AQ6: =AP6/Weightings!$M$5 -> 120.6 | AR6: 1131 | AS6: 1251.6 | AT6: 1251.6 | AU6: 0 | AV6: =IF(ISNA(VLOOKUP($CZ6,'Audit Values'!$A$2:$AC$355,2,FALSE)),"",IF(AND(Weightings!H6>0,VLOOKUP($CZ6,'Audit Values'!$A$2:$AC$355,29,FALSE)<Weightings!H6),Weightings!H6,VLOOKUP($CZ6,'Audit Values'!$A$2:$AC$355,29,FALSE))) -> 23 | AW6: =IF(ISNA(VLOOKUP($CZ6,'Audit Values'!$A$2:$AD$355,2,FALSE)),"",VLOOKUP($CZ6,'Audit Values'!$A$2:$AD$355,30,FALSE)) -> A | AX6: =IF(Weightings!G6="","",IF(Weightings!I6="Pending","PX","R")) -> R | AY6: =AR6*Weightings!$M$5+AU6 -> 4356612 | AZ6: =AT6*Weightings!$M$5+AU6 -> 4821163 | BA6: =IF(Weightings!G6>0,Weightings!G6,'Preliminary SO66'!AB3) -> 4876247 | BB6: 4821163 | BD6: =Weightings!E6 -> 0 | BE6: =Weightings!F6 -> 0 | BF6: 0 | BG6: 4821163 | BH6: =MAX(ROUND(((AR6-AO6-AN6)*Weightings!$M$12)+AP6,0),ROUND(((AR6-AO6-AN6)*Weightings!$M$12)+Weightings!B6,0)) -> 5571673 | BI6: 0.3 | BJ6: 1671502 | BK6: 1420000 | BL6: 1420000 | BM6: =BL6/BH6 -> 0.2549 | BN6: 0 | BO6: FALSE | BP6: 0 | BQ6: 0 | BR6: 0 | BS6: TRUE | BT6: 423.225 | BU6: 0.367992 | BV6: 236.3 | BW6: 0 | BX6: 538 | BY6: =AI6/BX6 -> 0.19 | BZ6: =IF(ROUND((Weightings!$P$5*BY6^Weightings!$P$6*Weightings!$P$8 ),2)<Weightings!$P$7,Weightings!$P$7,ROUND((Weightings!$P$5*BY6^Weightings!$P$6*Weightings!$P$8 ),2)) -> 1548.92 | CA6: =ROUND(BZ6/Weightings!$M$5,4) -> 0.4021 | CB6: =ROUND(IF(AI6>0,CA6*AI6,0),1) -> 40.2 | CC6: 0 | CD6: 0 | CE6: 0 | CF6: 0 | CG6: =AS6*Weightings!$M$5*CF6 -> 0 | CH6: =IF(CE6>CG6,CG6,CE6) -> 0 | CI6: 0.375 | CJ6: 1.2 | CK6: =IF(CI6>=50%,AB6*10.5%,0) -> 0 | CL6: =IF(AND(CI6>=35.1%,CJ6>212),AB6*0.105,0) -> 0 | CM6: =IF(AND((CI6-0.35)>0,CI6<0.5),AB6*(CI6-0.35)*0.7,0) -> 4.2 | CN6: =IF(ISNA(VLOOKUP($CZ6,'Audit Values'!$A$2:$AE$346,2,FALSE)),'Preliminary SO66'!T3,VLOOKUP($CZ6,'Audit Values'!$A$2:$AE$346,20,FALSE)) -> 8.6 | CO6: =CN6*1.05 -> 9 | CP6: 0 | CQ6: =CP6*0.25 -> 0 | CR6: =IF(ISNA(VLOOKUP($CZ6,'Audit Values'!$A$2:$AE$346,2,FALSE)),'Preliminary SO66'!V3,VLOOKUP($CZ6,'Audit Values'!$A$2:$AE$346,22,FALSE)) -> 0 | CS6: =CR6*0.08 -> 0 | CT6: =IF(ISNA(VLOOKUP($CZ6,'Audit Values'!$A$2:$AE$346,2,FALSE)),'Preliminary SO66'!W3,VLOOKUP($CZ6,'Audit Values'!$A$2:$AE$346,23,FALSE)) -> 0 | CU6: 0 | CV6: 9 | CW6: 0 | CX6: =IF(CW6>0,Weightings!$M$11*AR6,0) -> 0 | CY6: =MIN(CW6,CX6) -> 0 | CZ6: D0102
A7: 103 | B7: Cheyenne | C7: Cheylin | D7: 121.5 | E7: 0 | F7: 121.5 | G7: 127 | H7: 0 | I7: 127 | J7: 137 | K7: =IF(ISNA(VLOOKUP($CZ7,'Audit Values'!$A$2:$AE$346,2,FALSE)),'Preliminary SO66'!B4,VLOOKUP($CZ7,'Audit Values'!$A$2:$AE$346,31,FALSE)) -> 137 | L7: 137 | M7: =IF(ISNA(VLOOKUP($CZ7,'Audit Values'!$A$2:$AE$346,2,FALSE)),'Preliminary SO66'!Z4,VLOOKUP($CZ7,'Audit Values'!$A$2:$AE$346,26,FALSE)) -> 0 | N7: 137 | O7: =IF(ISNA(VLOOKUP($CZ7,'Audit Values'!$A$2:$AE$346,2,FALSE)),'Preliminary SO66'!C4,IF(VLOOKUP($CZ7,'Audit Values'!$A$2:$AE$346,28,FALSE)="",VLOOKUP($CZ7,'Audit Values'!$A$2:$AE$346,3,FALSE),VLOOKUP($CZ7,'Audit Values'!$A$2:$AE$346,28,FALSE))) -> 0 | P7: 137 | Q7: 137 | R7: 137 | S7: 137 | T7: 0 | U7: 125.5 | V7: 125.5 | W7: 0 | X7: =IF(ISNA(VLOOKUP($CZ7,'Audit Values'!$A$2:$AE$346,2,FALSE)),'Preliminary SO66'!D4,VLOOKUP($CZ7,'Audit Values'!$A$2:$AE$346,4,FALSE)) -> 83.4 | Y7: =ROUND((X7/6)*Weightings!$M$6,1) -> 7 | Z7: =IF(ISNA(VLOOKUP($CZ7,'Audit Values'!$A$2:$AE$346,2,FALSE)),'Preliminary SO66'!F4,VLOOKUP($CZ7,'Audit Values'!$A$2:$AE$346,6,FALSE)) -> 226.7 | AA7: =ROUND((Z7/6)*Weightings!$M$7,1) -> 14.9 | AB7: =IF(ISNA(VLOOKUP($CZ7,'Audit Values'!$A$2:$AE$346,2,FALSE)),'Preliminary SO66'!H4,VLOOKUP($CZ7,'Audit Values'!$A$2:$AE$346,9,FALSE)) -> 61 | AC7: =ROUND(AB7*Weightings!$M$8,1) -> 27.8 | AD7: 4.1 | AE7: 0 | AF7: =AE7*Weightings!$M$9 -> 0 | AG7: =IF(ISNA(VLOOKUP($CZ7,'Audit Values'!$A$2:$AE$346,2,FALSE)),'Preliminary SO66'!L4,VLOOKUP($CZ7,'Audit Values'!$A$2:$AE$346,12,FALSE)) -> 0 | AH7: =ROUND(AG7*Weightings!$M$10,1) -> 0 | AI7: =IF(ISNA(VLOOKUP($CZ7,'Audit Values'!$A$2:$AE$346,2,FALSE)),'Preliminary SO66'!O4,VLOOKUP($CZ7,'Audit Values'!$A$2:$AE$346,15,FALSE)) -> 56 | AJ7: 27.4 | AK7: =CC7/Weightings!$M$5 -> 0 | AL7: =CD7/Weightings!$M$5 -> 0 | AM7: =CH7/Weightings!$M$5 -> 0 | AN7: 0 | AO7: =IF(ISNA(VLOOKUP($CZ7,'Audit Values'!$A$2:$AE$346,2,FALSE)),'Preliminary SO66'!X4,VLOOKUP($CZ7,'Audit Values'!$A$2:$AE$346,24,FALSE)) -> 0 | AP7: 113150 | AQ7: =AP7/Weightings!$M$5 -> 29.4 | AR7: 343.7 | AS7: 373.1 | AT7: 373.1 | AU7: 0 | AV7: =IF(ISNA(VLOOKUP($CZ7,'Audit Values'!$A$2:$AC$355,2,FALSE)),"",IF(AND(Weightings!H7>0,VLOOKUP($CZ7,'Audit Values'!$A$2:$AC$355,29,FALSE)<Weightings!H7),Weightings!H7,VLOOKUP($CZ7,'Audit Values'!$A$2:$AC$355,29,FALSE))) -> 22 | AW7: =IF(ISNA(VLOOKUP($CZ7,'Audit Values'!$A$2:$AD$355,2,FALSE)),"",VLOOKUP($CZ7,'Audit Values'!$A$2:$AD$355,30,FALSE)) -> A | AX7: =IF(Weightings!G7="","",IF(Weightings!I7="Pending","PX","R")) -> R | AY7: =AR7*Weightings!$M$5+AU7 -> 1323932 | AZ7: =AT7*Weightings!$M$5+AU7 -> 1437181 | BA7: =IF(Weightings!G7>0,Weightings!G7,'Preliminary SO66'!AB4) -> 1479938 | BB7: 1437181 | BD7: =Weightings!E7 -> 0 | BE7: =Weightings!F7 -> 0 | BF7: 0 | BG7: 1437181 | BH7: =MAX(ROUND(((AR7-AO7-AN7)*Weightings!$M$12)+AP7,0),ROUND(((AR7-AO7-AN7)*Weightings!$M$12)+Weightings!B7,0)) -> 1733468 | BI7: 0.3 | BJ7: 520040 | BK7: 512363 | BL7: 512363 | BM7: 0.2956 | BN7: 0 | BO7: TRUE | BP7: 357.235 | BQ7: 0.916254 | BR7: 125.5 | BS7: FALSE | BT7: 0 | BU7: 0 | BV7: 0 | BW7: 0 | BX7: 688 | BY7: 0.08 | BZ7: =IF(ROUND((Weightings!$P$5*BY7^Weightings!$P$6*Weightings!$P$8 ),2)<Weightings!$P$7,Weightings!$P$7,ROUND((Weightings!$P$5*BY7^Weightings!$P$6*Weightings!$P$8 ),2)) -> 1883.68 | CA7: =ROUND(BZ7/Weightings!$M$5,4) -> 0.489 | CB7: 27.4 | CC7: 0 | CD7: 0 | CE7: 0 | CF7: 0 | CG7: =AS7*Weightings!$M$5*CF7 -> 0 | CH7: 0 | CI7: 0.445 | CJ7: 0.2 | CK7: 0 | CL7: 0 | CM7: 4.1 | CN7: =IF(ISNA(VLOOKUP($CZ7,'Audit Values'!$A$2:$AE$346,2,FALSE)),'Preliminary SO66'!T4,VLOOKUP($CZ7,'Audit Values'!$A$2:$AE$346,20,FALSE)) -> 0 | CO7: 0 | CP7: 0 | CQ7: 0 | CR7: =IF(ISNA(VLOOKUP($CZ7,'Audit Values'!$A$2:$AE$346,2,FALSE)),'Preliminary SO66'!V4,VLOOKUP($CZ7,'Audit Values'!$A$2:$AE$346,22,FALSE)) -> 0 | CS7: 0 | CT7: =IF(ISNA(VLOOKUP($CZ7,'Audit Values'!$A$2:$AE$346,2,FALSE)),'Preliminary SO66'!W4,VLOOKUP($CZ7,'Audit Values'!$A$2:$AE$346,23,FALSE)) -> 0 | CU7: 0 | CV7: 0 | CW7: 0 | CX7: =IF(CW7>0,Weightings!$M$11*AR7,0) -> 0 | CY7: 0 | CZ7: D0103
A8: 105 | B8: Rawlins | C8: Rawlins County | D8: 304.5 | E8: 0 | F8: 304.5 | G8: 310.5 | H8: 0 | I8: 310.5 | J8: 323.5 | K8: =IF(ISNA(VLOOKUP($CZ8,'Audit Values'!$A$2:$AE$346,2,FALSE)),'Preliminary SO66'!B5,VLOOKUP($CZ8,'Audit Values'!$A$2:$AE$346,31,FALSE)) -> 323.5 | L8: 323.5 | M8: =IF(ISNA(VLOOKUP($CZ8,'Audit Values'!$A$2:$AE$346,2,FALSE)),'Preliminary SO66'!Z5,VLOOKUP($CZ8,'Audit Values'!$A$2:$AE$346,26,FALSE)) -> 0 | N8: 323.5 | O8: =IF(ISNA(VLOOKUP($CZ8,'Audit Values'!$A$2:$AE$346,2,FALSE)),'Preliminary SO66'!C5,IF(VLOOKUP($CZ8,'Audit Values'!$A$2:$AE$346,28,FALSE)="",VLOOKUP($CZ8,'Audit Values'!$A$2:$AE$346,3,FALSE),VLOOKUP($CZ8,'Audit Values'!$A$2:$AE$346,28,FALSE))) -> 0 | P8: 323.5 | Q8: 323.5 | R8: 323.5 | S8: 323.5 | T8: 0 | U8: 154.1 | V8: 154.1 | W8: 0 | X8: =IF(ISNA(VLOOKUP($CZ8,'Audit Values'!$A$2:$AE$346,2,FALSE)),'Preliminary SO66'!D5,VLOOKUP($CZ8,'Audit Values'!$A$2:$AE$346,4,FALSE)) -> 74.4 | Y8: =ROUND((X8/6)*Weightings!$M$6,1) -> 6.2 | Z8: =IF(ISNA(VLOOKUP($CZ8,'Audit Values'!$A$2:$AE$346,2,FALSE)),'Preliminary SO66'!F5,VLOOKUP($CZ8,'Audit Values'!$A$2:$AE$346,6,FALSE)) -> 75.3 | AA8: =ROUND((Z8/6)*Weightings!$M$7,1) -> 5 | AB8: =IF(ISNA(VLOOKUP($CZ8,'Audit Values'!$A$2:$AE$346,2,FALSE)),'Preliminary SO66'!H5,VLOOKUP($CZ8,'Audit Values'!$A$2:$AE$346,9,FALSE)) -> 139 | AC8: =ROUND(AB8*Weightings!$M$8,1) -> 63.4 | AD8: 7.8 | AE8: 0 | AF8: =AE8*Weightings!$M$9 -> 0 | AG8: =IF(ISNA(VLOOKUP($CZ8,'Audit Values'!$A$2:$AE$346,2,FALSE)),'Preliminary SO66'!L5,VLOOKUP($CZ8,'Audit Values'!$A$2:$AE$346,12,FALSE)) -> 0 | AH8: =ROUND(AG8*Weightings!$M$10,1) -> 0 | AI8: =IF(ISNA(VLOOKUP($CZ8,'Audit Values'!$A$2:$AE$346,2,FALSE)),'Preliminary SO66'!O5,VLOOKUP($CZ8,'Audit Values'!$A$2:$AE$346,15,FALSE)) -> 124 | AJ8: 51.1 | AK8: =CC8/Weightings!$M$5 -> 0 | AL8: =CD8/Weightings!$M$5 -> 0 | AM8: =CH8/Weightings!$M$5 -> 0 | AN8: 0 | AO8: =IF(ISNA(VLOOKUP($CZ8,'Audit Values'!$A$2:$AE$346,2,FALSE)),'Preliminary SO66'!X5,VLOOKUP($CZ8,'Audit Values'!$A$2:$AE$346,24,FALSE)) -> 0 | AP8: 294757 | AQ8: =AP8/Weightings!$M$5 -> 76.5 | AR8: 611.1 | AS8: 687.6 | AT8: 687.6 | AU8: 0 | AV8: =IF(ISNA(VLOOKUP($CZ8,'Audit Values'!$A$2:$AC$355,2,FALSE)),"",IF(AND(Weightings!H8>0,VLOOKUP($CZ8,'Audit Values'!$A$2:$AC$355,29,FALSE)<Weightings!H8),Weightings!H8,VLOOKUP($CZ8,'Audit Values'!$A$2:$AC$355,29,FALSE))) -> 17 | AW8: =IF(ISNA(VLOOKUP($CZ8,'Audit Values'!$A$2:$AD$355,2,FALSE)),"",VLOOKUP($CZ8,'Audit Values'!$A$2:$AD$355,30,FALSE)) -> A | AX8: =IF(Weightings!G8="","",IF(Weightings!I8="Pending","PX","R")) -> R | AY8: =AR8*Weightings!$M$5+AU8 -> 2353957 | AZ8: =AT8*Weightings!$M$5+AU8 -> 2648635 | BA8: =IF(Weightings!G8>0,Weightings!G8,'Preliminary SO66'!AB5) -> 2652102 | BB8: 2648635 | BD8: =Weightings!E8 -> 0 | BE8: =Weightings!F8 -> 0 | BF8: 0 | BG8: 2648635 | BH8: =MAX(ROUND(((AR8-AO8-AN8)*Weightings!$M$12)+AP8,0),ROUND(((AR8-AO8-AN8)*Weightings!$M$12)+Weightings!B8,0)) -> 3077442 | BI8: 0.3 | BJ8: 923233 | BK8: 866120 | BL8: 866120 | BM8: 0.2814 | BN8: 0 | BO8: FALSE | BP8: 0 | BQ8: 0 | BR8: 0 | BS8: TRUE | BT8: 29.0813 | BU8: 0.476202 | BV8: 154.1 | BW8: 0 | BX8: 740.1 | BY8: 0.17 | BZ8: =IF(ROUND((Weightings!$P$5*BY8^Weightings!$P$6*Weightings!$P$8 ),2)<Weightings!$P$7,Weightings!$P$7,ROUND((Weightings!$P$5*BY8^Weightings!$P$6*Weightings!$P$8 ),2)) -> 1588.39 | CA8: =ROUND(BZ8/Weightings!$M$5,4) -> 0.4124 | CB8: 51.1 | CC8: 0 | CD8: 0 | CE8: 0 | CF8: 0 | CG8: =AS8*Weightings!$M$5*CF8 -> 0 | CH8: 0 | CI8: 0.43 | CJ8: 0.4 | CK8: 0 | CL8: 0 | CM8: 7.8 | CN8: =IF(ISNA(VLOOKUP($CZ8,'Audit Values'!$A$2:$AE$346,2,FALSE)),'Preliminary SO66'!T5,VLOOKUP($CZ8,'Audit Values'!$A$2:$AE$346,20,FALSE)) -> 0 | CO8: 0 | CP8: 0 | CQ8: 0 | CR8: =IF(ISNA(VLOOKUP($CZ8,'Audit Values'!$A$2:$AE$346,2,FALSE)),'Preliminary SO66'!V5,VLOOKUP($CZ8,'Audit Values'!$A$2:$AE$346,22,FALSE)) -> 0 | CS8: 0 | CT8: =IF(ISNA(VLOOKUP($CZ8,'Audit Values'!$A$2:$AE$346,2,FALSE)),'Preliminary SO66'!W5,VLOOKUP($CZ8,'Audit Values'!$A$2:$AE$346,23,FALSE)) -> 0 | CU8: 0 | CV8: 0 | CW8: 0 | CX8: =IF(CW8>0,Weightings!$M$11*AR8,0) -> 0 | CY8: 0 | CZ8: D0105
A9: 106 | B9: Ness | C9: Western Plains | D9: 148 | E9: 0 | F9: 148 | G9: 129 | H9: 0 | I9: 129 | J9: 118 | K9: =IF(ISNA(VLOOKUP($CZ9,'Audit Values'!$A$2:$AE$346,2,FALSE)),'Preliminary SO66'!B6,VLOOKUP($CZ9,'Audit Values'!$A$2:$AE$346,31,FALSE)) -> 118 | L9: 131.7 | M9: =IF(ISNA(VLOOKUP($CZ9,'Audit Values'!$A$2:$AE$346,2,FALSE)),'Preliminary SO66'!Z6,VLOOKUP($CZ9,'Audit Values'!$A$2:$AE$346,26,FALSE)) -> 0 | N9: 131.7 | O9: =IF(ISNA(VLOOKUP($CZ9,'Audit Values'!$A$2:$AE$346,2,FALSE)),'Preliminary SO66'!C6,IF(VLOOKUP($CZ9,'Audit Values'!$A$2:$AE$346,28,FALSE)="",VLOOKUP($CZ9,'Audit Values'!$A$2:$AE$346,3,FALSE),VLOOKUP($CZ9,'Audit Values'!$A$2:$AE$346,28,FALSE))) -> 0 | P9: 118 | Q9: 118 | R9: 118 | S9: 131.7 | T9: 0 | U9: 122.5 | V9: 122.5 | W9: 0 | X9: =IF(ISNA(VLOOKUP($CZ9,'Audit Values'!$A$2:$AE$346,2,FALSE)),'Preliminary SO66'!D6,VLOOKUP($CZ9,'Audit Values'!$A$2:$AE$346,4,FALSE)) -> 14 | Y9: =ROUND((X9/6)*Weightings!$M$6,1) -> 1.2 | Z9: =IF(ISNA(VLOOKUP($CZ9,'Audit Values'!$A$2:$AE$346,2,FALSE)),'Preliminary SO66'!F6,VLOOKUP($CZ9,'Audit Values'!$A$2:$AE$346,6,FALSE)) -> 114.8 | AA9: =ROUND((Z9/6)*Weightings!$M$7,1) -> 7.6 | AB9: =IF(ISNA(VLOOKUP($CZ9,'Audit Values'!$A$2:$AE$346,2,FALSE)),'Preliminary SO66'!H6,VLOOKUP($CZ9,'Audit Values'!$A$2:$AE$346,9,FALSE)) -> 66 | AC9: =ROUND(AB9*Weightings!$M$8,1) -> 30.1 | AD9: 6.9 | AE9: 0 | AF9: =AE9*Weightings!$M$9 -> 0 | AG9: =IF(ISNA(VLOOKUP($CZ9,'Audit Values'!$A$2:$AE$346,2,FALSE)),'Preliminary SO66'!L6,VLOOKUP($CZ9,'Audit Values'!$A$2:$AE$346,12,FALSE)) -> 0 | AH9: =ROUND(AG9*Weightings!$M$10,1) -> 0 | AI9: =IF(ISNA(VLOOKUP($CZ9,'Audit Values'!$A$2:$AE$346,2,FALSE)),'Preliminary SO66'!O6,VLOOKUP($CZ9,'Audit Values'!$A$2:$AE$346,15,FALSE)) -> 54 | AJ9: 25.7 | AK9: =CC9/Weightings!$M$5 -> 0 | AL9: =CD9/Weightings!$M$5 -> 0 | AM9: =CH9/Weightings!$M$5 -> 0 | AN9: 0 | AO9: =IF(ISNA(VLOOKUP($CZ9,'Audit Values'!$A$2:$AE$346,2,FALSE)),'Preliminary SO66'!X6,VLOOKUP($CZ9,'Audit Values'!$A$2:$AE$346,24,FALSE)) -> 0 | AP9: 93028 | AQ9: =AP9/Weightings!$M$5 -> 24.2 | AR9: 325.7 | AS9: 349.9 | AT9: 349.9 | AU9: 0 | AV9: =IF(ISNA(VLOOKUP($CZ9,'Audit Values'!$A$2:$AC$355,2,FALSE)),"",IF(AND(Weightings!H9>0,VLOOKUP($CZ9,'Audit Values'!$A$2:$AC$355,29,FALSE)<Weightings!H9),Weightings!H9,VLOOKUP($CZ9,'Audit Values'!$A$2:$AC$355,29,FALSE))) -> 2 | AW9: =IF(ISNA(VLOOKUP($CZ9,'Audit Values'!$A$2:$AD$355,2,FALSE)),"",VLOOKUP($CZ9,'Audit Values'!$A$2:$AD$355,30,FALSE)) -> A | AX9: =IF(Weightings!G9="","",IF(Weightings!I9="Pending","PX","R")) ->  | AY9: =AR9*Weightings!$M$5+AU9 -> 1254596 | AZ9: =AT9*Weightings!$M$5+AU9 -> 1347815 | BA9: =IF(Weightings!G9>0,Weightings!G9,'Preliminary SO66'!AB6) -> 1389802 | BB9: 1347815 | BD9: =Weightings!E9 -> 0 | BE9: =Weightings!F9 -> 0 | BF9: 0 | BG9: 1347815 | BH9: =MAX(ROUND(((AR9-AO9-AN9)*Weightings!$M$12)+AP9,0),ROUND(((AR9-AO9-AN9)*Weightings!$M$12)+Weightings!B9,0)) -> 1613735 | BI9: 0.3 | BJ9: 484121 | BK9: 485468 | BL9: 484121 | BM9: 0.3 | BN9: 0 | BO9: TRUE | BP9: 306.064 | BQ9: 0.930303 | BR9: 122.5 | BS9: FALSE | BT9: 0 | BU9: 0 | BV9: 0 | BW9: 0 | BX9: 601.2 | BY9: 0.09 | BZ9: =IF(ROUND((Weightings!$P$5*BY9^Weightings!$P$6*Weightings!$P$8 ),2)<Weightings!$P$7,Weightings!$P$7,ROUND((Weightings!$P$5*BY9^Weightings!$P$6*Weightings!$P$8 ),2)) -> 1834.16 | CA9: =ROUND(BZ9/Weightings!$M$5,4) -> 0.4762 | CB9: 25.7 | CC9: 0 | CD9: 0 | CE9: 0 | CF9: 0 | CG9: =AS9*Weightings!$M$5*CF9 -> 0 | CH9: 0 | CI9: 0.501 | CJ9: 0.2 | CK9: 6.9 | CL9: 0 | CM9: 0 | CN9: =IF(ISNA(VLOOKUP($CZ9,'Audit Values'!$A$2:$AE$346,2,FALSE)),'Preliminary SO66'!T6,VLOOKUP($CZ9,'Audit Values'!$A$2:$AE$346,20,FALSE)) -> 0 | CO9: 0 | CP9: 0 | CQ9: 0 | CR9: =IF(ISNA(VLOOKUP($CZ9,'Audit Values'!$A$2:$AE$346,2,FALSE)),'Preliminary SO66'!V6,VLOOKUP($CZ9,'Audit Values'!$A$2:$AE$346,22,FALSE)) -> 0 | CS9: 0 | CT9: =IF(ISNA(VLOOKUP($CZ9,'Audit Values'!$A$2:$AE$346,2,FALSE)),'Preliminary SO66'!W6,VLOOKUP($CZ9,'Audit Values'!$A$2:$AE$346,23,FALSE)) -> 0 | CU9: 0 | CV9: 0 | CW9: 0 | CX9: =IF(CW9>0,Weightings!$M$11*AR9,0) -> 0 | CY9: 0 | CZ9: D0106
A10: 107 | B10: Jewell | C10: Rock Hills | D10: 295.5 | E10: 0 | F10: 295.5 | G10: 277 | H10: 0 | I10: 277 | J10: 274.5 | K10: =IF(ISNA(VLOOKUP($CZ10,'Audit Values'!$A$2:$AE$346,2,FALSE)),'Preliminary SO66'!B7,VLOOKUP($CZ10,'Audit Values'!$A$2:$AE$346,31,FALSE)) -> 274.5 | L10: 282.3 | M10: =IF(ISNA(VLOOKUP($CZ10,'Audit Values'!$A$2:$AE$346,2,FALSE)),'Preliminary SO66'!Z7,VLOOKUP($CZ10,'Audit Values'!$A$2:$AE$346,26,FALSE)) -> 0 | N10: 282.3 | O10: =IF(ISNA(VLOOKUP($CZ10,'Audit Values'!$A$2:$AE$346,2,FALSE)),'Preliminary SO66'!C7,IF(VLOOKUP($CZ10,'Audit Values'!$A$2:$AE$346,28,FALSE)="",VLOOKUP($CZ10,'Audit Values'!$A$2:$AE$346,3,FALSE),VLOOKUP($CZ10,'Audit Values'!$A$2:$AE$346,28,FALSE))) -> 5 | P10: 279.5 | Q10: 279.5 | R10: 279.5 | S10: 287.3 | T10: 0 | U10: 148.8 | V10: 148.8 | W10: 0 | X10: =IF(ISNA(VLOOKUP($CZ10,'Audit Values'!$A$2:$AE$346,2,FALSE)),'Preliminary SO66'!D7,VLOOKUP($CZ10,'Audit Values'!$A$2:$AE$346,4,FALSE)) -> 98.4 | Y10: =ROUND((X10/6)*Weightings!$M$6,1) -> 8.2 | Z10: =IF(ISNA(VLOOKUP($CZ10,'Audit Values'!$A$2:$AE$346,2,FALSE)),'Preliminary SO66'!F7,VLOOKUP($CZ10,'Audit Values'!$A$2:$AE$346,6,FALSE)) -> 0 | AA10: =ROUND((Z10/6)*Weightings!$M$7,1) -> 0 | AB10: =IF(ISNA(VLOOKUP($CZ10,'Audit Values'!$A$2:$AE$346,2,FALSE)),'Preliminary SO66'!H7,VLOOKUP($CZ10,'Audit Values'!$A$2:$AE$346,9,FALSE)) -> 125 | AC10: =ROUND(AB10*Weightings!$M$8,1) -> 57 | AD10: 7.4 | AE10: 0 | AF10: =AE10*Weightings!$M$9 -> 0 | AG10: =IF(ISNA(VLOOKUP($CZ10,'Audit Values'!$A$2:$AE$346,2,FALSE)),'Preliminary SO66'!L7,VLOOKUP($CZ10,'Audit Values'!$A$2:$AE$346,12,FALSE)) -> 0 | AH10: =ROUND(AG10*Weightings!$M$10,1) -> 0 | AI10: =IF(ISNA(VLOOKUP($CZ10,'Audit Values'!$A$2:$AE$346,2,FALSE)),'Preliminary SO66'!O7,VLOOKUP($CZ10,'Audit Values'!$A$2:$AE$346,15,FALSE)) -> 149 | AJ10: 59.2 | AK10: =CC10/Weightings!$M$5 -> 0 | AL10: =CD10/Weightings!$M$5 -> 0 | AM10: =CH10/Weightings!$M$5 -> 0 | AN10: 0 | AO10: =IF(ISNA(VLOOKUP($CZ10,'Audit Values'!$A$2:$AE$346,2,FALSE)),'Preliminary SO66'!X7,VLOOKUP($CZ10,'Audit Values'!$A$2:$AE$346,24,FALSE)) -> 0 | AP10: 391830 | AQ10: =AP10/Weightings!$M$5 -> 101.7 | AR10: 567.9 | AS10: 669.6 | AT10: 669.6 | AU10: 0 | AV10: =IF(ISNA(VLOOKUP($CZ10,'Audit Values'!$A$2:$AC$355,2,FALSE)),"",IF(AND(Weightings!H10>0,VLOOKUP($CZ10,'Audit Values'!$A$2:$AC$355,29,FALSE)<Weightings!H10),Weightings!H10,VLOOKUP($CZ10,'Audit Values'!$A$2:$AC$355,29,FALSE))) -> 2 | AW10: =IF(ISNA(VLOOKUP($CZ10,'Audit Values'!$A$2:$AD$355,2,FALSE)),"",VLOOKUP($CZ10,'Audit Values'!$A$2:$AD$355,30,FALSE)) -> A | AX10: =IF(Weightings!G10="","",IF(Weightings!I10="Pending","PX","R")) ->  | AY10: =AR10*Weightings!$M$5+AU10 -> 2187551 | AZ10: =AT10*Weightings!$M$5+AU10 -> 2579299 | BA10: =IF(Weightings!G10>0,Weightings!G10,'Preliminary SO66'!AB7) -> 2587003 | BB10: 2579299 | BD10: =Weightings!E10 -> 0 | BE10: =Weightings!F10 -> 0 | BF10: 0 | BG10: 2579299 | BH10: =MAX(ROUND(((AR10-AO10-AN10)*Weightings!$M$12)+AP10,0),ROUND(((AR10-AO10-AN10)*Weightings!$M$12)+Weightings!B10,0)) -> 2941701 | BI10: 0.3 | BJ10: 882510 | BK10: 700000 | BL10: 700000 | BM10: 0.238 | BN10: 0 | BO10: TRUE | BP10: 1808.382 | BQ10: 0.51785 | BR10: 148.8 | BS10: FALSE | BT10: 0 | BU10: 0 | BV10: 0 | BW10: 0 | BX10: 762 | BY10: 0.2 | BZ10: =IF(ROUND((Weightings!$P$5*BY10^Weightings!$P$6*Weightings!$P$8 ),2)<Weightings!$P$7,Weightings!$P$7,ROUND((Weightings!$P$5*BY10^Weightings!$P$6*Weightings!$P$8 ),2)) -> 1531.06 | CA10: =ROUND(BZ10/Weightings!$M$5,4) -> 0.3975 | CB10: 59.2 | CC10: 0 | CD10: 0 | CE10: 0 | CF10: 0 | CG10: =AS10*Weightings!$M$5*CF10 -> 0 | CH10: 0 | CI10: 0.435 | CJ10: 0.4 | CK10: 0 | CL10: 0 | CM10: 7.4 | CN10: =IF(ISNA(VLOOKUP($CZ10,'Audit Values'!$A$2:$AE$346,2,FALSE)),'Preliminary SO66'!T7,VLOOKUP($CZ10,'Audit Values'!$A$2:$AE$346,20,FALSE)) -> 0 | CO10: 0 | CP10: 0 | CQ10: 0 | CR10: =IF(ISNA(VLOOKUP($CZ10,'Audit Values'!$A$2:$AE$346,2,FALSE)),'Preliminary SO66'!V7,VLOOKUP($CZ10,'Audit Values'!$A$2:$AE$346,22,FALSE)) -> 0 | CS10: 0 | CT10: =IF(ISNA(VLOOKUP($CZ10,'Audit Values'!$A$2:$AE$346,2,FALSE)),'Preliminary SO66'!W7,VLOOKUP($CZ10,'Audit Values'!$A$2:$AE$346,23,FALSE)) -> 0 | CU10: 0 | CV10: 0 | CW10: 0 | CX10: =IF(CW10>0,Weightings!$M$11*AR10,0) -> 0 | CY10: 0 | CZ10: D0107
A11: 108 | B11: Washington | C11: Washington Co. Schools | D11: 359.5 | E11: 0 | F11: 359.5 | G11: 346 | H11: 0 | I11: 346 | J11: 344 | K11: =IF(ISNA(VLOOKUP($CZ11,'Audit Values'!$A$2:$AE$346,2,FALSE)),'Preliminary SO66'!B8,VLOOKUP($CZ11,'Audit Values'!$A$2:$AE$346,31,FALSE)) -> 343 | L11: 349.5 | M11: =IF(ISNA(VLOOKUP($CZ11,'Audit Values'!$A$2:$AE$346,2,FALSE)),'Preliminary SO66'!Z8,VLOOKUP($CZ11,'Audit Values'!$A$2:$AE$346,26,FALSE)) -> 0 | N11: 349.5 | O11: =IF(ISNA(VLOOKUP($CZ11,'Audit Values'!$A$2:$AE$346,2,FALSE)),'Preliminary SO66'!C8,IF(VLOOKUP($CZ11,'Audit Values'!$A$2:$AE$346,28,FALSE)="",VLOOKUP($CZ11,'Audit Values'!$A$2:$AE$346,3,FALSE),VLOOKUP($CZ11,'Audit Values'!$A$2:$AE$346,28,FALSE))) -> 0 | P11: 343 | Q11: 344 | R11: 344 | S11: 349.5 | T11: 1 | U11: 163.3 | V11: 163.3 | W11: 0 | X11: =IF(ISNA(VLOOKUP($CZ11,'Audit Values'!$A$2:$AE$346,2,FALSE)),'Preliminary SO66'!D8,VLOOKUP($CZ11,'Audit Values'!$A$2:$AE$346,4,FALSE)) -> 126.4 | Y11: =ROUND((X11/6)*Weightings!$M$6,1) -> 10.5 | Z11: =IF(ISNA(VLOOKUP($CZ11,'Audit Values'!$A$2:$AE$346,2,FALSE)),'Preliminary SO66'!F8,VLOOKUP($CZ11,'Audit Values'!$A$2:$AE$346,6,FALSE)) -> 0 | AA11: =ROUND((Z11/6)*Weightings!$M$7,1) -> 0 | AB11: =IF(ISNA(VLOOKUP($CZ11,'Audit Values'!$A$2:$AE$346,2,FALSE)),'Preliminary SO66'!H8,VLOOKUP($CZ11,'Audit Values'!$A$2:$AE$346,9,FALSE)) -> 105 | AC11: =ROUND(AB11*Weightings!$M$8,1) -> 47.9 | AD11: 0 | AE11: 0 | AF11: =AE11*Weightings!$M$9 -> 0 | AG11: =IF(ISNA(VLOOKUP($CZ11,'Audit Values'!$A$2:$AE$346,2,FALSE)),'Preliminary SO66'!L8,VLOOKUP($CZ11,'Audit Values'!$A$2:$AE$346,12,FALSE)) -> 0 | AH11: =ROUND(AG11*Weightings!$M$10,1) -> 0 | AI11: =IF(ISNA(VLOOKUP($CZ11,'Audit Values'!$A$2:$AE$346,2,FALSE)),'Preliminary SO66'!O8,VLOOKUP($CZ11,'Audit Values'!$A$2:$AE$346,15,FALSE)) -> 160.5 | AJ11: 54.2 | AK11: =CC11/Weightings!$M$5 -> 0 | AL11: =CD11/Weightings!$M$5 -> 0 | AM11: =CH11/Weightings!$M$5 -> 0 | AN11: 1.1 | AO11: =IF(ISNA(VLOOKUP($CZ11,'Audit Values'!$A$2:$AE$346,2,FALSE)),'Preliminary SO66'!X8,VLOOKUP($CZ11,'Audit Values'!$A$2:$AE$346,24,FALSE)) -> 0 | AP11: 322502 | AQ11: =AP11/Weightings!$M$5 -> 83.7 | AR11: 626.5 | AS11: 710.2 | AT11: 710.2 | AU11: 0 | AV11: =IF(ISNA(VLOOKUP($CZ11,'Audit Values'!$A$2:$AC$355,2,FALSE)),"",IF(AND(Weightings!H11>0,VLOOKUP($CZ11,'Audit Values'!$A$2:$AC$355,29,FALSE)<Weightings!H11),Weightings!H11,VLOOKUP($CZ11,'Audit Values'!$A$2:$AC$355,29,FALSE))) -> 17 | AW11: =IF(ISNA(VLOOKUP($CZ11,'Audit Values'!$A$2:$AD$355,2,FALSE)),"",VLOOKUP($CZ11,'Audit Values'!$A$2:$AD$355,30,FALSE)) -> A | AX11: =IF(Weightings!G11="","",IF(Weightings!I11="Pending","PX","R")) ->  | AY11: =AR11*Weightings!$M$5+AU11 -> 2413278 | AZ11: =AT11*Weightings!$M$5+AU11 -> 2735690 | BA11: =IF(Weightings!G11>0,Weightings!G11,'Preliminary SO66'!AB8) -> 2805026 | BB11: 2735690 | BD11: =Weightings!E11 -> 0 | BE11: =Weightings!F11 -> 0 | BF11: 0 | BG11: 2735690 | BH11: =MAX(ROUND(((AR11-AO11-AN11)*Weightings!$M$12)+AP11,0),ROUND(((AR11-AO11-AN11)*Weightings!$M$12)+Weightings!B11,0)) -> 3356377 | BI11: 0.3 | BJ11: 1006913 | BK11: 1004084 | BL11: 1004084 | BM11: 0.2992 | BN11: 0 | BO11: FALSE | BP11: 0 | BQ11: 0 | BR11: 0 | BS11: TRUE | BT11: 61.2563 | BU11: 0.467369 | BV11: 163.3 | BW11: 0 | BX11: 389 | BY11: 0.41 | BZ11: =IF(ROUND((Weightings!$P$5*BY11^Weightings!$P$6*Weightings!$P$8 ),2)<Weightings!$P$7,Weightings!$P$7,ROUND((Weightings!$P$5*BY11^Weightings!$P$6*Weightings!$P$8 ),2)) -> 1301.58 | CA11: =ROUND(BZ11/Weightings!$M$5,4) -> 0.3379 | CB11: 54.2 | CC11: 0 | CD11: 0 | CE11: 0 | CF11: 0 | CG11: =AS11*Weightings!$M$5*CF11 -> 0 | CH11: 0 | CI11: 0.3 | CJ11: 0.9 | CK11: 0 | CL11: 0 | CM11: 0 | CN11: =IF(ISNA(VLOOKUP($CZ11,'Audit Values'!$A$2:$AE$346,2,FALSE)),'Preliminary SO66'!T8,VLOOKUP($CZ11,'Audit Values'!$A$2:$AE$346,20,FALSE)) -> 1 | CO11: 1.1 | CP11: 0 | CQ11: 0 | CR11: =IF(ISNA(VLOOKUP($CZ11,'Audit Values'!$A$2:$AE$346,2,FALSE)),'Preliminary SO66'!V8,VLOOKUP($CZ11,'Audit Values'!$A$2:$AE$346,22,FALSE)) -> 0 | CS11: 0 | CT11: =IF(ISNA(VLOOKUP($CZ11,'Audit Values'!$A$2:$AE$346,2,FALSE)),'Preliminary SO66'!W8,VLOOKUP($CZ11,'Audit Values'!$A$2:$AE$346,23,FALSE)) -> 0 | CU11: 0 | CV11: 1.1 | CW11: 0 | CX11: =IF(CW11>0,Weightings!$M$11*AR11,0) -> 0 | CY11: 0 | CZ11: D0108
A12: 109 | B12: Republic | C12: Republic County | D12: 463.5 | E12: 0 | F12: 463.5 | G12: 460 | H12: 0 | I12: 460 | J12: 470.3 | K12: =IF(ISNA(VLOOKUP($CZ12,'Audit Values'!$A$2:$AE$346,2,FALSE)),'Preliminary SO66'!B9,VLOOKUP($CZ12,'Audit Values'!$A$2:$AE$346,31,FALSE)) -> 466.5 | L12: 466.5 | M12: =IF(ISNA(VLOOKUP($CZ12,'Audit Values'!$A$2:$AE$346,2,FALSE)),'Preliminary SO66'!Z9,VLOOKUP($CZ12,'Audit Values'!$A$2:$AE$346,26,FALSE)) -> 0 | N12: 466.5 | O12: =IF(ISNA(VLOOKUP($CZ12,'Audit Values'!$A$2:$AE$346,2,FALSE)),'Preliminary SO66'!C9,IF(VLOOKUP($CZ12,'Audit Values'!$A$2:$AE$346,28,FALSE)="",VLOOKUP($CZ12,'Audit Values'!$A$2:$AE$346,3,FALSE),VLOOKUP($CZ12,'Audit Values'!$A$2:$AE$346,28,FALSE))) -> 0 | P12: 466.5 | Q12: 470.3 | R12: 470.3 | S12: 466.5 | T12: 3.8 | U12: 199.5 | V12: 199.5 | W12: 0 | X12: =IF(ISNA(VLOOKUP($CZ12,'Audit Values'!$A$2:$AE$346,2,FALSE)),'Preliminary SO66'!D9,VLOOKUP($CZ12,'Audit Values'!$A$2:$AE$346,4,FALSE)) -> 119.1 | Y12: =ROUND((X12/6)*Weightings!$M$6,1) -> 9.9 | Z12: =IF(ISNA(VLOOKUP($CZ12,'Audit Values'!$A$2:$AE$346,2,FALSE)),'Preliminary SO66'!F9,VLOOKUP($CZ12,'Audit Values'!$A$2:$AE$346,6,FALSE)) -> 0 | AA12: =ROUND((Z12/6)*Weightings!$M$7,1) -> 0 | AB12: =IF(ISNA(VLOOKUP($CZ12,'Audit Values'!$A$2:$AE$346,2,FALSE)),'Preliminary SO66'!H9,VLOOKUP($CZ12,'Audit Values'!$A$2:$AE$346,9,FALSE)) -> 183 | AC12: =ROUND(AB12*Weightings!$M$8,1) -> 83.4 | AD12: 5.4 | AE12: 0 | AF12: =AE12*Weightings!$M$9 -> 0 | AG12: =IF(ISNA(VLOOKUP($CZ12,'Audit Values'!$A$2:$AE$346,2,FALSE)),'Preliminary SO66'!L9,VLOOKUP($CZ12,'Audit Values'!$A$2:$AE$346,12,FALSE)) -> 0 | AH12: =ROUND(AG12*Weightings!$M$10,1) -> 0 | AI12: =IF(ISNA(VLOOKUP($CZ12,'Audit Values'!$A$2:$AE$346,2,FALSE)),'Preliminary SO66'!O9,VLOOKUP($CZ12,'Audit Values'!$A$2:$AE$346,15,FALSE)) -> 184 | AJ12: 65.3 | AK12: =CC12/Weightings!$M$5 -> 0 | AL12: =CD12/Weightings!$M$5 -> 0 | AM12: =CH12/Weightings!$M$5 -> 0 | AN12: 4 | AO12: =IF(ISNA(VLOOKUP($CZ12,'Audit Values'!$A$2:$AE$346,2,FALSE)),'Preliminary SO66'!X9,VLOOKUP($CZ12,'Audit Values'!$A$2:$AE$346,24,FALSE)) -> 1 | AP12: 411021 | AQ12: =AP12/Weightings!$M$5 -> 106.7 | AR12: 835 | AS12: 941.7 | AT12: 941.7 | AU12: 0 | AV12: =IF(ISNA(VLOOKUP($CZ12,'Audit Values'!$A$2:$AC$355,2,FALSE)),"",IF(AND(Weightings!H12>0,VLOOKUP($CZ12,'Audit Values'!$A$2:$AC$355,29,FALSE)<Weightings!H12),Weightings!H12,VLOOKUP($CZ12,'Audit Values'!$A$2:$AC$355,29,FALSE))) -> 25 | AW12: =IF(ISNA(VLOOKUP($CZ12,'Audit Values'!$A$2:$AD$355,2,FALSE)),"",VLOOKUP($CZ12,'Audit Values'!$A$2:$AD$355,30,FALSE)) -> A | AX12: =IF(Weightings!G12="","",IF(Weightings!I12="Pending","PX","R")) -> R | AY12: =AR12*Weightings!$M$5+AU12 -> 3216420 | AZ12: =AT12*Weightings!$M$5+AU12 -> 3627428 | BA12: =IF(Weightings!G12>0,Weightings!G12,'Preliminary SO66'!AB9) -> 3680201 | BB12: 3627428 | BD12: =Weightings!E12 -> 0 | BE12: =Weightings!F12 -> 0 | BF12: 0 | BG12: 3627428 | BH12: =MAX(ROUND(((AR12-AO12-AN12)*Weightings!$M$12)+AP12,0),ROUND(((AR12-AO12-AN12)*Weightings!$M$12)+Weightings!B12,0)) -> 4341960 | BI12: 0.3 | BJ12: 1302588 | BK12: 1282922 | BL12: 1282922 | BM12: 0.2955 | BN12: 0 | BO12: FALSE | BP12: 0 | BQ12: 0 | BR12: 0 | BS12: TRUE | BT12: 206.0438 | BU12: 0.427618 | BV12: 199.5 | BW12: 0 | BX12: 560 | BY12: 0.33 | BZ12: =IF(ROUND((Weightings!$P$5*BY12^Weightings!$P$6*Weightings!$P$8 ),2)<Weightings!$P$7,Weightings!$P$7,ROUND((Weightings!$P$5*BY12^Weightings!$P$6*Weightings!$P$8 ),2)) -> 1367.08 | CA12: =ROUND(BZ12/Weightings!$M$5,4) -> 0.3549 | CB12: 65.3 | CC12: 0 | CD12: 0 | CE12: 0 | CF12: 0 | CG12: =AS12*Weightings!$M$5*CF12 -> 0 | CH12: 0 | CI12: 0.392 | CJ12: 0.8 | CK12: 0 | CL12: 0 | CM12: 5.4 | CN12: =IF(ISNA(VLOOKUP($CZ12,'Audit Values'!$A$2:$AE$346,2,FALSE)),'Preliminary SO66'!T9,VLOOKUP($CZ12,'Audit Values'!$A$2:$AE$346,20,FALSE)) -> 3.8 | CO12: 4 | CP12: 0 | CQ12: 0 | CR12: =IF(ISNA(VLOOKUP($CZ12,'Audit Values'!$A$2:$AE$346,2,FALSE)),'Preliminary SO66'!V9,VLOOKUP($CZ12,'Audit Values'!$A$2:$AE$346,22,FALSE)) -> 0 | CS12: 0 | CT12: =IF(ISNA(VLOOKUP($CZ12,'Audit Values'!$A$2:$AE$346,2,FALSE)),'Preliminary SO66'!W9,VLOOKUP($CZ12,'Audit Values'!$A$2:$AE$346,23,FALSE)) -> 0 | CU12: 0 | CV12: 4 | CW12: 0 | CX12: =IF(CW12>0,Weightings!$M$11*AR12,0) -> 0 | CY12: 0 | CZ12: D0109
A13: 110 | B13: Phillips | C13: Thunder Ridge Schools | D13: 235 | E13: 0 | F13: 235 | G13: 226 | H13: 0 | I13: 226 | J13: 217 | K13: =IF(ISNA(VLOOKUP($CZ13,'Audit Values'!$A$2:$AE$346,2,FALSE)),'Preliminary SO66'!B10,VLOOKUP($CZ13,'Audit Values'!$A$2:$AE$346,31,FALSE)) -> 217 | L13: 226 | M13: =IF(ISNA(VLOOKUP($CZ13,'Audit Values'!$A$2:$AE$346,2,FALSE)),'Preliminary SO66'!Z10,VLOOKUP($CZ13,'Audit Values'!$A$2:$AE$346,26,FALSE)) -> 0 | N13: 226 | O13: =IF(ISNA(VLOOKUP($CZ13,'Audit Values'!$A$2:$AE$346,2,FALSE)),'Preliminary SO66'!C10,IF(VLOOKUP($CZ13,'Audit Values'!$A$2:$AE$346,28,FALSE)="",VLOOKUP($CZ13,'Audit Values'!$A$2:$AE$346,3,FALSE),VLOOKUP($CZ13,'Audit Values'!$A$2:$AE$346,28,FALSE))) -> 1 | P13: 218 | Q13: 218 | R13: 218 | S13: 227 | T13: 0 | U13: 153.8 | V13: 153.8 | W13: 0 | X13: =IF(ISNA(VLOOKUP($CZ13,'Audit Values'!$A$2:$AE$346,2,FALSE)),'Preliminary SO66'!D10,VLOOKUP($CZ13,'Audit Values'!$A$2:$AE$346,4,FALSE)) -> 57.5 | Y13: =ROUND((X13/6)*Weightings!$M$6,1) -> 4.8 | Z13: =IF(ISNA(VLOOKUP($CZ13,'Audit Values'!$A$2:$AE$346,2,FALSE)),'Preliminary SO66'!F10,VLOOKUP($CZ13,'Audit Values'!$A$2:$AE$346,6,FALSE)) -> 0 | AA13: =ROUND((Z13/6)*Weightings!$M$7,1) -> 0 | AB13: =IF(ISNA(VLOOKUP($CZ13,'Audit Values'!$A$2:$AE$346,2,FALSE)),'Preliminary SO66'!H10,VLOOKUP($CZ13,'Audit Values'!$A$2:$AE$346,9,FALSE)) -> 103 | AC13: =ROUND(AB13*Weightings!$M$8,1) -> 47 | AD13: 7.5 | AE13: 0 | AF13: =AE13*Weightings!$M$9 -> 0 | AG13: =IF(ISNA(VLOOKUP($CZ13,'Audit Values'!$A$2:$AE$346,2,FALSE)),'Preliminary SO66'!L10,VLOOKUP($CZ13,'Audit Values'!$A$2:$AE$346,12,FALSE)) -> 0 | AH13: =ROUND(AG13*Weightings!$M$10,1) -> 0 | AI13: =IF(ISNA(VLOOKUP($CZ13,'Audit Values'!$A$2:$AE$346,2,FALSE)),'Preliminary SO66'!O10,VLOOKUP($CZ13,'Audit Values'!$A$2:$AE$346,15,FALSE)) -> 154.5 | AJ13: 55.6 | AK13: =CC13/Weightings!$M$5 -> 0 | AL13: =CD13/Weightings!$M$5 -> 0 | AM13: =CH13/Weightings!$M$5 -> 0 | AN13: 0 | AO13: =IF(ISNA(VLOOKUP($CZ13,'Audit Values'!$A$2:$AE$346,2,FALSE)),'Preliminary SO66'!X10,VLOOKUP($CZ13,'Audit Values'!$A$2:$AE$346,24,FALSE)) -> 0 | AP13: 276192 | AQ13: =AP13/Weightings!$M$5 -> 71.7 | AR13: 495.7 | AS13: 567.4 | AT13: 567.4 | AU13: 0 | AV13: =IF(ISNA(VLOOKUP($CZ13,'Audit Values'!$A$2:$AC$355,2,FALSE)),"",IF(AND(Weightings!H13>0,VLOOKUP($CZ13,'Audit Values'!$A$2:$AC$355,29,FALSE)<Weightings!H13),Weightings!H13,VLOOKUP($CZ13,'Audit Values'!$A$2:$AC$355,29,FALSE))) -> 3 | AW13: =IF(ISNA(VLOOKUP($CZ13,'Audit Values'!$A$2:$AD$355,2,FALSE)),"",VLOOKUP($CZ13,'Audit Values'!$A$2:$AD$355,30,FALSE)) -> A | AX13: =IF(Weightings!G13="","",IF(Weightings!I13="Pending","PX","R")) ->  | AY13: =AR13*Weightings!$M$5+AU13 -> 1909436 | AZ13: =AT13*Weightings!$M$5+AU13 -> 2185625 | BA13: =IF(Weightings!G13>0,Weightings!G13,'Preliminary SO66'!AB10) -> 2216826 | BB13: 2185625 | BD13: =Weightings!E13 -> 0 | BE13: =Weightings!F13 -> 0 | BF13: 0 | BG13: 2185625 | BH13: =MAX(ROUND(((AR13-AO13-AN13)*Weightings!$M$12)+AP13,0),ROUND(((AR13-AO13-AN13)*Weightings!$M$12)+Weightings!B13,0)) -> 2559624 | BI13: 0.3 | BJ13: 767887 | BK13: 766136 | BL13: =MIN(BJ13,BK13) -> 766136 | BM13: 0.2993 | BN13: 0 | BO13: TRUE | BP13: 1226.185 | BQ13: 0.677689 | BR13: 153.8 | BS13: FALSE | BT13: 0 | BU13: 0 | BV13: 0 | BW13: 0 | BX13: 491 | BY13: 0.31 | BZ13: =IF(ROUND((Weightings!$P$5*BY13^Weightings!$P$6*Weightings!$P$8 ),2)<Weightings!$P$7,Weightings!$P$7,ROUND((Weightings!$P$5*BY13^Weightings!$P$6*Weightings!$P$8 ),2)) -> 1386.55 | CA13: =ROUND(BZ13/Weightings!$M$5,4) -> 0.36 | CB13: 55.6 | CC13: 0 | CD13: 0 | CE13: 0 | CF13: 0 | CG13: =AS13*Weightings!$M$5*CF13 -> 0 | CH13: =IF(CE13>CG13,CG13,CE13) -> 0 | CI13: 0.454 | CJ13: 0.5 | CK13: 0 | CL13: 0 | CM13: 7.5 | CN13: =IF(ISNA(VLOOKUP($CZ13,'Audit Values'!$A$2:$AE$346,2,FALSE)),'Preliminary SO66'!T10,VLOOKUP($CZ13,'Audit Values'!$A$2:$AE$346,20,FALSE)) -> 0 | CO13: 0 | CP13: 0 | CQ13: 0 | CR13: =IF(ISNA(VLOOKUP($CZ13,'Audit Values'!$A$2:$AE$346,2,FALSE)),'Preliminary SO66'!V10,VLOOKUP($CZ13,'Audit Values'!$A$2:$AE$346,22,FALSE)) -> 0 | CS13: 0 | CT13: =IF(ISNA(VLOOKUP($CZ13,'Audit Values'!$A$2:$AE$346,2,FALSE)),'Preliminary SO66'!W10,VLOOKUP($CZ13,'Audit Values'!$A$2:$AE$346,23,FALSE)) -> 0 | CU13: 0 | CV13: 0 | CW13: 0 | CX13: =IF(CW13>0,Weightings!$M$11*AR13,0) -> 0 | CY13: 0 | CZ13: D0110
A14: 111 | B14: Doniphan | C14: Doniphan West Schools | D14: 307.5 | E14: 0 | F14: 307.5 | G14: 318 | H14: 0 | I14: 318 | J14: 313 | K14: =IF(ISNA(VLOOKUP($CZ14,'Audit Values'!$A$2:$AE$346,2,FALSE)),'Preliminary SO66'!B11,VLOOKUP($CZ14,'Audit Values'!$A$2:$AE$346,31,FALSE)) -> 313 | L14: 318 | M14: =IF(ISNA(VLOOKUP($CZ14,'Audit Values'!$A$2:$AE$346,2,FALSE)),'Preliminary SO66'!Z11,VLOOKUP($CZ14,'Audit Values'!$A$2:$AE$346,26,FALSE)) -> 0 | N14: 318 | O14: =IF(ISNA(VLOOKUP($CZ14,'Audit Values'!$A$2:$AE$346,2,FALSE)),'Preliminary SO66'!C11,IF(VLOOKUP($CZ14,'Audit Values'!$A$2:$AE$346,28,FALSE)="",VLOOKUP($CZ14,'Audit Values'!$A$2:$AE$346,3,FALSE),VLOOKUP($CZ14,'Audit Values'!$A$2:$AE$346,28,FALSE))) -> 6 | P14: 319 | Q14: 319 | R14: 319 | S14: 324 | T14: 0 | U14: 154.2 | V14: =MAX(BN14,BR14,BV14) -> 154.2 | W14: =BW14 -> 0 | X14: =IF(ISNA(VLOOKUP($CZ14,'Audit Values'!$A$2:$AE$346,2,FALSE)),'Preliminary SO66'!D11,VLOOKUP($CZ14,'Audit Values'!$A$2:$AE$346,4,FALSE)) -> 51.3 | Y14: =ROUND((X14/6)*Weightings!$M$6,1) -> 4.3 | Z14: =IF(ISNA(VLOOKUP($CZ14,'Audit Values'!$A$2:$AE$346,2,FALSE)),'Preliminary SO66'!F11,VLOOKUP($CZ14,'Audit Values'!$A$2:$AE$346,6,FALSE)) -> 0 | AA14: =ROUND((Z14/6)*Weightings!$M$7,1) -> 0 | AB14: =IF(ISNA(VLOOKUP($CZ14,'Audit Values'!$A$2:$AE$346,2,FALSE)),'Preliminary SO66'!H11,VLOOKUP($CZ14,'Audit Values'!$A$2:$AE$346,9,FALSE)) -> 141 | AC14: =ROUND(AB14*Weightings!$M$8,1) -> 64.3 | AD14: 8.4 | AE14: 0 | AF14: =AE14*Weightings!$M$9 -> 0 | AG14: =IF(ISNA(VLOOKUP($CZ14,'Audit Values'!$A$2:$AE$346,2,FALSE)),'Preliminary SO66'!L11,VLOOKUP($CZ14,'Audit Values'!$A$2:$AE$346,12,FALSE)) -> 0 | AH14: =ROUND(AG14*Weightings!$M$10,1) -> 0 | AI14: =IF(ISNA(VLOOKUP($CZ14,'Audit Values'!$A$2:$AE$346,2,FALSE)),'Preliminary SO66'!O11,VLOOKUP($CZ14,'Audit Values'!$A$2:$AE$346,15,FALSE)) -> 251 | AJ14: 67.8 | AK14: =CC14/Weightings!$M$5 -> 0 | AL14: =CD14/Weightings!$M$5 -> 0 | AM14: =CH14/Weightings!$M$5 -> 0 | AN14: 0 | AO14: =IF(ISNA(VLOOKUP($CZ14,'Audit Values'!$A$2:$AE$346,2,FALSE)),'Preliminary SO66'!X11,VLOOKUP($CZ14,'Audit Values'!$A$2:$AE$346,24,FALSE)) -> 0 | AP14: 307979 | AQ14: =AP14/Weightings!$M$5 -> 80 | AR14: 623 | AS14: 703 | AT14: 703 | AU14: 0 | AV14: =IF(ISNA(VLOOKUP($CZ14,'Audit Values'!$A$2:$AC$355,2,FALSE)),"",IF(AND(Weightings!H14>0,VLOOKUP($CZ14,'Audit Values'!$A$2:$AC$355,29,FALSE)<Weightings!H14),Weightings!H14,VLOOKUP($CZ14,'Audit Values'!$A$2:$AC$355,29,FALSE))) -> 19 | AW14: =IF(ISNA(VLOOKUP($CZ14,'Audit Values'!$A$2:$AD$355,2,FALSE)),"",VLOOKUP($CZ14,'Audit Values'!$A$2:$AD$355,30,FALSE)) -> A | AX14: =IF(Weightings!G14="","",IF(Weightings!I14="Pending","PX","R")) ->  | AY14: =AR14*Weightings!$M$5+AU14 -> 2399796 | AZ14: =AT14*Weightings!$M$5+AU14 -> 2707956 | BA14: =IF(Weightings!G14>0,Weightings!G14,'Preliminary SO66'!AB11) -> 3016501 | BB14: 2707956 | BD14: =Weightings!E14 -> 0 | BE14: =Weightings!F14 -> 0 | BF14: 0 | BG14: 2707956 | BH14: =MAX(ROUND(((AR14-AO14-AN14)*Weightings!$M$12)+AP14,0),ROUND(((AR14-AO14-AN14)*Weightings!$M$12)+Weightings!B14,0)) -> 3352491 | BI14: 0.3 | BJ14: 1005747 | BK14: 1000000 | BL14: 1000000 | BM14: 0.2983 | BN14: 0 | BO14: FALSE | BP14: 0 | BQ14: =IF(BO14=TRUE,ROUND(((7337-BP14)/3642.4)-1,6),0) -> 0 | BR14: 0 | BS14: TRUE | BT14: 29.7 | BU14: =IF(BS14=TRUE,ROUND(((5406-BT14)/3642.4)-1,6),0) -> 0.476032 | BV14: 154.2 | BW14: 0 | BX14: 229 | BY14: 1.1 | BZ14: =IF(ROUND((Weightings!$P$5*BY14^Weightings!$P$6*Weightings!$P$8 ),2)<Weightings!$P$7,Weightings!$P$7,ROUND((Weightings!$P$5*BY14^Weightings!$P$6*Weightings!$P$8 ),2)) -> 1041.16 | CA14: =ROUND(BZ14/Weightings!$M$5,4) -> 0.2703 | CB14: 67.8 | CC14: 0 | CD14: 0 | CE14: 0 | CF14: 0 | CG14: =AS14*Weightings!$M$5*CF14 -> 0 | CH14: 0 | CI14: 0.435 | CJ14: 1.4 | CK14: 0 | CL14: 0 | CM14: 8.4 | CN14: =IF(ISNA(VLOOKUP($CZ14,'Audit Values'!$A$2:$AE$346,2,FALSE)),'Preliminary SO66'!T11,VLOOKUP($CZ14,'Audit Values'!$A$2:$AE$346,20,FALSE)) -> 0 | CO14: =CN14*1.05 -> 0 | CP14: 0 | CQ14: =CP14*0.25 -> 0 | CR14: =IF(ISNA(VLOOKUP($CZ14,'Audit Values'!$A$2:$AE$346,2,FALSE)),'Preliminary SO66'!V11,VLOOKUP($CZ14,'Audit Values'!$A$2:$AE$346,22,FALSE)) -> 0 | CS14: =CR14*0.08 -> 0 | CT14: =IF(ISNA(VLOOKUP($CZ14,'Audit Values'!$A$2:$AE$346,2,FALSE)),'Preliminary SO66'!W11,VLOOKUP($CZ14,'Audit Values'!$A$2:$AE$346,23,FALSE)) -> 0 | CU14: 0 | CV14: 0 | CW14: 0 | CX14: =IF(CW14>0,Weightings!$M$11*AR14,0) -> 0 | CY14: 0 | CZ14: D0111
A15: 112 | B15: Ellsworth | C15: Central Plains | D15: 454.5 | E15: 0 | F15: 454.5 | G15: 450.9 | H15: 0 | I15: 450.9 | J15: 486.7 | K15: =IF(ISNA(VLOOKUP($CZ15,'Audit Values'!$A$2:$AE$346,2,FALSE)),'Preliminary SO66'!B12,VLOOKUP($CZ15,'Audit Values'!$A$2:$AE$346,31,FALSE)) -> 430 | L15: 450.9 | M15: =IF(ISNA(VLOOKUP($CZ15,'Audit Values'!$A$2:$AE$346,2,FALSE)),'Preliminary SO66'!Z12,VLOOKUP($CZ15,'Audit Values'!$A$2:$AE$346,26,FALSE)) -> 0 | N15: 450.9 | O15: =IF(ISNA(VLOOKUP($CZ15,'Audit Values'!$A$2:$AE$346,2,FALSE)),'Preliminary SO66'!C12,IF(VLOOKUP($CZ15,'Audit Values'!$A$2:$AE$346,28,FALSE)="",VLOOKUP($CZ15,'Audit Values'!$A$2:$AE$346,3,FALSE),VLOOKUP($CZ15,'Audit Values'!$A$2:$AE$346,28,FALSE))) -> 7.5 | P15: 437.5 | Q15: 494.2 | R15: 494.2 | S15: 458.4 | T15: =CN15 -> 56.7 | U15: 197.3 | V15: =MAX(BN15,BR15,BV15) -> 197.3 | W15: =BW15 -> 0 | X15: =IF(ISNA(VLOOKUP($CZ15,'Audit Values'!$A$2:$AE$346,2,FALSE)),'Preliminary SO66'!D12,VLOOKUP($CZ15,'Audit Values'!$A$2:$AE$346,4,FALSE)) -> 150.5 | Y15: =ROUND((X15/6)*Weightings!$M$6,1) -> 12.5 | Z15: =IF(ISNA(VLOOKUP($CZ15,'Audit Values'!$A$2:$AE$346,2,FALSE)),'Preliminary SO66'!F12,VLOOKUP($CZ15,'Audit Values'!$A$2:$AE$346,6,FALSE)) -> 0 | AA15: =ROUND((Z15/6)*Weightings!$M$7,1) -> 0 | AB15: =IF(ISNA(VLOOKUP($CZ15,'Audit Values'!$A$2:$AE$346,2,FALSE)),'Preliminary SO66'!H12,VLOOKUP($CZ15,'Audit Values'!$A$2:$AE$346,9,FALSE)) -> 151 | AC15: =ROUND(AB15*Weightings!$M$8,1) -> 68.9 | AD15: =MAX(CK15,CL15,CM15) -> 0 | AE15: 0 | AF15: =AE15*Weightings!$M$9 -> 0 | AG15: =IF(ISNA(VLOOKUP($CZ15,'Audit Values'!$A$2:$AE$346,2,FALSE)),'Preliminary SO66'!L12,VLOOKUP($CZ15,'Audit Values'!$A$2:$AE$346,12,FALSE)) -> 0 | AH15: =ROUND(AG15*Weightings!$M$10,1) -> 0 | AI15: =IF(ISNA(VLOOKUP($CZ15,'Audit Values'!$A$2:$AE$346,2,FALSE)),'Preliminary SO66'!O12,VLOOKUP($CZ15,'Audit Values'!$A$2:$AE$346,15,FALSE)) -> 232 | AJ15: 78.8 | AK15: =CC15/Weightings!$M$5 -> 0 | AL15: =CD15/Weightings!$M$5 -> 0 | AM15: =CH15/Weightings!$M$5 -> 0 | AN15: =CV15 -> 59.5 | AO15: =IF(ISNA(VLOOKUP($CZ15,'Audit Values'!$A$2:$AE$346,2,FALSE)),'Preliminary SO66'!X12,VLOOKUP($CZ15,'Audit Values'!$A$2:$AE$346,24,FALSE)) -> 0 | AP15: 414298 | AQ15: =AP15/Weightings!$M$5 -> 107.6 | AR15: 875.4 | AS15: 983 | AT15: 983 | AU15: 0 | AV15: =IF(ISNA(VLOOKUP($CZ15,'Audit Values'!$A$2:$AC$355,2,FALSE)),"",IF(AND(Weightings!H15>0,VLOOKUP($CZ15,'Audit Values'!$A$2:$AC$355,29,FALSE)<Weightings!H15),Weightings!H15,VLOOKUP($CZ15,'Audit Values'!$A$2:$AC$355,29,FALSE))) -> 21 | AW15: =IF(ISNA(VLOOKUP($CZ15,'Audit Values'!$A$2:$AD$355,2,FALSE)),"",VLOOKUP($CZ15,'Audit Values'!$A$2:$AD$355,30,FALSE)) -> A | AX15: =IF(Weightings!G15="","",IF(Weightings!I15="Pending","PX","R")) ->  | AY15: =Exceptions!E50+AU15 -> 4998037 | AZ15: =Exceptions!E52+AU15 -> 5412512 | BA15: =IF(Weightings!G15>0,Weightings!G15,'Preliminary SO66'!AB12) -> 5467211 | BB15: 5412512 | BD15: =Weightings!E15 -> 0 | BE15: =Weightings!F15 -> 0 | BF15: 0 | BG15: 5412512 | BH15: =MAX(ROUND(((AR15-AO15-AN15)*Weightings!$M$12)+AP15,0),ROUND(((AR15-AO15-AN15)*Weightings!$M$12)+Weightings!B15,0)) -> 4349367 | BI15: 0.3 | BJ15: 1304810 | BK15: 1336061 | BL15: 1304810 | BM15: 0.3 | BN15: 0 | BO15: FALSE | BP15: 0 | BQ15: =IF(BO15=TRUE,ROUND(((7337-BP15)/3642.4)-1,6),0) -> 0 | BR15: 0 | BS15: TRUE | BT15: 196.02 | BU15: =IF(BS15=TRUE,ROUND(((5406-BT15)/3642.4)-1,6),0) -> 0.43037 | BV15: 197.3 | BW15: 0 | BX15: 582.8 | BY15: 0.4 | BZ15: =IF(ROUND((Weightings!$P$5*BY15^Weightings!$P$6*Weightings!$P$8 ),2)<Weightings!$P$7,Weightings!$P$7,ROUND((Weightings!$P$5*BY15^Weightings!$P$6*Weightings!$P$8 ),2)) -> 1308.87 | CA15: =ROUND(BZ15/Weightings!$M$5,4) -> 0.3398 | CB15: 78.8 | CC15: 0 | CD15: 0 | CE15: 0 | CF15: 0 | CG15: =AS15*Weightings!$M$5*CF15 -> 0 | CH15: 0 | CI15: 0.329 | CJ15: 0.8 | CK15: 0 | CL15: 0 | CM15: 0 | CN15: =IF(ISNA(VLOOKUP($CZ15,'Audit Values'!$A$2:$AE$346,2,FALSE)),'Preliminary SO66'!T12,VLOOKUP($CZ15,'Audit Values'!$A$2:$AE$346,20,FALSE)) -> 56.7 | CO15: =CN15*1.05 -> 59.5 | CP15: 0 | CQ15: =CP15*0.25 -> 0 | CR15: =IF(ISNA(VLOOKUP($CZ15,'Audit Values'!$A$2:$AE$346,2,FALSE)),'Preliminary SO66'!V12,VLOOKUP($CZ15,'Audit Values'!$A$2:$AE$346,22,FALSE)) -> 0 | CS15: =CR15*0.08 -> 0 | CT15: =IF(ISNA(VLOOKUP($CZ15,'Audit Values'!$A$2:$AE$346,2,FALSE)),'Preliminary SO66'!W12,VLOOKUP($CZ15,'Audit Values'!$A$2:$AE$346,23,FALSE)) -> 0 | CU15: 0 | CV15: 59.5 | CW15: 0 | CX15: =IF(CW15>0,Weightings!$M$11*AR15,0) -> 0 | CY15: 0 | CZ15: D0112
A16: 113 | B16: Nemaha | C16: Prairie Hills | D16: 1105.8 | E16: 0 | F16: 1105.8 | G16: 1071.7 | H16: 0 | I16: 1071.7 | J16: 1078.9 | K16: =IF(ISNA(VLOOKUP($CZ16,'Audit Values'!$A$2:$AE$346,2,FALSE)),'Preliminary SO66'!B13,VLOOKUP($CZ16,'Audit Values'!$A$2:$AE$346,31,FALSE)) -> 1078.9 | L16: 1085.5 | M16: =IF(ISNA(VLOOKUP($CZ16,'Audit Values'!$A$2:$AE$346,2,FALSE)),'Preliminary SO66'!Z13,VLOOKUP($CZ16,'Audit Values'!$A$2:$AE$346,26,FALSE)) -> 0 | N16: 1085.5 | O16: =IF(ISNA(VLOOKUP($CZ16,'Audit Values'!$A$2:$AE$346,2,FALSE)),'Preliminary SO66'!C13,IF(VLOOKUP($CZ16,'Audit Values'!$A$2:$AE$346,28,FALSE)="",VLOOKUP($CZ16,'Audit Values'!$A$2:$AE$346,3,FALSE),VLOOKUP($CZ16,'Audit Values'!$A$2:$AE$346,28,FALSE))) -> 7 | P16: 1085.9 | Q16: 1085.9 | R16: 1085.9 | S16: 1092.5 | T16: 0 | U16: 234.8 | V16: =MAX(BN16,BR16,BV16) -> 234.8 | W16: =BW16 -> 0 | X16: =IF(ISNA(VLOOKUP($CZ16,'Audit Values'!$A$2:$AE$346,2,FALSE)),'Preliminary SO66'!D13,VLOOKUP($CZ16,'Audit Values'!$A$2:$AE$346,4,FALSE)) -> 323.4 | Y16: =ROUND((X16/6)*Weightings!$M$6,1) -> 27 | Z16: =IF(ISNA(VLOOKUP($CZ16,'Audit Values'!$A$2:$AE$346,2,FALSE)),'Preliminary SO66'!F13,VLOOKUP($CZ16,'Audit Values'!$A$2:$AE$346,6,FALSE)) -> 3 | AA16: =ROUND((Z16/6)*Weightings!$M$7,1) -> 0.2 | AB16: =IF(ISNA(VLOOKUP($CZ16,'Audit Values'!$A$2:$AE$346,2,FALSE)),'Preliminary SO66'!H13,VLOOKUP($CZ16,'Audit Values'!$A$2:$AE$346,9,FALSE)) -> 283 | AC16: =ROUND(AB16*Weightings!$M$8,1) -> 129 | AD16: =MAX(CK16,CL16,CM16) -> 0 | AE16: 0 | AF16: =AE16*Weightings!$M$9 -> 0 | AG16: =IF(ISNA(VLOOKUP($CZ16,'Audit Values'!$A$2:$AE$346,2,FALSE)),'Preliminary SO66'!L13,VLOOKUP($CZ16,'Audit Values'!$A$2:$AE$346,12,FALSE)) -> 0 | AH16: =ROUND(AG16*Weightings!$M$10,1) -> 0 | AI16: =IF(ISNA(VLOOKUP($CZ16,'Audit Values'!$A$2:$AE$346,2,FALSE)),'Preliminary SO66'!O13,VLOOKUP($CZ16,'Audit Values'!$A$2:$AE$346,15,FALSE)) -> 402.6 | AJ16: 119 | AK16: =CC16/Weightings!$M$5 -> 0 | AL16: =CD16/Weightings!$M$5 -> 0 | AM16: =CH16/Weightings!$M$5 -> 0 | AN16: =CV16 -> 0 | AO16: =IF(ISNA(VLOOKUP($CZ16,'Audit Values'!$A$2:$AE$346,2,FALSE)),'Preliminary SO66'!X13,VLOOKUP($CZ16,'Audit Values'!$A$2:$AE$346,24,FALSE)) -> 0 | AP16: 813076 | AQ16: =AP16/Weightings!$M$5 -> 211.1 | AR16: 1602.5 | AS16: 1813.6 | AT16: 1813.6 | AU16: 0 | AV16: =IF(ISNA(VLOOKUP($CZ16,'Audit Values'!$A$2:$AC$355,2,FALSE)),"",IF(AND(Weightings!H16>0,VLOOKUP($CZ16,'Audit Values'!$A$2:$AC$355,29,FALSE)<Weightings!H16),Weightings!H16,VLOOKUP($CZ16,'Audit Values'!$A$2:$AC$355,29,FALSE))) -> 3 | AW16: =IF(ISNA(VLOOKUP($CZ16,'Audit Values'!$A$2:$AD$355,2,FALSE)),"",VLOOKUP($CZ16,'Audit Values'!$A$2:$AD$355,30,FALSE)) -> A | AX16: =IF(Weightings!G16="","",IF(Weightings!I16="Pending","PX","R")) ->  | AY16: =Exceptions!H50+AU16 -> 7638511 | AZ16: =Exceptions!H52+AU16 -> 8451668 | BA16: =IF(Weightings!G16>0,Weightings!G16,'Preliminary SO66'!AB13) -> 8530634 | BB16: 8451668 | BD16: =Weightings!E16 -> 0 | BE16: =Weightings!F16 -> 0 | BF16: 0 | BG16: 8451668 | BH16: =MAX(ROUND(((AR16-AO16-AN16)*Weightings!$M$12)+AP16,0),ROUND(((AR16-AO16-AN16)*Weightings!$M$12)+Weightings!B16,0)) -> 8296018 | BI16: 0.3 | BJ16: 2488805 | BK16: 2502141 | BL16: 2488805 | BM16: 0.3 | BN16: 0 | BO16: FALSE | BP16: 0 | BQ16: =IF(BO16=TRUE,ROUND(((7337-BP16)/3642.4)-1,6),0) -> 0 | BR16: 0 | BS16: TRUE | BT16: 980.7188 | BU16: =IF(BS16=TRUE,ROUND(((5406-BT16)/3642.4)-1,6),0) -> 0.214936 | BV16: 234.8 | BW16: 0 | BX16: 543 | BY16: 0.74 | BZ16: =IF(ROUND((Weightings!$P$5*BY16^Weightings!$P$6*Weightings!$P$8 ),2)<Weightings!$P$7,Weightings!$P$7,ROUND((Weightings!$P$5*BY16^Weightings!$P$6*Weightings!$P$8 ),2)) -> 1138.83 | CA16: =ROUND(BZ16/Weightings!$M$5,4) -> 0.2956 | CB16: 119 | CC16: 0 | CD16: 0 | CE16: 0 | CF16: 0 | CG16: =AS16*Weightings!$M$5*CF16 -> 0 | CH16: 0 | CI16: 0.259 | CJ16: 2 | CK16: 0 | CL16: 0 | CM16: 0 | CN16: =IF(ISNA(VLOOKUP($CZ16,'Audit Values'!$A$2:$AE$346,2,FALSE)),'Preliminary SO66'!T13,VLOOKUP($CZ16,'Audit Values'!$A$2:$AE$346,20,FALSE)) -> 0 | CO16: =CN16*1.05 -> 0 | CP16: 0 | CQ16: =CP16*0.25 -> 0 | CR16: =IF(ISNA(VLOOKUP($CZ16,'Audit Values'!$A$2:$AE$346,2,FALSE)),'Preliminary SO66'!V13,VLOOKUP($CZ16,'Audit Values'!$A$2:$AE$346,22,FALSE)) -> 0 | CS16: =CR16*0.08 -> 0 | CT16: =IF(ISNA(VLOOKUP($CZ16,'Audit Values'!$A$2:$AE$346,2,FALSE)),'Preliminary SO66'!W13,VLOOKUP($CZ16,'Audit Values'!$A$2:$AE$346,23,FALSE)) -> 0 | CU16: 0 | CV16: 0 | CW16: 0 | CX16: =IF(CW16>0,Weightings!$M$11*AR16,0) -> 0 | CY16: 0 | CZ16: D0113
A17: 114 | B17: Doniphan | C17: Riverside | D17: 646.9 | E17: 0 | F17: 646.9 | G17: 640.5 | H17: 0 | I17: 640.5 | J17: 635.6 | K17: =IF(ISNA(VLOOKUP($CZ17,'Audit Values'!$A$2:$AE$346,2,FALSE)),'Preliminary SO66'!B14,VLOOKUP($CZ17,'Audit Values'!$A$2:$AE$346,31,FALSE)) -> 635.6 | L17: 641 | M17: =IF(ISNA(VLOOKUP($CZ17,'Audit Values'!$A$2:$AE$346,2,FALSE)),'Preliminary SO66'!Z14,VLOOKUP($CZ17,'Audit Values'!$A$2:$AE$346,26,FALSE)) -> 0 | N17: 641 | O17: =IF(ISNA(VLOOKUP($CZ17,'Audit Values'!$A$2:$AE$346,2,FALSE)),'Preliminary SO66'!C14,IF(VLOOKUP($CZ17,'Audit Values'!$A$2:$AE$346,28,FALSE)="",VLOOKUP($CZ17,'Audit Values'!$A$2:$AE$346,3,FALSE),VLOOKUP($CZ17,'Audit Values'!$A$2:$AE$346,28,FALSE))) -> 9 | P17: 644.6 | Q17: 644.6 | R17: 644.6 | S17: 650 | T17: 0 | U17: 237.4 | V17: =MAX(BN17,BR17,BV17) -> 237.4 | W17: =BW17 -> 0 | X17: =IF(ISNA(VLOOKUP($CZ17,'Audit Values'!$A$2:$AE$346,2,FALSE)),'Preliminary SO66'!D14,VLOOKUP($CZ17,'Audit Values'!$A$2:$AE$346,4,FALSE)) -> 176.1 | Y17: =ROUND((X17/6)*Weightings!$M$6,1) -> 14.7 | Z17: =IF(ISNA(VLOOKUP($CZ17,'Audit Values'!$A$2:$AE$346,2,FALSE)),'Preliminary SO66'!F14,VLOOKUP($CZ17,'Audit Values'!$A$2:$AE$346,6,FALSE)) -> 0 | AA17: =ROUND((Z17/6)*Weightings!$M$7,1) -> 0 | AB17: =IF(ISNA(VLOOKUP($CZ17,'Audit Values'!$A$2:$AE$346,2,FALSE)),'Preliminary SO66'!H14,VLOOKUP($CZ17,'Audit Values'!$A$2:$AE$346,9,FALSE)) -> 342 | AC17: =ROUND(AB17*Weightings!$M$8,1) -> 156 | AD17: =MAX(CK17,CL17,CM17) -> 35.9 | AE17: 0 | AF17: =AE17*Weightings!$M$9 -> 0 | AG17: =IF(ISNA(VLOOKUP($CZ17,'Audit Values'!$A$2:$AE$346,2,FALSE)),'Preliminary SO66'!L14,VLOOKUP($CZ17,'Audit Values'!$A$2:$AE$346,12,FALSE)) -> 0 | AH17: =ROUND(AG17*Weightings!$M$10,1) -> 0 | AI17: =IF(ISNA(VLOOKUP($CZ17,'Audit Values'!$A$2:$AE$346,2,FALSE)),'Preliminary SO66'!O14,VLOOKUP($CZ17,'Audit Values'!$A$2:$AE$346,15,FALSE)) -> 277 | AJ17: 59 | AK17: =CC17/Weightings!$M$5 -> 0 | AL17: =CD17/Weightings!$M$5 -> 0 | AM17: =CH17/Weightings!$M$5 -> 0 | AN17: =CV17 -> 0 | AO17: =IF(ISNA(VLOOKUP($CZ17,'Audit Values'!$A$2:$AE$346,2,FALSE)),'Preliminary SO66'!X14,VLOOKUP($CZ17,'Audit Values'!$A$2:$AE$346,24,FALSE)) -> 0 | AP17: 646802 | AQ17: =AP17/Weightings!$M$5 -> 167.9 | AR17: 1153 | AS17: 1320.9 | AT17: 1320.9 | AU17: 0 | AV17: =IF(ISNA(VLOOKUP($CZ17,'Audit Values'!$A$2:$AC$355,2,FALSE)),"",IF(AND(Weightings!H17>0,VLOOKUP($CZ17,'Audit Values'!$A$2:$AC$355,29,FALSE)<Weightings!H17),Weightings!H17,VLOOKUP($CZ17,'Audit Values'!$A$2:$AC$355,29,FALSE))) -> 20 | AW17: =IF(ISNA(VLOOKUP($CZ17,'Audit Values'!$A$2:$AD$355,2,FALSE)),"",VLOOKUP($CZ17,'Audit Values'!$A$2:$AD$355,30,FALSE)) -> A | AX17: =IF(Weightings!G17="","",IF(Weightings!I17="Pending","PX","R")) ->  | AY17: =Exceptions!B63+AU17 -> 4955854 | AZ17: =Exceptions!B65+AU17 -> 5602605 | BA17: =IF(Weightings!G17>0,Weightings!G17,'Preliminary SO66'!AB14) -> 5801753 | BB17: 5602605 | BD17: =Weightings!E17 -> 0 | BE17: =Weightings!F17 -> 0 | BF17: 0 | BG17: 5602605 | BH17: =MAX(ROUND(((AR17-AO17-AN17)*Weightings!$M$12)+AP17,0),ROUND(((AR17-AO17-AN17)*Weightings!$M$12)+Weightings!B17,0)) -> 5823772 | BI17: 0.3 | BJ17: 1747132 | BK17: 1465000 | BL17: 1465000 | BM17: 0.2516 | BN17: 0 | BO17: FALSE | BP17: 0 | BQ17: =IF(BO17=TRUE,ROUND(((7337-BP17)/3642.4)-1,6),0) -> 0 | BR17: 0 | BS17: TRUE | BT17: 433.125 | BU17: =IF(BS17=TRUE,ROUND(((5406-BT17)/3642.4)-1,6),0) -> 0.365274 | BV17: 237.4 | BW17: 0 | BX17: 88 | BY17: 3.15 | BZ17: =IF(ROUND((Weightings!$P$5*BY17^Weightings!$P$6*Weightings!$P$8 ),2)<Weightings!$P$7,Weightings!$P$7,ROUND((Weightings!$P$5*BY17^Weightings!$P$6*Weightings!$P$8 ),2)) -> 820.65 | CA17: =ROUND(BZ17/Weightings!$M$5,4) -> 0.213 | CB17: 59 | CC17: 0 | CD17: 0 | CE17: 0 | CF17: 0 | CG17: =AS17*Weightings!$M$5*CF17 -> 0 | CH17: 0 | CI17: 0.526 | CJ17: 7.4 | CK17: 35.9 | CL17: 0 | CM17: 0 | CN17: =IF(ISNA(VLOOKUP($CZ17,'Audit Values'!$A$2:$AE$346,2,FALSE)),'Preliminary SO66'!T14,VLOOKUP($CZ17,'Audit Values'!$A$2:$AE$346,20,FALSE)) -> 0 | CO17: =CN17*1.05 -> 0 | CP17: 0 | CQ17: =CP17*0.25 -> 0 | CR17: =IF(ISNA(VLOOKUP($CZ17,'Audit Values'!$A$2:$AE$346,2,FALSE)),'Preliminary SO66'!V14,VLOOKUP($CZ17,'Audit Values'!$A$2:$AE$346,22,FALSE)) -> 0 | CS17: =CR17*0.08 -> 0 | CT17: =IF(ISNA(VLOOKUP($CZ17,'Audit Values'!$A$2:$AE$346,2,FALSE)),'Preliminary SO66'!W14,VLOOKUP($CZ17,'Audit Values'!$A$2:$AE$346,23,FALSE)) -> 0 | CU17: 0 | CV17: 0 | CW17: 0 | CX17: =IF(CW17>0,Weightings!$M$11*AR17,0) -> 0 | CY17: 0 | CZ17: D0114
A18: 115 | B18: Nemaha | C18: Nemaha Central | D18: 578.3 | E18: 0 | F18: 578.3 | G18: 548 | H18: 0 | I18: 548 | J18: 537.9 | K18: =IF(ISNA(VLOOKUP($CZ18,'Audit Values'!$A$2:$AE$346,2,FALSE)),'Preliminary SO66'!B15,VLOOKUP($CZ18,'Audit Values'!$A$2:$AE$346,31,FALSE)) -> 537.9 | L18: 554.7 | M18: =IF(ISNA(VLOOKUP($CZ18,'Audit Values'!$A$2:$AE$346,2,FALSE)),'Preliminary SO66'!Z15,VLOOKUP($CZ18,'Audit Values'!$A$2:$AE$346,26,FALSE)) -> 0 | N18: 554.7 | O18: =IF(ISNA(VLOOKUP($CZ18,'Audit Values'!$A$2:$AE$346,2,FALSE)),'Preliminary SO66'!C15,IF(VLOOKUP($CZ18,'Audit Values'!$A$2:$AE$346,28,FALSE)="",VLOOKUP($CZ18,'Audit Values'!$A$2:$AE$346,3,FALSE),VLOOKUP($CZ18,'Audit Values'!$A$2:$AE$346,28,FALSE))) -> 8 | P18: 545.9 | Q18: 545.9 | R18: 545.9 | S18: 562.7 | T18: =CN18 -> 0 | U18: 222.2 | V18: =MAX(BN18,BR18,BV18) -> 222.2 | W18: =BW18 -> 0 | X18: =IF(ISNA(VLOOKUP($CZ18,'Audit Values'!$A$2:$AE$346,2,FALSE)),'Preliminary SO66'!D15,VLOOKUP($CZ18,'Audit Values'!$A$2:$AE$346,4,FALSE)) -> 301.3 | Y18: =ROUND((X18/6)*Weightings!$M$6,1) -> 25.1 | Z18: =IF(ISNA(VLOOKUP($CZ18,'Audit Values'!$A$2:$AE$346,2,FALSE)),'Preliminary SO66'!F15,VLOOKUP($CZ18,'Audit Values'!$A$2:$AE$346,6,FALSE)) -> 0 | AA18: =ROUND((Z18/6)*Weightings!$M$7,1) -> 0 | AB18: =IF(ISNA(VLOOKUP($CZ18,'Audit Values'!$A$2:$AE$346,2,FALSE)),'Preliminary SO66'!H15,VLOOKUP($CZ18,'Audit Values'!$A$2:$AE$346,9,FALSE)) -> 106 | AC18: =ROUND(AB18*Weightings!$M$8,1) -> 48.3 | AD18: =MAX(CK18,CL18,CM18) -> 0 | AE18: 0 | AF18: =AE18*Weightings!$M$9 -> 0 | AG18: =IF(ISNA(VLOOKUP($CZ18,'Audit Values'!$A$2:$AE$346,2,FALSE)),'Preliminary SO66'!L15,VLOOKUP($CZ18,'Audit Values'!$A$2:$AE$346,12,FALSE)) -> 0 | AH18: =ROUND(AG18*Weightings!$M$10,1) -> 0 | AI18: =IF(ISNA(VLOOKUP($CZ18,'Audit Values'!$A$2:$AE$346,2,FALSE)),'Preliminary SO66'!O15,VLOOKUP($CZ18,'Audit Values'!$A$2:$AE$346,15,FALSE)) -> 208.9 | AJ18: 58.5 | AK18: =CC18/Weightings!$M$5 -> 0 | AL18: =CD18/Weightings!$M$5 -> 0 | AM18: =CH18/Weightings!$M$5 -> 0 | AN18: =CV18 -> 0 | AO18: =IF(ISNA(VLOOKUP($CZ18,'Audit Values'!$A$2:$AE$346,2,FALSE)),'Preliminary SO66'!X15,VLOOKUP($CZ18,'Audit Values'!$A$2:$AE$346,24,FALSE)) -> 1 | AP18: 421295 | AQ18: =AP18/Weightings!$M$5 -> 109.4 | AR18: 917.8 | AS18: 1027.2 | AT18: 1027.2 | AU18: 0 | AV18: =IF(ISNA(VLOOKUP($CZ18,'Audit Values'!$A$2:$AC$355,2,FALSE)),"",IF(AND(Weightings!H18>0,VLOOKUP($CZ18,'Audit Values'!$A$2:$AC$355,29,FALSE)<Weightings!H18),Weightings!H18,VLOOKUP($CZ18,'Audit Values'!$A$2:$AC$355,29,FALSE))) -> 10 | AW18: =IF(ISNA(VLOOKUP($CZ18,'Audit Values'!$A$2:$AD$355,2,FALSE)),"",VLOOKUP($CZ18,'Audit Values'!$A$2:$AD$355,30,FALSE)) -> A | AX18: =IF(Weightings!G18="","",IF(Weightings!I18="Pending","PX","R")) ->  | AY18: =Exceptions!H63+AU18 -> 4507363 | AZ18: =Exceptions!H65+AU18 -> 4928772 | BA18: =IF(Weightings!G18>0,Weightings!G18,'Preliminary SO66'!AB15) -> 5064362 | BB18: 4928772 | BD18: =Weightings!E18 -> 0 | BE18: =Weightings!F18 -> 0 | BF18: 0 | BG18: 4928772 | BH18: =MAX(ROUND(((AR18-AO18-AN18)*Weightings!$M$12)+AP18,0),ROUND(((AR18-AO18-AN18)*Weightings!$M$12)+Weightings!B18,0)) -> 4693665 | BI18: 0.3 | BJ18: 1408100 | BK18: 1000000 | BL18: 1000000 | BM18: =BL18/BH18 -> 0.2131 | BN18: 0 | BO18: FALSE | BP18: 0 | BQ18: =IF(BO18=TRUE,ROUND(((7337-BP18)/3642.4)-1,6),0) -> 0 | BR18: 0 | BS18: TRUE | BT18: 325.0913 | BU18: =IF(BS18=TRUE,ROUND(((5406-BT18)/3642.4)-1,6),0) -> 0.394934 | BV18: 222.2 | BW18: 0 | BX18: 222 | BY18: 0.94 | BZ18: =IF(ROUND((Weightings!$P$5*BY18^Weightings!$P$6*Weightings!$P$8 ),2)<Weightings!$P$7,Weightings!$P$7,ROUND((Weightings!$P$5*BY18^Weightings!$P$6*Weightings!$P$8 ),2)) -> 1078.84 | CA18: =ROUND(BZ18/Weightings!$M$5,4) -> 0.2801 | CB18: 58.5 | CC18: 0 | CD18: 0 | CE18: 0 | CF18: 0 | CG18: =AS18*Weightings!$M$5*CF18 -> 0 | CH18: 0 | CI18: 0.188 | CJ18: 2.5 | CK18: 0 | CL18: 0 | CM18: 0 | CN18: =IF(ISNA(VLOOKUP($CZ18,'Audit Values'!$A$2:$AE$346,2,FALSE)),'Preliminary SO66'!T15,VLOOKUP($CZ18,'Audit Values'!$A$2:$AE$346,20,FALSE)) -> 0 | CO18: =CN18*1.05 -> 0 | CP18: 0 | CQ18: =CP18*0.25 -> 0 | CR18: =IF(ISNA(VLOOKUP($CZ18,'Audit Values'!$A$2:$AE$346,2,FALSE)),'Preliminary SO66'!V15,VLOOKUP($CZ18,'Audit Values'!$A$2:$AE$346,22,FALSE)) -> 0 | CS18: =CR18*0.08 -> 0 | CT18: =IF(ISNA(VLOOKUP($CZ18,'Audit Values'!$A$2:$AE$346,2,FALSE)),'Preliminary SO66'!W15,VLOOKUP($CZ18,'Audit Values'!$A$2:$AE$346,23,FALSE)) -> 0 | CU18: =CT18*0.08 -> 0 | CV18: =CO18+CQ18+CS18+CU18 -> 0 | CW18: 0 | CX18: =IF(CW18>0,Weightings!$M$11*AR18,0) -> 0 | CY18: 0 | CZ18: D0115
A19: 200 | B19: Greeley | C19: Greeley County Schools | D19: 193.5 | E19: 0 | F19: =D19+E19 -> 193.5 | G19: 205.3 | H19: 0 | I19: 205.3 | J19: 241.4 | K19: =IF(ISNA(VLOOKUP($CZ19,'Audit Values'!$A$2:$AE$346,2,FALSE)),'Preliminary SO66'!B16,VLOOKUP($CZ19,'Audit Values'!$A$2:$AE$346,31,FALSE)) -> 241.4 | L19: 241.4 | M19: =IF(ISNA(VLOOKUP($CZ19,'Audit Values'!$A$2:$AE$346,2,FALSE)),'Preliminary SO66'!Z16,VLOOKUP($CZ19,'Audit Values'!$A$2:$AE$346,26,FALSE)) -> 0 | N19: 241.4 | O19: =IF(ISNA(VLOOKUP($CZ19,'Audit Values'!$A$2:$AE$346,2,FALSE)),'Preliminary SO66'!C16,IF(VLOOKUP($CZ19,'Audit Values'!$A$2:$AE$346,28,FALSE)="",VLOOKUP($CZ19,'Audit Values'!$A$2:$AE$346,3,FALSE),VLOOKUP($CZ19,'Audit Values'!$A$2:$AE$346,28,FALSE))) -> 3 | P19: 244.4 | Q19: 244.4 | R19: 244.4 | S19: 244.4 | T19: 0 | U19: 154.4 | V19: 154.4 | W19: 0 | X19: =IF(ISNA(VLOOKUP($CZ19,'Audit Values'!$A$2:$AE$346,2,FALSE)),'Preliminary SO66'!D16,VLOOKUP($CZ19,'Audit Values'!$A$2:$AE$346,4,FALSE)) -> 44.9 | Y19: =ROUND((X19/6)*Weightings!$M$6,1) -> 3.7 | Z19: =IF(ISNA(VLOOKUP($CZ19,'Audit Values'!$A$2:$AE$346,2,FALSE)),'Preliminary SO66'!F16,VLOOKUP($CZ19,'Audit Values'!$A$2:$AE$346,6,FALSE)) -> 257.4 | AA19: =ROUND((Z19/6)*Weightings!$M$7,1) -> 16.9 | AB19: =IF(ISNA(VLOOKUP($CZ19,'Audit Values'!$A$2:$AE$346,2,FALSE)),'Preliminary SO66'!H16,VLOOKUP($CZ19,'Audit Values'!$A$2:$AE$346,9,FALSE)) -> 111 | AC19: =ROUND(AB19*Weightings!$M$8,1) -> 50.6 | AD19: 8.1 | AE19: 0 | AF19: =AE19*Weightings!$M$9 -> 0 | AG19: =IF(ISNA(VLOOKUP($CZ19,'Audit Values'!$A$2:$AE$346,2,FALSE)),'Preliminary SO66'!L16,VLOOKUP($CZ19,'Audit Values'!$A$2:$AE$346,12,FALSE)) -> 0 | AH19: =ROUND(AG19*Weightings!$M$10,1) -> 0 | AI19: =IF(ISNA(VLOOKUP($CZ19,'Audit Values'!$A$2:$AE$346,2,FALSE)),'Preliminary SO66'!O16,VLOOKUP($CZ19,'Audit Values'!$A$2:$AE$346,15,FALSE)) -> 66 | AJ19: 32.3 | AK19: =CC19/Weightings!$M$5 -> 0 | AL19: =CD19/Weightings!$M$5 -> 0 | AM19: =CH19/Weightings!$M$5 -> 0 | AN19: 0 | AO19: =IF(ISNA(VLOOKUP($CZ19,'Audit Values'!$A$2:$AE$346,2,FALSE)),'Preliminary SO66'!X16,VLOOKUP($CZ19,'Audit Values'!$A$2:$AE$346,24,FALSE)) -> 0 | AP19: 124634 | AQ19: =AP19/Weightings!$M$5 -> 32.4 | AR19: 510.4 | AS19: 542.8 | AT19: 542.8 | AU19: 0 | AV19: =IF(ISNA(VLOOKUP($CZ19,'Audit Values'!$A$2:$AC$355,2,FALSE)),"",IF(AND(Weightings!H19>0,VLOOKUP($CZ19,'Audit Values'!$A$2:$AC$355,29,FALSE)<Weightings!H19),Weightings!H19,VLOOKUP($CZ19,'Audit Values'!$A$2:$AC$355,29,FALSE))) -> 23 | AW19: =IF(ISNA(VLOOKUP($CZ19,'Audit Values'!$A$2:$AD$355,2,FALSE)),"",VLOOKUP($CZ19,'Audit Values'!$A$2:$AD$355,30,FALSE)) -> A | AX19: =IF(Weightings!G19="","",IF(Weightings!I19="Pending","PX","R")) -> R | AY19: =AR19*Weightings!$M$5+AU19 -> 1966061 | AZ19: =AT19*Weightings!$M$5+AU19 -> 2090866 | BA19: =IF(Weightings!G19>0,Weightings!G19,'Preliminary SO66'!AB16) -> 2093947 | BB19: 2090866 | BD19: =Weightings!E19 -> 0 | BE19: =Weightings!F19 -> 0 | BF19: 0 | BG19: 2090866 | BH19: =MAX(ROUND(((AR19-AO19-AN19)*Weightings!$M$12)+AP19,0),ROUND(((AR19-AO19-AN19)*Weightings!$M$12)+Weightings!B19,0)) -> 2457547 | BI19: 0.3 | BJ19: =BH19*BI19 -> 737264 | BK19: 713961 | BL19: 713961 | BM19: 0.2905 | BN19: 0 | BO19: TRUE | BP19: 1394.182 | BQ19: 0.631567 | BR19: 154.4 | BS19: FALSE | BT19: 0 | BU19: 0 | BV19: 0 | BW19: 0 | BX19: 780 | BY19: 0.08 | BZ19: =IF(ROUND((Weightings!$P$5*BY19^Weightings!$P$6*Weightings!$P$8 ),2)<Weightings!$P$7,Weightings!$P$7,ROUND((Weightings!$P$5*BY19^Weightings!$P$6*Weightings!$P$8 ),2)) -> 1883.68 | CA19: =ROUND(BZ19/Weightings!$M$5,4) -> 0.489 | CB19: 32.3 | CC19: 0 | CD19: 0 | CE19: 0 | CF19: 0 | CG19: =AS19*Weightings!$M$5*CF19 -> 0 | CH19: 0 | CI19: 0.454 | CJ19: 0.3 | CK19: 0 | CL19: 0 | CM19: 8.1 | CN19: =IF(ISNA(VLOOKUP($CZ19,'Audit Values'!$A$2:$AE$346,2,FALSE)),'Preliminary SO66'!T16,VLOOKUP($CZ19,'Audit Values'!$A$2:$AE$346,20,FALSE)) -> 0 | CO19: 0 | CP19: 0 | CQ19: 0 | CR19: =IF(ISNA(VLOOKUP($CZ19,'Audit Values'!$A$2:$AE$346,2,FALSE)),'Preliminary SO66'!V16,VLOOKUP($CZ19,'Audit Values'!$A$2:$AE$346,22,FALSE)) -> 0 | CS19: 0 | CT19: =IF(ISNA(VLOOKUP($CZ19,'Audit Values'!$A$2:$AE$346,2,FALSE)),'Preliminary SO66'!W16,VLOOKUP($CZ19,'Audit Values'!$A$2:$AE$346,23,FALSE)) -> 0 | CU19: 0 | CV19: 0 | CW19: 0 | CX19: =IF(CW19>0,Weightings!$M$11*AR19,0) -> 0 | CY19: 0 | CZ19: D0200
A20: 202 | B20: Wyandotte | C20: Turner-Kansas City | D20: 3801 | E20: 0 | F20: =D20+E20 -> 3801 | G20: 3854 | H20: 0 | I20: 3854 | J20: 3888.6 | K20: =IF(ISNA(VLOOKUP($CZ20,'Audit Values'!$A$2:$AE$346,2,FALSE)),'Preliminary SO66'!B17,VLOOKUP($CZ20,'Audit Values'!$A$2:$AE$346,31,FALSE)) -> 3888.6 | L20: 3888.6 | M20: =IF(ISNA(VLOOKUP($CZ20,'Audit Values'!$A$2:$AE$346,2,FALSE)),'Preliminary SO66'!Z17,VLOOKUP($CZ20,'Audit Values'!$A$2:$AE$346,26,FALSE)) -> 0 | N20: 3888.6 | O20: =IF(ISNA(VLOOKUP($CZ20,'Audit Values'!$A$2:$AE$346,2,FALSE)),'Preliminary SO66'!C17,IF(VLOOKUP($CZ20,'Audit Values'!$A$2:$AE$346,28,FALSE)="",VLOOKUP($CZ20,'Audit Values'!$A$2:$AE$346,3,FALSE),VLOOKUP($CZ20,'Audit Values'!$A$2:$AE$346,28,FALSE))) -> 81 | P20: 3969.6 | Q20: 3969.6 | R20: 3969.6 | S20: 3969.6 | T20: 0 | U20: 139.1 | V20: 0 | W20: 139.1 | X20: =IF(ISNA(VLOOKUP($CZ20,'Audit Values'!$A$2:$AE$346,2,FALSE)),'Preliminary SO66'!D17,VLOOKUP($CZ20,'Audit Values'!$A$2:$AE$346,4,FALSE)) -> 893 | Y20: =ROUND((X20/6)*Weightings!$M$6,1) -> 74.4 | Z20: =IF(ISNA(VLOOKUP($CZ20,'Audit Values'!$A$2:$AE$346,2,FALSE)),'Preliminary SO66'!F17,VLOOKUP($CZ20,'Audit Values'!$A$2:$AE$346,6,FALSE)) -> 2014.3 | AA20: =ROUND((Z20/6)*Weightings!$M$7,1) -> 132.6 | AB20: =IF(ISNA(VLOOKUP($CZ20,'Audit Values'!$A$2:$AE$346,2,FALSE)),'Preliminary SO66'!H17,VLOOKUP($CZ20,'Audit Values'!$A$2:$AE$346,9,FALSE)) -> 2693 | AC20: =ROUND(AB20*Weightings!$M$8,1) -> 1228 | AD20: 282.8 | AE20: 0 | AF20: =AE20*Weightings!$M$9 -> 0 | AG20: =IF(ISNA(VLOOKUP($CZ20,'Audit Values'!$A$2:$AE$346,2,FALSE)),'Preliminary SO66'!L17,VLOOKUP($CZ20,'Audit Values'!$A$2:$AE$346,12,FALSE)) -> 0 | AH20: =ROUND(AG20*Weightings!$M$10,1) -> 0 | AI20: =IF(ISNA(VLOOKUP($CZ20,'Audit Values'!$A$2:$AE$346,2,FALSE)),'Preliminary SO66'!O17,VLOOKUP($CZ20,'Audit Values'!$A$2:$AE$346,15,FALSE)) -> 1191 | AJ20: 174.4 | AK20: =CC20/Weightings!$M$5 -> 0 | AL20: =CD20/Weightings!$M$5 -> 0 | AM20: =CH20/Weightings!$M$5 -> 0 | AN20: 0 | AO20: =IF(ISNA(VLOOKUP($CZ20,'Audit Values'!$A$2:$AE$346,2,FALSE)),'Preliminary SO66'!X17,VLOOKUP($CZ20,'Audit Values'!$A$2:$AE$346,24,FALSE)) -> 0 | AP20: 2934652 | AQ20: =AP20/Weightings!$M$5 -> 761.9 | AR20: 6000.9 | AS20: 6762.8 | AT20: 6762.8 | AU20: 0 | AV20: =IF(ISNA(VLOOKUP($CZ20,'Audit Values'!$A$2:$AC$355,2,FALSE)),"",IF(AND(Weightings!H20>0,VLOOKUP($CZ20,'Audit Values'!$A$2:$AC$355,29,FALSE)<Weightings!H20),Weightings!H20,VLOOKUP($CZ20,'Audit Values'!$A$2:$AC$355,29,FALSE))) -> 19 | AW20: =IF(ISNA(VLOOKUP($CZ20,'Audit Values'!$A$2:$AD$355,2,FALSE)),"",VLOOKUP($CZ20,'Audit Values'!$A$2:$AD$355,30,FALSE)) -> A | AX20: =IF(Weightings!G20="","",IF(Weightings!I20="Pending","PX","R")) ->  | AY20: =AR20*Weightings!$M$5+AU20 -> 23115467 | AZ20: =AT20*Weightings!$M$5+AU20 -> 26050306 | BA20: =IF(Weightings!G20>0,Weightings!G20,'Preliminary SO66'!AB17) -> 26634654 | BB20: 26050306 | BD20: =Weightings!E20 -> -585 | BE20: =Weightings!F20 -> 0 | BF20: -585 | BG20: 26049721 | BH20: =MAX(ROUND(((AR20-AO20-AN20)*Weightings!$M$12)+AP20,0),ROUND(((AR20-AO20-AN20)*Weightings!$M$12)+Weightings!B20,0)) -> 30178043 | BI20: 0.3 | BJ20: 9053413 | BK20: 9177472 | BL20: 9053413 | BM20: 0.3 | BN20: 0 | BO20: FALSE | BP20: 0 | BQ20: 0 | BR20: 0 | BS20: FALSE | BT20: 0 | BU20: 0 | BV20: 0 | BW20: 139.1 | BX20: 17 | BY20: 70.06 | BZ20: =IF(ROUND((Weightings!$P$5*BY20^Weightings!$P$6*Weightings!$P$8 ),2)<Weightings!$P$7,Weightings!$P$7,ROUND((Weightings!$P$5*BY20^Weightings!$P$6*Weightings!$P$8 ),2)) -> 564 | CA20: =ROUND(BZ20/Weightings!$M$5,4) -> 0.1464 | CB20: 174.4 | CC20: 0 | CD20: 0 | CE20: 0 | CF20: 0 | CG20: =AS20*Weightings!$M$5*CF20 -> 0 | CH20: 0 | CI20: 0.678 | CJ20: 233.5 | CK20: 282.8 | CL20: 282.8 | CM20: 0 | CN20: =IF(ISNA(VLOOKUP($CZ20,'Audit Values'!$A$2:$AE$346,2,FALSE)),'Preliminary SO66'!T17,VLOOKUP($CZ20,'Audit Values'!$A$2:$AE$346,20,FALSE)) -> 0 | CO20: 0 | CP20: 0 | CQ20: 0 | CR20: =IF(ISNA(VLOOKUP($CZ20,'Audit Values'!$A$2:$AE$346,2,FALSE)),'Preliminary SO66'!V17,VLOOKUP($CZ20,'Audit Values'!$A$2:$AE$346,22,FALSE)) -> 0 | CS20: 0 | CT20: =IF(ISNA(VLOOKUP($CZ20,'Audit Values'!$A$2:$AE$346,2,FALSE)),'Preliminary SO66'!W17,VLOOKUP($CZ20,'Audit Values'!$A$2:$AE$346,23,FALSE)) -> 0 | CU20: 0 | CV20: 0 | CW20: 0 | CX20: =IF(CW20>0,Weightings!$M$11*AR20,0) -> 0 | CY20: 0 | CZ20: D0202
A21: 203 | B21: Wyandotte | C21: Piper-Kansas City | D21: 1770.7 | E21: 0 | F21: 1770.7 | G21: 1799.6 | H21: 0 | I21: 1799.6 | J21: 1893.5 | K21: =IF(ISNA(VLOOKUP($CZ21,'Audit Values'!$A$2:$AE$346,2,FALSE)),'Preliminary SO66'!B18,VLOOKUP($CZ21,'Audit Values'!$A$2:$AE$346,31,FALSE)) -> 1889.5 | L21: 1889.5 | M21: =IF(ISNA(VLOOKUP($CZ21,'Audit Values'!$A$2:$AE$346,2,FALSE)),'Preliminary SO66'!Z18,VLOOKUP($CZ21,'Audit Values'!$A$2:$AE$346,26,FALSE)) -> 0 | N21: 1889.5 | O21: =IF(ISNA(VLOOKUP($CZ21,'Audit Values'!$A$2:$AE$346,2,FALSE)),'Preliminary SO66'!C18,IF(VLOOKUP($CZ21,'Audit Values'!$A$2:$AE$346,28,FALSE)="",VLOOKUP($CZ21,'Audit Values'!$A$2:$AE$346,3,FALSE),VLOOKUP($CZ21,'Audit Values'!$A$2:$AE$346,28,FALSE))) -> 3.5 | P21: 1893 | Q21: 1897 | R21: 1897 | S21: 1893 | T21: 4 | U21: 66.3 | V21: 0 | W21: 66.3 | X21: =IF(ISNA(VLOOKUP($CZ21,'Audit Values'!$A$2:$AE$346,2,FALSE)),'Preliminary SO66'!D18,VLOOKUP($CZ21,'Audit Values'!$A$2:$AE$346,4,FALSE)) -> 367.4 | Y21: =ROUND((X21/6)*Weightings!$M$6,1) -> 30.6 | Z21: =IF(ISNA(VLOOKUP($CZ21,'Audit Values'!$A$2:$AE$346,2,FALSE)),'Preliminary SO66'!F18,VLOOKUP($CZ21,'Audit Values'!$A$2:$AE$346,6,FALSE)) -> 138.9 | AA21: =ROUND((Z21/6)*Weightings!$M$7,1) -> 9.1 | AB21: =IF(ISNA(VLOOKUP($CZ21,'Audit Values'!$A$2:$AE$346,2,FALSE)),'Preliminary SO66'!H18,VLOOKUP($CZ21,'Audit Values'!$A$2:$AE$346,9,FALSE)) -> 291 | AC21: =ROUND(AB21*Weightings!$M$8,1) -> 132.7 | AD21: 0 | AE21: 0 | AF21: =AE21*Weightings!$M$9 -> 0 | AG21: =IF(ISNA(VLOOKUP($CZ21,'Audit Values'!$A$2:$AE$346,2,FALSE)),'Preliminary SO66'!L18,VLOOKUP($CZ21,'Audit Values'!$A$2:$AE$346,12,FALSE)) -> 0 | AH21: =ROUND(AG21*Weightings!$M$10,1) -> 0 | AI21: =IF(ISNA(VLOOKUP($CZ21,'Audit Values'!$A$2:$AE$346,2,FALSE)),'Preliminary SO66'!O18,VLOOKUP($CZ21,'Audit Values'!$A$2:$AE$346,15,FALSE)) -> 1079 | AJ21: 158 | AK21: =CC21/Weightings!$M$5 -> 0 | AL21: =CD21/Weightings!$M$5 -> 0 | AM21: =CH21/Weightings!$M$5 -> 0 | AN21: 4.2 | AO21: =IF(ISNA(VLOOKUP($CZ21,'Audit Values'!$A$2:$AE$346,2,FALSE)),'Preliminary SO66'!X18,VLOOKUP($CZ21,'Audit Values'!$A$2:$AE$346,24,FALSE)) -> 0 | AP21: 1738771 | AQ21: =AP21/Weightings!$M$5 -> 451.4 | AR21: 2293.9 | AS21: 2745.3 | AT21: 2745.3 | AU21: 80370 | AV21: =IF(ISNA(VLOOKUP($CZ21,'Audit Values'!$A$2:$AC$355,2,FALSE)),"",IF(AND(Weightings!H21>0,VLOOKUP($CZ21,'Audit Values'!$A$2:$AC$355,29,FALSE)<Weightings!H21),Weightings!H21,VLOOKUP($CZ21,'Audit Values'!$A$2:$AC$355,29,FALSE))) -> 20 | AW21: =IF(ISNA(VLOOKUP($CZ21,'Audit Values'!$A$2:$AD$355,2,FALSE)),"",VLOOKUP($CZ21,'Audit Values'!$A$2:$AD$355,30,FALSE)) -> A | AX21: =IF(Weightings!G21="","",IF(Weightings!I21="Pending","PX","R")) -> R | AY21: =AR21*Weightings!$M$5+AU21 -> 8916473 | AZ21: =AT21*Weightings!$M$5+AU21 -> 10655266 | BA21: =IF(Weightings!G21>0,Weightings!G21,'Preliminary SO66'!AB18) -> 10655266 | BB21: 10655266 | BD21: =Weightings!E21 -> -1170 | BE21: =Weightings!F21 -> 0 | BF21: -1170 | BG21: 10654096 | BH21: =MAX(ROUND(((AR21-AO21-AN21)*Weightings!$M$12)+AP21,0),ROUND(((AR21-AO21-AN21)*Weightings!$M$12)+Weightings!B21,0)) -> 12019524 | BI21: 0.33 | BJ21: 3966443 | BK21: 3824663 | BL21: 3824663 | BM21: 0.3182 | BN21: 0 | BO21: FALSE | BP21: 0 | BQ21: 0 | BR21: 0 | BS21: FALSE | BT21: 0 | BU21: 0 | BV21: 0 | BW21: 66.3 | BX21: 31.4 | BY21: 34.36 | BZ21: =IF(ROUND((Weightings!$P$5*BY21^Weightings!$P$6*Weightings!$P$8 ),2)<Weightings!$P$7,Weightings!$P$7,ROUND((Weightings!$P$5*BY21^Weightings!$P$6*Weightings!$P$8 ),2)) -> 564 | CA21: =ROUND(BZ21/Weightings!$M$5,4) -> 0.1464 | CB21: 158 | CC21: 0 | CD21: 0 | CE21: 0 | CF21: 0.0283 | CG21: =AS21*Weightings!$M$5*CF21 -> 299270 | CH21: 0 | CI21: 0.154 | CJ21: 60.3 | CK21: 0 | CL21: 0 | CM21: 0 | CN21: =IF(ISNA(VLOOKUP($CZ21,'Audit Values'!$A$2:$AE$346,2,FALSE)),'Preliminary SO66'!T18,VLOOKUP($CZ21,'Audit Values'!$A$2:$AE$346,20,FALSE)) -> 4 | CO21: 4.2 | CP21: 0 | CQ21: 0 | CR21: =IF(ISNA(VLOOKUP($CZ21,'Audit Values'!$A$2:$AE$346,2,FALSE)),'Preliminary SO66'!V18,VLOOKUP($CZ21,'Audit Values'!$A$2:$AE$346,22,FALSE)) -> 0 | CS21: 0 | CT21: =IF(ISNA(VLOOKUP($CZ21,'Audit Values'!$A$2:$AE$346,2,FALSE)),'Preliminary SO66'!W18,VLOOKUP($CZ21,'Audit Values'!$A$2:$AE$346,23,FALSE)) -> 0 | CU21: 0 | CV21: 4.2 | CW21: 90000 | CX21: =IF(CW21>0,Weightings!$M$11*AR21,0) -> 573475 | CY21: 90000 | CZ21: D0203
A22: 204 | B22: Wyandotte | C22: Bonner Springs | D22: 2388.2 | E22: 0 | F22: 2388.2 | G22: 2421.8 | H22: 0 | I22: 2421.8 | J22: 2507.1 | K22: =IF(ISNA(VLOOKUP($CZ22,'Audit Values'!$A$2:$AE$346,2,FALSE)),'Preliminary SO66'!B19,VLOOKUP($CZ22,'Audit Values'!$A$2:$AE$346,31,FALSE)) -> 2507.1 | L22: 2507.1 | M22: =IF(ISNA(VLOOKUP($CZ22,'Audit Values'!$A$2:$AE$346,2,FALSE)),'Preliminary SO66'!Z19,VLOOKUP($CZ22,'Audit Values'!$A$2:$AE$346,26,FALSE)) -> 0 | N22: 2507.1 | O22: =IF(ISNA(VLOOKUP($CZ22,'Audit Values'!$A$2:$AE$346,2,FALSE)),'Preliminary SO66'!C19,IF(VLOOKUP($CZ22,'Audit Values'!$A$2:$AE$346,28,FALSE)="",VLOOKUP($CZ22,'Audit Values'!$A$2:$AE$346,3,FALSE),VLOOKUP($CZ22,'Audit Values'!$A$2:$AE$346,28,FALSE))) -> 19 | P22: 2526.1 | Q22: 2526.1 | R22: 2526.1 | S22: 2526.1 | T22: 0 | U22: 88.5 | V22: 0 | W22: 88.5 | X22: =IF(ISNA(VLOOKUP($CZ22,'Audit Values'!$A$2:$AE$346,2,FALSE)),'Preliminary SO66'!D19,VLOOKUP($CZ22,'Audit Values'!$A$2:$AE$346,4,FALSE)) -> 577.8 | Y22: =ROUND((X22/6)*Weightings!$M$6,1) -> 48.2 | Z22: =IF(ISNA(VLOOKUP($CZ22,'Audit Values'!$A$2:$AE$346,2,FALSE)),'Preliminary SO66'!F19,VLOOKUP($CZ22,'Audit Values'!$A$2:$AE$346,6,FALSE)) -> 638.7 | AA22: =ROUND((Z22/6)*Weightings!$M$7,1) -> 42 | AB22: =IF(ISNA(VLOOKUP($CZ22,'Audit Values'!$A$2:$AE$346,2,FALSE)),'Preliminary SO66'!H19,VLOOKUP($CZ22,'Audit Values'!$A$2:$AE$346,9,FALSE)) -> 1129 | AC22: =ROUND(AB22*Weightings!$M$8,1) -> 514.8 | AD22: 76.7 | AE22: 0 | AF22: =AE22*Weightings!$M$9 -> 0 | AG22: =IF(ISNA(VLOOKUP($CZ22,'Audit Values'!$A$2:$AE$346,2,FALSE)),'Preliminary SO66'!L19,VLOOKUP($CZ22,'Audit Values'!$A$2:$AE$346,12,FALSE)) -> 0 | AH22: =ROUND(AG22*Weightings!$M$10,1) -> 0 | AI22: =IF(ISNA(VLOOKUP($CZ22,'Audit Values'!$A$2:$AE$346,2,FALSE)),'Preliminary SO66'!O19,VLOOKUP($CZ22,'Audit Values'!$A$2:$AE$346,15,FALSE)) -> 898 | AJ22: 131.5 | AK22: =CC22/Weightings!$M$5 -> 0 | AL22: =CD22/Weightings!$M$5 -> 0 | AM22: =CH22/Weightings!$M$5 -> 0 | AN22: 0 | AO22: =IF(ISNA(VLOOKUP($CZ22,'Audit Values'!$A$2:$AE$346,2,FALSE)),'Preliminary SO66'!X19,VLOOKUP($CZ22,'Audit Values'!$A$2:$AE$346,24,FALSE)) -> 0 | AP22: 2696306 | AQ22: =AP22/Weightings!$M$5 -> 700 | AR22: 3427.8 | AS22: 4127.8 | AT22: 4127.8 | AU22: 0 | AV22: =IF(ISNA(VLOOKUP($CZ22,'Audit Values'!$A$2:$AC$355,2,FALSE)),"",IF(AND(Weightings!H22>0,VLOOKUP($CZ22,'Audit Values'!$A$2:$AC$355,29,FALSE)<Weightings!H22),Weightings!H22,VLOOKUP($CZ22,'Audit Values'!$A$2:$AC$355,29,FALSE))) -> 25 | AW22: =IF(ISNA(VLOOKUP($CZ22,'Audit Values'!$A$2:$AD$355,2,FALSE)),"",VLOOKUP($CZ22,'Audit Values'!$A$2:$AD$355,30,FALSE)) -> A | AX22: =IF(Weightings!G22="","",IF(Weightings!I22="Pending","PX","R")) -> R | AY22: =AR22*Weightings!$M$5+AU22 -> 13203886 | AZ22: =AT22*Weightings!$M$5+AU22 -> 15900286 | BA22: =IF(Weightings!G22>0,Weightings!G22,'Preliminary SO66'!AB19) -> 16071314 | BB22: 15900286 | BD22: =Weightings!E22 -> 0 | BE22: =Weightings!F22 -> 0 | BF22: 0 | BG22: 15900286 | BH22: =MAX(ROUND(((AR22-AO22-AN22)*Weightings!$M$12)+AP22,0),ROUND(((AR22-AO22-AN22)*Weightings!$M$12)+Weightings!B22,0)) -> 18087128 | BI22: 0.3 | BJ22: 5426138 | BK22: 5288513 | BL22: 5288513 | BM22: 0.2924 | BN22: 0 | BO22: FALSE | BP22: 0 | BQ22: 0 | BR22: 0 | BS22: FALSE | BT22: 0 | BU22: 0 | BV22: 0 | BW22: 88.5 | BX22: 38 | BY22: 23.63 | BZ22: =IF(ROUND((Weightings!$P$5*BY22^Weightings!$P$6*Weightings!$P$8 ),2)<Weightings!$P$7,Weightings!$P$7,ROUND((Weightings!$P$5*BY22^Weightings!$P$6*Weightings!$P$8 ),2)) -> 564 | CA22: =ROUND(BZ22/Weightings!$M$5,4) -> 0.1464 | CB22: 131.5 | CC22: 0 | CD22: 0 | CE22: 0 | CF22: 0 | CG22: =AS22*Weightings!$M$5*CF22 -> 0 | CH22: 0 | CI22: 0.447 | CJ22: 66.5 | CK22: 0 | CL22: 0 | CM22: 76.7 | CN22: =IF(ISNA(VLOOKUP($CZ22,'Audit Values'!$A$2:$AE$346,2,FALSE)),'Preliminary SO66'!T19,VLOOKUP($CZ22,'Audit Values'!$A$2:$AE$346,20,FALSE)) -> 0 | CO22: 0 | CP22: 0 | CQ22: 0 | CR22: =IF(ISNA(VLOOKUP($CZ22,'Audit Values'!$A$2:$AE$346,2,FALSE)),'Preliminary SO66'!V19,VLOOKUP($CZ22,'Audit Values'!$A$2:$AE$346,22,FALSE)) -> 0 | CS22: 0 | CT22: =IF(ISNA(VLOOKUP($CZ22,'Audit Values'!$A$2:$AE$346,2,FALSE)),'Preliminary SO66'!W19,VLOOKUP($CZ22,'Audit Values'!$A$2:$AE$346,23,FALSE)) -> 0 | CU22: 0 | CV22: 0 | CW22: 0 | CX22: =IF(CW22>0,Weightings!$M$11*AR22,0) -> 0 | CY22: 0 | CZ22: D0204
A23: 205 | B23: Butler | C23: Bluestem | D23: 501.6 | E23: 0 | F23: 501.6 | G23: 502.2 | H23: 0 | I23: 502.2 | J23: 507.8 | K23: =IF(ISNA(VLOOKUP($CZ23,'Audit Values'!$A$2:$AE$346,2,FALSE)),'Preliminary SO66'!B20,VLOOKUP($CZ23,'Audit Values'!$A$2:$AE$346,31,FALSE)) -> 507.8 | L23: 507.8 | M23: =IF(ISNA(VLOOKUP($CZ23,'Audit Values'!$A$2:$AE$346,2,FALSE)),'Preliminary SO66'!Z20,VLOOKUP($CZ23,'Audit Values'!$A$2:$AE$346,26,FALSE)) -> 0 | N23: 507.8 | O23: =IF(ISNA(VLOOKUP($CZ23,'Audit Values'!$A$2:$AE$346,2,FALSE)),'Preliminary SO66'!C20,IF(VLOOKUP($CZ23,'Audit Values'!$A$2:$AE$346,28,FALSE)="",VLOOKUP($CZ23,'Audit Values'!$A$2:$AE$346,3,FALSE),VLOOKUP($CZ23,'Audit Values'!$A$2:$AE$346,28,FALSE))) -> 0 | P23: 507.8 | Q23: 507.8 | R23: 507.8 | S23: 507.8 | T23: 0 | U23: 210 | V23: 210 | W23: 0 | X23: =IF(ISNA(VLOOKUP($CZ23,'Audit Values'!$A$2:$AE$346,2,FALSE)),'Preliminary SO66'!D20,VLOOKUP($CZ23,'Audit Values'!$A$2:$AE$346,4,FALSE)) -> 113.6 | Y23: =ROUND((X23/6)*Weightings!$M$6,1) -> 9.5 | Z23: =IF(ISNA(VLOOKUP($CZ23,'Audit Values'!$A$2:$AE$346,2,FALSE)),'Preliminary SO66'!F20,VLOOKUP($CZ23,'Audit Values'!$A$2:$AE$346,6,FALSE)) -> 0 | AA23: =ROUND((Z23/6)*Weightings!$M$7,1) -> 0 | AB23: =IF(ISNA(VLOOKUP($CZ23,'Audit Values'!$A$2:$AE$346,2,FALSE)),'Preliminary SO66'!H20,VLOOKUP($CZ23,'Audit Values'!$A$2:$AE$346,9,FALSE)) -> 244 | AC23: =ROUND(AB23*Weightings!$M$8,1) -> 111.3 | AD23: 22.4 | AE23: 0 | AF23: =AE23*Weightings!$M$9 -> 0 | AG23: =IF(ISNA(VLOOKUP($CZ23,'Audit Values'!$A$2:$AE$346,2,FALSE)),'Preliminary SO66'!L20,VLOOKUP($CZ23,'Audit Values'!$A$2:$AE$346,12,FALSE)) -> 0 | AH23: =ROUND(AG23*Weightings!$M$10,1) -> 0 | AI23: =IF(ISNA(VLOOKUP($CZ23,'Audit Values'!$A$2:$AE$346,2,FALSE)),'Preliminary SO66'!O20,VLOOKUP($CZ23,'Audit Values'!$A$2:$AE$346,15,FALSE)) -> 258.5 | AJ23: 76.4 | AK23: =CC23/Weightings!$M$5 -> 0 | AL23: =CD23/Weightings!$M$5 -> 0 | AM23: =CH23/Weightings!$M$5 -> 0 | AN23: 0 | AO23: =IF(ISNA(VLOOKUP($CZ23,'Audit Values'!$A$2:$AE$346,2,FALSE)),'Preliminary SO66'!X20,VLOOKUP($CZ23,'Audit Values'!$A$2:$AE$346,24,FALSE)) -> 0 | AP23: 549546 | AQ23: =AP23/Weightings!$M$5 -> 142.7 | AR23: 937.4 | AS23: 1080.1 | AT23: 1080.1 | AU23: 0 | AV23: =IF(ISNA(VLOOKUP($CZ23,'Audit Values'!$A$2:$AC$355,2,FALSE)),"",IF(AND(Weightings!H23>0,VLOOKUP($CZ23,'Audit Values'!$A$2:$AC$355,29,FALSE)<Weightings!H23),Weightings!H23,VLOOKUP($CZ23,'Audit Values'!$A$2:$AC$355,29,FALSE))) -> 12 | AW23: =IF(ISNA(VLOOKUP($CZ23,'Audit Values'!$A$2:$AD$355,2,FALSE)),"",VLOOKUP($CZ23,'Audit Values'!$A$2:$AD$355,30,FALSE)) -> A | AX23: =IF(Weightings!G23="","",IF(Weightings!I23="Pending","PX","R")) ->  | AY23: =AR23*Weightings!$M$5+AU23 -> 3610865 | AZ23: =AT23*Weightings!$M$5+AU23 -> 4160545 | BA23: =IF(Weightings!G23>0,Weightings!G23,'Preliminary SO66'!AB20) -> 4251838 | BB23: 4160545 | BD23: =Weightings!E23 -> -2116 | BE23: =Weightings!F23 -> 0 | BF23: -2116 | BG23: 4158429 | BH23: =MAX(ROUND(((AR23-AO23-AN23)*Weightings!$M$12)+AP23,0),ROUND(((AR23-AO23-AN23)*Weightings!$M$12)+Weightings!B23,0)) -> 4815400 | BI23: 0.3 | BJ23: 1444620 | BK23: 1454653 | BL23: 1444620 | BM23: 0.3 | BN23: 0 | BO23: FALSE | BP23: 0 | BQ23: 0 | BR23: 0 | BS23: TRUE | BT23: 257.1525 | BU23: 0.413587 | BV23: 210 | BW23: 0 | BX23: 348.6 | BY23: 0.74 | BZ23: =IF(ROUND((Weightings!$P$5*BY23^Weightings!$P$6*Weightings!$P$8 ),2)<Weightings!$P$7,Weightings!$P$7,ROUND((Weightings!$P$5*BY23^Weightings!$P$6*Weightings!$P$8 ),2)) -> 1138.83 | CA23: =ROUND(BZ23/Weightings!$M$5,4) -> 0.2956 | CB23: 76.4 | CC23: 0 | CD23: 0 | CE23: 0 | CF23: 0 | CG23: =AS23*Weightings!$M$5*CF23 -> 0 | CH23: 0 | CI23: 0.481 | CJ23: 1.5 | CK23: 0 | CL23: 0 | CM23: 22.4 | CN23: =IF(ISNA(VLOOKUP($CZ23,'Audit Values'!$A$2:$AE$346,2,FALSE)),'Preliminary SO66'!T20,VLOOKUP($CZ23,'Audit Values'!$A$2:$AE$346,20,FALSE)) -> 0 | CO23: 0 | CP23: 0 | CQ23: 0 | CR23: =IF(ISNA(VLOOKUP($CZ23,'Audit Values'!$A$2:$AE$346,2,FALSE)),'Preliminary SO66'!V20,VLOOKUP($CZ23,'Audit Values'!$A$2:$AE$346,22,FALSE)) -> 0 | CS23: 0 | CT23: =IF(ISNA(VLOOKUP($CZ23,'Audit Values'!$A$2:$AE$346,2,FALSE)),'Preliminary SO66'!W20,VLOOKUP($CZ23,'Audit Values'!$A$2:$AE$346,23,FALSE)) -> 0 | CU23: 0 | CV23: 0 | CW23: 0 | CX23: =IF(CW23>0,Weightings!$M$11*AR23,0) -> 0 | CY23: 0 | CZ23: D0205
A24: 206 | B24: Butler | C24: Remington-Whitewater | D24: 491.1 | E24: 0 | F24: 491.1 | G24: 490.1 | H24: 0 | I24: 490.1 | J24: 488.4 | K24: =IF(ISNA(VLOOKUP($CZ24,'Audit Values'!$A$2:$AE$346,2,FALSE)),'Preliminary SO66'!B21,VLOOKUP($CZ24,'Audit Values'!$A$2:$AE$346,31,FALSE)) -> 473.4 | L24: 490.1 | M24: =IF(ISNA(VLOOKUP($CZ24,'Audit Values'!$A$2:$AE$346,2,FALSE)),'Preliminary SO66'!Z21,VLOOKUP($CZ24,'Audit Values'!$A$2:$AE$346,26,FALSE)) -> 0 | N24: 490.1 | O24: =IF(ISNA(VLOOKUP($CZ24,'Audit Values'!$A$2:$AE$346,2,FALSE)),'Preliminary SO66'!C21,IF(VLOOKUP($CZ24,'Audit Values'!$A$2:$AE$346,28,FALSE)="",VLOOKUP($CZ24,'Audit Values'!$A$2:$AE$346,3,FALSE),VLOOKUP($CZ24,'Audit Values'!$A$2:$AE$346,28,FALSE))) -> 2.5 | P24: 475.9 | Q24: 490.9 | R24: 490.9 | S24: 492.6 | T24: 15 | U24: 206.3 | V24: 206.3 | W24: 0 | X24: =IF(ISNA(VLOOKUP($CZ24,'Audit Values'!$A$2:$AE$346,2,FALSE)),'Preliminary SO66'!D21,VLOOKUP($CZ24,'Audit Values'!$A$2:$AE$346,4,FALSE)) -> 65.1 | Y24: =ROUND((X24/6)*Weightings!$M$6,1) -> 5.4 | Z24: =IF(ISNA(VLOOKUP($CZ24,'Audit Values'!$A$2:$AE$346,2,FALSE)),'Preliminary SO66'!F21,VLOOKUP($CZ24,'Audit Values'!$A$2:$AE$346,6,FALSE)) -> 75.6 | AA24: =ROUND((Z24/6)*Weightings!$M$7,1) -> 5 | AB24: =IF(ISNA(VLOOKUP($CZ24,'Audit Values'!$A$2:$AE$346,2,FALSE)),'Preliminary SO66'!H21,VLOOKUP($CZ24,'Audit Values'!$A$2:$AE$346,9,FALSE)) -> 146 | AC24: =ROUND(AB24*Weightings!$M$8,1) -> 66.6 | AD24: 0 | AE24: 0 | AF24: =AE24*Weightings!$M$9 -> 0 | AG24: =IF(ISNA(VLOOKUP($CZ24,'Audit Values'!$A$2:$AE$346,2,FALSE)),'Preliminary SO66'!L21,VLOOKUP($CZ24,'Audit Values'!$A$2:$AE$346,12,FALSE)) -> 0 | AH24: =ROUND(AG24*Weightings!$M$10,1) -> 0 | AI24: =IF(ISNA(VLOOKUP($CZ24,'Audit Values'!$A$2:$AE$346,2,FALSE)),'Preliminary SO66'!O21,VLOOKUP($CZ24,'Audit Values'!$A$2:$AE$346,15,FALSE)) -> 353.5 | AJ24: 90.5 | AK24: =CC24/Weightings!$M$5 -> 0 | AL24: =CD24/Weightings!$M$5 -> 0 | AM24: =CH24/Weightings!$M$5 -> 0 | AN24: 15.8 | AO24: =IF(ISNA(VLOOKUP($CZ24,'Audit Values'!$A$2:$AE$346,2,FALSE)),'Preliminary SO66'!X21,VLOOKUP($CZ24,'Audit Values'!$A$2:$AE$346,24,FALSE)) -> 0 | AP24: 573157 | AQ24: =AP24/Weightings!$M$5 -> 148.8 | AR24: 882.2 | AS24: 1031 | AT24: 1031 | AU24: 0 | AV24: =IF(ISNA(VLOOKUP($CZ24,'Audit Values'!$A$2:$AC$355,2,FALSE)),"",IF(AND(Weightings!H24>0,VLOOKUP($CZ24,'Audit Values'!$A$2:$AC$355,29,FALSE)<Weightings!H24),Weightings!H24,VLOOKUP($CZ24,'Audit Values'!$A$2:$AC$355,29,FALSE))) -> 10 | AW24: =IF(ISNA(VLOOKUP($CZ24,'Audit Values'!$A$2:$AD$355,2,FALSE)),"",VLOOKUP($CZ24,'Audit Values'!$A$2:$AD$355,30,FALSE)) -> A | AX24: =IF(Weightings!G24="","",IF(Weightings!I24="Pending","PX","R")) ->  | AY24: =AR24*Weightings!$M$5+AU24 -> 3398234 | AZ24: =AT24*Weightings!$M$5+AU24 -> 3971412 | BA24: =IF(Weightings!G24>0,Weightings!G24,'Preliminary SO66'!AB21) -> 4194058 | BB24: 3971412 | BD24: =Weightings!E24 -> -4594 | BE24: =Weightings!F24 -> 0 | BF24: -4594 | BG24: 3966818 | BH24: =MAX(ROUND(((AR24-AO24-AN24)*Weightings!$M$12)+AP24,0),ROUND(((AR24-AO24-AN24)*Weightings!$M$12)+Weightings!B24,0)) -> 4463293 | BI24: 0.3 | BJ24: 1338988 | BK24: 1375000 | BL24: 1338988 | BM24: 0.3 | BN24: 0 | BO24: FALSE | BP24: 0 | BQ24: 0 | BR24: 0 | BS24: TRUE | BT24: 238.3425 | BU24: 0.418751 | BV24: 206.3 | BW24: 0 | BX24: 253 | BY24: 1.4 | BZ24: =IF(ROUND((Weightings!$P$5*BY24^Weightings!$P$6*Weightings!$P$8 ),2)<Weightings!$P$7,Weightings!$P$7,ROUND((Weightings!$P$5*BY24^Weightings!$P$6*Weightings!$P$8 ),2)) -> 985.88 | CA24: =ROUND(BZ24/Weightings!$M$5,4) -> 0.2559 | CB24: 90.5 | CC24: 0 | CD24: 0 | CE24: 0 | CF24: 0 | CG24: =AS24*Weightings!$M$5*CF24 -> 0 | CH24: 0 | CI24: 0.296 | CJ24: 1.9 | CK24: 0 | CL24: 0 | CM24: 0 | CN24: =IF(ISNA(VLOOKUP($CZ24,'Audit Values'!$A$2:$AE$346,2,FALSE)),'Preliminary SO66'!T21,VLOOKUP($CZ24,'Audit Values'!$A$2:$AE$346,20,FALSE)) -> 15 | CO24: 15.8 | CP24: 0 | CQ24: 0 | CR24: =IF(ISNA(VLOOKUP($CZ24,'Audit Values'!$A$2:$AE$346,2,FALSE)),'Preliminary SO66'!V21,VLOOKUP($CZ24,'Audit Values'!$A$2:$AE$346,22,FALSE)) -> 0 | CS24: 0 | CT24: =IF(ISNA(VLOOKUP($CZ24,'Audit Values'!$A$2:$AE$346,2,FALSE)),'Preliminary SO66'!W21,VLOOKUP($CZ24,'Audit Values'!$A$2:$AE$346,23,FALSE)) -> 0 | CU24: 0 | CV24: 15.8 | CW24: 0 | CX24: =IF(CW24>0,Weightings!$M$11*AR24,0) -> 0 | CY24: 0 | CZ24: D0206
A25: 207 | B25: Leavenworth | C25: Ft Leavenworth | D25: 1791.1 | E25: 192.4 | F25: 1983.5 | G25: 1741.6 | H25: 146 | I25: 1887.6 | J25: 1661.4 | K25: =IF(ISNA(VLOOKUP($CZ25,'Audit Values'!$A$2:$AE$346,2,FALSE)),'Preliminary SO66'!B22,VLOOKUP($CZ25,'Audit Values'!$A$2:$AE$346,31,FALSE)) -> 1661.4 | L25: 1887.6 | M25: =IF(ISNA(VLOOKUP($CZ25,'Audit Values'!$A$2:$AE$346,2,FALSE)),'Preliminary SO66'!Z22,VLOOKUP($CZ25,'Audit Values'!$A$2:$AE$346,26,FALSE)) -> 77.5 | N25: 1965.1 | O25: =IF(ISNA(VLOOKUP($CZ25,'Audit Values'!$A$2:$AE$346,2,FALSE)),'Preliminary SO66'!C22,IF(VLOOKUP($CZ25,'Audit Values'!$A$2:$AE$346,28,FALSE)="",VLOOKUP($CZ25,'Audit Values'!$A$2:$AE$346,3,FALSE),VLOOKUP($CZ25,'Audit Values'!$A$2:$AE$346,28,FALSE))) -> 0 | P25: 1661.4 | Q25: 1661.4 | R25: 1738.9 | S25: 1965.1 | T25: 0 | U25: 68.9 | V25: 0 | W25: 68.9 | X25: =IF(ISNA(VLOOKUP($CZ25,'Audit Values'!$A$2:$AE$346,2,FALSE)),'Preliminary SO66'!D22,VLOOKUP($CZ25,'Audit Values'!$A$2:$AE$346,4,FALSE)) -> 0 | Y25: =ROUND((X25/6)*Weightings!$M$6,1) -> 0 | Z25: =IF(ISNA(VLOOKUP($CZ25,'Audit Values'!$A$2:$AE$346,2,FALSE)),'Preliminary SO66'!F22,VLOOKUP($CZ25,'Audit Values'!$A$2:$AE$346,6,FALSE)) -> 71.6 | AA25: =ROUND((Z25/6)*Weightings!$M$7,1) -> 4.7 | AB25: =IF(ISNA(VLOOKUP($CZ25,'Audit Values'!$A$2:$AE$346,2,FALSE)),'Preliminary SO66'!H22,VLOOKUP($CZ25,'Audit Values'!$A$2:$AE$346,9,FALSE)) -> 94 | AC25: =ROUND(AB25*Weightings!$M$8,1) -> 42.9 | AD25: 0 | AE25: 0 | AF25: =AE25*Weightings!$M$9 -> 0 | AG25: =IF(ISNA(VLOOKUP($CZ25,'Audit Values'!$A$2:$AE$346,2,FALSE)),'Preliminary SO66'!L22,VLOOKUP($CZ25,'Audit Values'!$A$2:$AE$346,12,FALSE)) -> 0 | AH25: =ROUND(AG25*Weightings!$M$10,1) -> 0 | AI25: =IF(ISNA(VLOOKUP($CZ25,'Audit Values'!$A$2:$AE$346,2,FALSE)),'Preliminary SO66'!O22,VLOOKUP($CZ25,'Audit Values'!$A$2:$AE$346,15,FALSE)) -> 149 | AJ25: 21.8 | AK25: =CC25/Weightings!$M$5 -> 0 | AL25: =CD25/Weightings!$M$5 -> 0 | AM25: =CH25/Weightings!$M$5 -> 0 | AN25: 0 | AO25: =IF(ISNA(VLOOKUP($CZ25,'Audit Values'!$A$2:$AE$346,2,FALSE)),'Preliminary SO66'!X22,VLOOKUP($CZ25,'Audit Values'!$A$2:$AE$346,24,FALSE)) -> 0 | AP25: 1281237 | AQ25: =AP25/Weightings!$M$5 -> 332.6 | AR25: 2103.4 | AS25: 2436 | AT25: 2436 | AU25: 0 | AV25: =IF(ISNA(VLOOKUP($CZ25,'Audit Values'!$A$2:$AC$355,2,FALSE)),"",IF(AND(Weightings!H25>0,VLOOKUP($CZ25,'Audit Values'!$A$2:$AC$355,29,FALSE)<Weightings!H25),Weightings!H25,VLOOKUP($CZ25,'Audit Values'!$A$2:$AC$355,29,FALSE))) -> 24 | AW25: =IF(ISNA(VLOOKUP($CZ25,'Audit Values'!$A$2:$AD$355,2,FALSE)),"",VLOOKUP($CZ25,'Audit Values'!$A$2:$AD$355,30,FALSE)) -> AM | AX25: =IF(Weightings!G25="","",IF(Weightings!I25="Pending","PX","R")) ->  | AY25: =AR25*Weightings!$M$5+AU25 -> 8102297 | AZ25: =AT25*Weightings!$M$5+AU25 -> 9383472 | BA25: =IF(Weightings!G25>0,Weightings!G25,'Preliminary SO66'!AB22) -> 9505966 | BB25: 9383472 | BD25: =Weightings!E25 -> 0 | BE25: =Weightings!F25 -> 0 | BF25: 0 | BG25: 9383472 | BH25: =MAX(ROUND(((AR25-AO25-AN25)*Weightings!$M$12)+AP25,0),ROUND(((AR25-AO25-AN25)*Weightings!$M$12)+Weightings!B25,0)) -> 10725503 | BI25: 0.33 | BJ25: 3539416 | BK25: 3587253 | BL25: 3539416 | BM25: 0.33 | BN25: 0 | BO25: FALSE | BP25: 0 | BQ25: 0 | BR25: 0 | BS25: FALSE | BT25: 0 | BU25: 0 | BV25: 0 | BW25: 68.9 | BX25: 8.5 | BY25: 17.53 | BZ25: =IF(ROUND((Weightings!$P$5*BY25^Weightings!$P$6*Weightings!$P$8 ),2)<Weightings!$P$7,Weightings!$P$7,ROUND((Weightings!$P$5*BY25^Weightings!$P$6*Weightings!$P$8 ),2)) -> 564 | CA25: =ROUND(BZ25/Weightings!$M$5,4) -> 0.1464 | CB25: 21.8 | CC25: 0 | CD25: 0 | CE25: 0 | CF25: 0 | CG25: =AS25*Weightings!$M$5*CF25 -> 0 | CH25: 0 | CI25: 0.048 | CJ25: 231.2 | CK25: 0 | CL25: 0 | CM25: 0 | CN25: =IF(ISNA(VLOOKUP($CZ25,'Audit Values'!$A$2:$AE$346,2,FALSE)),'Preliminary SO66'!T22,VLOOKUP($CZ25,'Audit Values'!$A$2:$AE$346,20,FALSE)) -> 0 | CO25: 0 | CP25: 0 | CQ25: 0 | CR25: =IF(ISNA(VLOOKUP($CZ25,'Audit Values'!$A$2:$AE$346,2,FALSE)),'Preliminary SO66'!V22,VLOOKUP($CZ25,'Audit Values'!$A$2:$AE$346,22,FALSE)) -> 0 | CS25: 0 | CT25: =IF(ISNA(VLOOKUP($CZ25,'Audit Values'!$A$2:$AE$346,2,FALSE)),'Preliminary SO66'!W22,VLOOKUP($CZ25,'Audit Values'!$A$2:$AE$346,23,FALSE)) -> 0 | CU25: 0 | CV25: 0 | CW25: 0 | CX25: =IF(CW25>0,Weightings!$M$11*AR25,0) -> 0 | CY25: 0 | CZ25: D0207
A26: 208 | B26: Trego | C26: Wakeeney | D26: 359.3 | E26: 0 | F26: 359.3 | G26: 375 | H26: 0 | I26: 375 | J26: 370.3 | K26: =IF(ISNA(VLOOKUP($CZ26,'Audit Values'!$A$2:$AE$346,2,FALSE)),'Preliminary SO66'!B23,VLOOKUP($CZ26,'Audit Values'!$A$2:$AE$346,31,FALSE)) -> 370.3 | L26: 375 | M26: =IF(ISNA(VLOOKUP($CZ26,'Audit Values'!$A$2:$AE$346,2,FALSE)),'Preliminary SO66'!Z23,VLOOKUP($CZ26,'Audit Values'!$A$2:$AE$346,26,FALSE)) -> 0 | N26: 375 | O26: =IF(ISNA(VLOOKUP($CZ26,'Audit Values'!$A$2:$AE$346,2,FALSE)),'Preliminary SO66'!C23,IF(VLOOKUP($CZ26,'Audit Values'!$A$2:$AE$346,28,FALSE)="",VLOOKUP($CZ26,'Audit Values'!$A$2:$AE$346,3,FALSE),VLOOKUP($CZ26,'Audit Values'!$A$2:$AE$346,28,FALSE))) -> 0 | P26: 370.3 | Q26: 370.3 | R26: 370.3 | S26: 375 | T26: 0 | U26: 172 | V26: 172 | W26: 0 | X26: =IF(ISNA(VLOOKUP($CZ26,'Audit Values'!$A$2:$AE$346,2,FALSE)),'Preliminary SO66'!D23,VLOOKUP($CZ26,'Audit Values'!$A$2:$AE$346,4,FALSE)) -> 44.1 | Y26: =ROUND((X26/6)*Weightings!$M$6,1) -> 3.7 | Z26: =IF(ISNA(VLOOKUP($CZ26,'Audit Values'!$A$2:$AE$346,2,FALSE)),'Preliminary SO66'!F23,VLOOKUP($CZ26,'Audit Values'!$A$2:$AE$346,6,FALSE)) -> 0 | AA26: =ROUND((Z26/6)*Weightings!$M$7,1) -> 0 | AB26: =IF(ISNA(VLOOKUP($CZ26,'Audit Values'!$A$2:$AE$346,2,FALSE)),'Preliminary SO66'!H23,VLOOKUP($CZ26,'Audit Values'!$A$2:$AE$346,9,FALSE)) -> 100 | AC26: =ROUND(AB26*Weightings!$M$8,1) -> 45.6 | AD26: 0 | AE26: 0 | AF26: =AE26*Weightings!$M$9 -> 0 | AG26: =IF(ISNA(VLOOKUP($CZ26,'Audit Values'!$A$2:$AE$346,2,FALSE)),'Preliminary SO66'!L23,VLOOKUP($CZ26,'Audit Values'!$A$2:$AE$346,12,FALSE)) -> 0 | AH26: =ROUND(AG26*Weightings!$M$10,1) -> 0 | AI26: =IF(ISNA(VLOOKUP($CZ26,'Audit Values'!$A$2:$AE$346,2,FALSE)),'Preliminary SO66'!O23,VLOOKUP($CZ26,'Audit Values'!$A$2:$AE$346,15,FALSE)) -> 75 | AJ26: 34.1 | AK26: =CC26/Weightings!$M$5 -> 0 | AL26: =CD26/Weightings!$M$5 -> 0 | AM26: =CH26/Weightings!$M$5 -> 0 | AN26: 0 | AO26: =IF(ISNA(VLOOKUP($CZ26,'Audit Values'!$A$2:$AE$346,2,FALSE)),'Preliminary SO66'!X23,VLOOKUP($CZ26,'Audit Values'!$A$2:$AE$346,24,FALSE)) -> 0 | AP26: 336134 | AQ26: =AP26/Weightings!$M$5 -> 87.3 | AR26: 630.4 | AS26: 717.7 | AT26: 717.7 | AU26: 0 | AV26: =IF(ISNA(VLOOKUP($CZ26,'Audit Values'!$A$2:$AC$355,2,FALSE)),"",IF(AND(Weightings!H26>0,VLOOKUP($CZ26,'Audit Values'!$A$2:$AC$355,29,FALSE)<Weightings!H26),Weightings!H26,VLOOKUP($CZ26,'Audit Values'!$A$2:$AC$355,29,FALSE))) -> 19 | AW26: =IF(ISNA(VLOOKUP($CZ26,'Audit Values'!$A$2:$AD$355,2,FALSE)),"",VLOOKUP($CZ26,'Audit Values'!$A$2:$AD$355,30,FALSE)) -> A | AX26: =IF(Weightings!G26="","",IF(Weightings!I26="Pending","PX","R")) -> R | AY26: =AR26*Weightings!$M$5+AU26 -> 2428301 | AZ26: =AT26*Weightings!$M$5+AU26 -> 2764580 | BA26: =IF(Weightings!G26>0,Weightings!G26,'Preliminary SO66'!AB23) -> 2817353 | BB26: 2764580 | BD26: =Weightings!E26 -> 0 | BE26: =Weightings!F26 -> 0 | BF26: 0 | BG26: 2764580 | BH26: =MAX(ROUND(((AR26-AO26-AN26)*Weightings!$M$12)+AP26,0),ROUND(((AR26-AO26-AN26)*Weightings!$M$12)+Weightings!B26,0)) -> 3340494 | BI26: 0.3 | BJ26: 1002148 | BK26: 988678 | BL26: 988678 | BM26: 0.296 | BN26: 0 | BO26: FALSE | BP26: 0 | BQ26: 0 | BR26: 0 | BS26: TRUE | BT26: 92.8125 | BU26: 0.458705 | BV26: 172 | BW26: 0 | BX26: 706.7 | BY26: 0.11 | BZ26: =IF(ROUND((Weightings!$P$5*BY26^Weightings!$P$6*Weightings!$P$8 ),2)<Weightings!$P$7,Weightings!$P$7,ROUND((Weightings!$P$5*BY26^Weightings!$P$6*Weightings!$P$8 ),2)) -> 1752.76 | CA26: =ROUND(BZ26/Weightings!$M$5,4) -> 0.455 | CB26: 34.1 | CC26: 0 | CD26: 0 | CE26: 0 | CF26: 0 | CG26: =AS26*Weightings!$M$5*CF26 -> 0 | CH26: 0 | CI26: 0.267 | CJ26: 0.5 | CK26: 0 | CL26: 0 | CM26: 0 | CN26: =IF(ISNA(VLOOKUP($CZ26,'Audit Values'!$A$2:$AE$346,2,FALSE)),'Preliminary SO66'!T23,VLOOKUP($CZ26,'Audit Values'!$A$2:$AE$346,20,FALSE)) -> 0 | CO26: 0 | CP26: 0 | CQ26: 0 | CR26: =IF(ISNA(VLOOKUP($CZ26,'Audit Values'!$A$2:$AE$346,2,FALSE)),'Preliminary SO66'!V23,VLOOKUP($CZ26,'Audit Values'!$A$2:$AE$346,22,FALSE)) -> 0 | CS26: 0 | CT26: =IF(ISNA(VLOOKUP($CZ26,'Audit Values'!$A$2:$AE$346,2,FALSE)),'Preliminary SO66'!W23,VLOOKUP($CZ26,'Audit Values'!$A$2:$AE$346,23,FALSE)) -> 0 | CU26: 0 | CV26: 0 | CW26: 0 | CX26: =IF(CW26>0,Weightings!$M$11*AR26,0) -> 0 | CY26: 0 | CZ26: D0208
A27: 209 | B27: Stevens | C27: Moscow Public Schools | D27: 159.3 | E27: 0 | F27: 159.3 | G27: 184.9 | H27: 0 | I27: 184.9 | J27: 185.7 | K27: =IF(ISNA(VLOOKUP($CZ27,'Audit Values'!$A$2:$AE$346,2,FALSE)),'Preliminary SO66'!B24,VLOOKUP($CZ27,'Audit Values'!$A$2:$AE$346,31,FALSE)) -> 185.7 | L27: 185.7 | M27: =IF(ISNA(VLOOKUP($CZ27,'Audit Values'!$A$2:$AE$346,2,FALSE)),'Preliminary SO66'!Z24,VLOOKUP($CZ27,'Audit Values'!$A$2:$AE$346,26,FALSE)) -> 0 | N27: 185.7 | O27: =IF(ISNA(VLOOKUP($CZ27,'Audit Values'!$A$2:$AE$346,2,FALSE)),'Preliminary SO66'!C24,IF(VLOOKUP($CZ27,'Audit Values'!$A$2:$AE$346,28,FALSE)="",VLOOKUP($CZ27,'Audit Values'!$A$2:$AE$346,3,FALSE),VLOOKUP($CZ27,'Audit Values'!$A$2:$AE$346,28,FALSE))) -> 5 | P27: 190.7 | Q27: 190.7 | R27: 190.7 | S27: 190.7 | T27: 0 | U27: 147.6 | V27: 147.6 | W27: 0 | X27: =IF(ISNA(VLOOKUP($CZ27,'Audit Values'!$A$2:$AE$346,2,FALSE)),'Preliminary SO66'!D24,VLOOKUP($CZ27,'Audit Values'!$A$2:$AE$346,4,FALSE)) -> 0 | Y27: =ROUND((X27/6)*Weightings!$M$6,1) -> 0 | Z27: =IF(ISNA(VLOOKUP($CZ27,'Audit Values'!$A$2:$AE$346,2,FALSE)),'Preliminary SO66'!F24,VLOOKUP($CZ27,'Audit Values'!$A$2:$AE$346,6,FALSE)) -> 301.9 | AA27: =ROUND((Z27/6)*Weightings!$M$7,1) -> 19.9 | AB27: =IF(ISNA(VLOOKUP($CZ27,'Audit Values'!$A$2:$AE$346,2,FALSE)),'Preliminary SO66'!H24,VLOOKUP($CZ27,'Audit Values'!$A$2:$AE$346,9,FALSE)) -> 89 | AC27: =ROUND(AB27*Weightings!$M$8,1) -> 40.6 | AD27: 7.3 | AE27: 0 | AF27: =AE27*Weightings!$M$9 -> 0 | AG27: =IF(ISNA(VLOOKUP($CZ27,'Audit Values'!$A$2:$AE$346,2,FALSE)),'Preliminary SO66'!L24,VLOOKUP($CZ27,'Audit Values'!$A$2:$AE$346,12,FALSE)) -> 0 | AH27: =ROUND(AG27*Weightings!$M$10,1) -> 0 | AI27: =IF(ISNA(VLOOKUP($CZ27,'Audit Values'!$A$2:$AE$346,2,FALSE)),'Preliminary SO66'!O24,VLOOKUP($CZ27,'Audit Values'!$A$2:$AE$346,15,FALSE)) -> 46 | AJ27: 18.1 | AK27: =CC27/Weightings!$M$5 -> 0 | AL27: =CD27/Weightings!$M$5 -> 0 | AM27: =CH27/Weightings!$M$5 -> 0 | AN27: 0 | AO27: =IF(ISNA(VLOOKUP($CZ27,'Audit Values'!$A$2:$AE$346,2,FALSE)),'Preliminary SO66'!X24,VLOOKUP($CZ27,'Audit Values'!$A$2:$AE$346,24,FALSE)) -> 0 | AP27: 114088 | AQ27: =AP27/Weightings!$M$5 -> 29.6 | AR27: 424.2 | AS27: 453.8 | AT27: 453.8 | AU27: 0 | AV27: =IF(ISNA(VLOOKUP($CZ27,'Audit Values'!$A$2:$AC$355,2,FALSE)),"",IF(AND(Weightings!H27>0,VLOOKUP($CZ27,'Audit Values'!$A$2:$AC$355,29,FALSE)<Weightings!H27),Weightings!H27,VLOOKUP($CZ27,'Audit Values'!$A$2:$AC$355,29,FALSE))) -> 3 | AW27: =IF(ISNA(VLOOKUP($CZ27,'Audit Values'!$A$2:$AD$355,2,FALSE)),"",VLOOKUP($CZ27,'Audit Values'!$A$2:$AD$355,30,FALSE)) -> A | AX27: =IF(Weightings!G27="","",IF(Weightings!I27="Pending","PX","R")) ->  | AY27: =AR27*Weightings!$M$5+AU27 -> 1634018 | AZ27: =AT27*Weightings!$M$5+AU27 -> 1748038 | BA27: =IF(Weightings!G27>0,Weightings!G27,'Preliminary SO66'!AB24) -> 1786172 | BB27: 1748038 | BD27: =Weightings!E27 -> 0 | BE27: =Weightings!F27 -> 0 | BF27: 0 | BG27: 1748038 | BH27: =MAX(ROUND(((AR27-AO27-AN27)*Weightings!$M$12)+AP27,0),ROUND(((AR27-AO27-AN27)*Weightings!$M$12)+Weightings!B27,0)) -> 2042819 | BI27: 0.33 | BJ27: 674130 | BK27: 687317 | BL27: 674130 | BM27: 0.33 | BN27: 0 | BO27: TRUE | BP27: 875.709 | BQ27: 0.77391 | BR27: 147.6 | BS27: FALSE | BT27: 0 | BU27: 0 | BV27: 0 | BW27: 0 | BX27: 223 | BY27: 0.21 | BZ27: =IF(ROUND((Weightings!$P$5*BY27^Weightings!$P$6*Weightings!$P$8 ),2)<Weightings!$P$7,Weightings!$P$7,ROUND((Weightings!$P$5*BY27^Weightings!$P$6*Weightings!$P$8 ),2)) -> 1514.25 | CA27: =ROUND(BZ27/Weightings!$M$5,4) -> 0.3931 | CB27: 18.1 | CC27: 0 | CD27: 0 | CE27: 0 | CF27: 0 | CG27: =AS27*Weightings!$M$5*CF27 -> 0 | CH27: 0 | CI27: 0.467 | CJ27: 0.9 | CK27: 0 | CL27: 0 | CM27: 7.3 | CN27: =IF(ISNA(VLOOKUP($CZ27,'Audit Values'!$A$2:$AE$346,2,FALSE)),'Preliminary SO66'!T24,VLOOKUP($CZ27,'Audit Values'!$A$2:$AE$346,20,FALSE)) -> 0 | CO27: 0 | CP27: 0 | CQ27: 0 | CR27: =IF(ISNA(VLOOKUP($CZ27,'Audit Values'!$A$2:$AE$346,2,FALSE)),'Preliminary SO66'!V24,VLOOKUP($CZ27,'Audit Values'!$A$2:$AE$346,22,FALSE)) -> 0 | CS27: 0 | CT27: =IF(ISNA(VLOOKUP($CZ27,'Audit Values'!$A$2:$AE$346,2,FALSE)),'Preliminary SO66'!W24,VLOOKUP($CZ27,'Audit Values'!$A$2:$AE$346,23,FALSE)) -> 0 | CU27: 0 | CV27: 0 | CW27: 0 | CX27: =IF(CW27>0,Weightings!$M$11*AR27,0) -> 0 | CY27: 0 | CZ27: D0209
A28: 210 | B28: Stevens | C28: Hugoton Public Schools | D28: 1007.5 | E28: 0 | F28: 1007.5 | G28: 1020.8 | H28: 0 | I28: 1020.8 | J28: 1042.3 | K28: =IF(ISNA(VLOOKUP($CZ28,'Audit Values'!$A$2:$AE$346,2,FALSE)),'Preliminary SO66'!B25,VLOOKUP($CZ28,'Audit Values'!$A$2:$AE$346,31,FALSE)) -> 1036.8 | L28: 1036.8 | M28: =IF(ISNA(VLOOKUP($CZ28,'Audit Values'!$A$2:$AE$346,2,FALSE)),'Preliminary SO66'!Z25,VLOOKUP($CZ28,'Audit Values'!$A$2:$AE$346,26,FALSE)) -> 0 | N28: 1036.8 | O28: =IF(ISNA(VLOOKUP($CZ28,'Audit Values'!$A$2:$AE$346,2,FALSE)),'Preliminary SO66'!C25,IF(VLOOKUP($CZ28,'Audit Values'!$A$2:$AE$346,28,FALSE)="",VLOOKUP($CZ28,'Audit Values'!$A$2:$AE$346,3,FALSE),VLOOKUP($CZ28,'Audit Values'!$A$2:$AE$346,28,FALSE))) -> 16 | P28: 1052.8 | Q28: 1058.3 | R28: 1058.3 | S28: 1052.8 | T28: 5.5 | U28: 240.5 | V28: 240.5 | W28: 0 | X28: =IF(ISNA(VLOOKUP($CZ28,'Audit Values'!$A$2:$AE$346,2,FALSE)),'Preliminary SO66'!D25,VLOOKUP($CZ28,'Audit Values'!$A$2:$AE$346,4,FALSE)) -> 275.4 | Y28: =ROUND((X28/6)*Weightings!$M$6,1) -> 23 | Z28: =IF(ISNA(VLOOKUP($CZ28,'Audit Values'!$A$2:$AE$346,2,FALSE)),'Preliminary SO66'!F25,VLOOKUP($CZ28,'Audit Values'!$A$2:$AE$346,6,FALSE)) -> 1654.2 | AA28: =ROUND((Z28/6)*Weightings!$M$7,1) -> 108.9 | AB28: =IF(ISNA(VLOOKUP($CZ28,'Audit Values'!$A$2:$AE$346,2,FALSE)),'Preliminary SO66'!H25,VLOOKUP($CZ28,'Audit Values'!$A$2:$AE$346,9,FALSE)) -> 497 | AC28: =ROUND(AB28*Weightings!$M$8,1) -> 226.6 | AD28: 42.4 | AE28: 0 | AF28: =AE28*Weightings!$M$9 -> 0 | AG28: =IF(ISNA(VLOOKUP($CZ28,'Audit Values'!$A$2:$AE$346,2,FALSE)),'Preliminary SO66'!L25,VLOOKUP($CZ28,'Audit Values'!$A$2:$AE$346,12,FALSE)) -> 0 | AH28: =ROUND(AG28*Weightings!$M$10,1) -> 0 | AI28: =IF(ISNA(VLOOKUP($CZ28,'Audit Values'!$A$2:$AE$346,2,FALSE)),'Preliminary SO66'!O25,VLOOKUP($CZ28,'Audit Values'!$A$2:$AE$346,15,FALSE)) -> 177 | AJ28: 63.7 | AK28: =CC28/Weightings!$M$5 -> 0 | AL28: =CD28/Weightings!$M$5 -> 0 | AM28: =CH28/Weightings!$M$5 -> 0 | AN28: 5.8 | AO28: =IF(ISNA(VLOOKUP($CZ28,'Audit Values'!$A$2:$AE$346,2,FALSE)),'Preliminary SO66'!X25,VLOOKUP($CZ28,'Audit Values'!$A$2:$AE$346,24,FALSE)) -> 0 | AP28: 556145 | AQ28: =AP28/Weightings!$M$5 -> 144.4 | AR28: 1763.7 | AS28: 1908.1 | AT28: 1908.1 | AU28: 0 | AV28: =IF(ISNA(VLOOKUP($CZ28,'Audit Values'!$A$2:$AC$355,2,FALSE)),"",IF(AND(Weightings!H28>0,VLOOKUP($CZ28,'Audit Values'!$A$2:$AC$355,29,FALSE)<Weightings!H28),Weightings!H28,VLOOKUP($CZ28,'Audit Values'!$A$2:$AC$355,29,FALSE))) -> 3 | AW28: =IF(ISNA(VLOOKUP($CZ28,'Audit Values'!$A$2:$AD$355,2,FALSE)),"",VLOOKUP($CZ28,'Audit Values'!$A$2:$AD$355,30,FALSE)) -> A | AX28: =IF(Weightings!G28="","",IF(Weightings!I28="Pending","PX","R")) ->  | AY28: =AR28*Weightings!$M$5+AU28 -> 6793772 | AZ28: =AT28*Weightings!$M$5+AU28 -> 7350001 | BA28: =IF(Weightings!G28>0,Weightings!G28,'Preliminary SO66'!AB25) -> 7561091 | BB28: 7350001 | BD28: =Weightings!E28 -> 0 | BE28: =Weightings!F28 -> 0 | BF28: 0 | BG28: 7350001 | BH28: =MAX(ROUND(((AR28-AO28-AN28)*Weightings!$M$12)+AP28,0),ROUND(((AR28-AO28-AN28)*Weightings!$M$12)+Weightings!B28,0)) -> 8515750 | BI28: 0.3 | BJ28: 2554725 | BK28: 2611973 | BL28: 2554725 | BM28: 0.3 | BN28: 0 | BO28: FALSE | BP28: 0 | BQ28: 0 | BR28: 0 | BS28: TRUE | BT28: 931.59 | BU28: 0.228424 | BV28: 240.5 | BW28: 0 | BX28: 575 | BY28: 0.31 | BZ28: =IF(ROUND((Weightings!$P$5*BY28^Weightings!$P$6*Weightings!$P$8 ),2)<Weightings!$P$7,Weightings!$P$7,ROUND((Weightings!$P$5*BY28^Weightings!$P$6*Weightings!$P$8 ),2)) -> 1386.55 | CA28: =ROUND(BZ28/Weightings!$M$5,4) -> 0.36 | CB28: 63.7 | CC28: 0 | CD28: 0 | CE28: 0 | CF28: 0 | CG28: =AS28*Weightings!$M$5*CF28 -> 0 | CH28: 0 | CI28: 0.472 | CJ28: 1.8 | CK28: 0 | CL28: 0 | CM28: 42.4 | CN28: =IF(ISNA(VLOOKUP($CZ28,'Audit Values'!$A$2:$AE$346,2,FALSE)),'Preliminary SO66'!T25,VLOOKUP($CZ28,'Audit Values'!$A$2:$AE$346,20,FALSE)) -> 5.5 | CO28: 5.8 | CP28: 0 | CQ28: 0 | CR28: =IF(ISNA(VLOOKUP($CZ28,'Audit Values'!$A$2:$AE$346,2,FALSE)),'Preliminary SO66'!V25,VLOOKUP($CZ28,'Audit Values'!$A$2:$AE$346,22,FALSE)) -> 0 | CS28: 0 | CT28: =IF(ISNA(VLOOKUP($CZ28,'Audit Values'!$A$2:$AE$346,2,FALSE)),'Preliminary SO66'!W25,VLOOKUP($CZ28,'Audit Values'!$A$2:$AE$346,23,FALSE)) -> 0 | CU28: 0 | CV28: 5.8 | CW28: 0 | CX28: =IF(CW28>0,Weightings!$M$11*AR28,0) -> 0 | CY28: 0 | CZ28: D0210
A29: 211 | B29: Norton | C29: Norton Community Schools | D29: 704.9 | E29: 0 | F29: 704.9 | G29: 695 | H29: 0 | I29: 695 | J29: 689.1 | K29: =IF(ISNA(VLOOKUP($CZ29,'Audit Values'!$A$2:$AE$346,2,FALSE)),'Preliminary SO66'!B26,VLOOKUP($CZ29,'Audit Values'!$A$2:$AE$346,31,FALSE)) -> 689.1 | L29: 696.3 | M29: =IF(ISNA(VLOOKUP($CZ29,'Audit Values'!$A$2:$AE$346,2,FALSE)),'Preliminary SO66'!Z26,VLOOKUP($CZ29,'Audit Values'!$A$2:$AE$346,26,FALSE)) -> 0 | N29: 696.3 | O29: =IF(ISNA(VLOOKUP($CZ29,'Audit Values'!$A$2:$AE$346,2,FALSE)),'Preliminary SO66'!C26,IF(VLOOKUP($CZ29,'Audit Values'!$A$2:$AE$346,28,FALSE)="",VLOOKUP($CZ29,'Audit Values'!$A$2:$AE$346,3,FALSE),VLOOKUP($CZ29,'Audit Values'!$A$2:$AE$346,28,FALSE))) -> 0 | P29: 689.1 | Q29: 689.1 | R29: 689.1 | S29: 696.3 | T29: 0 | U29: 243.4 | V29: 243.4 | W29: 0 | X29: =IF(ISNA(VLOOKUP($CZ29,'Audit Values'!$A$2:$AE$346,2,FALSE)),'Preliminary SO66'!D26,VLOOKUP($CZ29,'Audit Values'!$A$2:$AE$346,4,FALSE)) -> 139.1 | Y29: =ROUND((X29/6)*Weightings!$M$6,1) -> 11.6 | Z29: =IF(ISNA(VLOOKUP($CZ29,'Audit Values'!$A$2:$AE$346,2,FALSE)),'Preliminary SO66'!F26,VLOOKUP($CZ29,'Audit Values'!$A$2:$AE$346,6,FALSE)) -> 0 | AA29: =ROUND((Z29/6)*Weightings!$M$7,1) -> 0 | AB29: =IF(ISNA(VLOOKUP($CZ29,'Audit Values'!$A$2:$AE$346,2,FALSE)),'Preliminary SO66'!H26,VLOOKUP($CZ29,'Audit Values'!$A$2:$AE$346,9,FALSE)) -> 229 | AC29: =ROUND(AB29*Weightings!$M$8,1) -> 104.4 | AD29: 0 | AE29: 0 | AF29: =AE29*Weightings!$M$9 -> 0 | AG29: =IF(ISNA(VLOOKUP($CZ29,'Audit Values'!$A$2:$AE$346,2,FALSE)),'Preliminary SO66'!L26,VLOOKUP($CZ29,'Audit Values'!$A$2:$AE$346,12,FALSE)) -> 0 | AH29: =ROUND(AG29*Weightings!$M$10,1) -> 0 | AI29: =IF(ISNA(VLOOKUP($CZ29,'Audit Values'!$A$2:$AE$346,2,FALSE)),'Preliminary SO66'!O26,VLOOKUP($CZ29,'Audit Values'!$A$2:$AE$346,15,FALSE)) -> 147 | AJ29: 57.2 | AK29: =CC29/Weightings!$M$5 -> 0 | AL29: =CD29/Weightings!$M$5 -> 0 | AM29: =CH29/Weightings!$M$5 -> 0 | AN29: 0 | AO29: =IF(ISNA(VLOOKUP($CZ29,'Audit Values'!$A$2:$AE$346,2,FALSE)),'Preliminary SO66'!X26,VLOOKUP($CZ29,'Audit Values'!$A$2:$AE$346,24,FALSE)) -> 0 | AP29: 807088 | AQ29: =AP29/Weightings!$M$5 -> 209.5 | AR29: 1112.9 | AS29: 1322.4 | AT29: 1322.4 | AU29: 128067 | AV29: =IF(ISNA(VLOOKUP($CZ29,'Audit Values'!$A$2:$AC$355,2,FALSE)),"",IF(AND(Weightings!H29>0,VLOOKUP($CZ29,'Audit Values'!$A$2:$AC$355,29,FALSE)<Weightings!H29),Weightings!H29,VLOOKUP($CZ29,'Audit Values'!$A$2:$AC$355,29,FALSE))) -> 21 | AW29: =IF(ISNA(VLOOKUP($CZ29,'Audit Values'!$A$2:$AD$355,2,FALSE)),"",VLOOKUP($CZ29,'Audit Values'!$A$2:$AD$355,30,FALSE)) -> A | AX29: =IF(Weightings!G29="","",IF(Weightings!I29="Pending","PX","R")) -> R | AY29: =AR29*Weightings!$M$5+AU29 -> 4414958 | AZ29: =AT29*Weightings!$M$5+AU29 -> 5221952 | BA29: =IF(Weightings!G29>0,Weightings!G29,'Preliminary SO66'!AB26) -> 5424504 | BB29: 5221952 | BD29: =Weightings!E29 -> 0 | BE29: =Weightings!F29 -> 0 | BF29: 0 | BG29: 5221952 | BH29: =MAX(ROUND(((AR29-AO29-AN29)*Weightings!$M$12)+AP29,0),ROUND(((AR29-AO29-AN29)*Weightings!$M$12)+Weightings!B29,0)) -> 5863455 | BI29: 0.3 | BJ29: 1759037 | BK29: 1740000 | BL29: 1740000 | BM29: 0.2968 | BN29: 0 | BO29: FALSE | BP29: 0 | BQ29: 0 | BR29: 0 | BS29: TRUE | BT29: 490.4213 | BU29: 0.349544 | BV29: 243.4 | BW29: 0 | BX29: 678 | BY29: 0.22 | BZ29: =IF(ROUND((Weightings!$P$5*BY29^Weightings!$P$6*Weightings!$P$8 ),2)<Weightings!$P$7,Weightings!$P$7,ROUND((Weightings!$P$5*BY29^Weightings!$P$6*Weightings!$P$8 ),2)) -> 1498.4 | CA29: =ROUND(BZ29/Weightings!$M$5,4) -> 0.389 | CB29: 57.2 | CC29: 0 | CD29: 0 | CE29: 0 | CF29: 0 | CG29: =AS29*Weightings!$M$5*CF29 -> 0 | CH29: 0 | CI29: 0.329 | CJ29: 1 | CK29: 0 | CL29: 0 | CM29: 0 | CN29: =IF(ISNA(VLOOKUP($CZ29,'Audit Values'!$A$2:$AE$346,2,FALSE)),'Preliminary SO66'!T26,VLOOKUP($CZ29,'Audit Values'!$A$2:$AE$346,20,FALSE)) -> 0 | CO29: 0 | CP29: 0 | CQ29: 0 | CR29: =IF(ISNA(VLOOKUP($CZ29,'Audit Values'!$A$2:$AE$346,2,FALSE)),'Preliminary SO66'!V26,VLOOKUP($CZ29,'Audit Values'!$A$2:$AE$346,22,FALSE)) -> 0 | CS29: 0 | CT29: =IF(ISNA(VLOOKUP($CZ29,'Audit Values'!$A$2:$AE$346,2,FALSE)),'Preliminary SO66'!W26,VLOOKUP($CZ29,'Audit Values'!$A$2:$AE$346,23,FALSE)) -> 0 | CU29: 0 | CV29: 0 | CW29: 187325 | CX29: =IF(CW29>0,Weightings!$M$11*AR29,0) -> 278225 | CY29: 187325 | CZ29: D0211
A30: 212 | B30: Norton | C30: Northern Valley | D30: 168.5 | E30: 0 | F30: 168.5 | G30: 170 | H30: 0 | I30: 170 | J30: 169.5 | K30: =IF(ISNA(VLOOKUP($CZ30,'Audit Values'!$A$2:$AE$346,2,FALSE)),'Preliminary SO66'!B27,VLOOKUP($CZ30,'Audit Values'!$A$2:$AE$346,31,FALSE)) -> 169.5 | L30: 170 | M30: =IF(ISNA(VLOOKUP($CZ30,'Audit Values'!$A$2:$AE$346,2,FALSE)),'Preliminary SO66'!Z27,VLOOKUP($CZ30,'Audit Values'!$A$2:$AE$346,26,FALSE)) -> 0 | N30: 170 | O30: =IF(ISNA(VLOOKUP($CZ30,'Audit Values'!$A$2:$AE$346,2,FALSE)),'Preliminary SO66'!C27,IF(VLOOKUP($CZ30,'Audit Values'!$A$2:$AE$346,28,FALSE)="",VLOOKUP($CZ30,'Audit Values'!$A$2:$AE$346,3,FALSE),VLOOKUP($CZ30,'Audit Values'!$A$2:$AE$346,28,FALSE))) -> 0.5 | P30: 170 | Q30: 170 | R30: 170 | S30: 170.5 | T30: 0 | U30: 141.1 | V30: 141.1 | W30: 0 | X30: =IF(ISNA(VLOOKUP($CZ30,'Audit Values'!$A$2:$AE$346,2,FALSE)),'Preliminary SO66'!D27,VLOOKUP($CZ30,'Audit Values'!$A$2:$AE$346,4,FALSE)) -> 32 | Y30: =ROUND((X30/6)*Weightings!$M$6,1) -> 2.7 | Z30: =IF(ISNA(VLOOKUP($CZ30,'Audit Values'!$A$2:$AE$346,2,FALSE)),'Preliminary SO66'!F27,VLOOKUP($CZ30,'Audit Values'!$A$2:$AE$346,6,FALSE)) -> 0 | AA30: =ROUND((Z30/6)*Weightings!$M$7,1) -> 0 | AB30: =IF(ISNA(VLOOKUP($CZ30,'Audit Values'!$A$2:$AE$346,2,FALSE)),'Preliminary SO66'!H27,VLOOKUP($CZ30,'Audit Values'!$A$2:$AE$346,9,FALSE)) -> 68 | AC30: =ROUND(AB30*Weightings!$M$8,1) -> 31 | AD30: 2.3 | AE30: 0 | AF30: =AE30*Weightings!$M$9 -> 0 | AG30: =IF(ISNA(VLOOKUP($CZ30,'Audit Values'!$A$2:$AE$346,2,FALSE)),'Preliminary SO66'!L27,VLOOKUP($CZ30,'Audit Values'!$A$2:$AE$346,12,FALSE)) -> 0 | AH30: =ROUND(AG30*Weightings!$M$10,1) -> 0 | AI30: =IF(ISNA(VLOOKUP($CZ30,'Audit Values'!$A$2:$AE$346,2,FALSE)),'Preliminary SO66'!O27,VLOOKUP($CZ30,'Audit Values'!$A$2:$AE$346,15,FALSE)) -> 92.5 | AJ30: 32.4 | AK30: =CC30/Weightings!$M$5 -> 0 | AL30: =CD30/Weightings!$M$5 -> 0 | AM30: =CH30/Weightings!$M$5 -> 0 | AN30: 0 | AO30: =IF(ISNA(VLOOKUP($CZ30,'Audit Values'!$A$2:$AE$346,2,FALSE)),'Preliminary SO66'!X27,VLOOKUP($CZ30,'Audit Values'!$A$2:$AE$346,24,FALSE)) -> 0 | AP30: 202253 | AQ30: =AP30/Weightings!$M$5 -> 52.5 | AR30: 380 | AS30: 432.5 | AT30: 432.5 | AU30: 0 | AV30: =IF(ISNA(VLOOKUP($CZ30,'Audit Values'!$A$2:$AC$355,2,FALSE)),"",IF(AND(Weightings!H30>0,VLOOKUP($CZ30,'Audit Values'!$A$2:$AC$355,29,FALSE)<Weightings!H30),Weightings!H30,VLOOKUP($CZ30,'Audit Values'!$A$2:$AC$355,29,FALSE))) -> 11 | AW30: =IF(ISNA(VLOOKUP($CZ30,'Audit Values'!$A$2:$AD$355,2,FALSE)),"",VLOOKUP($CZ30,'Audit Values'!$A$2:$AD$355,30,FALSE)) -> A | AX30: =IF(Weightings!G30="","",IF(Weightings!I30="Pending","PX","R")) ->  | AY30: =AR30*Weightings!$M$5+AU30 -> 1463760 | AZ30: =AT30*Weightings!$M$5+AU30 -> 1665990 | BA30: =IF(Weightings!G30>0,Weightings!G30,'Preliminary SO66'!AB27) -> 1744571 | BB30: 1665990 | BD30: =Weightings!E30 -> 0 | BE30: =Weightings!F30 -> 0 | BF30: 0 | BG30: 1665990 | BH30: =MAX(ROUND(((AR30-AO30-AN30)*Weightings!$M$12)+AP30,0),ROUND(((AR30-AO30-AN30)*Weightings!$M$12)+Weightings!B30,0)) -> 1953300 | BI30: 0.3 | BJ30: 585990 | BK30: 603636 | BL30: 585990 | BM30: 0.3 | BN30: 0 | BO30: TRUE | BP30: 680.678 | BQ30: 0.827455 | BR30: 141.1 | BS30: FALSE | BT30: 0 | BU30: 0 | BV30: 0 | BW30: 0 | BX30: 263 | BY30: 0.35 | BZ30: =IF(ROUND((Weightings!$P$5*BY30^Weightings!$P$6*Weightings!$P$8 ),2)<Weightings!$P$7,Weightings!$P$7,ROUND((Weightings!$P$5*BY30^Weightings!$P$6*Weightings!$P$8 ),2)) -> 1349.01 | CA30: =ROUND(BZ30/Weightings!$M$5,4) -> 0.3502 | CB30: 32.4 | CC30: 0 | CD30: 0 | CE30: 0 | CF30: 0 | CG30: =AS30*Weightings!$M$5*CF30 -> 0 | CH30: 0 | CI30: 0.399 | CJ30: 0.6 | CK30: 0 | CL30: 0 | CM30: 2.3 | CN30: =IF(ISNA(VLOOKUP($CZ30,'Audit Values'!$A$2:$AE$346,2,FALSE)),'Preliminary SO66'!T27,VLOOKUP($CZ30,'Audit Values'!$A$2:$AE$346,20,FALSE)) -> 0 | CO30: 0 | CP30: 0 | CQ30: 0 | CR30: =IF(ISNA(VLOOKUP($CZ30,'Audit Values'!$A$2:$AE$346,2,FALSE)),'Preliminary SO66'!V27,VLOOKUP($CZ30,'Audit Values'!$A$2:$AE$346,22,FALSE)) -> 0 | CS30: 0 | CT30: =IF(ISNA(VLOOKUP($CZ30,'Audit Values'!$A$2:$AE$346,2,FALSE)),'Preliminary SO66'!W27,VLOOKUP($CZ30,'Audit Values'!$A$2:$AE$346,23,FALSE)) -> 0 | CU30: 0 | CV30: 0 | CW30: 0 | CX30: =IF(CW30>0,Weightings!$M$11*AR30,0) -> 0 | CY30: 0 | CZ30: D0212
A31: 214 | B31: Grant | C31: Ulysses | D31: 1588.6 | E31: 0 | F31: 1588.6 | G31: 1640.5 | H31: 0 | I31: 1640.5 | J31: 1686.1 | K31: =IF(ISNA(VLOOKUP($CZ31,'Audit Values'!$A$2:$AE$346,2,FALSE)),'Preliminary SO66'!B28,VLOOKUP($CZ31,'Audit Values'!$A$2:$AE$346,31,FALSE)) -> 1670.3 | L31: 1670.3 | M31: =IF(ISNA(VLOOKUP($CZ31,'Audit Values'!$A$2:$AE$346,2,FALSE)),'Preliminary SO66'!Z28,VLOOKUP($CZ31,'Audit Values'!$A$2:$AE$346,26,FALSE)) -> 0 | N31: 1670.3 | O31: =IF(ISNA(VLOOKUP($CZ31,'Audit Values'!$A$2:$AE$346,2,FALSE)),'Preliminary SO66'!C28,IF(VLOOKUP($CZ31,'Audit Values'!$A$2:$AE$346,28,FALSE)="",VLOOKUP($CZ31,'Audit Values'!$A$2:$AE$346,3,FALSE),VLOOKUP($CZ31,'Audit Values'!$A$2:$AE$346,28,FALSE))) -> 29.5 | P31: 1699.8 | Q31: 1715.6 | R31: 1715.6 | S31: 1699.8 | T31: 15.8 | U31: 59.6 | V31: 0 | W31: 59.6 | X31: =IF(ISNA(VLOOKUP($CZ31,'Audit Values'!$A$2:$AE$346,2,FALSE)),'Preliminary SO66'!D28,VLOOKUP($CZ31,'Audit Values'!$A$2:$AE$346,4,FALSE)) -> 300.6 | Y31: =ROUND((X31/6)*Weightings!$M$6,1) -> 25.1 | Z31: =IF(ISNA(VLOOKUP($CZ31,'Audit Values'!$A$2:$AE$346,2,FALSE)),'Preliminary SO66'!F28,VLOOKUP($CZ31,'Audit Values'!$A$2:$AE$346,6,FALSE)) -> 2047.7 | AA31: =ROUND((Z31/6)*Weightings!$M$7,1) -> 134.8 | AB31: =IF(ISNA(VLOOKUP($CZ31,'Audit Values'!$A$2:$AE$346,2,FALSE)),'Preliminary SO66'!H28,VLOOKUP($CZ31,'Audit Values'!$A$2:$AE$346,9,FALSE)) -> 891 | AC31: =ROUND(AB31*Weightings!$M$8,1) -> 406.3 | AD31: 93.6 | AE31: 0 | AF31: =AE31*Weightings!$M$9 -> 0 | AG31: =IF(ISNA(VLOOKUP($CZ31,'Audit Values'!$A$2:$AE$346,2,FALSE)),'Preliminary SO66'!L28,VLOOKUP($CZ31,'Audit Values'!$A$2:$AE$346,12,FALSE)) -> 0 | AH31: =ROUND(AG31*Weightings!$M$10,1) -> 0 | AI31: =IF(ISNA(VLOOKUP($CZ31,'Audit Values'!$A$2:$AE$346,2,FALSE)),'Preliminary SO66'!O28,VLOOKUP($CZ31,'Audit Values'!$A$2:$AE$346,15,FALSE)) -> 199 | AJ31: 68.4 | AK31: =CC31/Weightings!$M$5 -> 0 | AL31: =CD31/Weightings!$M$5 -> 0 | AM31: =CH31/Weightings!$M$5 -> 0 | AN31: 16.6 | AO31: =IF(ISNA(VLOOKUP($CZ31,'Audit Values'!$A$2:$AE$346,2,FALSE)),'Preliminary SO66'!X28,VLOOKUP($CZ31,'Audit Values'!$A$2:$AE$346,24,FALSE)) -> 0 | AP31: 870371 | AQ31: =AP31/Weightings!$M$5 -> 226 | AR31: 2504.2 | AS31: 2730.2 | AT31: 2730.2 | AU31: 0 | AV31: =IF(ISNA(VLOOKUP($CZ31,'Audit Values'!$A$2:$AC$355,2,FALSE)),"",IF(AND(Weightings!H31>0,VLOOKUP($CZ31,'Audit Values'!$A$2:$AC$355,29,FALSE)<Weightings!H31),Weightings!H31,VLOOKUP($CZ31,'Audit Values'!$A$2:$AC$355,29,FALSE))) -> 20 | AW31: =IF(ISNA(VLOOKUP($CZ31,'Audit Values'!$A$2:$AD$355,2,FALSE)),"",VLOOKUP($CZ31,'Audit Values'!$A$2:$AD$355,30,FALSE)) -> A | AX31: =IF(Weightings!G31="","",IF(Weightings!I31="Pending","PX","R")) -> R | AY31: =AR31*Weightings!$M$5+AU31 -> 9646178 | AZ31: =AT31*Weightings!$M$5+AU31 -> 10516730 | BA31: =IF(Weightings!G31>0,Weightings!G31,'Preliminary SO66'!AB28) -> 10532138 | BB31: 10516730 | BD31: =Weightings!E31 -> 0 | BE31: =Weightings!F31 -> 0 | BF31: 0 | BG31: 10516730 | BH31: =MAX(ROUND(((AR31-AO31-AN31)*Weightings!$M$12)+AP31,0),ROUND(((AR31-AO31-AN31)*Weightings!$M$12)+Weightings!B31,0)) -> 12163554 | BI31: 0.3 | BJ31: 3649066 | BK31: 3478267 | BL31: 3478267 | BM31: 0.286 | BN31: 0 | BO31: FALSE | BP31: 0 | BQ31: 0 | BR31: 0 | BS31: FALSE | BT31: 0 | BU31: 0 | BV31: 0 | BW31: 59.6 | BX31: 517 | BY31: 0.38 | BZ31: =IF(ROUND((Weightings!$P$5*BY31^Weightings!$P$6*Weightings!$P$8 ),2)<Weightings!$P$7,Weightings!$P$7,ROUND((Weightings!$P$5*BY31^Weightings!$P$6*Weightings!$P$8 ),2)) -> 1324.14 | CA31: =ROUND(BZ31/Weightings!$M$5,4) -> 0.3438 | CB31: 68.4 | CC31: 0 | CD31: 0 | CE31: 0 | CF31: 0 | CG31: =AS31*Weightings!$M$5*CF31 -> 0 | CH31: 0 | CI31: 0.524 | CJ31: 3.3 | CK31: 93.6 | CL31: 0 | CM31: 0 | CN31: =IF(ISNA(VLOOKUP($CZ31,'Audit Values'!$A$2:$AE$346,2,FALSE)),'Preliminary SO66'!T28,VLOOKUP($CZ31,'Audit Values'!$A$2:$AE$346,20,FALSE)) -> 15.8 | CO31: 16.6 | CP31: 0 | CQ31: 0 | CR31: =IF(ISNA(VLOOKUP($CZ31,'Audit Values'!$A$2:$AE$346,2,FALSE)),'Preliminary SO66'!V28,VLOOKUP($CZ31,'Audit Values'!$A$2:$AE$346,22,FALSE)) -> 0 | CS31: 0 | CT31: =IF(ISNA(VLOOKUP($CZ31,'Audit Values'!$A$2:$AE$346,2,FALSE)),'Preliminary SO66'!W28,VLOOKUP($CZ31,'Audit Values'!$A$2:$AE$346,23,FALSE)) -> 0 | CU31: =CT31*0.08 -> 0 | CV31: =CO31+CQ31+CS31+CU31 -> 16.6 | CW31: 0 | CX31: =IF(CW31>0,Weightings!$M$11*AR31,0) -> 0 | CY31: 0 | CZ31: D0214
A32: 215 | B32: Kearny | C32: Lakin | D32: 604.4 | E32: 0 | F32: 604.4 | G32: 631.4 | H32: 0 | I32: 631.4 | J32: 635.6 | K32: =IF(ISNA(VLOOKUP($CZ32,'Audit Values'!$A$2:$AE$346,2,FALSE)),'Preliminary SO66'!B29,VLOOKUP($CZ32,'Audit Values'!$A$2:$AE$346,31,FALSE)) -> 635.6 | L32: 635.6 | M32: =IF(ISNA(VLOOKUP($CZ32,'Audit Values'!$A$2:$AE$346,2,FALSE)),'Preliminary SO66'!Z29,VLOOKUP($CZ32,'Audit Values'!$A$2:$AE$346,26,FALSE)) -> 0 | N32: 635.6 | O32: =IF(ISNA(VLOOKUP($CZ32,'Audit Values'!$A$2:$AE$346,2,FALSE)),'Preliminary SO66'!C29,IF(VLOOKUP($CZ32,'Audit Values'!$A$2:$AE$346,28,FALSE)="",VLOOKUP($CZ32,'Audit Values'!$A$2:$AE$346,3,FALSE),VLOOKUP($CZ32,'Audit Values'!$A$2:$AE$346,28,FALSE))) -> 6.5 | P32: 642.1 | Q32: 642.1 | R32: 642.1 | S32: 642.1 | T32: 0 | U32: 236.3 | V32: 236.3 | W32: 0 | X32: =IF(ISNA(VLOOKUP($CZ32,'Audit Values'!$A$2:$AE$346,2,FALSE)),'Preliminary SO66'!D29,VLOOKUP($CZ32,'Audit Values'!$A$2:$AE$346,4,FALSE)) -> 57.3 | Y32: =ROUND((X32/6)*Weightings!$M$6,1) -> 4.8 | Z32: =IF(ISNA(VLOOKUP($CZ32,'Audit Values'!$A$2:$AE$346,2,FALSE)),'Preliminary SO66'!F29,VLOOKUP($CZ32,'Audit Values'!$A$2:$AE$346,6,FALSE)) -> 677.5 | AA32: =ROUND((Z32/6)*Weightings!$M$7,1) -> 44.6 | AB32: =IF(ISNA(VLOOKUP($CZ32,'Audit Values'!$A$2:$AE$346,2,FALSE)),'Preliminary SO66'!H29,VLOOKUP($CZ32,'Audit Values'!$A$2:$AE$346,9,FALSE)) -> 288 | AC32: =ROUND(AB32*Weightings!$M$8,1) -> 131.3 | AD32: 20 | AE32: 0 | AF32: =AE32*Weightings!$M$9 -> 0 | AG32: =IF(ISNA(VLOOKUP($CZ32,'Audit Values'!$A$2:$AE$346,2,FALSE)),'Preliminary SO66'!L29,VLOOKUP($CZ32,'Audit Values'!$A$2:$AE$346,12,FALSE)) -> 0 | AH32: =ROUND(AG32*Weightings!$M$10,1) -> 0 | AI32: =IF(ISNA(VLOOKUP($CZ32,'Audit Values'!$A$2:$AE$346,2,FALSE)),'Preliminary SO66'!O29,VLOOKUP($CZ32,'Audit Values'!$A$2:$AE$346,15,FALSE)) -> 84 | AJ32: 36.8 | AK32: =CC32/Weightings!$M$5 -> 0 | AL32: =CD32/Weightings!$M$5 -> 0 | AM32: =CH32/Weightings!$M$5 -> 0 | AN32: 0 | AO32: =IF(ISNA(VLOOKUP($CZ32,'Audit Values'!$A$2:$AE$346,2,FALSE)),'Preliminary SO66'!X29,VLOOKUP($CZ32,'Audit Values'!$A$2:$AE$346,24,FALSE)) -> 0 | AP32: 342744 | AQ32: =AP32/Weightings!$M$5 -> 89 | AR32: 1115.9 | AS32: 1204.9 | AT32: 1204.9 | AU32: 0 | AV32: =IF(ISNA(VLOOKUP($CZ32,'Audit Values'!$A$2:$AC$355,2,FALSE)),"",IF(AND(Weightings!H32>0,VLOOKUP($CZ32,'Audit Values'!$A$2:$AC$355,29,FALSE)<Weightings!H32),Weightings!H32,VLOOKUP($CZ32,'Audit Values'!$A$2:$AC$355,29,FALSE))) -> 5 | AW32: =IF(ISNA(VLOOKUP($CZ32,'Audit Values'!$A$2:$AD$355,2,FALSE)),"",VLOOKUP($CZ32,'Audit Values'!$A$2:$AD$355,30,FALSE)) -> A | AX32: =IF(Weightings!G32="","",IF(Weightings!I32="Pending","PX","R")) ->  | AY32: =AR32*Weightings!$M$5+AU32 -> 4298447 | AZ32: =AT32*Weightings!$M$5+AU32 -> 4641275 | BA32: =IF(Weightings!G32>0,Weightings!G32,'Preliminary SO66'!AB29) -> 4689425 | BB32: 4641275 | BD32: =Weightings!E32 -> 0 | BE32: =Weightings!F32 -> 0 | BF32: 0 | BG32: 4641275 | BH32: =MAX(ROUND(((AR32-AO32-AN32)*Weightings!$M$12)+AP32,0),ROUND(((AR32-AO32-AN32)*Weightings!$M$12)+Weightings!B32,0)) -> 5406942 | BI32: 0.3 | BJ32: 1622083 | BK32: 1635014 | BL32: 1622083 | BM32: 0.3 | BN32: 0 | BO32: FALSE | BP32: 0 | BQ32: 0 | BR32: 0 | BS32: TRUE | BT32: 423.3488 | BU32: 0.367958 | BV32: 236.3 | BW32: 0 | BX32: 646 | BY32: 0.13 | BZ32: =IF(ROUND((Weightings!$P$5*BY32^Weightings!$P$6*Weightings!$P$8 ),2)<Weightings!$P$7,Weightings!$P$7,ROUND((Weightings!$P$5*BY32^Weightings!$P$6*Weightings!$P$8 ),2)) -> 1687.76 | CA32: =ROUND(BZ32/Weightings!$M$5,4) -> 0.4382 | CB32: 36.8 | CC32: 0 | CD32: 0 | CE32: 0 | CF32: 0 | CG32: =AS32*Weightings!$M$5*CF32 -> 0 | CH32: 0 | CI32: 0.449 | CJ32: 1 | CK32: 0 | CL32: 0 | CM32: 20 | CN32: =IF(ISNA(VLOOKUP($CZ32,'Audit Values'!$A$2:$AE$346,2,FALSE)),'Preliminary SO66'!T29,VLOOKUP($CZ32,'Audit Values'!$A$2:$AE$346,20,FALSE)) -> 0 | CO32: 0 | CP32: 0 | CQ32: 0 | CR32: =IF(ISNA(VLOOKUP($CZ32,'Audit Values'!$A$2:$AE$346,2,FALSE)),'Preliminary SO66'!V29,VLOOKUP($CZ32,'Audit Values'!$A$2:$AE$346,22,FALSE)) -> 0 | CS32: 0 | CT32: =IF(ISNA(VLOOKUP($CZ32,'Audit Values'!$A$2:$AE$346,2,FALSE)),'Preliminary SO66'!W29,VLOOKUP($CZ32,'Audit Values'!$A$2:$AE$346,23,FALSE)) -> 0 | CU32: 0 | CV32: 0 | CW32: 0 | CX32: =IF(CW32>0,Weightings!$M$11*AR32,0) -> 0 | CY32: 0 | CZ32: D0215
A33: 216 | B33: Kearny | C33: Deerfield | D33: 214 | E33: 0 | F33: 214 | G33: 231.5 | H33: 0 | I33: 231.5 | J33: 192 | K33: =IF(ISNA(VLOOKUP($CZ33,'Audit Values'!$A$2:$AE$346,2,FALSE)),'Preliminary SO66'!B30,VLOOKUP($CZ33,'Audit Values'!$A$2:$AE$346,31,FALSE)) -> 192 | L33: 231.5 | M33: =IF(ISNA(VLOOKUP($CZ33,'Audit Values'!$A$2:$AE$346,2,FALSE)),'Preliminary SO66'!Z30,VLOOKUP($CZ33,'Audit Values'!$A$2:$AE$346,26,FALSE)) -> 0 | N33: 231.5 | O33: =IF(ISNA(VLOOKUP($CZ33,'Audit Values'!$A$2:$AE$346,2,FALSE)),'Preliminary SO66'!C30,IF(VLOOKUP($CZ33,'Audit Values'!$A$2:$AE$346,28,FALSE)="",VLOOKUP($CZ33,'Audit Values'!$A$2:$AE$346,3,FALSE),VLOOKUP($CZ33,'Audit Values'!$A$2:$AE$346,28,FALSE))) -> 5 | P33: 197 | Q33: 197 | R33: 197 | S33: 236.5 | T33: 0 | U33: 154.3 | V33: 154.3 | W33: 0 | X33: =IF(ISNA(VLOOKUP($CZ33,'Audit Values'!$A$2:$AE$346,2,FALSE)),'Preliminary SO66'!D30,VLOOKUP($CZ33,'Audit Values'!$A$2:$AE$346,4,FALSE)) -> 36.7 | Y33: =ROUND((X33/6)*Weightings!$M$6,1) -> 3.1 | Z33: =IF(ISNA(VLOOKUP($CZ33,'Audit Values'!$A$2:$AE$346,2,FALSE)),'Preliminary SO66'!F30,VLOOKUP($CZ33,'Audit Values'!$A$2:$AE$346,6,FALSE)) -> 419.5 | AA33: =ROUND((Z33/6)*Weightings!$M$7,1) -> 27.6 | AB33: =IF(ISNA(VLOOKUP($CZ33,'Audit Values'!$A$2:$AE$346,2,FALSE)),'Preliminary SO66'!H30,VLOOKUP($CZ33,'Audit Values'!$A$2:$AE$346,9,FALSE)) -> 137 | AC33: =ROUND(AB33*Weightings!$M$8,1) -> 62.5 | AD33: 14.4 | AE33: 0 | AF33: =AE33*Weightings!$M$9 -> 0 | AG33: =IF(ISNA(VLOOKUP($CZ33,'Audit Values'!$A$2:$AE$346,2,FALSE)),'Preliminary SO66'!L30,VLOOKUP($CZ33,'Audit Values'!$A$2:$AE$346,12,FALSE)) -> 0 | AH33: =ROUND(AG33*Weightings!$M$10,1) -> 0 | AI33: =IF(ISNA(VLOOKUP($CZ33,'Audit Values'!$A$2:$AE$346,2,FALSE)),'Preliminary SO66'!O30,VLOOKUP($CZ33,'Audit Values'!$A$2:$AE$346,15,FALSE)) -> 12 | AJ33: 6.3 | AK33: =CC33/Weightings!$M$5 -> 0 | AL33: =CD33/Weightings!$M$5 -> 0 | AM33: =CH33/Weightings!$M$5 -> 0 | AN33: 0 | AO33: =IF(ISNA(VLOOKUP($CZ33,'Audit Values'!$A$2:$AE$346,2,FALSE)),'Preliminary SO66'!X30,VLOOKUP($CZ33,'Audit Values'!$A$2:$AE$346,24,FALSE)) -> 0 | AP33: 141815 | AQ33: =AP33/Weightings!$M$5 -> 36.8 | AR33: 504.7 | AS33: 541.5 | AT33: 541.5 | AU33: 0 | AV33: =IF(ISNA(VLOOKUP($CZ33,'Audit Values'!$A$2:$AC$355,2,FALSE)),"",IF(AND(Weightings!H33>0,VLOOKUP($CZ33,'Audit Values'!$A$2:$AC$355,29,FALSE)<Weightings!H33),Weightings!H33,VLOOKUP($CZ33,'Audit Values'!$A$2:$AC$355,29,FALSE))) -> 20 | AW33: =IF(ISNA(VLOOKUP($CZ33,'Audit Values'!$A$2:$AD$355,2,FALSE)),"",VLOOKUP($CZ33,'Audit Values'!$A$2:$AD$355,30,FALSE)) -> A | AX33: =IF(Weightings!G33="","",IF(Weightings!I33="Pending","PX","R")) ->  | AY33: =AR33*Weightings!$M$5+AU33 -> 1944104 | AZ33: =AT33*Weightings!$M$5+AU33 -> 2085858 | BA33: =IF(Weightings!G33>0,Weightings!G33,'Preliminary SO66'!AB30) -> 2318904 | BB33: 2085858 | BD33: =Weightings!E33 -> 0 | BE33: =Weightings!F33 -> 0 | BF33: 0 | BG33: 2085858 | BH33: =MAX(ROUND(((AR33-AO33-AN33)*Weightings!$M$12)+AP33,0),ROUND(((AR33-AO33-AN33)*Weightings!$M$12)+Weightings!B33,0)) -> 2471992 | BI33: 0.3 | BJ33: 741598 | BK33: 821609 | BL33: 741598 | BM33: 0.3 | BN33: 0 | BO33: TRUE | BP33: 1317.908 | BQ33: 0.652507 | BR33: 154.3 | BS33: FALSE | BT33: 0 | BU33: 0 | BV33: 0 | BW33: 0 | BX33: 216 | BY33: 0.06 | BZ33: =IF(ROUND((Weightings!$P$5*BY33^Weightings!$P$6*Weightings!$P$8 ),2)<Weightings!$P$7,Weightings!$P$7,ROUND((Weightings!$P$5*BY33^Weightings!$P$6*Weightings!$P$8 ),2)) -> 2010.34 | CA33: =ROUND(BZ33/Weightings!$M$5,4) -> 0.5219 | CB33: 6.3 | CC33: 0 | CD33: 0 | CE33: 0 | CF33: 0 | CG33: =AS33*Weightings!$M$5*CF33 -> 0 | CH33: 0 | CI33: 0.579 | CJ33: 1.1 | CK33: 14.4 | CL33: 0 | CM33: 0 | CN33: =IF(ISNA(VLOOKUP($CZ33,'Audit Values'!$A$2:$AE$346,2,FALSE)),'Preliminary SO66'!T30,VLOOKUP($CZ33,'Audit Values'!$A$2:$AE$346,20,FALSE)) -> 0 | CO33: 0 | CP33: 0 | CQ33: 0 | CR33: =IF(ISNA(VLOOKUP($CZ33,'Audit Values'!$A$2:$AE$346,2,FALSE)),'Preliminary SO66'!V30,VLOOKUP($CZ33,'Audit Values'!$A$2:$AE$346,22,FALSE)) -> 0 | CS33: 0 | CT33: =IF(ISNA(VLOOKUP($CZ33,'Audit Values'!$A$2:$AE$346,2,FALSE)),'Preliminary SO66'!W30,VLOOKUP($CZ33,'Audit Values'!$A$2:$AE$346,23,FALSE)) -> 0 | CU33: 0 | CV33: 0 | CW33: 0 | CX33: =IF(CW33>0,Weightings!$M$11*AR33,0) -> 0 | CY33: 0 | CZ33: D0216
A34: 217 | B34: Morton | C34: Rolla | D34: 182.4 | E34: 0 | F34: 182.4 | G34: 176.4 | H34: 0 | I34: 176.4 | J34: 184.6 | K34: =IF(ISNA(VLOOKUP($CZ34,'Audit Values'!$A$2:$AE$346,2,FALSE)),'Preliminary SO66'!B31,VLOOKUP($CZ34,'Audit Values'!$A$2:$AE$346,31,FALSE)) -> 183.6 | L34: 183.6 | M34: =IF(ISNA(VLOOKUP($CZ34,'Audit Values'!$A$2:$AE$346,2,FALSE)),'Preliminary SO66'!Z31,VLOOKUP($CZ34,'Audit Values'!$A$2:$AE$346,26,FALSE)) -> 0 | N34: 183.6 | O34: =IF(ISNA(VLOOKUP($CZ34,'Audit Values'!$A$2:$AE$346,2,FALSE)),'Preliminary SO66'!C31,IF(VLOOKUP($CZ34,'Audit Values'!$A$2:$AE$346,28,FALSE)="",VLOOKUP($CZ34,'Audit Values'!$A$2:$AE$346,3,FALSE),VLOOKUP($CZ34,'Audit Values'!$A$2:$AE$346,28,FALSE))) -> 0 | P34: 183.6 | Q34: 184.6 | R34: 184.6 | S34: 183.6 | T34: 1 | U34: 145.5 | V34: 145.5 | W34: 0 | X34: =IF(ISNA(VLOOKUP($CZ34,'Audit Values'!$A$2:$AE$346,2,FALSE)),'Preliminary SO66'!D31,VLOOKUP($CZ34,'Audit Values'!$A$2:$AE$346,4,FALSE)) -> 72.1 | Y34: =ROUND((X34/6)*Weightings!$M$6,1) -> 6 | Z34: =IF(ISNA(VLOOKUP($CZ34,'Audit Values'!$A$2:$AE$346,2,FALSE)),'Preliminary SO66'!F31,VLOOKUP($CZ34,'Audit Values'!$A$2:$AE$346,6,FALSE)) -> 256.7 | AA34: =ROUND((Z34/6)*Weightings!$M$7,1) -> 16.9 | AB34: =IF(ISNA(VLOOKUP($CZ34,'Audit Values'!$A$2:$AE$346,2,FALSE)),'Preliminary SO66'!H31,VLOOKUP($CZ34,'Audit Values'!$A$2:$AE$346,9,FALSE)) -> 77 | AC34: =ROUND(AB34*Weightings!$M$8,1) -> 35.1 | AD34: 3.7 | AE34: 0 | AF34: =AE34*Weightings!$M$9 -> 0 | AG34: =IF(ISNA(VLOOKUP($CZ34,'Audit Values'!$A$2:$AE$346,2,FALSE)),'Preliminary SO66'!L31,VLOOKUP($CZ34,'Audit Values'!$A$2:$AE$346,12,FALSE)) -> 0 | AH34: =ROUND(AG34*Weightings!$M$10,1) -> 0 | AI34: =IF(ISNA(VLOOKUP($CZ34,'Audit Values'!$A$2:$AE$346,2,FALSE)),'Preliminary SO66'!O31,VLOOKUP($CZ34,'Audit Values'!$A$2:$AE$346,15,FALSE)) -> 30 | AJ34: 13.4 | AK34: =CC34/Weightings!$M$5 -> 0 | AL34: =CD34/Weightings!$M$5 -> 0 | AM34: =CH34/Weightings!$M$5 -> 0 | AN34: 1.1 | AO34: =IF(ISNA(VLOOKUP($CZ34,'Audit Values'!$A$2:$AE$346,2,FALSE)),'Preliminary SO66'!X31,VLOOKUP($CZ34,'Audit Values'!$A$2:$AE$346,24,FALSE)) -> 0 | AP34: 109775 | AQ34: =AP34/Weightings!$M$5 -> 28.5 | AR34: 405.3 | AS34: 433.8 | AT34: 433.8 | AU34: 0 | AV34: =IF(ISNA(VLOOKUP($CZ34,'Audit Values'!$A$2:$AC$355,2,FALSE)),"",IF(AND(Weightings!H34>0,VLOOKUP($CZ34,'Audit Values'!$A$2:$AC$355,29,FALSE)<Weightings!H34),Weightings!H34,VLOOKUP($CZ34,'Audit Values'!$A$2:$AC$355,29,FALSE))) -> 20 | AW34: =IF(ISNA(VLOOKUP($CZ34,'Audit Values'!$A$2:$AD$355,2,FALSE)),"",VLOOKUP($CZ34,'Audit Values'!$A$2:$AD$355,30,FALSE)) -> A | AX34: =IF(Weightings!G34="","",IF(Weightings!I34="Pending","PX","R")) -> R | AY34: =AR34*Weightings!$M$5+AU34 -> 1561216 | AZ34: =AT34*Weightings!$M$5+AU34 -> 1670998 | BA34: =IF(Weightings!G34>0,Weightings!G34,'Preliminary SO66'!AB31) -> 1672538 | BB34: 1670998 | BD34: =Weightings!E34 -> 0 | BE34: =Weightings!F34 -> 0 | BF34: 0 | BG34: 1670998 | BH34: =MAX(ROUND(((AR34-AO34-AN34)*Weightings!$M$12)+AP34,0),ROUND(((AR34-AO34-AN34)*Weightings!$M$12)+Weightings!B34,0)) -> 1961198 | BI34: 0.3 | BJ34: 588359 | BK34: 559130 | BL34: 559130 | BM34: 0.2851 | BN34: 0 | BO34: TRUE | BP34: 807.158 | BQ34: 0.792731 | BR34: 145.5 | BS34: FALSE | BT34: 0 | BU34: 0 | BV34: 0 | BW34: 0 | BX34: 252 | BY34: 0.12 | BZ34: =IF(ROUND((Weightings!$P$5*BY34^Weightings!$P$6*Weightings!$P$8 ),2)<Weightings!$P$7,Weightings!$P$7,ROUND((Weightings!$P$5*BY34^Weightings!$P$6*Weightings!$P$8 ),2)) -> 1718.6 | CA34: =ROUND(BZ34/Weightings!$M$5,4) -> 0.4462 | CB34: 13.4 | CC34: 0 | CD34: 0 | CE34: 0 | CF34: 0 | CG34: =AS34*Weightings!$M$5*CF34 -> 0 | CH34: 0 | CI34: 0.419 | CJ34: 0.7 | CK34: 0 | CL34: 0 | CM34: 3.7 | CN34: =IF(ISNA(VLOOKUP($CZ34,'Audit Values'!$A$2:$AE$346,2,FALSE)),'Preliminary SO66'!T31,VLOOKUP($CZ34,'Audit Values'!$A$2:$AE$346,20,FALSE)) -> 1 | CO34: 1.1 | CP34: 0 | CQ34: 0 | CR34: =IF(ISNA(VLOOKUP($CZ34,'Audit Values'!$A$2:$AE$346,2,FALSE)),'Preliminary SO66'!V31,VLOOKUP($CZ34,'Audit Values'!$A$2:$AE$346,22,FALSE)) -> 0 | CS34: 0 | CT34: =IF(ISNA(VLOOKUP($CZ34,'Audit Values'!$A$2:$AE$346,2,FALSE)),'Preliminary SO66'!W31,VLOOKUP($CZ34,'Audit Values'!$A$2:$AE$346,23,FALSE)) -> 0 | CU34: 0 | CV34: 1.1 | CW34: 0 | CX34: =IF(CW34>0,Weightings!$M$11*AR34,0) -> 0 | CY34: 0 | CZ34: D0217
A35: 218 | B35: Morton | C35: Elkhart | D35: 489.4 | E35: 0 | F35: 489.4 | G35: 494.1 | H35: 0 | I35: 494.1 | J35: 979.1 | K35: =IF(ISNA(VLOOKUP($CZ35,'Audit Values'!$A$2:$AE$346,2,FALSE)),'Preliminary SO66'!B32,VLOOKUP($CZ35,'Audit Values'!$A$2:$AE$346,31,FALSE)) -> 469.8 | L35: 494.1 | M35: =IF(ISNA(VLOOKUP($CZ35,'Audit Values'!$A$2:$AE$346,2,FALSE)),'Preliminary SO66'!Z32,VLOOKUP($CZ35,'Audit Values'!$A$2:$AE$346,26,FALSE)) -> 0 | N35: 494.1 | O35: =IF(ISNA(VLOOKUP($CZ35,'Audit Values'!$A$2:$AE$346,2,FALSE)),'Preliminary SO66'!C32,IF(VLOOKUP($CZ35,'Audit Values'!$A$2:$AE$346,28,FALSE)="",VLOOKUP($CZ35,'Audit Values'!$A$2:$AE$346,3,FALSE),VLOOKUP($CZ35,'Audit Values'!$A$2:$AE$346,28,FALSE))) -> 9 | P35: 478.8 | Q35: 988.1 | R35: 988.1 | S35: 503.1 | T35: 509.3 | U35: 208.9 | V35: 208.9 | W35: 0 | X35: =IF(ISNA(VLOOKUP($CZ35,'Audit Values'!$A$2:$AE$346,2,FALSE)),'Preliminary SO66'!D32,VLOOKUP($CZ35,'Audit Values'!$A$2:$AE$346,4,FALSE)) -> 100.6 | Y35: =ROUND((X35/6)*Weightings!$M$6,1) -> 8.4 | Z35: =IF(ISNA(VLOOKUP($CZ35,'Audit Values'!$A$2:$AE$346,2,FALSE)),'Preliminary SO66'!F32,VLOOKUP($CZ35,'Audit Values'!$A$2:$AE$346,6,FALSE)) -> 426.7 | AA35: =ROUND((Z35/6)*Weightings!$M$7,1) -> 28.1 | AB35: =IF(ISNA(VLOOKUP($CZ35,'Audit Values'!$A$2:$AE$346,2,FALSE)),'Preliminary SO66'!H32,VLOOKUP($CZ35,'Audit Values'!$A$2:$AE$346,9,FALSE)) -> 207 | AC35: =ROUND(AB35*Weightings!$M$8,1) -> 94.4 | AD35: 8.8 | AE35: 0 | AF35: =AE35*Weightings!$M$9 -> 0 | AG35: =IF(ISNA(VLOOKUP($CZ35,'Audit Values'!$A$2:$AE$346,2,FALSE)),'Preliminary SO66'!L32,VLOOKUP($CZ35,'Audit Values'!$A$2:$AE$346,12,FALSE)) -> 0 | AH35: =ROUND(AG35*Weightings!$M$10,1) -> 0 | AI35: =IF(ISNA(VLOOKUP($CZ35,'Audit Values'!$A$2:$AE$346,2,FALSE)),'Preliminary SO66'!O32,VLOOKUP($CZ35,'Audit Values'!$A$2:$AE$346,15,FALSE)) -> 38 | AJ35: 17.7 | AK35: =CC35/Weightings!$M$5 -> 0 | AL35: =CD35/Weightings!$M$5 -> 0 | AM35: =CH35/Weightings!$M$5 -> 0 | AN35: 534.8 | AO35: =IF(ISNA(VLOOKUP($CZ35,'Audit Values'!$A$2:$AE$346,2,FALSE)),'Preliminary SO66'!X32,VLOOKUP($CZ35,'Audit Values'!$A$2:$AE$346,24,FALSE)) -> 0 | AP35: 275325 | AQ35: =AP35/Weightings!$M$5 -> 71.5 | AR35: 1404.2 | AS35: 1475.7 | AT35: 1475.7 | AU35: 0 | AV35: =IF(ISNA(VLOOKUP($CZ35,'Audit Values'!$A$2:$AC$355,2,FALSE)),"",IF(AND(Weightings!H35>0,VLOOKUP($CZ35,'Audit Values'!$A$2:$AC$355,29,FALSE)<Weightings!H35),Weightings!H35,VLOOKUP($CZ35,'Audit Values'!$A$2:$AC$355,29,FALSE))) -> 2 | AW35: =IF(ISNA(VLOOKUP($CZ35,'Audit Values'!$A$2:$AD$355,2,FALSE)),"",VLOOKUP($CZ35,'Audit Values'!$A$2:$AD$355,30,FALSE)) -> A | AX35: =IF(Weightings!G35="","",IF(Weightings!I35="Pending","PX","R")) ->  | AY35: =AR35*Weightings!$M$5+AU35 -> 5408978 | AZ35: =AT35*Weightings!$M$5+AU35 -> 5684396 | BA35: =IF(Weightings!G35>0,Weightings!G35,'Preliminary SO66'!AB32) -> 6415506 | BB35: 5684396 | BD35: =Weightings!E35 -> 0 | BE35: =Weightings!F35 -> 0 | BF35: 0 | BG35: 5684396 | BH35: =MAX(ROUND(((AR35-AO35-AN35)*Weightings!$M$12)+AP35,0),ROUND(((AR35-AO35-AN35)*Weightings!$M$12)+Weightings!B35,0)) -> 4294395 | BI35: 0.3 | BJ35: 1288319 | BK35: 1341660 | BL35: 1288319 | BM35: 0.3 | BN35: 0 | BO35: FALSE | BP35: 0 | BQ35: 0 | BR35: 0 | BS35: TRUE | BT35: 251.3363 | BU35: 0.415183 | BV35: 208.9 | BW35: 0 | BX35: 376 | BY35: 0.1 | BZ35: =IF(ROUND((Weightings!$P$5*BY35^Weightings!$P$6*Weightings!$P$8 ),2)<Weightings!$P$7,Weightings!$P$7,ROUND((Weightings!$P$5*BY35^Weightings!$P$6*Weightings!$P$8 ),2)) -> 1790.96 | CA35: =ROUND(BZ35/Weightings!$M$5,4) -> 0.4649 | CB35: 17.7 | CC35: 0 | CD35: 0 | CE35: 0 | CF35: 0 | CG35: =AS35*Weightings!$M$5*CF35 -> 0 | CH35: 0 | CI35: 0.411 | CJ35: 1.3 | CK35: 0 | CL35: 0 | CM35: 8.8 | CN35: =IF(ISNA(VLOOKUP($CZ35,'Audit Values'!$A$2:$AE$346,2,FALSE)),'Preliminary SO66'!T32,VLOOKUP($CZ35,'Audit Values'!$A$2:$AE$346,20,FALSE)) -> 509.3 | CO35: 534.8 | CP35: 0 | CQ35: 0 | CR35: =IF(ISNA(VLOOKUP($CZ35,'Audit Values'!$A$2:$AE$346,2,FALSE)),'Preliminary SO66'!V32,VLOOKUP($CZ35,'Audit Values'!$A$2:$AE$346,22,FALSE)) -> 0 | CS35: 0 | CT35: =IF(ISNA(VLOOKUP($CZ35,'Audit Values'!$A$2:$AE$346,2,FALSE)),'Preliminary SO66'!W32,VLOOKUP($CZ35,'Audit Values'!$A$2:$AE$346,23,FALSE)) -> 0 | CU35: 0 | CV35: 534.8 | CW35: 0 | CX35: =IF(CW35>0,Weightings!$M$11*AR35,0) -> 0 | CY35: 0 | CZ35: D0218
A36: 219 | B36: Clark | C36: Minneola | D36: 255 | E36: 0 | F36: 255 | G36: 249 | H36: 0 | I36: 249 | J36: 248.5 | K36: =IF(ISNA(VLOOKUP($CZ36,'Audit Values'!$A$2:$AE$346,2,FALSE)),'Preliminary SO66'!B33,VLOOKUP($CZ36,'Audit Values'!$A$2:$AE$346,31,FALSE)) -> 248.5 | L36: 250.8 | M36: =IF(ISNA(VLOOKUP($CZ36,'Audit Values'!$A$2:$AE$346,2,FALSE)),'Preliminary SO66'!Z33,VLOOKUP($CZ36,'Audit Values'!$A$2:$AE$346,26,FALSE)) -> 0 | N36: 250.8 | O36: =IF(ISNA(VLOOKUP($CZ36,'Audit Values'!$A$2:$AE$346,2,FALSE)),'Preliminary SO66'!C33,IF(VLOOKUP($CZ36,'Audit Values'!$A$2:$AE$346,28,FALSE)="",VLOOKUP($CZ36,'Audit Values'!$A$2:$AE$346,3,FALSE),VLOOKUP($CZ36,'Audit Values'!$A$2:$AE$346,28,FALSE))) -> 0 | P36: 248.5 | Q36: 248.5 | R36: 248.5 | S36: 250.8 | T36: 0 | U36: 154.1 | V36: 154.1 | W36: 0 | X36: =IF(ISNA(VLOOKUP($CZ36,'Audit Values'!$A$2:$AE$346,2,FALSE)),'Preliminary SO66'!D33,VLOOKUP($CZ36,'Audit Values'!$A$2:$AE$346,4,FALSE)) -> 0 | Y36: =ROUND((X36/6)*Weightings!$M$6,1) -> 0 | Z36: =IF(ISNA(VLOOKUP($CZ36,'Audit Values'!$A$2:$AE$346,2,FALSE)),'Preliminary SO66'!F33,VLOOKUP($CZ36,'Audit Values'!$A$2:$AE$346,6,FALSE)) -> 0 | AA36: =ROUND((Z36/6)*Weightings!$M$7,1) -> 0 | AB36: =IF(ISNA(VLOOKUP($CZ36,'Audit Values'!$A$2:$AE$346,2,FALSE)),'Preliminary SO66'!H33,VLOOKUP($CZ36,'Audit Values'!$A$2:$AE$346,9,FALSE)) -> 111 | AC36: =ROUND(AB36*Weightings!$M$8,1) -> 50.6 | AD36: 7.2 | AE36: 0 | AF36: =AE36*Weightings!$M$9 -> 0 | AG36: =IF(ISNA(VLOOKUP($CZ36,'Audit Values'!$A$2:$AE$346,2,FALSE)),'Preliminary SO66'!L33,VLOOKUP($CZ36,'Audit Values'!$A$2:$AE$346,12,FALSE)) -> 0 | AH36: =ROUND(AG36*Weightings!$M$10,1) -> 0 | AI36: =IF(ISNA(VLOOKUP($CZ36,'Audit Values'!$A$2:$AE$346,2,FALSE)),'Preliminary SO66'!O33,VLOOKUP($CZ36,'Audit Values'!$A$2:$AE$346,15,FALSE)) -> 43 | AJ36: 18.2 | AK36: =CC36/Weightings!$M$5 -> 0 | AL36: =CD36/Weightings!$M$5 -> 0 | AM36: =CH36/Weightings!$M$5 -> 0 | AN36: 0 | AO36: =IF(ISNA(VLOOKUP($CZ36,'Audit Values'!$A$2:$AE$346,2,FALSE)),'Preliminary SO66'!X33,VLOOKUP($CZ36,'Audit Values'!$A$2:$AE$346,24,FALSE)) -> 0 | AP36: 175075 | AQ36: =AP36/Weightings!$M$5 -> 45.5 | AR36: 480.9 | AS36: 526.4 | AT36: 526.4 | AU36: 0 | AV36: =IF(ISNA(VLOOKUP($CZ36,'Audit Values'!$A$2:$AC$355,2,FALSE)),"",IF(AND(Weightings!H36>0,VLOOKUP($CZ36,'Audit Values'!$A$2:$AC$355,29,FALSE)<Weightings!H36),Weightings!H36,VLOOKUP($CZ36,'Audit Values'!$A$2:$AC$355,29,FALSE))) -> 21 | AW36: =IF(ISNA(VLOOKUP($CZ36,'Audit Values'!$A$2:$AD$355,2,FALSE)),"",VLOOKUP($CZ36,'Audit Values'!$A$2:$AD$355,30,FALSE)) -> A | AX36: =IF(Weightings!G36="","",IF(Weightings!I36="Pending","PX","R")) ->  | AY36: =AR36*Weightings!$M$5+AU36 -> 1852427 | AZ36: =AT36*Weightings!$M$5+AU36 -> 2027693 | BA36: =IF(Weightings!G36>0,Weightings!G36,'Preliminary SO66'!AB33) -> 2147105 | BB36: 2027693 | BD36: =Weightings!E36 -> 0 | BE36: =Weightings!F36 -> 0 | BF36: 0 | BG36: 2027693 | BH36: =MAX(ROUND(((AR36-AO36-AN36)*Weightings!$M$12)+AP36,0),ROUND(((AR36-AO36-AN36)*Weightings!$M$12)+Weightings!B36,0)) -> 2407064 | BI36: 0.3 | BJ36: 722119 | BK36: 700185 | BL36: 700185 | BM36: 0.2909 | BN36: 0 | BO36: TRUE | BP36: 1455.974 | BQ36: 0.614602 | BR36: 154.1 | BS36: FALSE | BT36: 0 | BU36: 0 | BV36: 0 | BW36: 0 | BX36: 292 | BY36: 0.15 | BZ36: =IF(ROUND((Weightings!$P$5*BY36^Weightings!$P$6*Weightings!$P$8 ),2)<Weightings!$P$7,Weightings!$P$7,ROUND((Weightings!$P$5*BY36^Weightings!$P$6*Weightings!$P$8 ),2)) -> 1634 | CA36: =ROUND(BZ36/Weightings!$M$5,4) -> 0.4242 | CB36: 18.2 | CC36: 0 | CD36: 0 | CE36: 0 | CF36: 0 | CG36: =AS36*Weightings!$M$5*CF36 -> 0 | CH36: 0 | CI36: 0.443 | CJ36: 0.9 | CK36: 0 | CL36: 0 | CM36: 7.2 | CN36: =IF(ISNA(VLOOKUP($CZ36,'Audit Values'!$A$2:$AE$346,2,FALSE)),'Preliminary SO66'!T33,VLOOKUP($CZ36,'Audit Values'!$A$2:$AE$346,20,FALSE)) -> 0 | CO36: 0 | CP36: 0 | CQ36: 0 | CR36: =IF(ISNA(VLOOKUP($CZ36,'Audit Values'!$A$2:$AE$346,2,FALSE)),'Preliminary SO66'!V33,VLOOKUP($CZ36,'Audit Values'!$A$2:$AE$346,22,FALSE)) -> 0 | CS36: 0 | CT36: =IF(ISNA(VLOOKUP($CZ36,'Audit Values'!$A$2:$AE$346,2,FALSE)),'Preliminary SO66'!W33,VLOOKUP($CZ36,'Audit Values'!$A$2:$AE$346,23,FALSE)) -> 0 | CU36: 0 | CV36: 0 | CW36: 0 | CX36: =IF(CW36>0,Weightings!$M$11*AR36,0) -> 0 | CY36: 0 | CZ36: D0219
A37: 220 | B37: Clark | C37: Ashland | D37: 183.6 | E37: 0 | F37: 183.6 | G37: 194.4 | H37: 0 | I37: 194.4 | J37: 192.6 | K37: =IF(ISNA(VLOOKUP($CZ37,'Audit Values'!$A$2:$AE$346,2,FALSE)),'Preliminary SO66'!B34,VLOOKUP($CZ37,'Audit Values'!$A$2:$AE$346,31,FALSE)) -> 192.6 | L37: 194.4 | M37: =IF(ISNA(VLOOKUP($CZ37,'Audit Values'!$A$2:$AE$346,2,FALSE)),'Preliminary SO66'!Z34,VLOOKUP($CZ37,'Audit Values'!$A$2:$AE$346,26,FALSE)) -> 0 | N37: 194.4 | O37: =IF(ISNA(VLOOKUP($CZ37,'Audit Values'!$A$2:$AE$346,2,FALSE)),'Preliminary SO66'!C34,IF(VLOOKUP($CZ37,'Audit Values'!$A$2:$AE$346,28,FALSE)="",VLOOKUP($CZ37,'Audit Values'!$A$2:$AE$346,3,FALSE),VLOOKUP($CZ37,'Audit Values'!$A$2:$AE$346,28,FALSE))) -> 2 | P37: 194.6 | Q37: 194.6 | R37: 194.6 | S37: 196.4 | T37: 0 | U37: 149 | V37: 149 | W37: 0 | X37: =IF(ISNA(VLOOKUP($CZ37,'Audit Values'!$A$2:$AE$346,2,FALSE)),'Preliminary SO66'!D34,VLOOKUP($CZ37,'Audit Values'!$A$2:$AE$346,4,FALSE)) -> 17 | Y37: =ROUND((X37/6)*Weightings!$M$6,1) -> 1.4 | Z37: =IF(ISNA(VLOOKUP($CZ37,'Audit Values'!$A$2:$AE$346,2,FALSE)),'Preliminary SO66'!F34,VLOOKUP($CZ37,'Audit Values'!$A$2:$AE$346,6,FALSE)) -> 23 | AA37: =ROUND((Z37/6)*Weightings!$M$7,1) -> 1.5 | AB37: =IF(ISNA(VLOOKUP($CZ37,'Audit Values'!$A$2:$AE$346,2,FALSE)),'Preliminary SO66'!H34,VLOOKUP($CZ37,'Audit Values'!$A$2:$AE$346,9,FALSE)) -> 72 | AC37: =ROUND(AB37*Weightings!$M$8,1) -> 32.8 | AD37: 0.9 | AE37: 0 | AF37: =AE37*Weightings!$M$9 -> 0 | AG37: =IF(ISNA(VLOOKUP($CZ37,'Audit Values'!$A$2:$AE$346,2,FALSE)),'Preliminary SO66'!L34,VLOOKUP($CZ37,'Audit Values'!$A$2:$AE$346,12,FALSE)) -> 0 | AH37: =ROUND(AG37*Weightings!$M$10,1) -> 0 | AI37: =IF(ISNA(VLOOKUP($CZ37,'Audit Values'!$A$2:$AE$346,2,FALSE)),'Preliminary SO66'!O34,VLOOKUP($CZ37,'Audit Values'!$A$2:$AE$346,15,FALSE)) -> 47 | AJ37: 23.7 | AK37: =CC37/Weightings!$M$5 -> 0 | AL37: =CD37/Weightings!$M$5 -> 0 | AM37: =CH37/Weightings!$M$5 -> 0 | AN37: 0 | AO37: =IF(ISNA(VLOOKUP($CZ37,'Audit Values'!$A$2:$AE$346,2,FALSE)),'Preliminary SO66'!X34,VLOOKUP($CZ37,'Audit Values'!$A$2:$AE$346,24,FALSE)) -> 0 | AP37: 150066 | AQ37: =AP37/Weightings!$M$5 -> 39 | AR37: 405.7 | AS37: 444.7 | AT37: 444.7 | AU37: 0 | AV37: =IF(ISNA(VLOOKUP($CZ37,'Audit Values'!$A$2:$AC$355,2,FALSE)),"",IF(AND(Weightings!H37>0,VLOOKUP($CZ37,'Audit Values'!$A$2:$AC$355,29,FALSE)<Weightings!H37),Weightings!H37,VLOOKUP($CZ37,'Audit Values'!$A$2:$AC$355,29,FALSE))) -> 10 | AW37: =IF(ISNA(VLOOKUP($CZ37,'Audit Values'!$A$2:$AD$355,2,FALSE)),"",VLOOKUP($CZ37,'Audit Values'!$A$2:$AD$355,30,FALSE)) -> A | AX37: =IF(Weightings!G37="","",IF(Weightings!I37="Pending","PX","R")) ->  | AY37: =AR37*Weightings!$M$5+AU37 -> 1562756 | AZ37: =AT37*Weightings!$M$5+AU37 -> 1712984 | BA37: =IF(Weightings!G37>0,Weightings!G37,'Preliminary SO66'!AB34) -> 1750734 | BB37: 1712984 | BD37: =Weightings!E37 -> 0 | BE37: =Weightings!F37 -> 0 | BF37: 0 | BG37: 1712984 | BH37: =MAX(ROUND(((AR37-AO37-AN37)*Weightings!$M$12)+AP37,0),ROUND(((AR37-AO37-AN37)*Weightings!$M$12)+Weightings!B37,0)) -> 2020274 | BI37: 0.3 | BJ37: 606082 | BK37: 613356 | BL37: 606082 | BM37: 0.3 | BN37: 0 | BO37: TRUE | BP37: 930.742 | BQ37: 0.758801 | BR37: 149 | BS37: FALSE | BT37: 0 | BU37: 0 | BV37: 0 | BW37: 0 | BX37: 660 | BY37: 0.07 | BZ37: =IF(ROUND((Weightings!$P$5*BY37^Weightings!$P$6*Weightings!$P$8 ),2)<Weightings!$P$7,Weightings!$P$7,ROUND((Weightings!$P$5*BY37^Weightings!$P$6*Weightings!$P$8 ),2)) -> 1941.45 | CA37: =ROUND(BZ37/Weightings!$M$5,4) -> 0.504 | CB37: 23.7 | CC37: 0 | CD37: 0 | CE37: 0 | CF37: 0 | CG37: =AS37*Weightings!$M$5*CF37 -> 0 | CH37: 0 | CI37: 0.367 | CJ37: 0.3 | CK37: 0 | CL37: 0 | CM37: 0.9 | CN37: =IF(ISNA(VLOOKUP($CZ37,'Audit Values'!$A$2:$AE$346,2,FALSE)),'Preliminary SO66'!T34,VLOOKUP($CZ37,'Audit Values'!$A$2:$AE$346,20,FALSE)) -> 0 | CO37: 0 | CP37: 0 | CQ37: 0 | CR37: =IF(ISNA(VLOOKUP($CZ37,'Audit Values'!$A$2:$AE$346,2,FALSE)),'Preliminary SO66'!V34,VLOOKUP($CZ37,'Audit Values'!$A$2:$AE$346,22,FALSE)) -> 0 | CS37: 0 | CT37: =IF(ISNA(VLOOKUP($CZ37,'Audit Values'!$A$2:$AE$346,2,FALSE)),'Preliminary SO66'!W34,VLOOKUP($CZ37,'Audit Values'!$A$2:$AE$346,23,FALSE)) -> 0 | CU37: 0 | CV37: 0 | CW37: 0 | CX37: =IF(CW37>0,Weightings!$M$11*AR37,0) -> 0 | CY37: 0 | CZ37: D0220
A38: 223 | B38: Washington | C38: Barnes | D38: 373.2 | E38: 0 | F38: 373.2 | G38: 374.8 | H38: 0 | I38: 374.8 | J38: 341 | K38: =IF(ISNA(VLOOKUP($CZ38,'Audit Values'!$A$2:$AE$346,2,FALSE)),'Preliminary SO66'!B35,VLOOKUP($CZ38,'Audit Values'!$A$2:$AE$346,31,FALSE)) -> 340 | L38: 374.8 | M38: =IF(ISNA(VLOOKUP($CZ38,'Audit Values'!$A$2:$AE$346,2,FALSE)),'Preliminary SO66'!Z35,VLOOKUP($CZ38,'Audit Values'!$A$2:$AE$346,26,FALSE)) -> 0 | N38: 374.8 | O38: =IF(ISNA(VLOOKUP($CZ38,'Audit Values'!$A$2:$AE$346,2,FALSE)),'Preliminary SO66'!C35,IF(VLOOKUP($CZ38,'Audit Values'!$A$2:$AE$346,28,FALSE)="",VLOOKUP($CZ38,'Audit Values'!$A$2:$AE$346,3,FALSE),VLOOKUP($CZ38,'Audit Values'!$A$2:$AE$346,28,FALSE))) -> 0 | P38: 340 | Q38: 341 | R38: 341 | S38: 374.8 | T38: 1 | U38: 171.9 | V38: 171.9 | W38: 0 | X38: =IF(ISNA(VLOOKUP($CZ38,'Audit Values'!$A$2:$AE$346,2,FALSE)),'Preliminary SO66'!D35,VLOOKUP($CZ38,'Audit Values'!$A$2:$AE$346,4,FALSE)) -> 119.9 | Y38: =ROUND((X38/6)*Weightings!$M$6,1) -> 10 | Z38: =IF(ISNA(VLOOKUP($CZ38,'Audit Values'!$A$2:$AE$346,2,FALSE)),'Preliminary SO66'!F35,VLOOKUP($CZ38,'Audit Values'!$A$2:$AE$346,6,FALSE)) -> 134.1 | AA38: =ROUND((Z38/6)*Weightings!$M$7,1) -> 8.8 | AB38: =IF(ISNA(VLOOKUP($CZ38,'Audit Values'!$A$2:$AE$346,2,FALSE)),'Preliminary SO66'!H35,VLOOKUP($CZ38,'Audit Values'!$A$2:$AE$346,9,FALSE)) -> 89 | AC38: =ROUND(AB38*Weightings!$M$8,1) -> 40.6 | AD38: 0 | AE38: 0 | AF38: =AE38*Weightings!$M$9 -> 0 | AG38: =IF(ISNA(VLOOKUP($CZ38,'Audit Values'!$A$2:$AE$346,2,FALSE)),'Preliminary SO66'!L35,VLOOKUP($CZ38,'Audit Values'!$A$2:$AE$346,12,FALSE)) -> 0 | AH38: =ROUND(AG38*Weightings!$M$10,1) -> 0 | AI38: =IF(ISNA(VLOOKUP($CZ38,'Audit Values'!$A$2:$AE$346,2,FALSE)),'Preliminary SO66'!O35,VLOOKUP($CZ38,'Audit Values'!$A$2:$AE$346,15,FALSE)) -> 132.1 | AJ38: 46.3 | AK38: =CC38/Weightings!$M$5 -> 0 | AL38: =CD38/Weightings!$M$5 -> 0 | AM38: =CH38/Weightings!$M$5 -> 0 | AN38: 1.1 | AO38: =IF(ISNA(VLOOKUP($CZ38,'Audit Values'!$A$2:$AE$346,2,FALSE)),'Preliminary SO66'!X35,VLOOKUP($CZ38,'Audit Values'!$A$2:$AE$346,24,FALSE)) -> 1 | AP38: 443794 | AQ38: =AP38/Weightings!$M$5 -> 115.2 | AR38: 654.5 | AS38: 769.7 | AT38: 769.7 | AU38: 0 | AV38: =IF(ISNA(VLOOKUP($CZ38,'Audit Values'!$A$2:$AC$355,2,FALSE)),"",IF(AND(Weightings!H38>0,VLOOKUP($CZ38,'Audit Values'!$A$2:$AC$355,29,FALSE)<Weightings!H38),Weightings!H38,VLOOKUP($CZ38,'Audit Values'!$A$2:$AC$355,29,FALSE))) -> 4 | AW38: =IF(ISNA(VLOOKUP($CZ38,'Audit Values'!$A$2:$AD$355,2,FALSE)),"",VLOOKUP($CZ38,'Audit Values'!$A$2:$AD$355,30,FALSE)) -> A | AX38: =IF(Weightings!G38="","",IF(Weightings!I38="Pending","PX","R")) ->  | AY38: =AR38*Weightings!$M$5+AU38 -> 2521134 | AZ38: =AT38*Weightings!$M$5+AU38 -> 2964884 | BA38: =IF(Weightings!G38>0,Weightings!G38,'Preliminary SO66'!AB35) -> 3047702 | BB38: 2964884 | BD38: =Weightings!E38 -> 0 | BE38: =Weightings!F38 -> 0 | BF38: 0 | BG38: 2964884 | BH38: =MAX(ROUND(((AR38-AO38-AN38)*Weightings!$M$12)+AP38,0),ROUND(((AR38-AO38-AN38)*Weightings!$M$12)+Weightings!B38,0)) -> 3373070 | BI38: 0.3 | BJ38: 1011921 | BK38: 1040486 | BL38: 1011921 | BM38: 0.3 | BN38: 0 | BO38: FALSE | BP38: 0 | BQ38: 0 | BR38: 0 | BS38: TRUE | BT38: 92.565 | BU38: 0.458773 | BV38: 171.9 | BW38: 0 | BX38: 378 | BY38: 0.35 | BZ38: =IF(ROUND((Weightings!$P$5*BY38^Weightings!$P$6*Weightings!$P$8 ),2)<Weightings!$P$7,Weightings!$P$7,ROUND((Weightings!$P$5*BY38^Weightings!$P$6*Weightings!$P$8 ),2)) -> 1349.01 | CA38: =ROUND(BZ38/Weightings!$M$5,4) -> 0.3502 | CB38: 46.3 | CC38: 0 | CD38: 0 | CE38: 0 | CF38: 0 | CG38: =AS38*Weightings!$M$5*CF38 -> 0 | CH38: 0 | CI38: 0.237 | CJ38: 1 | CK38: 0 | CL38: 0 | CM38: 0 | CN38: =IF(ISNA(VLOOKUP($CZ38,'Audit Values'!$A$2:$AE$346,2,FALSE)),'Preliminary SO66'!T35,VLOOKUP($CZ38,'Audit Values'!$A$2:$AE$346,20,FALSE)) -> 1 | CO38: 1.1 | CP38: 0 | CQ38: 0 | CR38: =IF(ISNA(VLOOKUP($CZ38,'Audit Values'!$A$2:$AE$346,2,FALSE)),'Preliminary SO66'!V35,VLOOKUP($CZ38,'Audit Values'!$A$2:$AE$346,22,FALSE)) -> 0 | CS38: 0 | CT38: =IF(ISNA(VLOOKUP($CZ38,'Audit Values'!$A$2:$AE$346,2,FALSE)),'Preliminary SO66'!W35,VLOOKUP($CZ38,'Audit Values'!$A$2:$AE$346,23,FALSE)) -> 0 | CU38: 0 | CV38: 1.1 | CW38: 0 | CX38: =IF(CW38>0,Weightings!$M$11*AR38,0) -> 0 | CY38: 0 | CZ38: D0223
A39: 224 | B39: Washington | C39: Clifton-Clyde | D39: 301.5 | E39: 0 | F39: 301.5 | G39: 305.5 | H39: 0 | I39: 305.5 | J39: 311.5 | K39: =IF(ISNA(VLOOKUP($CZ39,'Audit Values'!$A$2:$AE$346,2,FALSE)),'Preliminary SO66'!B36,VLOOKUP($CZ39,'Audit Values'!$A$2:$AE$346,31,FALSE)) -> 311.5 | L39: 311.5 | M39: =IF(ISNA(VLOOKUP($CZ39,'Audit Values'!$A$2:$AE$346,2,FALSE)),'Preliminary SO66'!Z36,VLOOKUP($CZ39,'Audit Values'!$A$2:$AE$346,26,FALSE)) -> 0 | N39: 311.5 | O39: =IF(ISNA(VLOOKUP($CZ39,'Audit Values'!$A$2:$AE$346,2,FALSE)),'Preliminary SO66'!C36,IF(VLOOKUP($CZ39,'Audit Values'!$A$2:$AE$346,28,FALSE)="",VLOOKUP($CZ39,'Audit Values'!$A$2:$AE$346,3,FALSE),VLOOKUP($CZ39,'Audit Values'!$A$2:$AE$346,28,FALSE))) -> 2.5 | P39: 314 | Q39: 314 | R39: 314 | S39: 314 | T39: 0 | U39: 150.5 | V39: 150.5 | W39: 0 | X39: =IF(ISNA(VLOOKUP($CZ39,'Audit Values'!$A$2:$AE$346,2,FALSE)),'Preliminary SO66'!D36,VLOOKUP($CZ39,'Audit Values'!$A$2:$AE$346,4,FALSE)) -> 116.6 | Y39: =ROUND((X39/6)*Weightings!$M$6,1) -> 9.7 | Z39: =IF(ISNA(VLOOKUP($CZ39,'Audit Values'!$A$2:$AE$346,2,FALSE)),'Preliminary SO66'!F36,VLOOKUP($CZ39,'Audit Values'!$A$2:$AE$346,6,FALSE)) -> 0 | AA39: =ROUND((Z39/6)*Weightings!$M$7,1) -> 0 | AB39: =IF(ISNA(VLOOKUP($CZ39,'Audit Values'!$A$2:$AE$346,2,FALSE)),'Preliminary SO66'!H36,VLOOKUP($CZ39,'Audit Values'!$A$2:$AE$346,9,FALSE)) -> 64 | AC39: =ROUND(AB39*Weightings!$M$8,1) -> 29.2 | AD39: 0 | AE39: 0 | AF39: =AE39*Weightings!$M$9 -> 0 | AG39: =IF(ISNA(VLOOKUP($CZ39,'Audit Values'!$A$2:$AE$346,2,FALSE)),'Preliminary SO66'!L36,VLOOKUP($CZ39,'Audit Values'!$A$2:$AE$346,12,FALSE)) -> 0 | AH39: =ROUND(AG39*Weightings!$M$10,1) -> 0 | AI39: =IF(ISNA(VLOOKUP($CZ39,'Audit Values'!$A$2:$AE$346,2,FALSE)),'Preliminary SO66'!O36,VLOOKUP($CZ39,'Audit Values'!$A$2:$AE$346,15,FALSE)) -> 185 | AJ39: 54.9 | AK39: =CC39/Weightings!$M$5 -> 0 | AL39: =CD39/Weightings!$M$5 -> 0 | AM39: =CH39/Weightings!$M$5 -> 0 | AN39: 0 | AO39: =IF(ISNA(VLOOKUP($CZ39,'Audit Values'!$A$2:$AE$346,2,FALSE)),'Preliminary SO66'!X36,VLOOKUP($CZ39,'Audit Values'!$A$2:$AE$346,24,FALSE)) -> 0 | AP39: 266967 | AQ39: =AP39/Weightings!$M$5 -> 69.3 | AR39: 558.3 | AS39: 627.6 | AT39: 627.6 | AU39: 0 | AV39: =IF(ISNA(VLOOKUP($CZ39,'Audit Values'!$A$2:$AC$355,2,FALSE)),"",IF(AND(Weightings!H39>0,VLOOKUP($CZ39,'Audit Values'!$A$2:$AC$355,29,FALSE)<Weightings!H39),Weightings!H39,VLOOKUP($CZ39,'Audit Values'!$A$2:$AC$355,29,FALSE))) -> 17 | AW39: =IF(ISNA(VLOOKUP($CZ39,'Audit Values'!$A$2:$AD$355,2,FALSE)),"",VLOOKUP($CZ39,'Audit Values'!$A$2:$AD$355,30,FALSE)) -> A | AX39: =IF(Weightings!G39="","",IF(Weightings!I39="Pending","PX","R")) ->  | AY39: =AR39*Weightings!$M$5+AU39 -> 2150572 | AZ39: =AT39*Weightings!$M$5+AU39 -> 2417515 | BA39: =IF(Weightings!G39>0,Weightings!G39,'Preliminary SO66'!AB36) -> 2544246 | BB39: 2417515 | BD39: =Weightings!E39 -> -1077 | BE39: =Weightings!F39 -> 0 | BF39: -1077 | BG39: 2416438 | BH39: =MAX(ROUND(((AR39-AO39-AN39)*Weightings!$M$12)+AP39,0),ROUND(((AR39-AO39-AN39)*Weightings!$M$12)+Weightings!B39,0)) -> 2854625 | BI39: 0.3 | BJ39: 856388 | BK39: 881846 | BL39: 856388 | BM39: 0.3 | BN39: 0 | BO39: FALSE | BP39: 0 | BQ39: 0 | BR39: 0 | BS39: TRUE | BT39: 17.325 | BU39: 0.47943 | BV39: 150.5 | BW39: 0 | BX39: 255 | BY39: 0.73 | BZ39: =IF(ROUND((Weightings!$P$5*BY39^Weightings!$P$6*Weightings!$P$8 ),2)<Weightings!$P$7,Weightings!$P$7,ROUND((Weightings!$P$5*BY39^Weightings!$P$6*Weightings!$P$8 ),2)) -> 1142.34 | CA39: =ROUND(BZ39/Weightings!$M$5,4) -> 0.2966 | CB39: 54.9 | CC39: 0 | CD39: 0 | CE39: 0 | CF39: 0 | CG39: =AS39*Weightings!$M$5*CF39 -> 0 | CH39: 0 | CI39: 0.204 | CJ39: 1.2 | CK39: 0 | CL39: 0 | CM39: 0 | CN39: =IF(ISNA(VLOOKUP($CZ39,'Audit Values'!$A$2:$AE$346,2,FALSE)),'Preliminary SO66'!T36,VLOOKUP($CZ39,'Audit Values'!$A$2:$AE$346,20,FALSE)) -> 0 | CO39: 0 | CP39: 0 | CQ39: 0 | CR39: =IF(ISNA(VLOOKUP($CZ39,'Audit Values'!$A$2:$AE$346,2,FALSE)),'Preliminary SO66'!V36,VLOOKUP($CZ39,'Audit Values'!$A$2:$AE$346,22,FALSE)) -> 0 | CS39: 0 | CT39: =IF(ISNA(VLOOKUP($CZ39,'Audit Values'!$A$2:$AE$346,2,FALSE)),'Preliminary SO66'!W36,VLOOKUP($CZ39,'Audit Values'!$A$2:$AE$346,23,FALSE)) -> 0 | CU39: 0 | CV39: 0 | CW39: 0 | CX39: =IF(CW39>0,Weightings!$M$11*AR39,0) -> 0 | CY39: 0 | CZ39: D0224
A40: 225 | B40: Meade | C40: Fowler | D40: 165 | E40: 0 | F40: 165 | G40: 154 | H40: 0 | I40: 154 | J40: 151 | K40: =IF(ISNA(VLOOKUP($CZ40,'Audit Values'!$A$2:$AE$346,2,FALSE)),'Preliminary SO66'!B37,VLOOKUP($CZ40,'Audit Values'!$A$2:$AE$346,31,FALSE)) -> 151 | L40: 156.7 | M40: =IF(ISNA(VLOOKUP($CZ40,'Audit Values'!$A$2:$AE$346,2,FALSE)),'Preliminary SO66'!Z37,VLOOKUP($CZ40,'Audit Values'!$A$2:$AE$346,26,FALSE)) -> 0 | N40: 156.7 | O40: =IF(ISNA(VLOOKUP($CZ40,'Audit Values'!$A$2:$AE$346,2,FALSE)),'Preliminary SO66'!C37,IF(VLOOKUP($CZ40,'Audit Values'!$A$2:$AE$346,28,FALSE)="",VLOOKUP($CZ40,'Audit Values'!$A$2:$AE$346,3,FALSE),VLOOKUP($CZ40,'Audit Values'!$A$2:$AE$346,28,FALSE))) -> 3.5 | P40: 154.5 | Q40: 154.5 | R40: 154.5 | S40: 160.2 | T40: 0 | U40: 136.9 | V40: 136.9 | W40: 0 | X40: =IF(ISNA(VLOOKUP($CZ40,'Audit Values'!$A$2:$AE$346,2,FALSE)),'Preliminary SO66'!D37,VLOOKUP($CZ40,'Audit Values'!$A$2:$AE$346,4,FALSE)) -> 0 | Y40: =ROUND((X40/6)*Weightings!$M$6,1) -> 0 | Z40: =IF(ISNA(VLOOKUP($CZ40,'Audit Values'!$A$2:$AE$346,2,FALSE)),'Preliminary SO66'!F37,VLOOKUP($CZ40,'Audit Values'!$A$2:$AE$346,6,FALSE)) -> 26.8 | AA40: =ROUND((Z40/6)*Weightings!$M$7,1) -> 1.8 | AB40: =IF(ISNA(VLOOKUP($CZ40,'Audit Values'!$A$2:$AE$346,2,FALSE)),'Preliminary SO66'!H37,VLOOKUP($CZ40,'Audit Values'!$A$2:$AE$346,9,FALSE)) -> 83 | AC40: =ROUND(AB40*Weightings!$M$8,1) -> 37.8 | AD40: 8.7 | AE40: 0 | AF40: =AE40*Weightings!$M$9 -> 0 | AG40: =IF(ISNA(VLOOKUP($CZ40,'Audit Values'!$A$2:$AE$346,2,FALSE)),'Preliminary SO66'!L37,VLOOKUP($CZ40,'Audit Values'!$A$2:$AE$346,12,FALSE)) -> 0 | AH40: =ROUND(AG40*Weightings!$M$10,1) -> 0 | AI40: =IF(ISNA(VLOOKUP($CZ40,'Audit Values'!$A$2:$AE$346,2,FALSE)),'Preliminary SO66'!O37,VLOOKUP($CZ40,'Audit Values'!$A$2:$AE$346,15,FALSE)) -> 21 | AJ40: 10.6 | AK40: =CC40/Weightings!$M$5 -> 0 | AL40: =CD40/Weightings!$M$5 -> 0 | AM40: =CH40/Weightings!$M$5 -> 0 | AN40: 0 | AO40: =IF(ISNA(VLOOKUP($CZ40,'Audit Values'!$A$2:$AE$346,2,FALSE)),'Preliminary SO66'!X37,VLOOKUP($CZ40,'Audit Values'!$A$2:$AE$346,24,FALSE)) -> 0 | AP40: 109633 | AQ40: =AP40/Weightings!$M$5 -> 28.5 | AR40: 356 | AS40: 384.5 | AT40: 384.5 | AU40: 0 | AV40: =IF(ISNA(VLOOKUP($CZ40,'Audit Values'!$A$2:$AC$355,2,FALSE)),"",IF(AND(Weightings!H40>0,VLOOKUP($CZ40,'Audit Values'!$A$2:$AC$355,29,FALSE)<Weightings!H40),Weightings!H40,VLOOKUP($CZ40,'Audit Values'!$A$2:$AC$355,29,FALSE))) -> 21 | AW40: =IF(ISNA(VLOOKUP($CZ40,'Audit Values'!$A$2:$AD$355,2,FALSE)),"",VLOOKUP($CZ40,'Audit Values'!$A$2:$AD$355,30,FALSE)) -> A | AX40: =IF(Weightings!G40="","",IF(Weightings!I40="Pending","PX","R")) ->  | AY40: =AR40*Weightings!$M$5+AU40 -> 1371312 | AZ40: =AT40*Weightings!$M$5+AU40 -> 1481094 | BA40: =IF(Weightings!G40>0,Weightings!G40,'Preliminary SO66'!AB37) -> 1550045 | BB40: 1481094 | BD40: =Weightings!E40 -> 0 | BE40: =Weightings!F40 -> 0 | BF40: 0 | BG40: 1481094 | BH40: =MAX(ROUND(((AR40-AO40-AN40)*Weightings!$M$12)+AP40,0),ROUND(((AR40-AO40-AN40)*Weightings!$M$12)+Weightings!B40,0)) -> 1751227 | BI40: 0.33 | BJ40: 577905 | BK40: 598056 | BL40: 577905 | BM40: 0.33 | BN40: 0 | BO40: TRUE | BP40: 581.231 | BQ40: 0.854758 | BR40: 136.9 | BS40: FALSE | BT40: 0 | BU40: 0 | BV40: 0 | BW40: 0 | BX40: 281 | BY40: 0.07 | BZ40: =IF(ROUND((Weightings!$P$5*BY40^Weightings!$P$6*Weightings!$P$8 ),2)<Weightings!$P$7,Weightings!$P$7,ROUND((Weightings!$P$5*BY40^Weightings!$P$6*Weightings!$P$8 ),2)) -> 1941.45 | CA40: =ROUND(BZ40/Weightings!$M$5,4) -> 0.504 | CB40: 10.6 | CC40: 0 | CD40: 0 | CE40: 0 | CF40: 0 | CG40: =AS40*Weightings!$M$5*CF40 -> 0 | CH40: 0 | CI40: 0.518 | CJ40: 0.6 | CK40: 8.7 | CL40: 0 | CM40: 0 | CN40: =IF(ISNA(VLOOKUP($CZ40,'Audit Values'!$A$2:$AE$346,2,FALSE)),'Preliminary SO66'!T37,VLOOKUP($CZ40,'Audit Values'!$A$2:$AE$346,20,FALSE)) -> 0 | CO40: 0 | CP40: 0 | CQ40: 0 | CR40: =IF(ISNA(VLOOKUP($CZ40,'Audit Values'!$A$2:$AE$346,2,FALSE)),'Preliminary SO66'!V37,VLOOKUP($CZ40,'Audit Values'!$A$2:$AE$346,22,FALSE)) -> 0 | CS40: 0 | CT40: =IF(ISNA(VLOOKUP($CZ40,'Audit Values'!$A$2:$AE$346,2,FALSE)),'Preliminary SO66'!W37,VLOOKUP($CZ40,'Audit Values'!$A$2:$AE$346,23,FALSE)) -> 0 | CU40: 0 | CV40: 0 | CW40: 0 | CX40: =IF(CW40>0,Weightings!$M$11*AR40,0) -> 0 | CY40: 0 | CZ40: D0225
A41: 226 | B41: Meade | C41: Meade | D41: 416.3 | E41: 0 | F41: 416.3 | G41: 406.1 | H41: 0 | I41: 406.1 | J41: 392.7 | K41: =IF(ISNA(VLOOKUP($CZ41,'Audit Values'!$A$2:$AE$346,2,FALSE)),'Preliminary SO66'!B38,VLOOKUP($CZ41,'Audit Values'!$A$2:$AE$346,31,FALSE)) -> 392.7 | L41: 406.1 | M41: =IF(ISNA(VLOOKUP($CZ41,'Audit Values'!$A$2:$AE$346,2,FALSE)),'Preliminary SO66'!Z38,VLOOKUP($CZ41,'Audit Values'!$A$2:$AE$346,26,FALSE)) -> 0 | N41: 406.1 | O41: =IF(ISNA(VLOOKUP($CZ41,'Audit Values'!$A$2:$AE$346,2,FALSE)),'Preliminary SO66'!C38,IF(VLOOKUP($CZ41,'Audit Values'!$A$2:$AE$346,28,FALSE)="",VLOOKUP($CZ41,'Audit Values'!$A$2:$AE$346,3,FALSE),VLOOKUP($CZ41,'Audit Values'!$A$2:$AE$346,28,FALSE))) -> 3.5 | P41: 396.2 | Q41: 396.2 | R41: 396.2 | S41: 409.6 | T41: 0 | U41: 183.1 | V41: 183.1 | W41: 0 | X41: =IF(ISNA(VLOOKUP($CZ41,'Audit Values'!$A$2:$AE$346,2,FALSE)),'Preliminary SO66'!D38,VLOOKUP($CZ41,'Audit Values'!$A$2:$AE$346,4,FALSE)) -> 69.7 | Y41: =ROUND((X41/6)*Weightings!$M$6,1) -> 5.8 | Z41: =IF(ISNA(VLOOKUP($CZ41,'Audit Values'!$A$2:$AE$346,2,FALSE)),'Preliminary SO66'!F38,VLOOKUP($CZ41,'Audit Values'!$A$2:$AE$346,6,FALSE)) -> 15.8 | AA41: =ROUND((Z41/6)*Weightings!$M$7,1) -> 1 | AB41: =IF(ISNA(VLOOKUP($CZ41,'Audit Values'!$A$2:$AE$346,2,FALSE)),'Preliminary SO66'!H38,VLOOKUP($CZ41,'Audit Values'!$A$2:$AE$346,9,FALSE)) -> 119 | AC41: =ROUND(AB41*Weightings!$M$8,1) -> 54.3 | AD41: 0 | AE41: 0 | AF41: =AE41*Weightings!$M$9 -> 0 | AG41: =IF(ISNA(VLOOKUP($CZ41,'Audit Values'!$A$2:$AE$346,2,FALSE)),'Preliminary SO66'!L38,VLOOKUP($CZ41,'Audit Values'!$A$2:$AE$346,12,FALSE)) -> 0 | AH41: =ROUND(AG41*Weightings!$M$10,1) -> 0 | AI41: =IF(ISNA(VLOOKUP($CZ41,'Audit Values'!$A$2:$AE$346,2,FALSE)),'Preliminary SO66'!O38,VLOOKUP($CZ41,'Audit Values'!$A$2:$AE$346,15,FALSE)) -> 62.5 | AJ41: 26.9 | AK41: =CC41/Weightings!$M$5 -> 0 | AL41: =CD41/Weightings!$M$5 -> 0 | AM41: =CH41/Weightings!$M$5 -> 0 | AN41: 0 | AO41: =IF(ISNA(VLOOKUP($CZ41,'Audit Values'!$A$2:$AE$346,2,FALSE)),'Preliminary SO66'!X38,VLOOKUP($CZ41,'Audit Values'!$A$2:$AE$346,24,FALSE)) -> 0 | AP41: 286030 | AQ41: =AP41/Weightings!$M$5 -> 74.3 | AR41: 680.7 | AS41: 755 | AT41: 755 | AU41: 10000 | AV41: =IF(ISNA(VLOOKUP($CZ41,'Audit Values'!$A$2:$AC$355,2,FALSE)),"",IF(AND(Weightings!H41>0,VLOOKUP($CZ41,'Audit Values'!$A$2:$AC$355,29,FALSE)<Weightings!H41),Weightings!H41,VLOOKUP($CZ41,'Audit Values'!$A$2:$AC$355,29,FALSE))) -> 22 | AW41: =IF(ISNA(VLOOKUP($CZ41,'Audit Values'!$A$2:$AD$355,2,FALSE)),"",VLOOKUP($CZ41,'Audit Values'!$A$2:$AD$355,30,FALSE)) -> A | AX41: =IF(Weightings!G41="","",IF(Weightings!I41="Pending","PX","R")) ->  | AY41: =AR41*Weightings!$M$5+AU41 -> 2632056 | AZ41: =AT41*Weightings!$M$5+AU41 -> 2918260 | BA41: =IF(Weightings!G41>0,Weightings!G41,'Preliminary SO66'!AB38) -> 3030927 | BB41: 2918260 | BD41: =Weightings!E41 -> 0 | BE41: =Weightings!F41 -> 0 | BF41: 0 | BG41: 2918260 | BH41: =MAX(ROUND(((AR41-AO41-AN41)*Weightings!$M$12)+AP41,0),ROUND(((AR41-AO41-AN41)*Weightings!$M$12)+Weightings!B41,0)) -> 3449937 | BI41: 0.3 | BJ41: 1034981 | BK41: 1061652 | BL41: 1034981 | BM41: 0.3 | BN41: 0 | BO41: FALSE | BP41: 0 | BQ41: 0 | BR41: 0 | BS41: TRUE | BT41: 135.63 | BU41: 0.44695 | BV41: 183.1 | BW41: 0 | BX41: 440 | BY41: 0.14 | BZ41: =IF(ROUND((Weightings!$P$5*BY41^Weightings!$P$6*Weightings!$P$8 ),2)<Weightings!$P$7,Weightings!$P$7,ROUND((Weightings!$P$5*BY41^Weightings!$P$6*Weightings!$P$8 ),2)) -> 1659.71 | CA41: =ROUND(BZ41/Weightings!$M$5,4) -> 0.4309 | CB41: 26.9 | CC41: 0 | CD41: 0 | CE41: 0 | CF41: 0 | CG41: =AS41*Weightings!$M$5*CF41 -> 0 | CH41: 0 | CI41: 0.291 | CJ41: 0.9 | CK41: 0 | CL41: 0 | CM41: 0 | CN41: =IF(ISNA(VLOOKUP($CZ41,'Audit Values'!$A$2:$AE$346,2,FALSE)),'Preliminary SO66'!T38,VLOOKUP($CZ41,'Audit Values'!$A$2:$AE$346,20,FALSE)) -> 0 | CO41: 0 | CP41: 0 | CQ41: 0 | CR41: =IF(ISNA(VLOOKUP($CZ41,'Audit Values'!$A$2:$AE$346,2,FALSE)),'Preliminary SO66'!V38,VLOOKUP($CZ41,'Audit Values'!$A$2:$AE$346,22,FALSE)) -> 0 | CS41: 0 | CT41: =IF(ISNA(VLOOKUP($CZ41,'Audit Values'!$A$2:$AE$346,2,FALSE)),'Preliminary SO66'!W38,VLOOKUP($CZ41,'Audit Values'!$A$2:$AE$346,23,FALSE)) -> 0 | CU41: 0 | CV41: 0 | CW41: 12500 | CX41: =IF(CW41>0,Weightings!$M$11*AR41,0) -> 170175 | CY41: 12500 | CZ41: D0226
A42: 227 | B42: Hodgeman | C42: Hodgeman County Schools | D42: 311.4 | E42: 0 | F42: 311.4 | G42: 291.5 | H42: 0 | I42: 291.5 | J42: 287 | K42: =IF(ISNA(VLOOKUP($CZ42,'Audit Values'!$A$2:$AE$346,2,FALSE)),'Preliminary SO66'!B39,VLOOKUP($CZ42,'Audit Values'!$A$2:$AE$346,31,FALSE)) -> 287 | L42: 296.6 | M42: =IF(ISNA(VLOOKUP($CZ42,'Audit Values'!$A$2:$AE$346,2,FALSE)),'Preliminary SO66'!Z39,VLOOKUP($CZ42,'Audit Values'!$A$2:$AE$346,26,FALSE)) -> 0 | N42: 296.6 | O42: =IF(ISNA(VLOOKUP($CZ42,'Audit Values'!$A$2:$AE$346,2,FALSE)),'Preliminary SO66'!C39,IF(VLOOKUP($CZ42,'Audit Values'!$A$2:$AE$346,28,FALSE)="",VLOOKUP($CZ42,'Audit Values'!$A$2:$AE$346,3,FALSE),VLOOKUP($CZ42,'Audit Values'!$A$2:$AE$346,28,FALSE))) -> 0 | P42: 287 | Q42: 287 | R42: 287 | S42: 296.6 | T42: 0 | U42: 146.3 | V42: 146.3 | W42: 0 | X42: =IF(ISNA(VLOOKUP($CZ42,'Audit Values'!$A$2:$AE$346,2,FALSE)),'Preliminary SO66'!D39,VLOOKUP($CZ42,'Audit Values'!$A$2:$AE$346,4,FALSE)) -> 51.7 | Y42: =ROUND((X42/6)*Weightings!$M$6,1) -> 4.3 | Z42: =IF(ISNA(VLOOKUP($CZ42,'Audit Values'!$A$2:$AE$346,2,FALSE)),'Preliminary SO66'!F39,VLOOKUP($CZ42,'Audit Values'!$A$2:$AE$346,6,FALSE)) -> 14.3 | AA42: =ROUND((Z42/6)*Weightings!$M$7,1) -> 0.9 | AB42: =IF(ISNA(VLOOKUP($CZ42,'Audit Values'!$A$2:$AE$346,2,FALSE)),'Preliminary SO66'!H39,VLOOKUP($CZ42,'Audit Values'!$A$2:$AE$346,9,FALSE)) -> 80 | AC42: =ROUND(AB42*Weightings!$M$8,1) -> 36.5 | AD42: 0 | AE42: 0 | AF42: =AE42*Weightings!$M$9 -> 0 | AG42: =IF(ISNA(VLOOKUP($CZ42,'Audit Values'!$A$2:$AE$346,2,FALSE)),'Preliminary SO66'!L39,VLOOKUP($CZ42,'Audit Values'!$A$2:$AE$346,12,FALSE)) -> 0 | AH42: =ROUND(AG42*Weightings!$M$10,1) -> 0 | AI42: =IF(ISNA(VLOOKUP($CZ42,'Audit Values'!$A$2:$AE$346,2,FALSE)),'Preliminary SO66'!O39,VLOOKUP($CZ42,'Audit Values'!$A$2:$AE$346,15,FALSE)) -> 126.5 | AJ42: 52.9 | AK42: =CC42/Weightings!$M$5 -> 0 | AL42: =CD42/Weightings!$M$5 -> 0 | AM42: =CH42/Weightings!$M$5 -> 0 | AN42: 0 | AO42: =IF(ISNA(VLOOKUP($CZ42,'Audit Values'!$A$2:$AE$346,2,FALSE)),'Preliminary SO66'!X39,VLOOKUP($CZ42,'Audit Values'!$A$2:$AE$346,24,FALSE)) -> 0 | AP42: 204616 | AQ42: =AP42/Weightings!$M$5 -> 53.1 | AR42: 537.5 | AS42: 590.6 | AT42: 590.6 | AU42: 0 | AV42: =IF(ISNA(VLOOKUP($CZ42,'Audit Values'!$A$2:$AC$355,2,FALSE)),"",IF(AND(Weightings!H42>0,VLOOKUP($CZ42,'Audit Values'!$A$2:$AC$355,29,FALSE)<Weightings!H42),Weightings!H42,VLOOKUP($CZ42,'Audit Values'!$A$2:$AC$355,29,FALSE))) -> 10 | AW42: =IF(ISNA(VLOOKUP($CZ42,'Audit Values'!$A$2:$AD$355,2,FALSE)),"",VLOOKUP($CZ42,'Audit Values'!$A$2:$AD$355,30,FALSE)) -> A | AX42: =IF(Weightings!G42="","",IF(Weightings!I42="Pending","PX","R")) ->  | AY42: =AR42*Weightings!$M$5+AU42 -> 2070450 | AZ42: =AT42*Weightings!$M$5+AU42 -> 2274991 | BA42: =IF(Weightings!G42>0,Weightings!G42,'Preliminary SO66'!AB39) -> 2288473 | BB42: 2274991 | BD42: =Weightings!E42 -> 0 | BE42: =Weightings!F42 -> 0 | BF42: 0 | BG42: 2274991 | BH42: =MAX(ROUND(((AR42-AO42-AN42)*Weightings!$M$12)+AP42,0),ROUND(((AR42-AO42-AN42)*Weightings!$M$12)+Weightings!B42,0)) -> 2734027 | BI42: 0.3 | BJ42: 820208 | BK42: 814281 | BL42: 814281 | BM42: 0.2978 | BN42: 0 | BO42: TRUE | BP42: 1898.173 | BQ42: 0.493199 | BR42: 146.3 | BS42: FALSE | BT42: 0 | BU42: 0 | BV42: 0 | BW42: 0 | BX42: 807.5 | BY42: 0.16 | BZ42: =IF(ROUND((Weightings!$P$5*BY42^Weightings!$P$6*Weightings!$P$8 ),2)<Weightings!$P$7,Weightings!$P$7,ROUND((Weightings!$P$5*BY42^Weightings!$P$6*Weightings!$P$8 ),2)) -> 1610.32 | CA42: =ROUND(BZ42/Weightings!$M$5,4) -> 0.418 | CB42: 52.9 | CC42: 0 | CD42: 0 | CE42: 0 | CF42: 0 | CG42: =AS42*Weightings!$M$5*CF42 -> 0 | CH42: 0 | CI42: 0.27 | CJ42: 0.4 | CK42: 0 | CL42: 0 | CM42: 0 | CN42: =IF(ISNA(VLOOKUP($CZ42,'Audit Values'!$A$2:$AE$346,2,FALSE)),'Preliminary SO66'!T39,VLOOKUP($CZ42,'Audit Values'!$A$2:$AE$346,20,FALSE)) -> 0 | CO42: 0 | CP42: 0 | CQ42: 0 | CR42: =IF(ISNA(VLOOKUP($CZ42,'Audit Values'!$A$2:$AE$346,2,FALSE)),'Preliminary SO66'!V39,VLOOKUP($CZ42,'Audit Values'!$A$2:$AE$346,22,FALSE)) -> 0 | CS42: 0 | CT42: =IF(ISNA(VLOOKUP($CZ42,'Audit Values'!$A$2:$AE$346,2,FALSE)),'Preliminary SO66'!W39,VLOOKUP($CZ42,'Audit Values'!$A$2:$AE$346,23,FALSE)) -> 0 | CU42: 0 | CV42: 0 | CW42: 0 | CX42: =IF(CW42>0,Weightings!$M$11*AR42,0) -> 0 | CY42: 0 | CZ42: D0227
A43: 229 | B43: Johnson | C43: Blue Valley | D43: 21134.6 | E43: 0 | F43: 21134.6 | G43: 21371 | H43: 0 | I43: 21371 | J43: 21375.1 | K43: =IF(ISNA(VLOOKUP($CZ43,'Audit Values'!$A$2:$AE$346,2,FALSE)),'Preliminary SO66'!B40,VLOOKUP($CZ43,'Audit Values'!$A$2:$AE$346,31,FALSE)) -> 21375.1 | L43: 21375.1 | M43: =IF(ISNA(VLOOKUP($CZ43,'Audit Values'!$A$2:$AE$346,2,FALSE)),'Preliminary SO66'!Z40,VLOOKUP($CZ43,'Audit Values'!$A$2:$AE$346,26,FALSE)) -> 0 | N43: 21375.1 | O43: =IF(ISNA(VLOOKUP($CZ43,'Audit Values'!$A$2:$AE$346,2,FALSE)),'Preliminary SO66'!C40,IF(VLOOKUP($CZ43,'Audit Values'!$A$2:$AE$346,28,FALSE)="",VLOOKUP($CZ43,'Audit Values'!$A$2:$AE$346,3,FALSE),VLOOKUP($CZ43,'Audit Values'!$A$2:$AE$346,28,FALSE))) -> 0 | P43: 21375.1 | Q43: 21375.1 | R43: 21375.1 | S43: 21375.1 | T43: 0 | U43: 749 | V43: 0 | W43: 749 | X43: =IF(ISNA(VLOOKUP($CZ43,'Audit Values'!$A$2:$AE$346,2,FALSE)),'Preliminary SO66'!D40,VLOOKUP($CZ43,'Audit Values'!$A$2:$AE$346,4,FALSE)) -> 4566.7 | Y43: =ROUND((X43/6)*Weightings!$M$6,1) -> 380.6 | Z43: =IF(ISNA(VLOOKUP($CZ43,'Audit Values'!$A$2:$AE$346,2,FALSE)),'Preliminary SO66'!F40,VLOOKUP($CZ43,'Audit Values'!$A$2:$AE$346,6,FALSE)) -> 1029.7 | AA43: =ROUND((Z43/6)*Weightings!$M$7,1) -> 67.8 | AB43: =IF(ISNA(VLOOKUP($CZ43,'Audit Values'!$A$2:$AE$346,2,FALSE)),'Preliminary SO66'!H40,VLOOKUP($CZ43,'Audit Values'!$A$2:$AE$346,9,FALSE)) -> 1196 | AC43: =ROUND(AB43*Weightings!$M$8,1) -> 545.4 | AD43: 0 | AE43: 0 | AF43: =AE43*Weightings!$M$9 -> 0 | AG43: =IF(ISNA(VLOOKUP($CZ43,'Audit Values'!$A$2:$AE$346,2,FALSE)),'Preliminary SO66'!L40,VLOOKUP($CZ43,'Audit Values'!$A$2:$AE$346,12,FALSE)) -> 29.9 | AH43: =ROUND(AG43*Weightings!$M$10,1) -> 7.5 | AI43: =IF(ISNA(VLOOKUP($CZ43,'Audit Values'!$A$2:$AE$346,2,FALSE)),'Preliminary SO66'!O40,VLOOKUP($CZ43,'Audit Values'!$A$2:$AE$346,15,FALSE)) -> 4529 | AJ43: 663 | AK43: =CC43/Weightings!$M$5 -> 2743.4 | AL43: =CD43/Weightings!$M$5 -> 0 | AM43: =CH43/Weightings!$M$5 -> 1595.8 | AN43: 0 | AO43: =IF(ISNA(VLOOKUP($CZ43,'Audit Values'!$A$2:$AE$346,2,FALSE)),'Preliminary SO66'!X40,VLOOKUP($CZ43,'Audit Values'!$A$2:$AE$346,24,FALSE)) -> 0 | AP43: 20737249 | AQ43: =AP43/Weightings!$M$5 -> 5383.5 | AR43: 28127.6 | AS43: 31915.3 | AT43: 33511.1 | AU43: 0 | AV43: =IF(ISNA(VLOOKUP($CZ43,'Audit Values'!$A$2:$AC$355,2,FALSE)),"",IF(AND(Weightings!H43>0,VLOOKUP($CZ43,'Audit Values'!$A$2:$AC$355,29,FALSE)<Weightings!H43),Weightings!H43,VLOOKUP($CZ43,'Audit Values'!$A$2:$AC$355,29,FALSE))) -> 21 | AW43: =IF(ISNA(VLOOKUP($CZ43,'Audit Values'!$A$2:$AD$355,2,FALSE)),"",VLOOKUP($CZ43,'Audit Values'!$A$2:$AD$355,30,FALSE)) -> A | AX43: =IF(Weightings!G43="","",IF(Weightings!I43="Pending","PX","R")) ->  | AY43: =AR43*Weightings!$M$5+AU43 -> 108347515 | AZ43: =AT43*Weightings!$M$5+AU43 -> 129084757 | BA43: =IF(Weightings!G43>0,Weightings!G43,'Preliminary SO66'!AB40) -> 131837396 | BB43: 129084757 | BD43: =Weightings!E43 -> 0 | BE43: =Weightings!F43 -> 0 | BF43: 0 | BG43: 129084757 | BH43: =MAX(ROUND(((AR43-AO43-AN43)*Weightings!$M$12)+AP43,0),ROUND(((AR43-AO43-AN43)*Weightings!$M$12)+Weightings!B43,0)) -> 147030173 | BI43: 0.33 | BJ43: 48519957 | BK43: 49550220 | BL43: 48519957 | BM43: 0.33 | BN43: 0 | BO43: FALSE | BP43: 0 | BQ43: 0 | BR43: 0 | BS43: FALSE | BT43: 0 | BU43: 0 | BV43: 0 | BW43: 749 | BX43: 91 | BY43: 49.77 | BZ43: =IF(ROUND((Weightings!$P$5*BY43^Weightings!$P$6*Weightings!$P$8 ),2)<Weightings!$P$7,Weightings!$P$7,ROUND((Weightings!$P$5*BY43^Weightings!$P$6*Weightings!$P$8 ),2)) -> 564 | CA43: =ROUND(BZ43/Weightings!$M$5,4) -> 0.1464 | CB43: 663 | CC43: 10567670 | CD43: 0 | CE43: 6277970 | CF43: 0.05 | CG43: =AS43*Weightings!$M$5*CF43 -> 6146887 | CH43: 6146887 | CI43: 0.056 | CJ43: 234.9 | CK43: 0 | CL43: 0 | CM43: 0 | CN43: =IF(ISNA(VLOOKUP($CZ43,'Audit Values'!$A$2:$AE$346,2,FALSE)),'Preliminary SO66'!T40,VLOOKUP($CZ43,'Audit Values'!$A$2:$AE$346,20,FALSE)) -> 0 | CO43: 0 | CP43: 0 | CQ43: 0 | CR43: =IF(ISNA(VLOOKUP($CZ43,'Audit Values'!$A$2:$AE$346,2,FALSE)),'Preliminary SO66'!V40,VLOOKUP($CZ43,'Audit Values'!$A$2:$AE$346,22,FALSE)) -> 0 | CS43: 0 | CT43: =IF(ISNA(VLOOKUP($CZ43,'Audit Values'!$A$2:$AE$346,2,FALSE)),'Preliminary SO66'!W40,VLOOKUP($CZ43,'Audit Values'!$A$2:$AE$346,23,FALSE)) -> 0 | CU43: 0 | CV43: 0 | CW43: 0 | CX43: =IF(CW43>0,Weightings!$M$11*AR43,0) -> 0 | CY43: 0 | CZ43: D0229
A44: 230 | B44: Johnson | C44: Spring Hill | D44: 2178.9 | E44: 0 | F44: 2178.9 | G44: 2248.7 | H44: 0 | I44: 2248.7 | J44: 3167.3 | K44: =IF(ISNA(VLOOKUP($CZ44,'Audit Values'!$A$2:$AE$346,2,FALSE)),'Preliminary SO66'!B41,VLOOKUP($CZ44,'Audit Values'!$A$2:$AE$346,31,FALSE)) -> 2365 | L44: 2365 | M44: =IF(ISNA(VLOOKUP($CZ44,'Audit Values'!$A$2:$AE$346,2,FALSE)),'Preliminary SO66'!Z41,VLOOKUP($CZ44,'Audit Values'!$A$2:$AE$346,26,FALSE)) -> 0 | N44: 2365 | O44: =IF(ISNA(VLOOKUP($CZ44,'Audit Values'!$A$2:$AE$346,2,FALSE)),'Preliminary SO66'!C41,IF(VLOOKUP($CZ44,'Audit Values'!$A$2:$AE$346,28,FALSE)="",VLOOKUP($CZ44,'Audit Values'!$A$2:$AE$346,3,FALSE),VLOOKUP($CZ44,'Audit Values'!$A$2:$AE$346,28,FALSE))) -> 7.5 | P44: 2372.5 | Q44: 3174.8 | R44: 3174.8 | S44: 2372.5 | T44: 802.3 | U44: 83.1 | V44: 0 | W44: 83.1 | X44: =IF(ISNA(VLOOKUP($CZ44,'Audit Values'!$A$2:$AE$346,2,FALSE)),'Preliminary SO66'!D41,VLOOKUP($CZ44,'Audit Values'!$A$2:$AE$346,4,FALSE)) -> 434.1 | Y44: =ROUND((X44/6)*Weightings!$M$6,1) -> 36.2 | Z44: =IF(ISNA(VLOOKUP($CZ44,'Audit Values'!$A$2:$AE$346,2,FALSE)),'Preliminary SO66'!F41,VLOOKUP($CZ44,'Audit Values'!$A$2:$AE$346,6,FALSE)) -> 15.6 | AA44: =ROUND((Z44/6)*Weightings!$M$7,1) -> 1 | AB44: =IF(ISNA(VLOOKUP($CZ44,'Audit Values'!$A$2:$AE$346,2,FALSE)),'Preliminary SO66'!H41,VLOOKUP($CZ44,'Audit Values'!$A$2:$AE$346,9,FALSE)) -> 441 | AC44: =ROUND(AB44*Weightings!$M$8,1) -> 201.1 | AD44: 0 | AE44: 0 | AF44: =AE44*Weightings!$M$9 -> 0 | AG44: =IF(ISNA(VLOOKUP($CZ44,'Audit Values'!$A$2:$AE$346,2,FALSE)),'Preliminary SO66'!L41,VLOOKUP($CZ44,'Audit Values'!$A$2:$AE$346,12,FALSE)) -> 431.5 | AH44: =ROUND(AG44*Weightings!$M$10,1) -> 107.9 | AI44: =IF(ISNA(VLOOKUP($CZ44,'Audit Values'!$A$2:$AE$346,2,FALSE)),'Preliminary SO66'!O41,VLOOKUP($CZ44,'Audit Values'!$A$2:$AE$346,15,FALSE)) -> 1222 | AJ44: 178.9 | AK44: =CC44/Weightings!$M$5 -> 391.7 | AL44: =CD44/Weightings!$M$5 -> 0 | AM44: =CH44/Weightings!$M$5 -> 0 | AN44: 842.4 | AO44: =IF(ISNA(VLOOKUP($CZ44,'Audit Values'!$A$2:$AE$346,2,FALSE)),'Preliminary SO66'!X41,VLOOKUP($CZ44,'Audit Values'!$A$2:$AE$346,24,FALSE)) -> 0 | AP44: 2396113 | AQ44: =AP44/Weightings!$M$5 -> 622 | AR44: 4214.8 | AS44: 4836.8 | AT44: 4836.8 | AU44: 0 | AV44: =IF(ISNA(VLOOKUP($CZ44,'Audit Values'!$A$2:$AC$355,2,FALSE)),"",IF(AND(Weightings!H44>0,VLOOKUP($CZ44,'Audit Values'!$A$2:$AC$355,29,FALSE)<Weightings!H44),Weightings!H44,VLOOKUP($CZ44,'Audit Values'!$A$2:$AC$355,29,FALSE))) -> 22 | AW44: =IF(ISNA(VLOOKUP($CZ44,'Audit Values'!$A$2:$AD$355,2,FALSE)),"",VLOOKUP($CZ44,'Audit Values'!$A$2:$AD$355,30,FALSE)) -> A | AX44: =IF(Weightings!G44="","",IF(Weightings!I44="Pending","PX","R")) ->  | AY44: =AR44*Weightings!$M$5+AU44 -> 16235410 | AZ44: =AT44*Weightings!$M$5+AU44 -> 18631354 | BA44: =IF(Weightings!G44>0,Weightings!G44,'Preliminary SO66'!AB41) -> 19152144 | BB44: 18631354 | BD44: =Weightings!E44 -> 0 | BE44: =Weightings!F44 -> 0 | BF44: 0 | BG44: 18631354 | BH44: =MAX(ROUND(((AR44-AO44-AN44)*Weightings!$M$12)+AP44,0),ROUND(((AR44-AO44-AN44)*Weightings!$M$12)+Weightings!B44,0)) -> 17538189 | BI44: 0.3 | BJ44: 5261457 | BK44: 5304672 | BL44: 5261457 | BM44: 0.3 | BN44: 0 | BO44: FALSE | BP44: 0 | BQ44: 0 | BR44: 0 | BS44: FALSE | BT44: 0 | BU44: 0 | BV44: 0 | BW44: 83.1 | BX44: 71 | BY44: 17.21 | BZ44: =IF(ROUND((Weightings!$P$5*BY44^Weightings!$P$6*Weightings!$P$8 ),2)<Weightings!$P$7,Weightings!$P$7,ROUND((Weightings!$P$5*BY44^Weightings!$P$6*Weightings!$P$8 ),2)) -> 564 | CA44: =ROUND(BZ44/Weightings!$M$5,4) -> 0.1464 | CB44: 178.9 | CC44: 1508640 | CD44: 0 | CE44: 0 | CF44: 0.0289 | CG44: =AS44*Weightings!$M$5*CF44 -> 538446 | CH44: 0 | CI44: 0.186 | CJ44: 33.4 | CK44: 0 | CL44: 0 | CM44: 0 | CN44: =IF(ISNA(VLOOKUP($CZ44,'Audit Values'!$A$2:$AE$346,2,FALSE)),'Preliminary SO66'!T41,VLOOKUP($CZ44,'Audit Values'!$A$2:$AE$346,20,FALSE)) -> 802.3 | CO44: 842.4 | CP44: 0 | CQ44: 0 | CR44: =IF(ISNA(VLOOKUP($CZ44,'Audit Values'!$A$2:$AE$346,2,FALSE)),'Preliminary SO66'!V41,VLOOKUP($CZ44,'Audit Values'!$A$2:$AE$346,22,FALSE)) -> 0 | CS44: 0 | CT44: =IF(ISNA(VLOOKUP($CZ44,'Audit Values'!$A$2:$AE$346,2,FALSE)),'Preliminary SO66'!W41,VLOOKUP($CZ44,'Audit Values'!$A$2:$AE$346,23,FALSE)) -> 0 | CU44: 0 | CV44: 842.4 | CW44: 0 | CX44: =IF(CW44>0,Weightings!$M$11*AR44,0) -> 0 | CY44: 0 | CZ44: D0230
A45: 231 | B45: Johnson | C45: Gardner Edgerton | D45: 5060.1 | E45: 0 | F45: 5060.1 | G45: 5141.9 | H45: 0 | I45: 5141.9 | J45: 5350.5 | K45: =IF(ISNA(VLOOKUP($CZ45,'Audit Values'!$A$2:$AE$346,2,FALSE)),'Preliminary SO66'!B42,VLOOKUP($CZ45,'Audit Values'!$A$2:$AE$346,31,FALSE)) -> 5350.5 | L45: 5350.5 | M45: =IF(ISNA(VLOOKUP($CZ45,'Audit Values'!$A$2:$AE$346,2,FALSE)),'Preliminary SO66'!Z42,VLOOKUP($CZ45,'Audit Values'!$A$2:$AE$346,26,FALSE)) -> 0 | N45: 5350.5 | O45: =IF(ISNA(VLOOKUP($CZ45,'Audit Values'!$A$2:$AE$346,2,FALSE)),'Preliminary SO66'!C42,IF(VLOOKUP($CZ45,'Audit Values'!$A$2:$AE$346,28,FALSE)="",VLOOKUP($CZ45,'Audit Values'!$A$2:$AE$346,3,FALSE),VLOOKUP($CZ45,'Audit Values'!$A$2:$AE$346,28,FALSE))) -> 9 | P45: 5359.5 | Q45: 5359.5 | R45: 5359.5 | S45: 5359.5 | T45: 0 | U45: 187.8 | V45: 0 | W45: 187.8 | X45: =IF(ISNA(VLOOKUP($CZ45,'Audit Values'!$A$2:$AE$346,2,FALSE)),'Preliminary SO66'!D42,VLOOKUP($CZ45,'Audit Values'!$A$2:$AE$346,4,FALSE)) -> 954.4 | Y45: =ROUND((X45/6)*Weightings!$M$6,1) -> 79.5 | Z45: =IF(ISNA(VLOOKUP($CZ45,'Audit Values'!$A$2:$AE$346,2,FALSE)),'Preliminary SO66'!F42,VLOOKUP($CZ45,'Audit Values'!$A$2:$AE$346,6,FALSE)) -> 224.1 | AA45: =ROUND((Z45/6)*Weightings!$M$7,1) -> 14.8 | AB45: =IF(ISNA(VLOOKUP($CZ45,'Audit Values'!$A$2:$AE$346,2,FALSE)),'Preliminary SO66'!H42,VLOOKUP($CZ45,'Audit Values'!$A$2:$AE$346,9,FALSE)) -> 1320 | AC45: =ROUND(AB45*Weightings!$M$8,1) -> 601.9 | AD45: 0 | AE45: 0 | AF45: =AE45*Weightings!$M$9 -> 0 | AG45: =IF(ISNA(VLOOKUP($CZ45,'Audit Values'!$A$2:$AE$346,2,FALSE)),'Preliminary SO66'!L42,VLOOKUP($CZ45,'Audit Values'!$A$2:$AE$346,12,FALSE)) -> 990 | AH45: =ROUND(AG45*Weightings!$M$10,1) -> 247.5 | AI45: =IF(ISNA(VLOOKUP($CZ45,'Audit Values'!$A$2:$AE$346,2,FALSE)),'Preliminary SO66'!O42,VLOOKUP($CZ45,'Audit Values'!$A$2:$AE$346,15,FALSE)) -> 1225 | AJ45: 193.3 | AK45: =CC45/Weightings!$M$5 -> 0 | AL45: =CD45/Weightings!$M$5 -> 0 | AM45: =CH45/Weightings!$M$5 -> 0 | AN45: 0 | AO45: =IF(ISNA(VLOOKUP($CZ45,'Audit Values'!$A$2:$AE$346,2,FALSE)),'Preliminary SO66'!X42,VLOOKUP($CZ45,'Audit Values'!$A$2:$AE$346,24,FALSE)) -> 0 | AP45: 5111353 | AQ45: =AP45/Weightings!$M$5 -> 1326.9 | AR45: 6684.3 | AS45: 8011.2 | AT45: 8011.2 | AU45: 10000 | AV45: =IF(ISNA(VLOOKUP($CZ45,'Audit Values'!$A$2:$AC$355,2,FALSE)),"",IF(AND(Weightings!H45>0,VLOOKUP($CZ45,'Audit Values'!$A$2:$AC$355,29,FALSE)<Weightings!H45),Weightings!H45,VLOOKUP($CZ45,'Audit Values'!$A$2:$AC$355,29,FALSE))) -> 22 | AW45: =IF(ISNA(VLOOKUP($CZ45,'Audit Values'!$A$2:$AD$355,2,FALSE)),"",VLOOKUP($CZ45,'Audit Values'!$A$2:$AD$355,30,FALSE)) -> A | AX45: =IF(Weightings!G45="","",IF(Weightings!I45="Pending","PX","R")) ->  | AY45: =AR45*Weightings!$M$5+AU45 -> 25757924 | AZ45: =AT45*Weightings!$M$5+AU45 -> 30869142 | BA45: =IF(Weightings!G45>0,Weightings!G45,'Preliminary SO66'!AB42) -> 31197718 | BB45: 30869142 | BD45: =Weightings!E45 -> -3509 | BE45: =Weightings!F45 -> 0 | BF45: -3509 | BG45: 30865633 | BH45: =MAX(ROUND(((AR45-AO45-AN45)*Weightings!$M$12)+AP45,0),ROUND(((AR45-AO45-AN45)*Weightings!$M$12)+Weightings!B45,0)) -> 35123860 | BI45: 0.3 | BJ45: 10537158 | BK45: 10641512 | BL45: 10537158 | BM45: 0.3 | BN45: 0 | BO45: FALSE | BP45: 0 | BQ45: 0 | BR45: 0 | BS45: FALSE | BT45: 0 | BU45: 0 | BV45: 0 | BW45: 187.8 | BX45: 103 | BY45: 11.89 | BZ45: =IF(ROUND((Weightings!$P$5*BY45^Weightings!$P$6*Weightings!$P$8 ),2)<Weightings!$P$7,Weightings!$P$7,ROUND((Weightings!$P$5*BY45^Weightings!$P$6*Weightings!$P$8 ),2)) -> 607.67 | CA45: =ROUND(BZ45/Weightings!$M$5,4) -> 0.1578 | CB45: 193.3 | CC45: 0 | CD45: 0 | CE45: 0 | CF45: 0 | CG45: =AS45*Weightings!$M$5*CF45 -> 0 | CH45: 0 | CI45: 0.246 | CJ45: 52 | CK45: 0 | CL45: 0 | CM45: 0 | CN45: =IF(ISNA(VLOOKUP($CZ45,'Audit Values'!$A$2:$AE$346,2,FALSE)),'Preliminary SO66'!T42,VLOOKUP($CZ45,'Audit Values'!$A$2:$AE$346,20,FALSE)) -> 0 | CO45: 0 | CP45: 0 | CQ45: 0 | CR45: =IF(ISNA(VLOOKUP($CZ45,'Audit Values'!$A$2:$AE$346,2,FALSE)),'Preliminary SO66'!V42,VLOOKUP($CZ45,'Audit Values'!$A$2:$AE$346,22,FALSE)) -> 0 | CS45: 0 | CT45: =IF(ISNA(VLOOKUP($CZ45,'Audit Values'!$A$2:$AE$346,2,FALSE)),'Preliminary SO66'!W42,VLOOKUP($CZ45,'Audit Values'!$A$2:$AE$346,23,FALSE)) -> 0 | CU45: 0 | CV45: 0 | CW45: 10000 | CX45: =IF(CW45>0,Weightings!$M$11*AR45,0) -> 1671075 | CY45: 10000 | CZ45: D0231
A46: 232 | B46: Johnson | C46: De Soto | D46: 6623.1 | E46: 0 | F46: 6623.1 | G46: 6695.3 | H46: 0 | I46: 6695.3 | J46: 6740.1 | K46: =IF(ISNA(VLOOKUP($CZ46,'Audit Values'!$A$2:$AE$346,2,FALSE)),'Preliminary SO66'!B43,VLOOKUP($CZ46,'Audit Values'!$A$2:$AE$346,31,FALSE)) -> 6740.1 | L46: 6740.1 | M46: =IF(ISNA(VLOOKUP($CZ46,'Audit Values'!$A$2:$AE$346,2,FALSE)),'Preliminary SO66'!Z43,VLOOKUP($CZ46,'Audit Values'!$A$2:$AE$346,26,FALSE)) -> 0 | N46: 6740.1 | O46: =IF(ISNA(VLOOKUP($CZ46,'Audit Values'!$A$2:$AE$346,2,FALSE)),'Preliminary SO66'!C43,IF(VLOOKUP($CZ46,'Audit Values'!$A$2:$AE$346,28,FALSE)="",VLOOKUP($CZ46,'Audit Values'!$A$2:$AE$346,3,FALSE),VLOOKUP($CZ46,'Audit Values'!$A$2:$AE$346,28,FALSE))) -> 12 | P46: 6752.1 | Q46: 6752.1 | R46: 6752.1 | S46: 6752.1 | T46: 0 | U46: 236.6 | V46: 0 | W46: 236.6 | X46: =IF(ISNA(VLOOKUP($CZ46,'Audit Values'!$A$2:$AE$346,2,FALSE)),'Preliminary SO66'!D43,VLOOKUP($CZ46,'Audit Values'!$A$2:$AE$346,4,FALSE)) -> 1731.3 | Y46: =ROUND((X46/6)*Weightings!$M$6,1) -> 144.3 | Z46: =IF(ISNA(VLOOKUP($CZ46,'Audit Values'!$A$2:$AE$346,2,FALSE)),'Preliminary SO66'!F43,VLOOKUP($CZ46,'Audit Values'!$A$2:$AE$346,6,FALSE)) -> 897.7 | AA46: =ROUND((Z46/6)*Weightings!$M$7,1) -> 59.1 | AB46: =IF(ISNA(VLOOKUP($CZ46,'Audit Values'!$A$2:$AE$346,2,FALSE)),'Preliminary SO66'!H43,VLOOKUP($CZ46,'Audit Values'!$A$2:$AE$346,9,FALSE)) -> 705 | AC46: =ROUND(AB46*Weightings!$M$8,1) -> 321.5 | AD46: 0 | AE46: 0 | AF46: =AE46*Weightings!$M$9 -> 0 | AG46: =IF(ISNA(VLOOKUP($CZ46,'Audit Values'!$A$2:$AE$346,2,FALSE)),'Preliminary SO66'!L43,VLOOKUP($CZ46,'Audit Values'!$A$2:$AE$346,12,FALSE)) -> 145.5 | AH46: =ROUND(AG46*Weightings!$M$10,1) -> 36.4 | AI46: =IF(ISNA(VLOOKUP($CZ46,'Audit Values'!$A$2:$AE$346,2,FALSE)),'Preliminary SO66'!O43,VLOOKUP($CZ46,'Audit Values'!$A$2:$AE$346,15,FALSE)) -> 1911 | AJ46: 279.8 | AK46: =CC46/Weightings!$M$5 -> 53.7 | AL46: =CD46/Weightings!$M$5 -> 0 | AM46: =CH46/Weightings!$M$5 -> 450 | AN46: 0 | AO46: =IF(ISNA(VLOOKUP($CZ46,'Audit Values'!$A$2:$AE$346,2,FALSE)),'Preliminary SO66'!X43,VLOOKUP($CZ46,'Audit Values'!$A$2:$AE$346,24,FALSE)) -> 0 | AP46: 4301755 | AQ46: =AP46/Weightings!$M$5 -> 1116.8 | AR46: 8333.5 | AS46: 9000.3 | AT46: 9450.3 | AU46: 0 | AV46: =IF(ISNA(VLOOKUP($CZ46,'Audit Values'!$A$2:$AC$355,2,FALSE)),"",IF(AND(Weightings!H46>0,VLOOKUP($CZ46,'Audit Values'!$A$2:$AC$355,29,FALSE)<Weightings!H46),Weightings!H46,VLOOKUP($CZ46,'Audit Values'!$A$2:$AC$355,29,FALSE))) -> 17 | AW46: =IF(ISNA(VLOOKUP($CZ46,'Audit Values'!$A$2:$AD$355,2,FALSE)),"",VLOOKUP($CZ46,'Audit Values'!$A$2:$AD$355,30,FALSE)) -> A | AX46: =IF(Weightings!G46="","",IF(Weightings!I46="Pending","PX","R")) ->  | AY46: =AR46*Weightings!$M$5+AU46 -> 32100642 | AZ46: =AT46*Weightings!$M$5+AU46 -> 36402556 | BA46: =IF(Weightings!G46>0,Weightings!G46,'Preliminary SO66'!AB43) -> 37049306 | BB46: 36402556 | BD46: =Weightings!E46 -> 0 | BE46: =Weightings!F46 -> 0 | BF46: 0 | BG46: 36402556 | BH46: =MAX(ROUND(((AR46-AO46-AN46)*Weightings!$M$12)+AP46,0),ROUND(((AR46-AO46-AN46)*Weightings!$M$12)+Weightings!B46,0)) -> 41855069 | BI46: 0.33 | BJ46: 13812173 | BK46: 14000800 | BL46: 13812173 | BM46: 0.33 | BN46: 0 | BO46: FALSE | BP46: 0 | BQ46: 0 | BR46: 0 | BS46: FALSE | BT46: 0 | BU46: 0 | BV46: 0 | BW46: 236.6 | BX46: 100 | BY46: 19.11 | BZ46: =IF(ROUND((Weightings!$P$5*BY46^Weightings!$P$6*Weightings!$P$8 ),2)<Weightings!$P$7,Weightings!$P$7,ROUND((Weightings!$P$5*BY46^Weightings!$P$6*Weightings!$P$8 ),2)) -> 564 | CA46: =ROUND(BZ46/Weightings!$M$5,4) -> 0.1464 | CB46: 279.8 | CC46: 206997 | CD46: 0 | CE46: 1764255 | CF46: 0.05 | CG46: =AS46*Weightings!$M$5*CF46 -> 1733458 | CH46: 1733458 | CI46: 0.104 | CJ46: 67.5 | CK46: 0 | CL46: 0 | CM46: 0 | CN46: =IF(ISNA(VLOOKUP($CZ46,'Audit Values'!$A$2:$AE$346,2,FALSE)),'Preliminary SO66'!T43,VLOOKUP($CZ46,'Audit Values'!$A$2:$AE$346,20,FALSE)) -> 0 | CO46: 0 | CP46: 0 | CQ46: 0 | CR46: =IF(ISNA(VLOOKUP($CZ46,'Audit Values'!$A$2:$AE$346,2,FALSE)),'Preliminary SO66'!V43,VLOOKUP($CZ46,'Audit Values'!$A$2:$AE$346,22,FALSE)) -> 0 | CS46: 0 | CT46: =IF(ISNA(VLOOKUP($CZ46,'Audit Values'!$A$2:$AE$346,2,FALSE)),'Preliminary SO66'!W43,VLOOKUP($CZ46,'Audit Values'!$A$2:$AE$346,23,FALSE)) -> 0 | CU46: 0 | CV46: 0 | CW46: 0 | CX46: =IF(CW46>0,Weightings!$M$11*AR46,0) -> 0 | CY46: 0 | CZ46: D0232
A47: 233 | B47: Johnson | C47: Olathe | D47: 26895.8 | E47: 0 | F47: 26895.8 | G47: 27383.1 | H47: 0 | I47: 27383.1 | J47: 27571.4 | K47: =IF(ISNA(VLOOKUP($CZ47,'Audit Values'!$A$2:$AE$346,2,FALSE)),'Preliminary SO66'!B44,VLOOKUP($CZ47,'Audit Values'!$A$2:$AE$346,31,FALSE)) -> 27571.4 | L47: 27571.4 | M47: =IF(ISNA(VLOOKUP($CZ47,'Audit Values'!$A$2:$AE$346,2,FALSE)),'Preliminary SO66'!Z44,VLOOKUP($CZ47,'Audit Values'!$A$2:$AE$346,26,FALSE)) -> 0 | N47: 27571.4 | O47: =IF(ISNA(VLOOKUP($CZ47,'Audit Values'!$A$2:$AE$346,2,FALSE)),'Preliminary SO66'!C44,IF(VLOOKUP($CZ47,'Audit Values'!$A$2:$AE$346,28,FALSE)="",VLOOKUP($CZ47,'Audit Values'!$A$2:$AE$346,3,FALSE),VLOOKUP($CZ47,'Audit Values'!$A$2:$AE$346,28,FALSE))) -> 30 | P47: 27601.4 | Q47: 27601.4 | R47: 27601.4 | S47: 27601.4 | T47: 0 | U47: 967.2 | V47: 0 | W47: 967.2 | X47: =IF(ISNA(VLOOKUP($CZ47,'Audit Values'!$A$2:$AE$346,2,FALSE)),'Preliminary SO66'!D44,VLOOKUP($CZ47,'Audit Values'!$A$2:$AE$346,4,FALSE)) -> 4944.4 | Y47: =ROUND((X47/6)*Weightings!$M$6,1) -> 412 | Z47: =IF(ISNA(VLOOKUP($CZ47,'Audit Values'!$A$2:$AE$346,2,FALSE)),'Preliminary SO66'!F44,VLOOKUP($CZ47,'Audit Values'!$A$2:$AE$346,6,FALSE)) -> 6860.9 | AA47: =ROUND((Z47/6)*Weightings!$M$7,1) -> 451.7 | AB47: =IF(ISNA(VLOOKUP($CZ47,'Audit Values'!$A$2:$AE$346,2,FALSE)),'Preliminary SO66'!H44,VLOOKUP($CZ47,'Audit Values'!$A$2:$AE$346,9,FALSE)) -> 6135 | AC47: =ROUND(AB47*Weightings!$M$8,1) -> 2797.6 | AD47: 0 | AE47: 0 | AF47: =AE47*Weightings!$M$9 -> 0 | AG47: =IF(ISNA(VLOOKUP($CZ47,'Audit Values'!$A$2:$AE$346,2,FALSE)),'Preliminary SO66'!L44,VLOOKUP($CZ47,'Audit Values'!$A$2:$AE$346,12,FALSE)) -> 421.7 | AH47: =ROUND(AG47*Weightings!$M$10,1) -> 105.4 | AI47: =IF(ISNA(VLOOKUP($CZ47,'Audit Values'!$A$2:$AE$346,2,FALSE)),'Preliminary SO66'!O44,VLOOKUP($CZ47,'Audit Values'!$A$2:$AE$346,15,FALSE)) -> 5748 | AJ47: 841.5 | AK47: =CC47/Weightings!$M$5 -> 2468.3 | AL47: =CD47/Weightings!$M$5 -> 0 | AM47: =CH47/Weightings!$M$5 -> 1500.4 | AN47: 0 | AO47: =IF(ISNA(VLOOKUP($CZ47,'Audit Values'!$A$2:$AE$346,2,FALSE)),'Preliminary SO66'!X44,VLOOKUP($CZ47,'Audit Values'!$A$2:$AE$346,24,FALSE)) -> 0 | AP47: 25493790 | AQ47: =AP47/Weightings!$M$5 -> 6618.3 | AR47: 37145.5 | AS47: 42263.4 | AT47: 43763.8 | AU47: 0 | AV47: =IF(ISNA(VLOOKUP($CZ47,'Audit Values'!$A$2:$AC$355,2,FALSE)),"",IF(AND(Weightings!H47>0,VLOOKUP($CZ47,'Audit Values'!$A$2:$AC$355,29,FALSE)<Weightings!H47),Weightings!H47,VLOOKUP($CZ47,'Audit Values'!$A$2:$AC$355,29,FALSE))) -> 18 | AW47: =IF(ISNA(VLOOKUP($CZ47,'Audit Values'!$A$2:$AD$355,2,FALSE)),"",VLOOKUP($CZ47,'Audit Values'!$A$2:$AD$355,30,FALSE)) -> A | AX47: =IF(Weightings!G47="","",IF(Weightings!I47="Pending","PX","R")) ->  | AY47: =AR47*Weightings!$M$5+AU47 -> 143084466 | AZ47: =AT47*Weightings!$M$5+AU47 -> 168578158 | BA47: =IF(Weightings!G47>0,Weightings!G47,'Preliminary SO66'!AB44) -> 171123944 | BB47: 168578158 | BD47: =Weightings!E47 -> -585 | BE47: =Weightings!F47 -> 0 | BF47: -585 | BG47: 168577573 | BH47: =MAX(ROUND(((AR47-AO47-AN47)*Weightings!$M$12)+AP47,0),ROUND(((AR47-AO47-AN47)*Weightings!$M$12)+Weightings!B47,0)) -> 194305467 | BI47: 0.33 | BJ47: 64120804 | BK47: 65134287 | BL47: 64120804 | BM47: 0.33 | BN47: 0 | BO47: FALSE | BP47: 0 | BQ47: 0 | BR47: 0 | BS47: FALSE | BT47: 0 | BU47: 0 | BV47: 0 | BW47: 967.2 | BX47: 75.3 | BY47: 76.33 | BZ47: =IF(ROUND((Weightings!$P$5*BY47^Weightings!$P$6*Weightings!$P$8 ),2)<Weightings!$P$7,Weightings!$P$7,ROUND((Weightings!$P$5*BY47^Weightings!$P$6*Weightings!$P$8 ),2)) -> 564 | CA47: =ROUND(BZ47/Weightings!$M$5,4) -> 0.1464 | CB47: 841.5 | CC47: 9508006 | CD47: 0 | CE47: 5805141 | CF47: 0.0355 | CG47: =AS47*Weightings!$M$5*CF47 -> 5779351 | CH47: 5779351 | CI47: 0.222 | CJ47: 366.6 | CK47: 0 | CL47: 0 | CM47: 0 | CN47: =IF(ISNA(VLOOKUP($CZ47,'Audit Values'!$A$2:$AE$346,2,FALSE)),'Preliminary SO66'!T44,VLOOKUP($CZ47,'Audit Values'!$A$2:$AE$346,20,FALSE)) -> 0 | CO47: 0 | CP47: 0 | CQ47: 0 | CR47: =IF(ISNA(VLOOKUP($CZ47,'Audit Values'!$A$2:$AE$346,2,FALSE)),'Preliminary SO66'!V44,VLOOKUP($CZ47,'Audit Values'!$A$2:$AE$346,22,FALSE)) -> 0 | CS47: 0 | CT47: =IF(ISNA(VLOOKUP($CZ47,'Audit Values'!$A$2:$AE$346,2,FALSE)),'Preliminary SO66'!W44,VLOOKUP($CZ47,'Audit Values'!$A$2:$AE$346,23,FALSE)) -> 0 | CU47: 0 | CV47: 0 | CW47: 0 | CX47: =IF(CW47>0,Weightings!$M$11*AR47,0) -> 0 | CY47: 0 | CZ47: D0233
A48: 234 | B48: Bourbon | C48: Fort Scott | D48: 1791 | E48: 0 | F48: 1791 | G48: 1816.2 | H48: 0 | I48: 1816.2 | J48: 1801.1 | K48: =IF(ISNA(VLOOKUP($CZ48,'Audit Values'!$A$2:$AE$346,2,FALSE)),'Preliminary SO66'!B45,VLOOKUP($CZ48,'Audit Values'!$A$2:$AE$346,31,FALSE)) -> 1801.1 | L48: 1816.2 | M48: =IF(ISNA(VLOOKUP($CZ48,'Audit Values'!$A$2:$AE$346,2,FALSE)),'Preliminary SO66'!Z45,VLOOKUP($CZ48,'Audit Values'!$A$2:$AE$346,26,FALSE)) -> 0 | N48: 1816.2 | O48: =IF(ISNA(VLOOKUP($CZ48,'Audit Values'!$A$2:$AE$346,2,FALSE)),'Preliminary SO66'!C45,IF(VLOOKUP($CZ48,'Audit Values'!$A$2:$AE$346,28,FALSE)="",VLOOKUP($CZ48,'Audit Values'!$A$2:$AE$346,3,FALSE),VLOOKUP($CZ48,'Audit Values'!$A$2:$AE$346,28,FALSE))) -> 18 | P48: 1819.1 | Q48: 1819.1 | R48: 1819.1 | S48: 1834.2 | T48: 0 | U48: 64.3 | V48: 0 | W48: 64.3 | X48: =IF(ISNA(VLOOKUP($CZ48,'Audit Values'!$A$2:$AE$346,2,FALSE)),'Preliminary SO66'!D45,VLOOKUP($CZ48,'Audit Values'!$A$2:$AE$346,4,FALSE)) -> 353 | Y48: =ROUND((X48/6)*Weightings!$M$6,1) -> 29.4 | Z48: =IF(ISNA(VLOOKUP($CZ48,'Audit Values'!$A$2:$AE$346,2,FALSE)),'Preliminary SO66'!F45,VLOOKUP($CZ48,'Audit Values'!$A$2:$AE$346,6,FALSE)) -> 20.3 | AA48: =ROUND((Z48/6)*Weightings!$M$7,1) -> 1.3 | AB48: =IF(ISNA(VLOOKUP($CZ48,'Audit Values'!$A$2:$AE$346,2,FALSE)),'Preliminary SO66'!H45,VLOOKUP($CZ48,'Audit Values'!$A$2:$AE$346,9,FALSE)) -> 954 | AC48: =ROUND(AB48*Weightings!$M$8,1) -> 435 | AD48: 100.2 | AE48: 0 | AF48: =AE48*Weightings!$M$9 -> 0 | AG48: =IF(ISNA(VLOOKUP($CZ48,'Audit Values'!$A$2:$AE$346,2,FALSE)),'Preliminary SO66'!L45,VLOOKUP($CZ48,'Audit Values'!$A$2:$AE$346,12,FALSE)) -> 0 | AH48: =ROUND(AG48*Weightings!$M$10,1) -> 0 | AI48: =IF(ISNA(VLOOKUP($CZ48,'Audit Values'!$A$2:$AE$346,2,FALSE)),'Preliminary SO66'!O45,VLOOKUP($CZ48,'Audit Values'!$A$2:$AE$346,15,FALSE)) -> 567 | AJ48: 135.6 | AK48: =CC48/Weightings!$M$5 -> 0 | AL48: =CD48/Weightings!$M$5 -> 0 | AM48: =CH48/Weightings!$M$5 -> 0 | AN48: 0 | AO48: =IF(ISNA(VLOOKUP($CZ48,'Audit Values'!$A$2:$AE$346,2,FALSE)),'Preliminary SO66'!X45,VLOOKUP($CZ48,'Audit Values'!$A$2:$AE$346,24,FALSE)) -> 0 | AP48: 1050651 | AQ48: =AP48/Weightings!$M$5 -> 272.8 | AR48: 2600 | AS48: 2872.8 | AT48: 2872.8 | AU48: 0 | AV48: =IF(ISNA(VLOOKUP($CZ48,'Audit Values'!$A$2:$AC$355,2,FALSE)),"",IF(AND(Weightings!H48>0,VLOOKUP($CZ48,'Audit Values'!$A$2:$AC$355,29,FALSE)<Weightings!H48),Weightings!H48,VLOOKUP($CZ48,'Audit Values'!$A$2:$AC$355,29,FALSE))) -> 21 | AW48: =IF(ISNA(VLOOKUP($CZ48,'Audit Values'!$A$2:$AD$355,2,FALSE)),"",VLOOKUP($CZ48,'Audit Values'!$A$2:$AD$355,30,FALSE)) -> A | AX48: =IF(Weightings!G48="","",IF(Weightings!I48="Pending","PX","R")) ->  | AY48: =AR48*Weightings!$M$5+AU48 -> 10015200 | AZ48: =AT48*Weightings!$M$5+AU48 -> 11066026 | BA48: =IF(Weightings!G48>0,Weightings!G48,'Preliminary SO66'!AB45) -> 11297916 | BB48: 11066026 | BD48: =Weightings!E48 -> -865 | BE48: =Weightings!F48 -> 0 | BF48: -865 | BG48: 11065161 | BH48: =MAX(ROUND(((AR48-AO48-AN48)*Weightings!$M$12)+AP48,0),ROUND(((AR48-AO48-AN48)*Weightings!$M$12)+Weightings!B48,0)) -> 12823929 | BI48: 0.3 | BJ48: 3847179 | BK48: 3892733 | BL48: 3847179 | BM48: 0.3 | BN48: 0 | BO48: FALSE | BP48: 0 | BQ48: 0 | BR48: 0 | BS48: FALSE | BT48: 0 | BU48: 0 | BV48: 0 | BW48: 64.3 | BX48: 300 | BY48: 1.89 | BZ48: =IF(ROUND((Weightings!$P$5*BY48^Weightings!$P$6*Weightings!$P$8 ),2)<Weightings!$P$7,Weightings!$P$7,ROUND((Weightings!$P$5*BY48^Weightings!$P$6*Weightings!$P$8 ),2)) -> 921.17 | CA48: =ROUND(BZ48/Weightings!$M$5,4) -> 0.2391 | CB48: 135.6 | CC48: 0 | CD48: 0 | CE48: 0 | CF48: 0 | CG48: =AS48*Weightings!$M$5*CF48 -> 0 | CH48: 0 | CI48: 0.52 | CJ48: 6.1 | CK48: 100.2 | CL48: 0 | CM48: 0 | CN48: =IF(ISNA(VLOOKUP($CZ48,'Audit Values'!$A$2:$AE$346,2,FALSE)),'Preliminary SO66'!T45,VLOOKUP($CZ48,'Audit Values'!$A$2:$AE$346,20,FALSE)) -> 0 | CO48: 0 | CP48: 0 | CQ48: 0 | CR48: =IF(ISNA(VLOOKUP($CZ48,'Audit Values'!$A$2:$AE$346,2,FALSE)),'Preliminary SO66'!V45,VLOOKUP($CZ48,'Audit Values'!$A$2:$AE$346,22,FALSE)) -> 0 | CS48: 0 | CT48: =IF(ISNA(VLOOKUP($CZ48,'Audit Values'!$A$2:$AE$346,2,FALSE)),'Preliminary SO66'!W45,VLOOKUP($CZ48,'Audit Values'!$A$2:$AE$346,23,FALSE)) -> 0 | CU48: 0 | CV48: 0 | CW48: 0 | CX48: =IF(CW48>0,Weightings!$M$11*AR48,0) -> 0 | CY48: 0 | CZ48: D0234
A49: 235 | B49: Bourbon | C49: Uniontown | D49: 422.5 | E49: 0 | F49: 422.5 | G49: 429 | H49: 0 | I49: 429 | J49: 430 | K49: =IF(ISNA(VLOOKUP($CZ49,'Audit Values'!$A$2:$AE$346,2,FALSE)),'Preliminary SO66'!B46,VLOOKUP($CZ49,'Audit Values'!$A$2:$AE$346,31,FALSE)) -> 430 | L49: 430 | M49: =IF(ISNA(VLOOKUP($CZ49,'Audit Values'!$A$2:$AE$346,2,FALSE)),'Preliminary SO66'!Z46,VLOOKUP($CZ49,'Audit Values'!$A$2:$AE$346,26,FALSE)) -> 0 | N49: 430 | O49: =IF(ISNA(VLOOKUP($CZ49,'Audit Values'!$A$2:$AE$346,2,FALSE)),'Preliminary SO66'!C46,IF(VLOOKUP($CZ49,'Audit Values'!$A$2:$AE$346,28,FALSE)="",VLOOKUP($CZ49,'Audit Values'!$A$2:$AE$346,3,FALSE),VLOOKUP($CZ49,'Audit Values'!$A$2:$AE$346,28,FALSE))) -> 5 | P49: 435 | Q49: 435 | R49: 435 | S49: 435 | T49: 0 | U49: 190.7 | V49: 190.7 | W49: 0 | X49: =IF(ISNA(VLOOKUP($CZ49,'Audit Values'!$A$2:$AE$346,2,FALSE)),'Preliminary SO66'!D46,VLOOKUP($CZ49,'Audit Values'!$A$2:$AE$346,4,FALSE)) -> 116.9 | Y49: =ROUND((X49/6)*Weightings!$M$6,1) -> 9.7 | Z49: =IF(ISNA(VLOOKUP($CZ49,'Audit Values'!$A$2:$AE$346,2,FALSE)),'Preliminary SO66'!F46,VLOOKUP($CZ49,'Audit Values'!$A$2:$AE$346,6,FALSE)) -> 0 | AA49: =ROUND((Z49/6)*Weightings!$M$7,1) -> 0 | AB49: =IF(ISNA(VLOOKUP($CZ49,'Audit Values'!$A$2:$AE$346,2,FALSE)),'Preliminary SO66'!H46,VLOOKUP($CZ49,'Audit Values'!$A$2:$AE$346,9,FALSE)) -> 217 | AC49: =ROUND(AB49*Weightings!$M$8,1) -> 99 | AD49: 22.6 | AE49: 0 | AF49: =AE49*Weightings!$M$9 -> 0 | AG49: =IF(ISNA(VLOOKUP($CZ49,'Audit Values'!$A$2:$AE$346,2,FALSE)),'Preliminary SO66'!L46,VLOOKUP($CZ49,'Audit Values'!$A$2:$AE$346,12,FALSE)) -> 0 | AH49: =ROUND(AG49*Weightings!$M$10,1) -> 0 | AI49: =IF(ISNA(VLOOKUP($CZ49,'Audit Values'!$A$2:$AE$346,2,FALSE)),'Preliminary SO66'!O46,VLOOKUP($CZ49,'Audit Values'!$A$2:$AE$346,15,FALSE)) -> 294 | AJ49: 82.1 | AK49: =CC49/Weightings!$M$5 -> 0 | AL49: =CD49/Weightings!$M$5 -> 0 | AM49: =CH49/Weightings!$M$5 -> 0 | AN49: 0 | AO49: =IF(ISNA(VLOOKUP($CZ49,'Audit Values'!$A$2:$AE$346,2,FALSE)),'Preliminary SO66'!X46,VLOOKUP($CZ49,'Audit Values'!$A$2:$AE$346,24,FALSE)) -> 0 | AP49: 388074 | AQ49: =AP49/Weightings!$M$5 -> 100.7 | AR49: 839.1 | AS49: 939.8 | AT49: 939.8 | AU49: 0 | AV49: =IF(ISNA(VLOOKUP($CZ49,'Audit Values'!$A$2:$AC$355,2,FALSE)),"",IF(AND(Weightings!H49>0,VLOOKUP($CZ49,'Audit Values'!$A$2:$AC$355,29,FALSE)<Weightings!H49),Weightings!H49,VLOOKUP($CZ49,'Audit Values'!$A$2:$AC$355,29,FALSE))) -> 2 | AW49: =IF(ISNA(VLOOKUP($CZ49,'Audit Values'!$A$2:$AD$355,2,FALSE)),"",VLOOKUP($CZ49,'Audit Values'!$A$2:$AD$355,30,FALSE)) -> A | AX49: =IF(Weightings!G49="","",IF(Weightings!I49="Pending","PX","R")) ->  | AY49: =AR49*Weightings!$M$5+AU49 -> 3232213 | AZ49: =AT49*Weightings!$M$5+AU49 -> 3620110 | BA49: =IF(Weightings!G49>0,Weightings!G49,'Preliminary SO66'!AB46) -> 3724884 | BB49: 3620110 | BD49: =Weightings!E49 -> 0 | BE49: =Weightings!F49 -> 0 | BF49: 0 | BG49: 3620110 | BH49: =MAX(ROUND(((AR49-AO49-AN49)*Weightings!$M$12)+AP49,0),ROUND(((AR49-AO49-AN49)*Weightings!$M$12)+Weightings!B49,0)) -> 4155633 | BI49: 0.3 | BJ49: 1246690 | BK49: 1280455 | BL49: 1246690 | BM49: 0.3 | BN49: 0 | BO49: FALSE | BP49: 0 | BQ49: 0 | BR49: 0 | BS49: TRUE | BT49: 167.0625 | BU49: 0.43832 | BV49: 190.7 | BW49: 0 | BX49: 309 | BY49: 0.95 | BZ49: =IF(ROUND((Weightings!$P$5*BY49^Weightings!$P$6*Weightings!$P$8 ),2)<Weightings!$P$7,Weightings!$P$7,ROUND((Weightings!$P$5*BY49^Weightings!$P$6*Weightings!$P$8 ),2)) -> 1076.26 | CA49: =ROUND(BZ49/Weightings!$M$5,4) -> 0.2794 | CB49: 82.1 | CC49: 0 | CD49: 0 | CE49: 0 | CF49: 0 | CG49: =AS49*Weightings!$M$5*CF49 -> 0 | CH49: 0 | CI49: 0.499 | CJ49: 1.4 | CK49: 0 | CL49: 0 | CM49: 22.6 | CN49: =IF(ISNA(VLOOKUP($CZ49,'Audit Values'!$A$2:$AE$346,2,FALSE)),'Preliminary SO66'!T46,VLOOKUP($CZ49,'Audit Values'!$A$2:$AE$346,20,FALSE)) -> 0 | CO49: 0 | CP49: 0 | CQ49: 0 | CR49: =IF(ISNA(VLOOKUP($CZ49,'Audit Values'!$A$2:$AE$346,2,FALSE)),'Preliminary SO66'!V46,VLOOKUP($CZ49,'Audit Values'!$A$2:$AE$346,22,FALSE)) -> 0 | CS49: 0 | CT49: =IF(ISNA(VLOOKUP($CZ49,'Audit Values'!$A$2:$AE$346,2,FALSE)),'Preliminary SO66'!W46,VLOOKUP($CZ49,'Audit Values'!$A$2:$AE$346,23,FALSE)) -> 0 | CU49: 0 | CV49: 0 | CW49: 0 | CX49: =IF(CW49>0,Weightings!$M$11*AR49,0) -> 0 | CY49: 0 | CZ49: D0235
A50: 237 | B50: Smith | C50: Smith Center | D50: 391.5 | E50: 0 | F50: 391.5 | G50: 376.8 | H50: 0 | I50: 376.8 | J50: 390.7 | K50: =IF(ISNA(VLOOKUP($CZ50,'Audit Values'!$A$2:$AE$346,2,FALSE)),'Preliminary SO66'!B47,VLOOKUP($CZ50,'Audit Values'!$A$2:$AE$346,31,FALSE)) -> 380.8 | L50: 383 | M50: =IF(ISNA(VLOOKUP($CZ50,'Audit Values'!$A$2:$AE$346,2,FALSE)),'Preliminary SO66'!Z47,VLOOKUP($CZ50,'Audit Values'!$A$2:$AE$346,26,FALSE)) -> 0 | N50: 383 | O50: =IF(ISNA(VLOOKUP($CZ50,'Audit Values'!$A$2:$AE$346,2,FALSE)),'Preliminary SO66'!C47,IF(VLOOKUP($CZ50,'Audit Values'!$A$2:$AE$346,28,FALSE)="",VLOOKUP($CZ50,'Audit Values'!$A$2:$AE$346,3,FALSE),VLOOKUP($CZ50,'Audit Values'!$A$2:$AE$346,28,FALSE))) -> 0 | P50: 380.8 | Q50: 390.7 | R50: 390.7 | S50: 383 | T50: 9.9 | U50: 174.6 | V50: 174.6 | W50: 0 | X50: =IF(ISNA(VLOOKUP($CZ50,'Audit Values'!$A$2:$AE$346,2,FALSE)),'Preliminary SO66'!D47,VLOOKUP($CZ50,'Audit Values'!$A$2:$AE$346,4,FALSE)) -> 143.1 | Y50: =ROUND((X50/6)*Weightings!$M$6,1) -> 11.9 | Z50: =IF(ISNA(VLOOKUP($CZ50,'Audit Values'!$A$2:$AE$346,2,FALSE)),'Preliminary SO66'!F47,VLOOKUP($CZ50,'Audit Values'!$A$2:$AE$346,6,FALSE)) -> 0 | AA50: =ROUND((Z50/6)*Weightings!$M$7,1) -> 0 | AB50: =IF(ISNA(VLOOKUP($CZ50,'Audit Values'!$A$2:$AE$346,2,FALSE)),'Preliminary SO66'!H47,VLOOKUP($CZ50,'Audit Values'!$A$2:$AE$346,9,FALSE)) -> 143 | AC50: =ROUND(AB50*Weightings!$M$8,1) -> 65.2 | AD50: 2.3 | AE50: 0 | AF50: =AE50*Weightings!$M$9 -> 0 | AG50: =IF(ISNA(VLOOKUP($CZ50,'Audit Values'!$A$2:$AE$346,2,FALSE)),'Preliminary SO66'!L47,VLOOKUP($CZ50,'Audit Values'!$A$2:$AE$346,12,FALSE)) -> 0 | AH50: =ROUND(AG50*Weightings!$M$10,1) -> 0 | AI50: =IF(ISNA(VLOOKUP($CZ50,'Audit Values'!$A$2:$AE$346,2,FALSE)),'Preliminary SO66'!O47,VLOOKUP($CZ50,'Audit Values'!$A$2:$AE$346,15,FALSE)) -> 127 | AJ50: 49.9 | AK50: =CC50/Weightings!$M$5 -> 0 | AL50: =CD50/Weightings!$M$5 -> 0 | AM50: =CH50/Weightings!$M$5 -> 0 | AN50: 10.4 | AO50: =IF(ISNA(VLOOKUP($CZ50,'Audit Values'!$A$2:$AE$346,2,FALSE)),'Preliminary SO66'!X47,VLOOKUP($CZ50,'Audit Values'!$A$2:$AE$346,24,FALSE)) -> 0 | AP50: 461383 | AQ50: =AP50/Weightings!$M$5 -> 119.8 | AR50: 697.3 | AS50: 817.1 | AT50: 817.1 | AU50: 0 | AV50: =IF(ISNA(VLOOKUP($CZ50,'Audit Values'!$A$2:$AC$355,2,FALSE)),"",IF(AND(Weightings!H50>0,VLOOKUP($CZ50,'Audit Values'!$A$2:$AC$355,29,FALSE)<Weightings!H50),Weightings!H50,VLOOKUP($CZ50,'Audit Values'!$A$2:$AC$355,29,FALSE))) -> 25 | AW50: =IF(ISNA(VLOOKUP($CZ50,'Audit Values'!$A$2:$AD$355,2,FALSE)),"",VLOOKUP($CZ50,'Audit Values'!$A$2:$AD$355,30,FALSE)) -> A | AX50: =IF(Weightings!G50="","",IF(Weightings!I50="Pending","PX","R")) -> R | AY50: =AR50*Weightings!$M$5+AU50 -> 2686000 | AZ50: =AT50*Weightings!$M$5+AU50 -> 3147469 | BA50: =IF(Weightings!G50>0,Weightings!G50,'Preliminary SO66'!AB47) -> 3275000 | BB50: 3147469 | BD50: =Weightings!E50 -> 0 | BE50: =Weightings!F50 -> 0 | BF50: 0 | BG50: 3147469 | BH50: =MAX(ROUND(((AR50-AO50-AN50)*Weightings!$M$12)+AP50,0),ROUND(((AR50-AO50-AN50)*Weightings!$M$12)+Weightings!B50,0)) -> 3670216 | BI50: 0.33 | BJ50: 1211171 | BK50: 1201540 | BL50: 1201540 | BM50: 0.3274 | BN50: 0 | BO50: FALSE | BP50: 0 | BQ50: 0 | BR50: 0 | BS50: TRUE | BT50: 102.7125 | BU50: 0.455987 | BV50: 174.6 | BW50: 0 | BX50: 599 | BY50: 0.21 | BZ50: =IF(ROUND((Weightings!$P$5*BY50^Weightings!$P$6*Weightings!$P$8 ),2)<Weightings!$P$7,Weightings!$P$7,ROUND((Weightings!$P$5*BY50^Weightings!$P$6*Weightings!$P$8 ),2)) -> 1514.25 | CA50: =ROUND(BZ50/Weightings!$M$5,4) -> 0.3931 | CB50: 49.9 | CC50: 0 | CD50: 0 | CE50: 0 | CF50: 0 | CG50: =AS50*Weightings!$M$5*CF50 -> 0 | CH50: 0 | CI50: 0.373 | CJ50: 0.6 | CK50: 0 | CL50: 0 | CM50: 2.3 | CN50: =IF(ISNA(VLOOKUP($CZ50,'Audit Values'!$A$2:$AE$346,2,FALSE)),'Preliminary SO66'!T47,VLOOKUP($CZ50,'Audit Values'!$A$2:$AE$346,20,FALSE)) -> 9.9 | CO50: 10.4 | CP50: 0 | CQ50: 0 | CR50: =IF(ISNA(VLOOKUP($CZ50,'Audit Values'!$A$2:$AE$346,2,FALSE)),'Preliminary SO66'!V47,VLOOKUP($CZ50,'Audit Values'!$A$2:$AE$346,22,FALSE)) -> 0 | CS50: 0 | CT50: =IF(ISNA(VLOOKUP($CZ50,'Audit Values'!$A$2:$AE$346,2,FALSE)),'Preliminary SO66'!W47,VLOOKUP($CZ50,'Audit Values'!$A$2:$AE$346,23,FALSE)) -> 0 | CU50: 0 | CV50: 10.4 | CW50: 0 | CX50: =IF(CW50>0,Weightings!$M$11*AR50,0) -> 0 | CY50: 0 | CZ50: D0237
A51: 239 | B51: Ottawa | C51: North Ottawa County | D51: 590.4 | E51: 0 | F51: 590.4 | G51: 618.3 | H51: 0 | I51: 618.3 | J51: 605.8 | K51: =IF(ISNA(VLOOKUP($CZ51,'Audit Values'!$A$2:$AE$346,2,FALSE)),'Preliminary SO66'!B48,VLOOKUP($CZ51,'Audit Values'!$A$2:$AE$346,31,FALSE)) -> 603.8 | L51: 618.3 | M51: =IF(ISNA(VLOOKUP($CZ51,'Audit Values'!$A$2:$AE$346,2,FALSE)),'Preliminary SO66'!Z48,VLOOKUP($CZ51,'Audit Values'!$A$2:$AE$346,26,FALSE)) -> 0 | N51: 618.3 | O51: =IF(ISNA(VLOOKUP($CZ51,'Audit Values'!$A$2:$AE$346,2,FALSE)),'Preliminary SO66'!C48,IF(VLOOKUP($CZ51,'Audit Values'!$A$2:$AE$346,28,FALSE)="",VLOOKUP($CZ51,'Audit Values'!$A$2:$AE$346,3,FALSE),VLOOKUP($CZ51,'Audit Values'!$A$2:$AE$346,28,FALSE))) -> 0 | P51: 603.8 | Q51: 605.8 | R51: 605.8 | S51: 618.3 | T51: 2 | U51: 232.5 | V51: =MAX(BN51,BR51,BV51) -> 232.5 | W51: =BW51 -> 0 | X51: =IF(ISNA(VLOOKUP($CZ51,'Audit Values'!$A$2:$AE$346,2,FALSE)),'Preliminary SO66'!D48,VLOOKUP($CZ51,'Audit Values'!$A$2:$AE$346,4,FALSE)) -> 80.5 | Y51: =ROUND((X51/6)*Weightings!$M$6,1) -> 6.7 | Z51: =IF(ISNA(VLOOKUP($CZ51,'Audit Values'!$A$2:$AE$346,2,FALSE)),'Preliminary SO66'!F48,VLOOKUP($CZ51,'Audit Values'!$A$2:$AE$346,6,FALSE)) -> 0 | AA51: =ROUND((Z51/6)*Weightings!$M$7,1) -> 0 | AB51: =IF(ISNA(VLOOKUP($CZ51,'Audit Values'!$A$2:$AE$346,2,FALSE)),'Preliminary SO66'!H48,VLOOKUP($CZ51,'Audit Values'!$A$2:$AE$346,9,FALSE)) -> 189 | AC51: =ROUND(AB51*Weightings!$M$8,1) -> 86.2 | AD51: 0 | AE51: 0 | AF51: =AE51*Weightings!$M$9 -> 0 | AG51: =IF(ISNA(VLOOKUP($CZ51,'Audit Values'!$A$2:$AE$346,2,FALSE)),'Preliminary SO66'!L48,VLOOKUP($CZ51,'Audit Values'!$A$2:$AE$346,12,FALSE)) -> 0 | AH51: =ROUND(AG51*Weightings!$M$10,1) -> 0 | AI51: =IF(ISNA(VLOOKUP($CZ51,'Audit Values'!$A$2:$AE$346,2,FALSE)),'Preliminary SO66'!O48,VLOOKUP($CZ51,'Audit Values'!$A$2:$AE$346,15,FALSE)) -> 183 | AJ51: 60.8 | AK51: =CC51/Weightings!$M$5 -> 0 | AL51: =CD51/Weightings!$M$5 -> 0 | AM51: =CH51/Weightings!$M$5 -> 0 | AN51: 2.1 | AO51: =IF(ISNA(VLOOKUP($CZ51,'Audit Values'!$A$2:$AE$346,2,FALSE)),'Preliminary SO66'!X48,VLOOKUP($CZ51,'Audit Values'!$A$2:$AE$346,24,FALSE)) -> 0 | AP51: 636775 | AQ51: =AP51/Weightings!$M$5 -> 165.3 | AR51: 1006.6 | AS51: 1171.9 | AT51: 1171.9 | AU51: 0 | AV51: =IF(ISNA(VLOOKUP($CZ51,'Audit Values'!$A$2:$AC$355,2,FALSE)),"",IF(AND(Weightings!H51>0,VLOOKUP($CZ51,'Audit Values'!$A$2:$AC$355,29,FALSE)<Weightings!H51),Weightings!H51,VLOOKUP($CZ51,'Audit Values'!$A$2:$AC$355,29,FALSE))) -> 21 | AW51: =IF(ISNA(VLOOKUP($CZ51,'Audit Values'!$A$2:$AD$355,2,FALSE)),"",VLOOKUP($CZ51,'Audit Values'!$A$2:$AD$355,30,FALSE)) -> A | AX51: =IF(Weightings!G51="","",IF(Weightings!I51="Pending","PX","R")) ->  | AY51: =AR51*Weightings!$M$5+AU51 -> 3877423 | AZ51: =AT51*Weightings!$M$5+AU51 -> 4514159 | BA51: =IF(Weightings!G51>0,Weightings!G51,'Preliminary SO66'!AB48) -> 4682491 | BB51: 4514159 | BD51: =Weightings!E51 -> 0 | BE51: =Weightings!F51 -> 0 | BF51: 0 | BG51: 4514159 | BH51: =MAX(ROUND(((AR51-AO51-AN51)*Weightings!$M$12)+AP51,0),ROUND(((AR51-AO51-AN51)*Weightings!$M$12)+Weightings!B51,0)) -> 5146980 | BI51: 0.33 | BJ51: 1698503 | BK51: 1760272 | BL51: 1698503 | BM51: 0.33 | BN51: 0 | BO51: FALSE | BP51: 0 | BQ51: =IF(BO51=TRUE,ROUND(((7337-BP51)/3642.4)-1,6),0) -> 0 | BR51: 0 | BS51: TRUE | BT51: 393.8963 | BU51: =IF(BS51=TRUE,ROUND(((5406-BT51)/3642.4)-1,6),0) -> 0.376044 | BV51: 232.5 | BW51: 0 | BX51: 418.5 | BY51: 0.44 | BZ51: =IF(ROUND((Weightings!$P$5*BY51^Weightings!$P$6*Weightings!$P$8 ),2)<Weightings!$P$7,Weightings!$P$7,ROUND((Weightings!$P$5*BY51^Weightings!$P$6*Weightings!$P$8 ),2)) -> 1280.95 | CA51: =ROUND(BZ51/Weightings!$M$5,4) -> 0.3325 | CB51: 60.8 | CC51: 0 | CD51: 0 | CE51: 0 | CF51: 0 | CG51: =AS51*Weightings!$M$5*CF51 -> 0 | CH51: =IF(CE51>CG51,CG51,CE51) -> 0 | CI51: 0.306 | CJ51: 1.5 | CK51: 0 | CL51: 0 | CM51: 0 | CN51: =IF(ISNA(VLOOKUP($CZ51,'Audit Values'!$A$2:$AE$346,2,FALSE)),'Preliminary SO66'!T48,VLOOKUP($CZ51,'Audit Values'!$A$2:$AE$346,20,FALSE)) -> 2 | CO51: 2.1 | CP51: 0 | CQ51: 0 | CR51: =IF(ISNA(VLOOKUP($CZ51,'Audit Values'!$A$2:$AE$346,2,FALSE)),'Preliminary SO66'!V48,VLOOKUP($CZ51,'Audit Values'!$A$2:$AE$346,22,FALSE)) -> 0 | CS51: 0 | CT51: =IF(ISNA(VLOOKUP($CZ51,'Audit Values'!$A$2:$AE$346,2,FALSE)),'Preliminary SO66'!W48,VLOOKUP($CZ51,'Audit Values'!$A$2:$AE$346,23,FALSE)) -> 0 | CU51: =CT51*0.08 -> 0 | CV51: =CO51+CQ51+CS51+CU51 -> 2.1 | CW51: 0 | CX51: =IF(CW51>0,Weightings!$M$11*AR51,0) -> 0 | CY51: 0 | CZ51: D0239
A52: 240 | B52: Ottawa | C52: Twin Valley | D52: 582.5 | E52: 0 | F52: 582.5 | G52: 578.5 | H52: 0 | I52: 578.5 | J52: 592.4 | K52: =IF(ISNA(VLOOKUP($CZ52,'Audit Values'!$A$2:$AE$346,2,FALSE)),'Preliminary SO66'!B49,VLOOKUP($CZ52,'Audit Values'!$A$2:$AE$346,31,FALSE)) -> 577 | L52: 579.3 | M52: =IF(ISNA(VLOOKUP($CZ52,'Audit Values'!$A$2:$AE$346,2,FALSE)),'Preliminary SO66'!Z49,VLOOKUP($CZ52,'Audit Values'!$A$2:$AE$346,26,FALSE)) -> 0 | N52: 579.3 | O52: =IF(ISNA(VLOOKUP($CZ52,'Audit Values'!$A$2:$AE$346,2,FALSE)),'Preliminary SO66'!C49,IF(VLOOKUP($CZ52,'Audit Values'!$A$2:$AE$346,28,FALSE)="",VLOOKUP($CZ52,'Audit Values'!$A$2:$AE$346,3,FALSE),VLOOKUP($CZ52,'Audit Values'!$A$2:$AE$346,28,FALSE))) -> 12 | P52: 589 | Q52: 604.4 | R52: 604.4 | S52: 591.3 | T52: 15.4 | U52: 227.8 | V52: 227.8 | W52: 0 | X52: =IF(ISNA(VLOOKUP($CZ52,'Audit Values'!$A$2:$AE$346,2,FALSE)),'Preliminary SO66'!D49,VLOOKUP($CZ52,'Audit Values'!$A$2:$AE$346,4,FALSE)) -> 125.9 | Y52: =ROUND((X52/6)*Weightings!$M$6,1) -> 10.5 | Z52: =IF(ISNA(VLOOKUP($CZ52,'Audit Values'!$A$2:$AE$346,2,FALSE)),'Preliminary SO66'!F49,VLOOKUP($CZ52,'Audit Values'!$A$2:$AE$346,6,FALSE)) -> 0 | AA52: =ROUND((Z52/6)*Weightings!$M$7,1) -> 0 | AB52: =IF(ISNA(VLOOKUP($CZ52,'Audit Values'!$A$2:$AE$346,2,FALSE)),'Preliminary SO66'!H49,VLOOKUP($CZ52,'Audit Values'!$A$2:$AE$346,9,FALSE)) -> 187 | AC52: =ROUND(AB52*Weightings!$M$8,1) -> 85.3 | AD52: 0 | AE52: 0 | AF52: =AE52*Weightings!$M$9 -> 0 | AG52: =IF(ISNA(VLOOKUP($CZ52,'Audit Values'!$A$2:$AE$346,2,FALSE)),'Preliminary SO66'!L49,VLOOKUP($CZ52,'Audit Values'!$A$2:$AE$346,12,FALSE)) -> 0 | AH52: =ROUND(AG52*Weightings!$M$10,1) -> 0 | AI52: =IF(ISNA(VLOOKUP($CZ52,'Audit Values'!$A$2:$AE$346,2,FALSE)),'Preliminary SO66'!O49,VLOOKUP($CZ52,'Audit Values'!$A$2:$AE$346,15,FALSE)) -> 180 | AJ52: 54.4 | AK52: =CC52/Weightings!$M$5 -> 0 | AL52: =CD52/Weightings!$M$5 -> 0 | AM52: =CH52/Weightings!$M$5 -> 0 | AN52: 16.2 | AO52: =IF(ISNA(VLOOKUP($CZ52,'Audit Values'!$A$2:$AE$346,2,FALSE)),'Preliminary SO66'!X49,VLOOKUP($CZ52,'Audit Values'!$A$2:$AE$346,24,FALSE)) -> 0 | AP52: 547628 | AQ52: =AP52/Weightings!$M$5 -> 142.2 | AR52: 985.5 | AS52: 1127.7 | AT52: 1127.7 | AU52: 0 | AV52: =IF(ISNA(VLOOKUP($CZ52,'Audit Values'!$A$2:$AC$355,2,FALSE)),"",IF(AND(Weightings!H52>0,VLOOKUP($CZ52,'Audit Values'!$A$2:$AC$355,29,FALSE)<Weightings!H52),Weightings!H52,VLOOKUP($CZ52,'Audit Values'!$A$2:$AC$355,29,FALSE))) -> 23 | AW52: =IF(ISNA(VLOOKUP($CZ52,'Audit Values'!$A$2:$AD$355,2,FALSE)),"",VLOOKUP($CZ52,'Audit Values'!$A$2:$AD$355,30,FALSE)) -> A | AX52: =IF(Weightings!G52="","",IF(Weightings!I52="Pending","PX","R")) -> R | AY52: =AR52*Weightings!$M$5+AU52 -> 3796146 | AZ52: =AT52*Weightings!$M$5+AU52 -> 4343900 | BA52: =IF(Weightings!G52>0,Weightings!G52,'Preliminary SO66'!AB49) -> 4380094 | BB52: 4343900 | BD52: =Weightings!E52 -> 0 | BE52: =Weightings!F52 -> 0 | BF52: 0 | BG52: 4343900 | BH52: =MAX(ROUND(((AR52-AO52-AN52)*Weightings!$M$12)+AP52,0),ROUND(((AR52-AO52-AN52)*Weightings!$M$12)+Weightings!B52,0)) -> 4946241 | BI52: 0.33 | BJ52: 1632260 | BK52: 1651966 | BL52: 1632260 | BM52: 0.33 | BN52: 0 | BO52: FALSE | BP52: 0 | BQ52: 0 | BR52: 0 | BS52: TRUE | BT52: 360.4838 | BU52: 0.385217 | BV52: 227.8 | BW52: 0 | BX52: 269.3 | BY52: 0.67 | BZ52: =IF(ROUND((Weightings!$P$5*BY52^Weightings!$P$6*Weightings!$P$8 ),2)<Weightings!$P$7,Weightings!$P$7,ROUND((Weightings!$P$5*BY52^Weightings!$P$6*Weightings!$P$8 ),2)) -> 1164.72 | CA52: =ROUND(BZ52/Weightings!$M$5,4) -> 0.3024 | CB52: 54.4 | CC52: 0 | CD52: 0 | CE52: 0 | CF52: 0 | CG52: =AS52*Weightings!$M$5*CF52 -> 0 | CH52: 0 | CI52: 0.316 | CJ52: 2.2 | CK52: 0 | CL52: 0 | CM52: 0 | CN52: =IF(ISNA(VLOOKUP($CZ52,'Audit Values'!$A$2:$AE$346,2,FALSE)),'Preliminary SO66'!T49,VLOOKUP($CZ52,'Audit Values'!$A$2:$AE$346,20,FALSE)) -> 15.4 | CO52: 16.2 | CP52: 0 | CQ52: 0 | CR52: =IF(ISNA(VLOOKUP($CZ52,'Audit Values'!$A$2:$AE$346,2,FALSE)),'Preliminary SO66'!V49,VLOOKUP($CZ52,'Audit Values'!$A$2:$AE$346,22,FALSE)) -> 0 | CS52: 0 | CT52: =IF(ISNA(VLOOKUP($CZ52,'Audit Values'!$A$2:$AE$346,2,FALSE)),'Preliminary SO66'!W49,VLOOKUP($CZ52,'Audit Values'!$A$2:$AE$346,23,FALSE)) -> 0 | CU52: 0 | CV52: 16.2 | CW52: 0 | CX52: =IF(CW52>0,Weightings!$M$11*AR52,0) -> 0 | CY52: 0 | CZ52: D0240
A53: 241 | B53: Wallace | C53: Wallace County Schools | D53: 194.5 | E53: 0 | F53: 194.5 | G53: 190 | H53: 0 | I53: 190 | J53: 185.5 | K53: =IF(ISNA(VLOOKUP($CZ53,'Audit Values'!$A$2:$AE$346,2,FALSE)),'Preliminary SO66'!B50,VLOOKUP($CZ53,'Audit Values'!$A$2:$AE$346,31,FALSE)) -> 185.5 | L53: 190 | M53: =IF(ISNA(VLOOKUP($CZ53,'Audit Values'!$A$2:$AE$346,2,FALSE)),'Preliminary SO66'!Z50,VLOOKUP($CZ53,'Audit Values'!$A$2:$AE$346,26,FALSE)) -> 0 | N53: 190 | O53: =IF(ISNA(VLOOKUP($CZ53,'Audit Values'!$A$2:$AE$346,2,FALSE)),'Preliminary SO66'!C50,IF(VLOOKUP($CZ53,'Audit Values'!$A$2:$AE$346,28,FALSE)="",VLOOKUP($CZ53,'Audit Values'!$A$2:$AE$346,3,FALSE),VLOOKUP($CZ53,'Audit Values'!$A$2:$AE$346,28,FALSE))) -> 0 | P53: 185.5 | Q53: 185.5 | R53: 185.5 | S53: 190 | T53: 0 | U53: 147.4 | V53: 147.4 | W53: 0 | X53: =IF(ISNA(VLOOKUP($CZ53,'Audit Values'!$A$2:$AE$346,2,FALSE)),'Preliminary SO66'!D50,VLOOKUP($CZ53,'Audit Values'!$A$2:$AE$346,4,FALSE)) -> 0 | Y53: =ROUND((X53/6)*Weightings!$M$6,1) -> 0 | Z53: =IF(ISNA(VLOOKUP($CZ53,'Audit Values'!$A$2:$AE$346,2,FALSE)),'Preliminary SO66'!F50,VLOOKUP($CZ53,'Audit Values'!$A$2:$AE$346,6,FALSE)) -> 0 | AA53: =ROUND((Z53/6)*Weightings!$M$7,1) -> 0 | AB53: =IF(ISNA(VLOOKUP($CZ53,'Audit Values'!$A$2:$AE$346,2,FALSE)),'Preliminary SO66'!H50,VLOOKUP($CZ53,'Audit Values'!$A$2:$AE$346,9,FALSE)) -> 44 | AC53: =ROUND(AB53*Weightings!$M$8,1) -> 20.1 | AD53: 0 | AE53: 0 | AF53: =AE53*Weightings!$M$9 -> 0 | AG53: =IF(ISNA(VLOOKUP($CZ53,'Audit Values'!$A$2:$AE$346,2,FALSE)),'Preliminary SO66'!L50,VLOOKUP($CZ53,'Audit Values'!$A$2:$AE$346,12,FALSE)) -> 0 | AH53: =ROUND(AG53*Weightings!$M$10,1) -> 0 | AI53: =IF(ISNA(VLOOKUP($CZ53,'Audit Values'!$A$2:$AE$346,2,FALSE)),'Preliminary SO66'!O50,VLOOKUP($CZ53,'Audit Values'!$A$2:$AE$346,15,FALSE)) -> 57 | AJ53: 27.9 | AK53: =CC53/Weightings!$M$5 -> 0 | AL53: =CD53/Weightings!$M$5 -> 0 | AM53: =CH53/Weightings!$M$5 -> 0 | AN53: 0 | AO53: =IF(ISNA(VLOOKUP($CZ53,'Audit Values'!$A$2:$AE$346,2,FALSE)),'Preliminary SO66'!X50,VLOOKUP($CZ53,'Audit Values'!$A$2:$AE$346,24,FALSE)) -> 0 | AP53: 145929 | AQ53: =AP53/Weightings!$M$5 -> 37.9 | AR53: 385.4 | AS53: 423.3 | AT53: 423.3 | AU53: 0 | AV53: =IF(ISNA(VLOOKUP($CZ53,'Audit Values'!$A$2:$AC$355,2,FALSE)),"",IF(AND(Weightings!H53>0,VLOOKUP($CZ53,'Audit Values'!$A$2:$AC$355,29,FALSE)<Weightings!H53),Weightings!H53,VLOOKUP($CZ53,'Audit Values'!$A$2:$AC$355,29,FALSE))) -> 17 | AW53: =IF(ISNA(VLOOKUP($CZ53,'Audit Values'!$A$2:$AD$355,2,FALSE)),"",VLOOKUP($CZ53,'Audit Values'!$A$2:$AD$355,30,FALSE)) -> A | AX53: =IF(Weightings!G53="","",IF(Weightings!I53="Pending","PX","R")) ->  | AY53: =AR53*Weightings!$M$5+AU53 -> 1484561 | AZ53: =AT53*Weightings!$M$5+AU53 -> 1630552 | BA53: =IF(Weightings!G53>0,Weightings!G53,'Preliminary SO66'!AB50) -> 1685250 | BB53: 1630552 | BD53: =Weightings!E53 -> 0 | BE53: =Weightings!F53 -> 0 | BF53: 0 | BG53: 1630552 | BH53: =MAX(ROUND(((AR53-AO53-AN53)*Weightings!$M$12)+AP53,0),ROUND(((AR53-AO53-AN53)*Weightings!$M$12)+Weightings!B53,0)) -> 1887220 | BI53: 0.3 | BJ53: 566166 | BK53: 581235 | BL53: 566166 | BM53: 0.3 | BN53: 0 | BO53: TRUE | BP53: 868.95 | BQ53: 0.775766 | BR53: 147.4 | BS53: FALSE | BT53: 0 | BU53: 0 | BV53: 0 | BW53: 0 | BX53: 681.5 | BY53: 0.08 | BZ53: =IF(ROUND((Weightings!$P$5*BY53^Weightings!$P$6*Weightings!$P$8 ),2)<Weightings!$P$7,Weightings!$P$7,ROUND((Weightings!$P$5*BY53^Weightings!$P$6*Weightings!$P$8 ),2)) -> 1883.68 | CA53: =ROUND(BZ53/Weightings!$M$5,4) -> 0.489 | CB53: 27.9 | CC53: 0 | CD53: 0 | CE53: 0 | CF53: 0 | CG53: =AS53*Weightings!$M$5*CF53 -> 0 | CH53: 0 | CI53: 0.232 | CJ53: 0.3 | CK53: 0 | CL53: 0 | CM53: 0 | CN53: =IF(ISNA(VLOOKUP($CZ53,'Audit Values'!$A$2:$AE$346,2,FALSE)),'Preliminary SO66'!T50,VLOOKUP($CZ53,'Audit Values'!$A$2:$AE$346,20,FALSE)) -> 0 | CO53: 0 | CP53: 0 | CQ53: 0 | CR53: =IF(ISNA(VLOOKUP($CZ53,'Audit Values'!$A$2:$AE$346,2,FALSE)),'Preliminary SO66'!V50,VLOOKUP($CZ53,'Audit Values'!$A$2:$AE$346,22,FALSE)) -> 0 | CS53: 0 | CT53: =IF(ISNA(VLOOKUP($CZ53,'Audit Values'!$A$2:$AE$346,2,FALSE)),'Preliminary SO66'!W50,VLOOKUP($CZ53,'Audit Values'!$A$2:$AE$346,23,FALSE)) -> 0 | CU53: 0 | CV53: 0 | CW53: 0 | CX53: =IF(CW53>0,Weightings!$M$11*AR53,0) -> 0 | CY53: 0 | CZ53: D0241
A54: 242 | B54: Wallace | C54: Weskan | D54: 100 | E54: 0 | F54: 100 | G54: 90.8 | H54: 0 | I54: 90.8 | J54: 95.7 | K54: =IF(ISNA(VLOOKUP($CZ54,'Audit Values'!$A$2:$AE$346,2,FALSE)),'Preliminary SO66'!B51,VLOOKUP($CZ54,'Audit Values'!$A$2:$AE$346,31,FALSE)) -> 95.7 | L54: 95.7 | M54: =IF(ISNA(VLOOKUP($CZ54,'Audit Values'!$A$2:$AE$346,2,FALSE)),'Preliminary SO66'!Z51,VLOOKUP($CZ54,'Audit Values'!$A$2:$AE$346,26,FALSE)) -> 0 | N54: 95.7 | O54: =IF(ISNA(VLOOKUP($CZ54,'Audit Values'!$A$2:$AE$346,2,FALSE)),'Preliminary SO66'!C51,IF(VLOOKUP($CZ54,'Audit Values'!$A$2:$AE$346,28,FALSE)="",VLOOKUP($CZ54,'Audit Values'!$A$2:$AE$346,3,FALSE),VLOOKUP($CZ54,'Audit Values'!$A$2:$AE$346,28,FALSE))) -> 0 | P54: 95.7 | Q54: 95.7 | R54: 95.7 | S54: 95.7 | T54: 0 | U54: 97.1 | V54: 97.1 | W54: 0 | X54: =IF(ISNA(VLOOKUP($CZ54,'Audit Values'!$A$2:$AE$346,2,FALSE)),'Preliminary SO66'!D51,VLOOKUP($CZ54,'Audit Values'!$A$2:$AE$346,4,FALSE)) -> 0 | Y54: =ROUND((X54/6)*Weightings!$M$6,1) -> 0 | Z54: =IF(ISNA(VLOOKUP($CZ54,'Audit Values'!$A$2:$AE$346,2,FALSE)),'Preliminary SO66'!F51,VLOOKUP($CZ54,'Audit Values'!$A$2:$AE$346,6,FALSE)) -> 16.9 | AA54: =ROUND((Z54/6)*Weightings!$M$7,1) -> 1.1 | AB54: =IF(ISNA(VLOOKUP($CZ54,'Audit Values'!$A$2:$AE$346,2,FALSE)),'Preliminary SO66'!H51,VLOOKUP($CZ54,'Audit Values'!$A$2:$AE$346,9,FALSE)) -> 22 | AC54: =ROUND(AB54*Weightings!$M$8,1) -> 10 | AD54: 0 | AE54: 0 | AF54: =AE54*Weightings!$M$9 -> 0 | AG54: =IF(ISNA(VLOOKUP($CZ54,'Audit Values'!$A$2:$AE$346,2,FALSE)),'Preliminary SO66'!L51,VLOOKUP($CZ54,'Audit Values'!$A$2:$AE$346,12,FALSE)) -> 0 | AH54: =ROUND(AG54*Weightings!$M$10,1) -> 0 | AI54: =IF(ISNA(VLOOKUP($CZ54,'Audit Values'!$A$2:$AE$346,2,FALSE)),'Preliminary SO66'!O51,VLOOKUP($CZ54,'Audit Values'!$A$2:$AE$346,15,FALSE)) -> 31.4 | AJ54: 13.8 | AK54: =CC54/Weightings!$M$5 -> 0 | AL54: =CD54/Weightings!$M$5 -> 0 | AM54: =CH54/Weightings!$M$5 -> 0 | AN54: 0 | AO54: =IF(ISNA(VLOOKUP($CZ54,'Audit Values'!$A$2:$AE$346,2,FALSE)),'Preliminary SO66'!X51,VLOOKUP($CZ54,'Audit Values'!$A$2:$AE$346,24,FALSE)) -> 0 | AP54: 106695 | AQ54: =AP54/Weightings!$M$5 -> 27.7 | AR54: 217.7 | AS54: 245.4 | AT54: 245.4 | AU54: 0 | AV54: =IF(ISNA(VLOOKUP($CZ54,'Audit Values'!$A$2:$AC$355,2,FALSE)),"",IF(AND(Weightings!H54>0,VLOOKUP($CZ54,'Audit Values'!$A$2:$AC$355,29,FALSE)<Weightings!H54),Weightings!H54,VLOOKUP($CZ54,'Audit Values'!$A$2:$AC$355,29,FALSE))) -> 17 | AW54: =IF(ISNA(VLOOKUP($CZ54,'Audit Values'!$A$2:$AD$355,2,FALSE)),"",VLOOKUP($CZ54,'Audit Values'!$A$2:$AD$355,30,FALSE)) -> A | AX54: =IF(Weightings!G54="","",IF(Weightings!I54="Pending","PX","R")) ->  | AY54: =AR54*Weightings!$M$5+AU54 -> 838580 | AZ54: =AT54*Weightings!$M$5+AU54 -> 945281 | BA54: =IF(Weightings!G54>0,Weightings!G54,'Preliminary SO66'!AB51) -> 956066 | BB54: 945281 | BD54: =Weightings!E54 -> 0 | BE54: =Weightings!F54 -> 0 | BF54: 0 | BG54: 945281 | BH54: =MAX(ROUND(((AR54-AO54-AN54)*Weightings!$M$12)+AP54,0),ROUND(((AR54-AO54-AN54)*Weightings!$M$12)+Weightings!B54,0)) -> 1084168 | BI54: 0.3 | BJ54: 325250 | BK54: 328831 | BL54: 325250 | BM54: 0.3 | BN54: 97.1 | BO54: FALSE | BP54: 0 | BQ54: 0 | BR54: 0 | BS54: FALSE | BT54: 0 | BU54: 0 | BV54: 0 | BW54: 0 | BX54: 243 | BY54: 0.13 | BZ54: =IF(ROUND((Weightings!$P$5*BY54^Weightings!$P$6*Weightings!$P$8 ),2)<Weightings!$P$7,Weightings!$P$7,ROUND((Weightings!$P$5*BY54^Weightings!$P$6*Weightings!$P$8 ),2)) -> 1687.76 | CA54: =ROUND(BZ54/Weightings!$M$5,4) -> 0.4382 | CB54: 13.8 | CC54: 0 | CD54: 0 | CE54: 0 | CF54: 0 | CG54: =AS54*Weightings!$M$5*CF54 -> 0 | CH54: 0 | CI54: 0.23 | CJ54: 0.4 | CK54: 0 | CL54: 0 | CM54: 0 | CN54: =IF(ISNA(VLOOKUP($CZ54,'Audit Values'!$A$2:$AE$346,2,FALSE)),'Preliminary SO66'!T51,VLOOKUP($CZ54,'Audit Values'!$A$2:$AE$346,20,FALSE)) -> 0 | CO54: 0 | CP54: 0 | CQ54: 0 | CR54: =IF(ISNA(VLOOKUP($CZ54,'Audit Values'!$A$2:$AE$346,2,FALSE)),'Preliminary SO66'!V51,VLOOKUP($CZ54,'Audit Values'!$A$2:$AE$346,22,FALSE)) -> 0 | CS54: 0 | CT54: =IF(ISNA(VLOOKUP($CZ54,'Audit Values'!$A$2:$AE$346,2,FALSE)),'Preliminary SO66'!W51,VLOOKUP($CZ54,'Audit Values'!$A$2:$AE$346,23,FALSE)) -> 0 | CU54: 0 | CV54: 0 | CW54: 0 | CX54: =IF(CW54>0,Weightings!$M$11*AR54,0) -> 0 | CY54: 0 | CZ54: D0242
A55: 243 | B55: Coffey | C55: Lebo-Waverly | D55: 485.5 | E55: 0 | F55: 485.5 | G55: 491 | H55: 0 | I55: 491 | J55: 452.5 | K55: =IF(ISNA(VLOOKUP($CZ55,'Audit Values'!$A$2:$AE$346,2,FALSE)),'Preliminary SO66'!B52,VLOOKUP($CZ55,'Audit Values'!$A$2:$AE$346,31,FALSE)) -> 452.5 | L55: 491 | M55: =IF(ISNA(VLOOKUP($CZ55,'Audit Values'!$A$2:$AE$346,2,FALSE)),'Preliminary SO66'!Z52,VLOOKUP($CZ55,'Audit Values'!$A$2:$AE$346,26,FALSE)) -> 0 | N55: 491 | O55: =IF(ISNA(VLOOKUP($CZ55,'Audit Values'!$A$2:$AE$346,2,FALSE)),'Preliminary SO66'!C52,IF(VLOOKUP($CZ55,'Audit Values'!$A$2:$AE$346,28,FALSE)="",VLOOKUP($CZ55,'Audit Values'!$A$2:$AE$346,3,FALSE),VLOOKUP($CZ55,'Audit Values'!$A$2:$AE$346,28,FALSE))) -> 0 | P55: 452.5 | Q55: 452.5 | R55: 452.5 | S55: 491 | T55: 0 | U55: 205.9 | V55: 205.9 | W55: 0 | X55: =IF(ISNA(VLOOKUP($CZ55,'Audit Values'!$A$2:$AE$346,2,FALSE)),'Preliminary SO66'!D52,VLOOKUP($CZ55,'Audit Values'!$A$2:$AE$346,4,FALSE)) -> 108.2 | Y55: =ROUND((X55/6)*Weightings!$M$6,1) -> 9 | Z55: =IF(ISNA(VLOOKUP($CZ55,'Audit Values'!$A$2:$AE$346,2,FALSE)),'Preliminary SO66'!F52,VLOOKUP($CZ55,'Audit Values'!$A$2:$AE$346,6,FALSE)) -> 0 | AA55: =ROUND((Z55/6)*Weightings!$M$7,1) -> 0 | AB55: =IF(ISNA(VLOOKUP($CZ55,'Audit Values'!$A$2:$AE$346,2,FALSE)),'Preliminary SO66'!H52,VLOOKUP($CZ55,'Audit Values'!$A$2:$AE$346,9,FALSE)) -> 142 | AC55: =ROUND(AB55*Weightings!$M$8,1) -> 64.8 | AD55: 0 | AE55: 0 | AF55: =AE55*Weightings!$M$9 -> 0 | AG55: =IF(ISNA(VLOOKUP($CZ55,'Audit Values'!$A$2:$AE$346,2,FALSE)),'Preliminary SO66'!L52,VLOOKUP($CZ55,'Audit Values'!$A$2:$AE$346,12,FALSE)) -> 0 | AH55: =ROUND(AG55*Weightings!$M$10,1) -> 0 | AI55: =IF(ISNA(VLOOKUP($CZ55,'Audit Values'!$A$2:$AE$346,2,FALSE)),'Preliminary SO66'!O52,VLOOKUP($CZ55,'Audit Values'!$A$2:$AE$346,15,FALSE)) -> 116 | AJ55: 38 | AK55: =CC55/Weightings!$M$5 -> 0 | AL55: =CD55/Weightings!$M$5 -> 0 | AM55: =CH55/Weightings!$M$5 -> 0 | AN55: 0 | AO55: =IF(ISNA(VLOOKUP($CZ55,'Audit Values'!$A$2:$AE$346,2,FALSE)),'Preliminary SO66'!X52,VLOOKUP($CZ55,'Audit Values'!$A$2:$AE$346,24,FALSE)) -> 0 | AP55: =293855+63126+281085 -> 638066 | AQ55: =AP55/Weightings!$M$5 -> 165.6 | AR55: 808.7 | AS55: 974.3 | AT55: 974.3 | AU55: 0 | AV55: =IF(ISNA(VLOOKUP($CZ55,'Audit Values'!$A$2:$AC$355,2,FALSE)),"",IF(AND(Weightings!H55>0,VLOOKUP($CZ55,'Audit Values'!$A$2:$AC$355,29,FALSE)<Weightings!H55),Weightings!H55,VLOOKUP($CZ55,'Audit Values'!$A$2:$AC$355,29,FALSE))) -> 13 | AW55: =IF(ISNA(VLOOKUP($CZ55,'Audit Values'!$A$2:$AD$355,2,FALSE)),"",VLOOKUP($CZ55,'Audit Values'!$A$2:$AD$355,30,FALSE)) -> A | AX55: =IF(Weightings!G55="","",IF(Weightings!I55="Pending","PX","R")) ->  | AY55: =AR55*Weightings!$M$5+AU55 -> 3115112 | AZ55: =AT55*Weightings!$M$5+AU55 -> 3753004 | BA55: =IF(Weightings!G55>0,Weightings!G55,'Preliminary SO66'!AB52) -> 3816947 | BB55: 3753004 | BD55: =Weightings!E55 -> -4719 | BE55: =Weightings!F55 -> 0 | BF55: -4719 | BG55: 3748285 | BH55: =MAX(ROUND(((AR55-AO55-AN55)*Weightings!$M$12)+AP55,0),ROUND(((AR55-AO55-AN55)*Weightings!$M$12)+Weightings!B55,0)) -> 4269129 | BI55: 0.3 | BJ55: 1280739 | BK55: 1299491 | BL55: 1280739 | BM55: 0.3 | BN55: 0 | BO55: FALSE | BP55: 0 | BQ55: 0 | BR55: 0 | BS55: TRUE | BT55: 236.3625 | BU55: 0.419294 | BV55: 205.9 | BW55: 0 | BX55: 248 | BY55: 0.47 | BZ55: =IF(ROUND((Weightings!$P$5*BY55^Weightings!$P$6*Weightings!$P$8 ),2)<Weightings!$P$7,Weightings!$P$7,ROUND((Weightings!$P$5*BY55^Weightings!$P$6*Weightings!$P$8 ),2)) -> 1261.98 | CA55: =ROUND(BZ55/Weightings!$M$5,4) -> 0.3276 | CB55: 38 | CC55: 0 | CD55: 0 | CE55: 0 | CF55: 0 | CG55: =AS55*Weightings!$M$5*CF55 -> 0 | CH55: 0 | CI55: 0.289 | CJ55: 2 | CK55: 0 | CL55: 0 | CM55: 0 | CN55: =IF(ISNA(VLOOKUP($CZ55,'Audit Values'!$A$2:$AE$346,2,FALSE)),'Preliminary SO66'!T52,VLOOKUP($CZ55,'Audit Values'!$A$2:$AE$346,20,FALSE)) -> 0 | CO55: 0 | CP55: 0 | CQ55: 0 | CR55: =IF(ISNA(VLOOKUP($CZ55,'Audit Values'!$A$2:$AE$346,2,FALSE)),'Preliminary SO66'!V52,VLOOKUP($CZ55,'Audit Values'!$A$2:$AE$346,22,FALSE)) -> 0 | CS55: 0 | CT55: =IF(ISNA(VLOOKUP($CZ55,'Audit Values'!$A$2:$AE$346,2,FALSE)),'Preliminary SO66'!W52,VLOOKUP($CZ55,'Audit Values'!$A$2:$AE$346,23,FALSE)) -> 0 | CU55: 0 | CV55: 0 | CW55: 0 | CX55: =IF(CW55>0,Weightings!$M$11*AR55,0) -> 0 | CY55: 0 | CZ55: D0243
A56: 244 | B56: Coffey | C56: Burlington | D56: 797.7 | E56: 0 | F56: 797.7 | G56: 810.7 | H56: 0 | I56: 810.7 | J56: 815 | K56: =IF(ISNA(VLOOKUP($CZ56,'Audit Values'!$A$2:$AE$346,2,FALSE)),'Preliminary SO66'!B53,VLOOKUP($CZ56,'Audit Values'!$A$2:$AE$346,31,FALSE)) -> 815 | L56: 815 | M56: =IF(ISNA(VLOOKUP($CZ56,'Audit Values'!$A$2:$AE$346,2,FALSE)),'Preliminary SO66'!Z53,VLOOKUP($CZ56,'Audit Values'!$A$2:$AE$346,26,FALSE)) -> 0 | N56: 815 | O56: =IF(ISNA(VLOOKUP($CZ56,'Audit Values'!$A$2:$AE$346,2,FALSE)),'Preliminary SO66'!C53,IF(VLOOKUP($CZ56,'Audit Values'!$A$2:$AE$346,28,FALSE)="",VLOOKUP($CZ56,'Audit Values'!$A$2:$AE$346,3,FALSE),VLOOKUP($CZ56,'Audit Values'!$A$2:$AE$346,28,FALSE))) -> 6 | P56: 821 | Q56: 821 | R56: 821 | S56: 821 | T56: 0 | U56: 252.2 | V56: 252.2 | W56: 0 | X56: =IF(ISNA(VLOOKUP($CZ56,'Audit Values'!$A$2:$AE$346,2,FALSE)),'Preliminary SO66'!D53,VLOOKUP($CZ56,'Audit Values'!$A$2:$AE$346,4,FALSE)) -> 234.4 | Y56: =ROUND((X56/6)*Weightings!$M$6,1) -> 19.5 | Z56: =IF(ISNA(VLOOKUP($CZ56,'Audit Values'!$A$2:$AE$346,2,FALSE)),'Preliminary SO66'!F53,VLOOKUP($CZ56,'Audit Values'!$A$2:$AE$346,6,FALSE)) -> 3.3 | AA56: =ROUND((Z56/6)*Weightings!$M$7,1) -> 0.2 | AB56: =IF(ISNA(VLOOKUP($CZ56,'Audit Values'!$A$2:$AE$346,2,FALSE)),'Preliminary SO66'!H53,VLOOKUP($CZ56,'Audit Values'!$A$2:$AE$346,9,FALSE)) -> 229 | AC56: =ROUND(AB56*Weightings!$M$8,1) -> 104.4 | AD56: 0 | AE56: 0 | AF56: =AE56*Weightings!$M$9 -> 0 | AG56: =IF(ISNA(VLOOKUP($CZ56,'Audit Values'!$A$2:$AE$346,2,FALSE)),'Preliminary SO66'!L53,VLOOKUP($CZ56,'Audit Values'!$A$2:$AE$346,12,FALSE)) -> 0 | AH56: =ROUND(AG56*Weightings!$M$10,1) -> 0 | AI56: =IF(ISNA(VLOOKUP($CZ56,'Audit Values'!$A$2:$AE$346,2,FALSE)),'Preliminary SO66'!O53,VLOOKUP($CZ56,'Audit Values'!$A$2:$AE$346,15,FALSE)) -> 234 | AJ56: 58.2 | AK56: =CC56/Weightings!$M$5 -> 0 | AL56: =CD56/Weightings!$M$5 -> 0 | AM56: =CH56/Weightings!$M$5 -> 0 | AN56: 0 | AO56: =IF(ISNA(VLOOKUP($CZ56,'Audit Values'!$A$2:$AE$346,2,FALSE)),'Preliminary SO66'!X53,VLOOKUP($CZ56,'Audit Values'!$A$2:$AE$346,24,FALSE)) -> 0 | AP56: 1209306 | AQ56: =AP56/Weightings!$M$5 -> 313.9 | AR56: 1255.5 | AS56: 1569.4 | AT56: 1569.4 | AU56: 0 | AV56: =IF(ISNA(VLOOKUP($CZ56,'Audit Values'!$A$2:$AC$355,2,FALSE)),"",IF(AND(Weightings!H56>0,VLOOKUP($CZ56,'Audit Values'!$A$2:$AC$355,29,FALSE)<Weightings!H56),Weightings!H56,VLOOKUP($CZ56,'Audit Values'!$A$2:$AC$355,29,FALSE))) -> 9 | AW56: =IF(ISNA(VLOOKUP($CZ56,'Audit Values'!$A$2:$AD$355,2,FALSE)),"",VLOOKUP($CZ56,'Audit Values'!$A$2:$AD$355,30,FALSE)) -> A | AX56: =IF(Weightings!G56="","",IF(Weightings!I56="Pending","PX","R")) ->  | AY56: =AR56*Weightings!$M$5+AU56 -> 4836186 | AZ56: =AT56*Weightings!$M$5+AU56 -> 6045329 | BA56: =IF(Weightings!G56>0,Weightings!G56,'Preliminary SO66'!AB53) -> 6176297 | BB56: 6045329 | BD56: =Weightings!E56 -> 0 | BE56: =Weightings!F56 -> 0 | BF56: 0 | BG56: 6045329 | BH56: =MAX(ROUND(((AR56-AO56-AN56)*Weightings!$M$12)+AP56,0),ROUND(((AR56-AO56-AN56)*Weightings!$M$12)+Weightings!B56,0)) -> 6937545 | BI56: 0.3 | BJ56: 2081264 | BK56: 2097562 | BL56: 2081264 | BM56: 0.3 | BN56: 0 | BO56: FALSE | BP56: 0 | BQ56: 0 | BR56: 0 | BS56: TRUE | BT56: 644.7375 | BU56: 0.307177 | BV56: 252.2 | BW56: 0 | BX56: 147 | BY56: 1.59 | BZ56: =IF(ROUND((Weightings!$P$5*BY56^Weightings!$P$6*Weightings!$P$8 ),2)<Weightings!$P$7,Weightings!$P$7,ROUND((Weightings!$P$5*BY56^Weightings!$P$6*Weightings!$P$8 ),2)) -> 957.9 | CA56: =ROUND(BZ56/Weightings!$M$5,4) -> 0.2487 | CB56: 58.2 | CC56: 0 | CD56: 0 | CE56: 0 | CF56: 0 | CG56: =AS56*Weightings!$M$5*CF56 -> 0 | CH56: 0 | CI56: 0.279 | CJ56: 5.6 | CK56: 0 | CL56: 0 | CM56: 0 | CN56: =IF(ISNA(VLOOKUP($CZ56,'Audit Values'!$A$2:$AE$346,2,FALSE)),'Preliminary SO66'!T53,VLOOKUP($CZ56,'Audit Values'!$A$2:$AE$346,20,FALSE)) -> 0 | CO56: 0 | CP56: 0 | CQ56: 0 | CR56: =IF(ISNA(VLOOKUP($CZ56,'Audit Values'!$A$2:$AE$346,2,FALSE)),'Preliminary SO66'!V53,VLOOKUP($CZ56,'Audit Values'!$A$2:$AE$346,22,FALSE)) -> 0 | CS56: 0 | CT56: =IF(ISNA(VLOOKUP($CZ56,'Audit Values'!$A$2:$AE$346,2,FALSE)),'Preliminary SO66'!W53,VLOOKUP($CZ56,'Audit Values'!$A$2:$AE$346,23,FALSE)) -> 0 | CU56: 0 | CV56: 0 | CW56: 0 | CX56: =IF(CW56>0,Weightings!$M$11*AR56,0) -> 0 | CY56: 0 | CZ56: D0244
A57: 245 | B57: Coffey | C57: LeRoy-Gridley | D57: 213.9 | E57: 0 | F57: 213.9 | G57: 198 | H57: 0 | I57: 198 | J57: 214.1 | K57: =IF(ISNA(VLOOKUP($CZ57,'Audit Values'!$A$2:$AE$346,2,FALSE)),'Preliminary SO66'!B54,VLOOKUP($CZ57,'Audit Values'!$A$2:$AE$346,31,FALSE)) -> 214.1 | L57: 214.1 | M57: =IF(ISNA(VLOOKUP($CZ57,'Audit Values'!$A$2:$AE$346,2,FALSE)),'Preliminary SO66'!Z54,VLOOKUP($CZ57,'Audit Values'!$A$2:$AE$346,26,FALSE)) -> 0 | N57: 214.1 | O57: =IF(ISNA(VLOOKUP($CZ57,'Audit Values'!$A$2:$AE$346,2,FALSE)),'Preliminary SO66'!C54,IF(VLOOKUP($CZ57,'Audit Values'!$A$2:$AE$346,28,FALSE)="",VLOOKUP($CZ57,'Audit Values'!$A$2:$AE$346,3,FALSE),VLOOKUP($CZ57,'Audit Values'!$A$2:$AE$346,28,FALSE))) -> 0 | P57: 214.1 | Q57: 214.1 | R57: 214.1 | S57: 214.1 | T57: 0 | U57: 152.4 | V57: 152.4 | W57: 0 | X57: =IF(ISNA(VLOOKUP($CZ57,'Audit Values'!$A$2:$AE$346,2,FALSE)),'Preliminary SO66'!D54,VLOOKUP($CZ57,'Audit Values'!$A$2:$AE$346,4,FALSE)) -> 51.8 | Y57: =ROUND((X57/6)*Weightings!$M$6,1) -> 4.3 | Z57: =IF(ISNA(VLOOKUP($CZ57,'Audit Values'!$A$2:$AE$346,2,FALSE)),'Preliminary SO66'!F54,VLOOKUP($CZ57,'Audit Values'!$A$2:$AE$346,6,FALSE)) -> 0 | AA57: =ROUND((Z57/6)*Weightings!$M$7,1) -> 0 | AB57: =IF(ISNA(VLOOKUP($CZ57,'Audit Values'!$A$2:$AE$346,2,FALSE)),'Preliminary SO66'!H54,VLOOKUP($CZ57,'Audit Values'!$A$2:$AE$346,9,FALSE)) -> 88 | AC57: =ROUND(AB57*Weightings!$M$8,1) -> 40.1 | AD57: 3.8 | AE57: 0 | AF57: =AE57*Weightings!$M$9 -> 0 | AG57: =IF(ISNA(VLOOKUP($CZ57,'Audit Values'!$A$2:$AE$346,2,FALSE)),'Preliminary SO66'!L54,VLOOKUP($CZ57,'Audit Values'!$A$2:$AE$346,12,FALSE)) -> 0 | AH57: =ROUND(AG57*Weightings!$M$10,1) -> 0 | AI57: =IF(ISNA(VLOOKUP($CZ57,'Audit Values'!$A$2:$AE$346,2,FALSE)),'Preliminary SO66'!O54,VLOOKUP($CZ57,'Audit Values'!$A$2:$AE$346,15,FALSE)) -> 107.5 | AJ57: 34.4 | AK57: =CC57/Weightings!$M$5 -> 0 | AL57: =CD57/Weightings!$M$5 -> 0 | AM57: =CH57/Weightings!$M$5 -> 0 | AN57: 0 | AO57: =IF(ISNA(VLOOKUP($CZ57,'Audit Values'!$A$2:$AE$346,2,FALSE)),'Preliminary SO66'!X54,VLOOKUP($CZ57,'Audit Values'!$A$2:$AE$346,24,FALSE)) -> 0 | AP57: 259721 | AQ57: =AP57/Weightings!$M$5 -> 67.4 | AR57: 449.1 | AS57: 516.5 | AT57: 516.5 | AU57: 0 | AV57: =IF(ISNA(VLOOKUP($CZ57,'Audit Values'!$A$2:$AC$355,2,FALSE)),"",IF(AND(Weightings!H57>0,VLOOKUP($CZ57,'Audit Values'!$A$2:$AC$355,29,FALSE)<Weightings!H57),Weightings!H57,VLOOKUP($CZ57,'Audit Values'!$A$2:$AC$355,29,FALSE))) -> 32 | AW57: =IF(ISNA(VLOOKUP($CZ57,'Audit Values'!$A$2:$AD$355,2,FALSE)),"",VLOOKUP($CZ57,'Audit Values'!$A$2:$AD$355,30,FALSE)) -> A | AX57: =IF(Weightings!G57="","",IF(Weightings!I57="Pending","PX","R")) -> R | AY57: =AR57*Weightings!$M$5+AU57 -> 1729933 | AZ57: =AT57*Weightings!$M$5+AU57 -> 1989558 | BA57: =IF(Weightings!G57>0,Weightings!G57,'Preliminary SO66'!AB54) -> 1989558 | BB57: 1989558 | BD57: =Weightings!E57 -> 0 | BE57: =Weightings!F57 -> 0 | BF57: 0 | BG57: 1989558 | BH57: =MAX(ROUND(((AR57-AO57-AN57)*Weightings!$M$12)+AP57,0),ROUND(((AR57-AO57-AN57)*Weightings!$M$12)+Weightings!B57,0)) -> 2317010 | BI57: 0.3 | BJ57: 695103 | BK57: 684058 | BL57: 684058 | BM57: 0.2952 | BN57: 0 | BO57: TRUE | BP57: 1101.636 | BQ57: 0.711883 | BR57: 152.4 | BS57: FALSE | BT57: 0 | BU57: 0 | BV57: 0 | BW57: 0 | BX57: 207 | BY57: 0.52 | BZ57: =IF(ROUND((Weightings!$P$5*BY57^Weightings!$P$6*Weightings!$P$8 ),2)<Weightings!$P$7,Weightings!$P$7,ROUND((Weightings!$P$5*BY57^Weightings!$P$6*Weightings!$P$8 ),2)) -> 1233.45 | CA57: =ROUND(BZ57/Weightings!$M$5,4) -> 0.3202 | CB57: 34.4 | CC57: 0 | CD57: 0 | CE57: 0 | CF57: 0 | CG57: =AS57*Weightings!$M$5*CF57 -> 0 | CH57: 0 | CI57: 0.411 | CJ57: 1 | CK57: 0 | CL57: 0 | CM57: 3.8 | CN57: =IF(ISNA(VLOOKUP($CZ57,'Audit Values'!$A$2:$AE$346,2,FALSE)),'Preliminary SO66'!T54,VLOOKUP($CZ57,'Audit Values'!$A$2:$AE$346,20,FALSE)) -> 0 | CO57: 0 | CP57: 0 | CQ57: 0 | CR57: =IF(ISNA(VLOOKUP($CZ57,'Audit Values'!$A$2:$AE$346,2,FALSE)),'Preliminary SO66'!V54,VLOOKUP($CZ57,'Audit Values'!$A$2:$AE$346,22,FALSE)) -> 0 | CS57: 0 | CT57: =IF(ISNA(VLOOKUP($CZ57,'Audit Values'!$A$2:$AE$346,2,FALSE)),'Preliminary SO66'!W54,VLOOKUP($CZ57,'Audit Values'!$A$2:$AE$346,23,FALSE)) -> 0 | CU57: 0 | CV57: 0 | CW57: 0 | CX57: =IF(CW57>0,Weightings!$M$11*AR57,0) -> 0 | CY57: 0 | CZ57: D0245
A58: 246 | B58: Crawford | C58: Northeast | D58: 462 | E58: 0 | F58: 462 | G58: 477.5 | H58: 0 | I58: 477.5 | J58: 480.5 | K58: =IF(ISNA(VLOOKUP($CZ58,'Audit Values'!$A$2:$AE$346,2,FALSE)),'Preliminary SO66'!B55,VLOOKUP($CZ58,'Audit Values'!$A$2:$AE$346,31,FALSE)) -> 480.5 | L58: 480.5 | M58: =IF(ISNA(VLOOKUP($CZ58,'Audit Values'!$A$2:$AE$346,2,FALSE)),'Preliminary SO66'!Z55,VLOOKUP($CZ58,'Audit Values'!$A$2:$AE$346,26,FALSE)) -> 0 | N58: 480.5 | O58: =IF(ISNA(VLOOKUP($CZ58,'Audit Values'!$A$2:$AE$346,2,FALSE)),'Preliminary SO66'!C55,IF(VLOOKUP($CZ58,'Audit Values'!$A$2:$AE$346,28,FALSE)="",VLOOKUP($CZ58,'Audit Values'!$A$2:$AE$346,3,FALSE),VLOOKUP($CZ58,'Audit Values'!$A$2:$AE$346,28,FALSE))) -> 6 | P58: 486.5 | Q58: 486.5 | R58: 486.5 | S58: 486.5 | T58: 0 | U58: 204.7 | V58: 204.7 | W58: 0 | X58: =IF(ISNA(VLOOKUP($CZ58,'Audit Values'!$A$2:$AE$346,2,FALSE)),'Preliminary SO66'!D55,VLOOKUP($CZ58,'Audit Values'!$A$2:$AE$346,4,FALSE)) -> 0 | Y58: =ROUND((X58/6)*Weightings!$M$6,1) -> 0 | Z58: =IF(ISNA(VLOOKUP($CZ58,'Audit Values'!$A$2:$AE$346,2,FALSE)),'Preliminary SO66'!F55,VLOOKUP($CZ58,'Audit Values'!$A$2:$AE$346,6,FALSE)) -> 0 | AA58: =ROUND((Z58/6)*Weightings!$M$7,1) -> 0 | AB58: =IF(ISNA(VLOOKUP($CZ58,'Audit Values'!$A$2:$AE$346,2,FALSE)),'Preliminary SO66'!H55,VLOOKUP($CZ58,'Audit Values'!$A$2:$AE$346,9,FALSE)) -> 310 | AC58: =ROUND(AB58*Weightings!$M$8,1) -> 141.4 | AD58: 32.6 | AE58: 0 | AF58: =AE58*Weightings!$M$9 -> 0 | AG58: =IF(ISNA(VLOOKUP($CZ58,'Audit Values'!$A$2:$AE$346,2,FALSE)),'Preliminary SO66'!L55,VLOOKUP($CZ58,'Audit Values'!$A$2:$AE$346,12,FALSE)) -> 0 | AH58: =ROUND(AG58*Weightings!$M$10,1) -> 0 | AI58: =IF(ISNA(VLOOKUP($CZ58,'Audit Values'!$A$2:$AE$346,2,FALSE)),'Preliminary SO66'!O55,VLOOKUP($CZ58,'Audit Values'!$A$2:$AE$346,15,FALSE)) -> 189 | AJ58: 45.8 | AK58: =CC58/Weightings!$M$5 -> 0 | AL58: =CD58/Weightings!$M$5 -> 0 | AM58: =CH58/Weightings!$M$5 -> 0 | AN58: 0 | AO58: =IF(ISNA(VLOOKUP($CZ58,'Audit Values'!$A$2:$AE$346,2,FALSE)),'Preliminary SO66'!X55,VLOOKUP($CZ58,'Audit Values'!$A$2:$AE$346,24,FALSE)) -> 0 | AP58: 473996 | AQ58: =AP58/Weightings!$M$5 -> 123.1 | AR58: 911 | AS58: 1034.1 | AT58: 1034.1 | AU58: 0 | AV58: =IF(ISNA(VLOOKUP($CZ58,'Audit Values'!$A$2:$AC$355,2,FALSE)),"",IF(AND(Weightings!H58>0,VLOOKUP($CZ58,'Audit Values'!$A$2:$AC$355,29,FALSE)<Weightings!H58),Weightings!H58,VLOOKUP($CZ58,'Audit Values'!$A$2:$AC$355,29,FALSE))) -> 2 | AW58: =IF(ISNA(VLOOKUP($CZ58,'Audit Values'!$A$2:$AD$355,2,FALSE)),"",VLOOKUP($CZ58,'Audit Values'!$A$2:$AD$355,30,FALSE)) -> A | AX58: =IF(Weightings!G58="","",IF(Weightings!I58="Pending","PX","R")) ->  | AY58: =AR58*Weightings!$M$5+AU58 -> 3509172 | AZ58: =AT58*Weightings!$M$5+AU58 -> 3983353 | BA58: =IF(Weightings!G58>0,Weightings!G58,'Preliminary SO66'!AB55) -> 4057697 | BB58: 3983353 | BD58: =Weightings!E58 -> -863 | BE58: =Weightings!F58 -> 0 | BF58: -863 | BG58: 3982490 | BH58: =MAX(ROUND(((AR58-AO58-AN58)*Weightings!$M$12)+AP58,0),ROUND(((AR58-AO58-AN58)*Weightings!$M$12)+Weightings!B58,0)) -> 4611386 | BI58: 0.3 | BJ58: 1383416 | BK58: 1391784 | BL58: 1383416 | BM58: 0.3 | BN58: 0 | BO58: FALSE | BP58: 0 | BQ58: 0 | BR58: 0 | BS58: TRUE | BT58: 230.7938 | BU58: 0.420823 | BV58: 204.7 | BW58: 0 | BX58: 106 | BY58: 1.78 | BZ58: =IF(ROUND((Weightings!$P$5*BY58^Weightings!$P$6*Weightings!$P$8 ),2)<Weightings!$P$7,Weightings!$P$7,ROUND((Weightings!$P$5*BY58^Weightings!$P$6*Weightings!$P$8 ),2)) -> 933.75 | CA58: =ROUND(BZ58/Weightings!$M$5,4) -> 0.2424 | CB58: 45.8 | CC58: 0 | CD58: 0 | CE58: 0 | CF58: 0 | CG58: =AS58*Weightings!$M$5*CF58 -> 0 | CH58: 0 | CI58: 0.637 | CJ58: 4.6 | CK58: 32.6 | CL58: 0 | CM58: 0 | CN58: =IF(ISNA(VLOOKUP($CZ58,'Audit Values'!$A$2:$AE$346,2,FALSE)),'Preliminary SO66'!T55,VLOOKUP($CZ58,'Audit Values'!$A$2:$AE$346,20,FALSE)) -> 0 | CO58: 0 | CP58: 0 | CQ58: 0 | CR58: =IF(ISNA(VLOOKUP($CZ58,'Audit Values'!$A$2:$AE$346,2,FALSE)),'Preliminary SO66'!V55,VLOOKUP($CZ58,'Audit Values'!$A$2:$AE$346,22,FALSE)) -> 0 | CS58: 0 | CT58: =IF(ISNA(VLOOKUP($CZ58,'Audit Values'!$A$2:$AE$346,2,FALSE)),'Preliminary SO66'!W55,VLOOKUP($CZ58,'Audit Values'!$A$2:$AE$346,23,FALSE)) -> 0 | CU58: 0 | CV58: 0 | CW58: 0 | CX58: =IF(CW58>0,Weightings!$M$11*AR58,0) -> 0 | CY58: 0 | CZ58: D0246
A59: 247 | B59: Crawford | C59: Cherokee | D59: 652.6 | E59: 0 | F59: 652.6 | G59: 615.5 | H59: 0 | I59: 615.5 | J59: 559.4 | K59: =IF(ISNA(VLOOKUP($CZ59,'Audit Values'!$A$2:$AE$346,2,FALSE)),'Preliminary SO66'!B56,VLOOKUP($CZ59,'Audit Values'!$A$2:$AE$346,31,FALSE)) -> 559.4 | L59: 615.5 | M59: =IF(ISNA(VLOOKUP($CZ59,'Audit Values'!$A$2:$AE$346,2,FALSE)),'Preliminary SO66'!Z56,VLOOKUP($CZ59,'Audit Values'!$A$2:$AE$346,26,FALSE)) -> 0 | N59: 615.5 | O59: =IF(ISNA(VLOOKUP($CZ59,'Audit Values'!$A$2:$AE$346,2,FALSE)),'Preliminary SO66'!C56,IF(VLOOKUP($CZ59,'Audit Values'!$A$2:$AE$346,28,FALSE)="",VLOOKUP($CZ59,'Audit Values'!$A$2:$AE$346,3,FALSE),VLOOKUP($CZ59,'Audit Values'!$A$2:$AE$346,28,FALSE))) -> 4.5 | P59: 563.9 | Q59: 563.9 | R59: 563.9 | S59: 620 | T59: 0 | U59: 232.8 | V59: 232.8 | W59: 0 | X59: =IF(ISNA(VLOOKUP($CZ59,'Audit Values'!$A$2:$AE$346,2,FALSE)),'Preliminary SO66'!D56,VLOOKUP($CZ59,'Audit Values'!$A$2:$AE$346,4,FALSE)) -> 222.2 | Y59: =ROUND((X59/6)*Weightings!$M$6,1) -> 18.5 | Z59: =IF(ISNA(VLOOKUP($CZ59,'Audit Values'!$A$2:$AE$346,2,FALSE)),'Preliminary SO66'!F56,VLOOKUP($CZ59,'Audit Values'!$A$2:$AE$346,6,FALSE)) -> 0 | AA59: =ROUND((Z59/6)*Weightings!$M$7,1) -> 0 | AB59: =IF(ISNA(VLOOKUP($CZ59,'Audit Values'!$A$2:$AE$346,2,FALSE)),'Preliminary SO66'!H56,VLOOKUP($CZ59,'Audit Values'!$A$2:$AE$346,9,FALSE)) -> 268 | AC59: =ROUND(AB59*Weightings!$M$8,1) -> 122.2 | AD59: 15.4 | AE59: 0 | AF59: =AE59*Weightings!$M$9 -> 0 | AG59: =IF(ISNA(VLOOKUP($CZ59,'Audit Values'!$A$2:$AE$346,2,FALSE)),'Preliminary SO66'!L56,VLOOKUP($CZ59,'Audit Values'!$A$2:$AE$346,12,FALSE)) -> 0 | AH59: =ROUND(AG59*Weightings!$M$10,1) -> 0 | AI59: =IF(ISNA(VLOOKUP($CZ59,'Audit Values'!$A$2:$AE$346,2,FALSE)),'Preliminary SO66'!O56,VLOOKUP($CZ59,'Audit Values'!$A$2:$AE$346,15,FALSE)) -> 360.5 | AJ59: 95.5 | AK59: =CC59/Weightings!$M$5 -> 0 | AL59: =CD59/Weightings!$M$5 -> 0 | AM59: =CH59/Weightings!$M$5 -> 0 | AN59: 0 | AO59: =IF(ISNA(VLOOKUP($CZ59,'Audit Values'!$A$2:$AE$346,2,FALSE)),'Preliminary SO66'!X56,VLOOKUP($CZ59,'Audit Values'!$A$2:$AE$346,24,FALSE)) -> 0 | AP59: 616217 | AQ59: =AP59/Weightings!$M$5 -> 160 | AR59: 1104.4 | AS59: 1264.4 | AT59: 1264.4 | AU59: 0 | AV59: =IF(ISNA(VLOOKUP($CZ59,'Audit Values'!$A$2:$AC$355,2,FALSE)),"",IF(AND(Weightings!H59>0,VLOOKUP($CZ59,'Audit Values'!$A$2:$AC$355,29,FALSE)<Weightings!H59),Weightings!H59,VLOOKUP($CZ59,'Audit Values'!$A$2:$AC$355,29,FALSE))) -> 23 | AW59: =IF(ISNA(VLOOKUP($CZ59,'Audit Values'!$A$2:$AD$355,2,FALSE)),"",VLOOKUP($CZ59,'Audit Values'!$A$2:$AD$355,30,FALSE)) -> A | AX59: =IF(Weightings!G59="","",IF(Weightings!I59="Pending","PX","R")) -> R | AY59: =AR59*Weightings!$M$5+AU59 -> 4254149 | AZ59: =AT59*Weightings!$M$5+AU59 -> 4870469 | BA59: =IF(Weightings!G59>0,Weightings!G59,'Preliminary SO66'!AB56) -> 4914767 | BB59: 4870469 | BD59: =Weightings!E59 -> 0 | BE59: =Weightings!F59 -> 0 | BF59: 0 | BG59: 4870469 | BH59: =MAX(ROUND(((AR59-AO59-AN59)*Weightings!$M$12)+AP59,0),ROUND(((AR59-AO59-AN59)*Weightings!$M$12)+Weightings!B59,0)) -> 5615396 | BI59: 0.3 | BJ59: 1684619 | BK59: 1673906 | BL59: 1673906 | BM59: 0.2981 | BN59: 0 | BO59: FALSE | BP59: 0 | BQ59: 0 | BR59: 0 | BS59: TRUE | BT59: 396 | BU59: 0.375467 | BV59: 232.8 | BW59: 0 | BX59: 300 | BY59: 1.2 | BZ59: =IF(ROUND((Weightings!$P$5*BY59^Weightings!$P$6*Weightings!$P$8 ),2)<Weightings!$P$7,Weightings!$P$7,ROUND((Weightings!$P$5*BY59^Weightings!$P$6*Weightings!$P$8 ),2)) -> 1020.86 | CA59: =ROUND(BZ59/Weightings!$M$5,4) -> 0.265 | CB59: 95.5 | CC59: 0 | CD59: 0 | CE59: 0 | CF59: 0 | CG59: =AS59*Weightings!$M$5*CF59 -> 0 | CH59: 0 | CI59: 0.432 | CJ59: 2.1 | CK59: 0 | CL59: 0 | CM59: 15.4 | CN59: =IF(ISNA(VLOOKUP($CZ59,'Audit Values'!$A$2:$AE$346,2,FALSE)),'Preliminary SO66'!T56,VLOOKUP($CZ59,'Audit Values'!$A$2:$AE$346,20,FALSE)) -> 0 | CO59: 0 | CP59: 0 | CQ59: 0 | CR59: =IF(ISNA(VLOOKUP($CZ59,'Audit Values'!$A$2:$AE$346,2,FALSE)),'Preliminary SO66'!V56,VLOOKUP($CZ59,'Audit Values'!$A$2:$AE$346,22,FALSE)) -> 0 | CS59: 0 | CT59: =IF(ISNA(VLOOKUP($CZ59,'Audit Values'!$A$2:$AE$346,2,FALSE)),'Preliminary SO66'!W56,VLOOKUP($CZ59,'Audit Values'!$A$2:$AE$346,23,FALSE)) -> 0 | CU59: 0 | CV59: 0 | CW59: 0 | CX59: =IF(CW59>0,Weightings!$M$11*AR59,0) -> 0 | CY59: 0 | CZ59: D0247
A60: 248 | B60: Crawford | C60: Girard | D60: 1000 | E60: 0 | F60: 1000 | G60: 973.5 | H60: 0 | I60: 973.5 | J60: 973.5 | K60: =IF(ISNA(VLOOKUP($CZ60,'Audit Values'!$A$2:$AE$346,2,FALSE)),'Preliminary SO66'!B57,VLOOKUP($CZ60,'Audit Values'!$A$2:$AE$346,31,FALSE)) -> 973.5 | L60: 982.3 | M60: =IF(ISNA(VLOOKUP($CZ60,'Audit Values'!$A$2:$AE$346,2,FALSE)),'Preliminary SO66'!Z57,VLOOKUP($CZ60,'Audit Values'!$A$2:$AE$346,26,FALSE)) -> 0 | N60: 982.3 | O60: =IF(ISNA(VLOOKUP($CZ60,'Audit Values'!$A$2:$AE$346,2,FALSE)),'Preliminary SO66'!C57,IF(VLOOKUP($CZ60,'Audit Values'!$A$2:$AE$346,28,FALSE)="",VLOOKUP($CZ60,'Audit Values'!$A$2:$AE$346,3,FALSE),VLOOKUP($CZ60,'Audit Values'!$A$2:$AE$346,28,FALSE))) -> 7 | P60: 980.5 | Q60: 980.5 | R60: 980.5 | S60: 989.3 | T60: 0 | U60: 247.3 | V60: 247.3 | W60: 0 | X60: =IF(ISNA(VLOOKUP($CZ60,'Audit Values'!$A$2:$AE$346,2,FALSE)),'Preliminary SO66'!D57,VLOOKUP($CZ60,'Audit Values'!$A$2:$AE$346,4,FALSE)) -> 289.4 | Y60: =ROUND((X60/6)*Weightings!$M$6,1) -> 24.1 | Z60: =IF(ISNA(VLOOKUP($CZ60,'Audit Values'!$A$2:$AE$346,2,FALSE)),'Preliminary SO66'!F57,VLOOKUP($CZ60,'Audit Values'!$A$2:$AE$346,6,FALSE)) -> 7.7 | AA60: =ROUND((Z60/6)*Weightings!$M$7,1) -> 0.5 | AB60: =IF(ISNA(VLOOKUP($CZ60,'Audit Values'!$A$2:$AE$346,2,FALSE)),'Preliminary SO66'!H57,VLOOKUP($CZ60,'Audit Values'!$A$2:$AE$346,9,FALSE)) -> 384 | AC60: =ROUND(AB60*Weightings!$M$8,1) -> 175.1 | AD60: 10.2 | AE60: 0 | AF60: =AE60*Weightings!$M$9 -> 0 | AG60: =IF(ISNA(VLOOKUP($CZ60,'Audit Values'!$A$2:$AE$346,2,FALSE)),'Preliminary SO66'!L57,VLOOKUP($CZ60,'Audit Values'!$A$2:$AE$346,12,FALSE)) -> 0 | AH60: =ROUND(AG60*Weightings!$M$10,1) -> 0 | AI60: =IF(ISNA(VLOOKUP($CZ60,'Audit Values'!$A$2:$AE$346,2,FALSE)),'Preliminary SO66'!O57,VLOOKUP($CZ60,'Audit Values'!$A$2:$AE$346,15,FALSE)) -> 349 | AJ60: 90.4 | AK60: =CC60/Weightings!$M$5 -> 0 | AL60: =CD60/Weightings!$M$5 -> 0 | AM60: =CH60/Weightings!$M$5 -> 0 | AN60: 0 | AO60: =IF(ISNA(VLOOKUP($CZ60,'Audit Values'!$A$2:$AE$346,2,FALSE)),'Preliminary SO66'!X57,VLOOKUP($CZ60,'Audit Values'!$A$2:$AE$346,24,FALSE)) -> 0 | AP60: 882901 | AQ60: =AP60/Weightings!$M$5 -> 229.2 | AR60: 1536.9 | AS60: 1766.1 | AT60: 1766.1 | AU60: 0 | AV60: =IF(ISNA(VLOOKUP($CZ60,'Audit Values'!$A$2:$AC$355,2,FALSE)),"",IF(AND(Weightings!H60>0,VLOOKUP($CZ60,'Audit Values'!$A$2:$AC$355,29,FALSE)<Weightings!H60),Weightings!H60,VLOOKUP($CZ60,'Audit Values'!$A$2:$AC$355,29,FALSE))) -> 9 | AW60: =IF(ISNA(VLOOKUP($CZ60,'Audit Values'!$A$2:$AD$355,2,FALSE)),"",VLOOKUP($CZ60,'Audit Values'!$A$2:$AD$355,30,FALSE)) -> A | AX60: =IF(Weightings!G60="","",IF(Weightings!I60="Pending","PX","R")) ->  | AY60: =AR60*Weightings!$M$5+AU60 -> 5920139 | AZ60: =AT60*Weightings!$M$5+AU60 -> 6803017 | BA60: =IF(Weightings!G60>0,Weightings!G60,'Preliminary SO66'!AB57) -> 7083828 | BB60: 6803017 | BD60: =Weightings!E60 -> 0 | BE60: =Weightings!F60 -> 0 | BF60: 0 | BG60: 6803017 | BH60: =MAX(ROUND(((AR60-AO60-AN60)*Weightings!$M$12)+AP60,0),ROUND(((AR60-AO60-AN60)*Weightings!$M$12)+Weightings!B60,0)) -> 7783582 | BI60: 0.3 | BJ60: 2335075 | BK60: 2425810 | BL60: 2335075 | BM60: 0.3 | BN60: 0 | BO60: FALSE | BP60: 0 | BQ60: 0 | BR60: 0 | BS60: TRUE | BT60: 853.0088 | BU60: 0.249998 | BV60: 247.3 | BW60: 0 | BX60: 263 | BY60: 1.33 | BZ60: =IF(ROUND((Weightings!$P$5*BY60^Weightings!$P$6*Weightings!$P$8 ),2)<Weightings!$P$7,Weightings!$P$7,ROUND((Weightings!$P$5*BY60^Weightings!$P$6*Weightings!$P$8 ),2)) -> 997.39 | CA60: =ROUND(BZ60/Weightings!$M$5,4) -> 0.2589 | CB60: 90.4 | CC60: 0 | CD60: 0 | CE60: 0 | CF60: 0 | CG60: =AS60*Weightings!$M$5*CF60 -> 0 | CH60: 0 | CI60: 0.388 | CJ60: 3.8 | CK60: 0 | CL60: 0 | CM60: 10.2 | CN60: =IF(ISNA(VLOOKUP($CZ60,'Audit Values'!$A$2:$AE$346,2,FALSE)),'Preliminary SO66'!T57,VLOOKUP($CZ60,'Audit Values'!$A$2:$AE$346,20,FALSE)) -> 0 | CO60: 0 | CP60: 0 | CQ60: 0 | CR60: =IF(ISNA(VLOOKUP($CZ60,'Audit Values'!$A$2:$AE$346,2,FALSE)),'Preliminary SO66'!V57,VLOOKUP($CZ60,'Audit Values'!$A$2:$AE$346,22,FALSE)) -> 0 | CS60: 0 | CT60: =IF(ISNA(VLOOKUP($CZ60,'Audit Values'!$A$2:$AE$346,2,FALSE)),'Preliminary SO66'!W57,VLOOKUP($CZ60,'Audit Values'!$A$2:$AE$346,23,FALSE)) -> 0 | CU60: 0 | CV60: 0 | CW60: 0 | CX60: =IF(CW60>0,Weightings!$M$11*AR60,0) -> 0 | CY60: 0 | CZ60: D0248
A61: 249 | B61: Crawford | C61: Frontenac Public Schools | D61: 871 | E61: 0 | F61: 871 | G61: 881.5 | H61: 0 | I61: 881.5 | J61: 868.5 | K61: =IF(ISNA(VLOOKUP($CZ61,'Audit Values'!$A$2:$AE$346,2,FALSE)),'Preliminary SO66'!B58,VLOOKUP($CZ61,'Audit Values'!$A$2:$AE$346,31,FALSE)) -> 868.5 | L61: 881.5 | M61: =IF(ISNA(VLOOKUP($CZ61,'Audit Values'!$A$2:$AE$346,2,FALSE)),'Preliminary SO66'!Z58,VLOOKUP($CZ61,'Audit Values'!$A$2:$AE$346,26,FALSE)) -> 0 | N61: 881.5 | O61: =IF(ISNA(VLOOKUP($CZ61,'Audit Values'!$A$2:$AE$346,2,FALSE)),'Preliminary SO66'!C58,IF(VLOOKUP($CZ61,'Audit Values'!$A$2:$AE$346,28,FALSE)="",VLOOKUP($CZ61,'Audit Values'!$A$2:$AE$346,3,FALSE),VLOOKUP($CZ61,'Audit Values'!$A$2:$AE$346,28,FALSE))) -> 7 | P61: 875.5 | Q61: 875.5 | R61: 875.5 | S61: 888.5 | T61: 0 | U61: 252.6 | V61: 252.6 | W61: 0 | X61: =IF(ISNA(VLOOKUP($CZ61,'Audit Values'!$A$2:$AE$346,2,FALSE)),'Preliminary SO66'!D58,VLOOKUP($CZ61,'Audit Values'!$A$2:$AE$346,4,FALSE)) -> 208.3 | Y61: =ROUND((X61/6)*Weightings!$M$6,1) -> 17.4 | Z61: =IF(ISNA(VLOOKUP($CZ61,'Audit Values'!$A$2:$AE$346,2,FALSE)),'Preliminary SO66'!F58,VLOOKUP($CZ61,'Audit Values'!$A$2:$AE$346,6,FALSE)) -> 4 | AA61: =ROUND((Z61/6)*Weightings!$M$7,1) -> 0.3 | AB61: =IF(ISNA(VLOOKUP($CZ61,'Audit Values'!$A$2:$AE$346,2,FALSE)),'Preliminary SO66'!H58,VLOOKUP($CZ61,'Audit Values'!$A$2:$AE$346,9,FALSE)) -> 333 | AC61: =ROUND(AB61*Weightings!$M$8,1) -> 151.8 | AD61: 5.8 | AE61: 0 | AF61: =AE61*Weightings!$M$9 -> 0 | AG61: =IF(ISNA(VLOOKUP($CZ61,'Audit Values'!$A$2:$AE$346,2,FALSE)),'Preliminary SO66'!L58,VLOOKUP($CZ61,'Audit Values'!$A$2:$AE$346,12,FALSE)) -> 0 | AH61: =ROUND(AG61*Weightings!$M$10,1) -> 0 | AI61: =IF(ISNA(VLOOKUP($CZ61,'Audit Values'!$A$2:$AE$346,2,FALSE)),'Preliminary SO66'!O58,VLOOKUP($CZ61,'Audit Values'!$A$2:$AE$346,15,FALSE)) -> 93 | AJ61: 18.5 | AK61: =CC61/Weightings!$M$5 -> 0 | AL61: =CD61/Weightings!$M$5 -> 0 | AM61: =CH61/Weightings!$M$5 -> 0 | AN61: 0 | AO61: =IF(ISNA(VLOOKUP($CZ61,'Audit Values'!$A$2:$AE$346,2,FALSE)),'Preliminary SO66'!X58,VLOOKUP($CZ61,'Audit Values'!$A$2:$AE$346,24,FALSE)) -> 0 | AP61: 786951 | AQ61: =AP61/Weightings!$M$5 -> 204.3 | AR61: 1334.9 | AS61: 1539.2 | AT61: 1539.2 | AU61: 0 | AV61: =IF(ISNA(VLOOKUP($CZ61,'Audit Values'!$A$2:$AC$355,2,FALSE)),"",IF(AND(Weightings!H61>0,VLOOKUP($CZ61,'Audit Values'!$A$2:$AC$355,29,FALSE)<Weightings!H61),Weightings!H61,VLOOKUP($CZ61,'Audit Values'!$A$2:$AC$355,29,FALSE))) -> 21 | AW61: =IF(ISNA(VLOOKUP($CZ61,'Audit Values'!$A$2:$AD$355,2,FALSE)),"",VLOOKUP($CZ61,'Audit Values'!$A$2:$AD$355,30,FALSE)) -> A | AX61: =IF(Weightings!G61="","",IF(Weightings!I61="Pending","PX","R")) ->  | AY61: =AR61*Weightings!$M$5+AU61 -> 5142035 | AZ61: =AT61*Weightings!$M$5+AU61 -> 5928998 | BA61: =IF(Weightings!G61>0,Weightings!G61,'Preliminary SO66'!AB58) -> 6043018 | BB61: 5928998 | BD61: =Weightings!E61 -> 0 | BE61: =Weightings!F61 -> 0 | BF61: 0 | BG61: 5928998 | BH61: =MAX(ROUND(((AR61-AO61-AN61)*Weightings!$M$12)+AP61,0),ROUND(((AR61-AO61-AN61)*Weightings!$M$12)+Weightings!B61,0)) -> 6780652 | BI61: 0.3 | BJ61: 2034196 | BK61: 2070017 | BL61: 2034196 | BM61: 0.3 | BN61: 0 | BO61: FALSE | BP61: 0 | BQ61: 0 | BR61: 0 | BS61: TRUE | BT61: 728.2688 | BU61: 0.284244 | BV61: 252.6 | BW61: 0 | BX61: 22 | BY61: 4.23 | BZ61: =IF(ROUND((Weightings!$P$5*BY61^Weightings!$P$6*Weightings!$P$8 ),2)<Weightings!$P$7,Weightings!$P$7,ROUND((Weightings!$P$5*BY61^Weightings!$P$6*Weightings!$P$8 ),2)) -> 767.71 | CA61: =ROUND(BZ61/Weightings!$M$5,4) -> 0.1993 | CB61: 18.5 | CC61: 0 | CD61: 0 | CE61: 0 | CF61: 0 | CG61: =AS61*Weightings!$M$5*CF61 -> 0 | CH61: 0 | CI61: 0.375 | CJ61: 40.4 | CK61: 0 | CL61: 0 | CM61: 5.8 | CN61: =IF(ISNA(VLOOKUP($CZ61,'Audit Values'!$A$2:$AE$346,2,FALSE)),'Preliminary SO66'!T58,VLOOKUP($CZ61,'Audit Values'!$A$2:$AE$346,20,FALSE)) -> 0 | CO61: 0 | CP61: 0 | CQ61: 0 | CR61: =IF(ISNA(VLOOKUP($CZ61,'Audit Values'!$A$2:$AE$346,2,FALSE)),'Preliminary SO66'!V58,VLOOKUP($CZ61,'Audit Values'!$A$2:$AE$346,22,FALSE)) -> 0 | CS61: 0 | CT61: =IF(ISNA(VLOOKUP($CZ61,'Audit Values'!$A$2:$AE$346,2,FALSE)),'Preliminary SO66'!W58,VLOOKUP($CZ61,'Audit Values'!$A$2:$AE$346,23,FALSE)) -> 0 | CU61: 0 | CV61: 0 | CW61: 0 | CX61: =IF(CW61>0,Weightings!$M$11*AR61,0) -> 0 | CY61: 0 | CZ61: D0249
A62: 250 | B62: Crawford | C62: Pittsburg | D62: 2716.8 | E62: 0 | F62: 2716.8 | G62: 2806.8 | H62: 0 | I62: 2806.8 | J62: 2853.2 | K62: =IF(ISNA(VLOOKUP($CZ62,'Audit Values'!$A$2:$AE$346,2,FALSE)),'Preliminary SO66'!B59,VLOOKUP($CZ62,'Audit Values'!$A$2:$AE$346,31,FALSE)) -> 2851 | L62: 2851 | M62: =IF(ISNA(VLOOKUP($CZ62,'Audit Values'!$A$2:$AE$346,2,FALSE)),'Preliminary SO66'!Z59,VLOOKUP($CZ62,'Audit Values'!$A$2:$AE$346,26,FALSE)) -> 0 | N62: 2851 | O62: =IF(ISNA(VLOOKUP($CZ62,'Audit Values'!$A$2:$AE$346,2,FALSE)),'Preliminary SO66'!C59,IF(VLOOKUP($CZ62,'Audit Values'!$A$2:$AE$346,28,FALSE)="",VLOOKUP($CZ62,'Audit Values'!$A$2:$AE$346,3,FALSE),VLOOKUP($CZ62,'Audit Values'!$A$2:$AE$346,28,FALSE))) -> 20 | P62: 2871 | Q62: 2873.2 | R62: 2873.2 | S62: 2871 | T62: 2.2 | U62: 100.6 | V62: 0 | W62: 100.6 | X62: =IF(ISNA(VLOOKUP($CZ62,'Audit Values'!$A$2:$AE$346,2,FALSE)),'Preliminary SO66'!D59,VLOOKUP($CZ62,'Audit Values'!$A$2:$AE$346,4,FALSE)) -> 393 | Y62: =ROUND((X62/6)*Weightings!$M$6,1) -> 32.8 | Z62: =IF(ISNA(VLOOKUP($CZ62,'Audit Values'!$A$2:$AE$346,2,FALSE)),'Preliminary SO66'!F59,VLOOKUP($CZ62,'Audit Values'!$A$2:$AE$346,6,FALSE)) -> 897 | AA62: =ROUND((Z62/6)*Weightings!$M$7,1) -> 59.1 | AB62: =IF(ISNA(VLOOKUP($CZ62,'Audit Values'!$A$2:$AE$346,2,FALSE)),'Preliminary SO66'!H59,VLOOKUP($CZ62,'Audit Values'!$A$2:$AE$346,9,FALSE)) -> 1756 | AC62: =ROUND(AB62*Weightings!$M$8,1) -> 800.7 | AD62: 184.4 | AE62: 0 | AF62: =AE62*Weightings!$M$9 -> 0 | AG62: =IF(ISNA(VLOOKUP($CZ62,'Audit Values'!$A$2:$AE$346,2,FALSE)),'Preliminary SO66'!L59,VLOOKUP($CZ62,'Audit Values'!$A$2:$AE$346,12,FALSE)) -> 0 | AH62: =ROUND(AG62*Weightings!$M$10,1) -> 0 | AI62: =IF(ISNA(VLOOKUP($CZ62,'Audit Values'!$A$2:$AE$346,2,FALSE)),'Preliminary SO66'!O59,VLOOKUP($CZ62,'Audit Values'!$A$2:$AE$346,15,FALSE)) -> 417.2 | AJ62: 68.9 | AK62: =CC62/Weightings!$M$5 -> 0 | AL62: =CD62/Weightings!$M$5 -> 0 | AM62: =CH62/Weightings!$M$5 -> 0 | AN62: 2.3 | AO62: =IF(ISNA(VLOOKUP($CZ62,'Audit Values'!$A$2:$AE$346,2,FALSE)),'Preliminary SO66'!X59,VLOOKUP($CZ62,'Audit Values'!$A$2:$AE$346,24,FALSE)) -> 0 | AP62: 2728157 | AQ62: =AP62/Weightings!$M$5 -> 708.2 | AR62: 4119.8 | AS62: 4828 | AT62: 4828 | AU62: 0 | AV62: =IF(ISNA(VLOOKUP($CZ62,'Audit Values'!$A$2:$AC$355,2,FALSE)),"",IF(AND(Weightings!H62>0,VLOOKUP($CZ62,'Audit Values'!$A$2:$AC$355,29,FALSE)<Weightings!H62),Weightings!H62,VLOOKUP($CZ62,'Audit Values'!$A$2:$AC$355,29,FALSE))) -> 30 | AW62: =IF(ISNA(VLOOKUP($CZ62,'Audit Values'!$A$2:$AD$355,2,FALSE)),"",VLOOKUP($CZ62,'Audit Values'!$A$2:$AD$355,30,FALSE)) -> A | AX62: =IF(Weightings!G62="","",IF(Weightings!I62="Pending","PX","R")) -> R | AY62: =AR62*Weightings!$M$5+AU62 -> 15869470 | AZ62: =AT62*Weightings!$M$5+AU62 -> 18597456 | BA62: =IF(Weightings!G62>0,Weightings!G62,'Preliminary SO66'!AB59) -> 18597456 | BB62: 18597456 | BD62: =Weightings!E62 -> 0 | BE62: =Weightings!F62 -> 0 | BF62: 0 | BG62: 18597456 | BH62: =MAX(ROUND(((AR62-AO62-AN62)*Weightings!$M$12)+AP62,0),ROUND(((AR62-AO62-AN62)*Weightings!$M$12)+Weightings!B62,0)) -> 21215732 | BI62: 0.3 | BJ62: 6364720 | BK62: 6358129 | BL62: 6358129 | BM62: 0.2997 | BN62: 0 | BO62: FALSE | BP62: 0 | BQ62: 0 | BR62: 0 | BS62: FALSE | BT62: 0 | BU62: 0 | BV62: 0 | BW62: 100.6 | BX62: 43 | BY62: 9.7 | BZ62: =IF(ROUND((Weightings!$P$5*BY62^Weightings!$P$6*Weightings!$P$8 ),2)<Weightings!$P$7,Weightings!$P$7,ROUND((Weightings!$P$5*BY62^Weightings!$P$6*Weightings!$P$8 ),2)) -> 636.3 | CA62: =ROUND(BZ62/Weightings!$M$5,4) -> 0.1652 | CB62: 68.9 | CC62: 0 | CD62: 0 | CE62: 0 | CF62: 0 | CG62: =AS62*Weightings!$M$5*CF62 -> 0 | CH62: 0 | CI62: 0.612 | CJ62: 66.8 | CK62: 184.4 | CL62: 0 | CM62: 0 | CN62: =IF(ISNA(VLOOKUP($CZ62,'Audit Values'!$A$2:$AE$346,2,FALSE)),'Preliminary SO66'!T59,VLOOKUP($CZ62,'Audit Values'!$A$2:$AE$346,20,FALSE)) -> 2.2 | CO62: 2.3 | CP62: 0 | CQ62: 0 | CR62: =IF(ISNA(VLOOKUP($CZ62,'Audit Values'!$A$2:$AE$346,2,FALSE)),'Preliminary SO66'!V59,VLOOKUP($CZ62,'Audit Values'!$A$2:$AE$346,22,FALSE)) -> 0 | CS62: 0 | CT62: =IF(ISNA(VLOOKUP($CZ62,'Audit Values'!$A$2:$AE$346,2,FALSE)),'Preliminary SO66'!W59,VLOOKUP($CZ62,'Audit Values'!$A$2:$AE$346,23,FALSE)) -> 0 | CU62: 0 | CV62: 2.3 | CW62: 0 | CX62: =IF(CW62>0,Weightings!$M$11*AR62,0) -> 0 | CY62: 0 | CZ62: D0250
A63: 251 | B63: Lyon | C63: North Lyon County | D63: 428 | E63: 0 | F63: 428 | G63: 432.8 | H63: 0 | I63: 432.8 | J63: 406.1 | K63: =IF(ISNA(VLOOKUP($CZ63,'Audit Values'!$A$2:$AE$346,2,FALSE)),'Preliminary SO66'!B60,VLOOKUP($CZ63,'Audit Values'!$A$2:$AE$346,31,FALSE)) -> 406.1 | L63: 432.8 | M63: =IF(ISNA(VLOOKUP($CZ63,'Audit Values'!$A$2:$AE$346,2,FALSE)),'Preliminary SO66'!Z60,VLOOKUP($CZ63,'Audit Values'!$A$2:$AE$346,26,FALSE)) -> 0 | N63: 432.8 | O63: =IF(ISNA(VLOOKUP($CZ63,'Audit Values'!$A$2:$AE$346,2,FALSE)),'Preliminary SO66'!C60,IF(VLOOKUP($CZ63,'Audit Values'!$A$2:$AE$346,28,FALSE)="",VLOOKUP($CZ63,'Audit Values'!$A$2:$AE$346,3,FALSE),VLOOKUP($CZ63,'Audit Values'!$A$2:$AE$346,28,FALSE))) -> 0 | P63: 406.1 | Q63: 406.1 | R63: 406.1 | S63: 432.8 | T63: 0 | U63: 190 | V63: 190 | W63: 0 | X63: =IF(ISNA(VLOOKUP($CZ63,'Audit Values'!$A$2:$AE$346,2,FALSE)),'Preliminary SO66'!D60,VLOOKUP($CZ63,'Audit Values'!$A$2:$AE$346,4,FALSE)) -> 83.3 | Y63: =ROUND((X63/6)*Weightings!$M$6,1) -> 6.9 | Z63: =IF(ISNA(VLOOKUP($CZ63,'Audit Values'!$A$2:$AE$346,2,FALSE)),'Preliminary SO66'!F60,VLOOKUP($CZ63,'Audit Values'!$A$2:$AE$346,6,FALSE)) -> 0 | AA63: =ROUND((Z63/6)*Weightings!$M$7,1) -> 0 | AB63: =IF(ISNA(VLOOKUP($CZ63,'Audit Values'!$A$2:$AE$346,2,FALSE)),'Preliminary SO66'!H60,VLOOKUP($CZ63,'Audit Values'!$A$2:$AE$346,9,FALSE)) -> 181 | AC63: =ROUND(AB63*Weightings!$M$8,1) -> 82.5 | AD63: 8.6 | AE63: 0 | AF63: =AE63*Weightings!$M$9 -> 0 | AG63: =IF(ISNA(VLOOKUP($CZ63,'Audit Values'!$A$2:$AE$346,2,FALSE)),'Preliminary SO66'!L60,VLOOKUP($CZ63,'Audit Values'!$A$2:$AE$346,12,FALSE)) -> 0 | AH63: =ROUND(AG63*Weightings!$M$10,1) -> 0 | AI63: =IF(ISNA(VLOOKUP($CZ63,'Audit Values'!$A$2:$AE$346,2,FALSE)),'Preliminary SO66'!O60,VLOOKUP($CZ63,'Audit Values'!$A$2:$AE$346,15,FALSE)) -> 257 | AJ63: 80 | AK63: =CC63/Weightings!$M$5 -> 0 | AL63: =CD63/Weightings!$M$5 -> 0 | AM63: =CH63/Weightings!$M$5 -> 0 | AN63: 0 | AO63: =IF(ISNA(VLOOKUP($CZ63,'Audit Values'!$A$2:$AE$346,2,FALSE)),'Preliminary SO66'!X60,VLOOKUP($CZ63,'Audit Values'!$A$2:$AE$346,24,FALSE)) -> 0 | AP63: 417197 | AQ63: =AP63/Weightings!$M$5 -> 108.3 | AR63: 800.8 | AS63: 909.1 | AT63: 909.1 | AU63: 0 | AV63: =IF(ISNA(VLOOKUP($CZ63,'Audit Values'!$A$2:$AC$355,2,FALSE)),"",IF(AND(Weightings!H63>0,VLOOKUP($CZ63,'Audit Values'!$A$2:$AC$355,29,FALSE)<Weightings!H63),Weightings!H63,VLOOKUP($CZ63,'Audit Values'!$A$2:$AC$355,29,FALSE))) -> 19 | AW63: =IF(ISNA(VLOOKUP($CZ63,'Audit Values'!$A$2:$AD$355,2,FALSE)),"",VLOOKUP($CZ63,'Audit Values'!$A$2:$AD$355,30,FALSE)) -> A | AX63: =IF(Weightings!G63="","",IF(Weightings!I63="Pending","PX","R")) ->  | AY63: =AR63*Weightings!$M$5+AU63 -> 3084682 | AZ63: =AT63*Weightings!$M$5+AU63 -> 3501853 | BA63: =IF(Weightings!G63>0,Weightings!G63,'Preliminary SO66'!AB60) -> 3643607 | BB63: 3501853 | BD63: =Weightings!E63 -> 0 | BE63: =Weightings!F63 -> 0 | BF63: 0 | BG63: 3501853 | BH63: =MAX(ROUND(((AR63-AO63-AN63)*Weightings!$M$12)+AP63,0),ROUND(((AR63-AO63-AN63)*Weightings!$M$12)+Weightings!B63,0)) -> 4037678 | BI63: 0.3 | BJ63: 1211303 | BK63: 1249287 | BL63: 1211303 | BM63: 0.3 | BN63: 0 | BO63: FALSE | BP63: 0 | BQ63: 0 | BR63: 0 | BS63: TRUE | BT63: 164.34 | BU63: 0.439068 | BV63: 190 | BW63: 0 | BX63: 434 | BY63: 0.59 | BZ63: =IF(ROUND((Weightings!$P$5*BY63^Weightings!$P$6*Weightings!$P$8 ),2)<Weightings!$P$7,Weightings!$P$7,ROUND((Weightings!$P$5*BY63^Weightings!$P$6*Weightings!$P$8 ),2)) -> 1198.71 | CA63: =ROUND(BZ63/Weightings!$M$5,4) -> 0.3112 | CB63: 80 | CC63: 0 | CD63: 0 | CE63: 0 | CF63: 0 | CG63: =AS63*Weightings!$M$5*CF63 -> 0 | CH63: 0 | CI63: 0.418 | CJ63: 1 | CK63: 0 | CL63: 0 | CM63: 8.6 | CN63: =IF(ISNA(VLOOKUP($CZ63,'Audit Values'!$A$2:$AE$346,2,FALSE)),'Preliminary SO66'!T60,VLOOKUP($CZ63,'Audit Values'!$A$2:$AE$346,20,FALSE)) -> 0 | CO63: 0 | CP63: 0 | CQ63: 0 | CR63: =IF(ISNA(VLOOKUP($CZ63,'Audit Values'!$A$2:$AE$346,2,FALSE)),'Preliminary SO66'!V60,VLOOKUP($CZ63,'Audit Values'!$A$2:$AE$346,22,FALSE)) -> 0 | CS63: 0 | CT63: =IF(ISNA(VLOOKUP($CZ63,'Audit Values'!$A$2:$AE$346,2,FALSE)),'Preliminary SO66'!W60,VLOOKUP($CZ63,'Audit Values'!$A$2:$AE$346,23,FALSE)) -> 0 | CU63: 0 | CV63: 0 | CW63: 0 | CX63: =IF(CW63>0,Weightings!$M$11*AR63,0) -> 0 | CY63: 0 | CZ63: D0251
A64: 252 | B64: Lyon | C64: Southern Lyon County | D64: 508.2 | E64: 0 | F64: 508.2 | G64: 514.5 | H64: 0 | I64: 514.5 | J64: 498 | K64: =IF(ISNA(VLOOKUP($CZ64,'Audit Values'!$A$2:$AE$346,2,FALSE)),'Preliminary SO66'!B61,VLOOKUP($CZ64,'Audit Values'!$A$2:$AE$346,31,FALSE)) -> 498 | L64: 514.5 | M64: =IF(ISNA(VLOOKUP($CZ64,'Audit Values'!$A$2:$AE$346,2,FALSE)),'Preliminary SO66'!Z61,VLOOKUP($CZ64,'Audit Values'!$A$2:$AE$346,26,FALSE)) -> 0 | N64: 514.5 | O64: =IF(ISNA(VLOOKUP($CZ64,'Audit Values'!$A$2:$AE$346,2,FALSE)),'Preliminary SO66'!C61,IF(VLOOKUP($CZ64,'Audit Values'!$A$2:$AE$346,28,FALSE)="",VLOOKUP($CZ64,'Audit Values'!$A$2:$AE$346,3,FALSE),VLOOKUP($CZ64,'Audit Values'!$A$2:$AE$346,28,FALSE))) -> 4 | P64: 502 | Q64: 502 | R64: 502 | S64: 518.5 | T64: 0 | U64: 212.6 | V64: 212.6 | W64: 0 | X64: =IF(ISNA(VLOOKUP($CZ64,'Audit Values'!$A$2:$AE$346,2,FALSE)),'Preliminary SO66'!D61,VLOOKUP($CZ64,'Audit Values'!$A$2:$AE$346,4,FALSE)) -> 202.7 | Y64: =ROUND((X64/6)*Weightings!$M$6,1) -> 16.9 | Z64: =IF(ISNA(VLOOKUP($CZ64,'Audit Values'!$A$2:$AE$346,2,FALSE)),'Preliminary SO66'!F61,VLOOKUP($CZ64,'Audit Values'!$A$2:$AE$346,6,FALSE)) -> 0 | AA64: =ROUND((Z64/6)*Weightings!$M$7,1) -> 0 | AB64: =IF(ISNA(VLOOKUP($CZ64,'Audit Values'!$A$2:$AE$346,2,FALSE)),'Preliminary SO66'!H61,VLOOKUP($CZ64,'Audit Values'!$A$2:$AE$346,9,FALSE)) -> 161 | AC64: =ROUND(AB64*Weightings!$M$8,1) -> 73.4 | AD64: 0 | AE64: 0 | AF64: =AE64*Weightings!$M$9 -> 0 | AG64: =IF(ISNA(VLOOKUP($CZ64,'Audit Values'!$A$2:$AE$346,2,FALSE)),'Preliminary SO66'!L61,VLOOKUP($CZ64,'Audit Values'!$A$2:$AE$346,12,FALSE)) -> 0 | AH64: =ROUND(AG64*Weightings!$M$10,1) -> 0 | AI64: =IF(ISNA(VLOOKUP($CZ64,'Audit Values'!$A$2:$AE$346,2,FALSE)),'Preliminary SO66'!O61,VLOOKUP($CZ64,'Audit Values'!$A$2:$AE$346,15,FALSE)) -> 214 | AJ64: 63.5 | AK64: =CC64/Weightings!$M$5 -> 0 | AL64: =CD64/Weightings!$M$5 -> 0 | AM64: =CH64/Weightings!$M$5 -> 0 | AN64: 0 | AO64: =IF(ISNA(VLOOKUP($CZ64,'Audit Values'!$A$2:$AE$346,2,FALSE)),'Preliminary SO66'!X61,VLOOKUP($CZ64,'Audit Values'!$A$2:$AE$346,24,FALSE)) -> 0 | AP64: 527639 | AQ64: =AP64/Weightings!$M$5 -> 137 | AR64: 884.9 | AS64: 1021.9 | AT64: 1021.9 | AU64: 0 | AV64: =IF(ISNA(VLOOKUP($CZ64,'Audit Values'!$A$2:$AC$355,2,FALSE)),"",IF(AND(Weightings!H64>0,VLOOKUP($CZ64,'Audit Values'!$A$2:$AC$355,29,FALSE)<Weightings!H64),Weightings!H64,VLOOKUP($CZ64,'Audit Values'!$A$2:$AC$355,29,FALSE))) -> 9 | AW64: =IF(ISNA(VLOOKUP($CZ64,'Audit Values'!$A$2:$AD$355,2,FALSE)),"",VLOOKUP($CZ64,'Audit Values'!$A$2:$AD$355,30,FALSE)) -> A | AX64: =IF(Weightings!G64="","",IF(Weightings!I64="Pending","PX","R")) ->  | AY64: =AR64*Weightings!$M$5+AU64 -> 3408635 | AZ64: =AT64*Weightings!$M$5+AU64 -> 3936359 | BA64: =IF(Weightings!G64>0,Weightings!G64,'Preliminary SO66'!AB61) -> 4072334 | BB64: 3936359 | BD64: =Weightings!E64 -> 0 | BE64: =Weightings!F64 -> 0 | BF64: 0 | BG64: 3936359 | BH64: =MAX(ROUND(((AR64-AO64-AN64)*Weightings!$M$12)+AP64,0),ROUND(((AR64-AO64-AN64)*Weightings!$M$12)+Weightings!B64,0)) -> 4500840 | BI64: 0.3 | BJ64: 1350252 | BK64: 1394385 | BL64: 1350252 | BM64: 0.3 | BN64: 0 | BO64: FALSE | BP64: 0 | BQ64: 0 | BR64: 0 | BS64: TRUE | BT64: 270.3938 | BU64: 0.409951 | BV64: 212.6 | BW64: 0 | BX64: 295 | BY64: 0.73 | BZ64: =IF(ROUND((Weightings!$P$5*BY64^Weightings!$P$6*Weightings!$P$8 ),2)<Weightings!$P$7,Weightings!$P$7,ROUND((Weightings!$P$5*BY64^Weightings!$P$6*Weightings!$P$8 ),2)) -> 1142.34 | CA64: =ROUND(BZ64/Weightings!$M$5,4) -> 0.2966 | CB64: 63.5 | CC64: 0 | CD64: 0 | CE64: 0 | CF64: 0 | CG64: =AS64*Weightings!$M$5*CF64 -> 0 | CH64: 0 | CI64: 0.311 | CJ64: 1.8 | CK64: 0 | CL64: 0 | CM64: 0 | CN64: =IF(ISNA(VLOOKUP($CZ64,'Audit Values'!$A$2:$AE$346,2,FALSE)),'Preliminary SO66'!T61,VLOOKUP($CZ64,'Audit Values'!$A$2:$AE$346,20,FALSE)) -> 0 | CO64: 0 | CP64: 0 | CQ64: 0 | CR64: =IF(ISNA(VLOOKUP($CZ64,'Audit Values'!$A$2:$AE$346,2,FALSE)),'Preliminary SO66'!V61,VLOOKUP($CZ64,'Audit Values'!$A$2:$AE$346,22,FALSE)) -> 0 | CS64: 0 | CT64: =IF(ISNA(VLOOKUP($CZ64,'Audit Values'!$A$2:$AE$346,2,FALSE)),'Preliminary SO66'!W61,VLOOKUP($CZ64,'Audit Values'!$A$2:$AE$346,23,FALSE)) -> 0 | CU64: 0 | CV64: 0 | CW64: 0 | CX64: =IF(CW64>0,Weightings!$M$11*AR64,0) -> 0 | CY64: 0 | CZ64: D0252
A65: 253 | B65: Lyon | C65: Emporia | D65: 4179.6 | E65: 0 | F65: 4179.6 | G65: 4210.1 | H65: 0 | I65: 4210.1 | J65: 4215.3 | K65: =IF(ISNA(VLOOKUP($CZ65,'Audit Values'!$A$2:$AE$346,2,FALSE)),'Preliminary SO66'!B62,VLOOKUP($CZ65,'Audit Values'!$A$2:$AE$346,31,FALSE)) -> 4210.3 | L65: 4210.3 | M65: =IF(ISNA(VLOOKUP($CZ65,'Audit Values'!$A$2:$AE$346,2,FALSE)),'Preliminary SO66'!Z62,VLOOKUP($CZ65,'Audit Values'!$A$2:$AE$346,26,FALSE)) -> 0 | N65: 4210.3 | O65: =IF(ISNA(VLOOKUP($CZ65,'Audit Values'!$A$2:$AE$346,2,FALSE)),'Preliminary SO66'!C62,IF(VLOOKUP($CZ65,'Audit Values'!$A$2:$AE$346,28,FALSE)="",VLOOKUP($CZ65,'Audit Values'!$A$2:$AE$346,3,FALSE),VLOOKUP($CZ65,'Audit Values'!$A$2:$AE$346,28,FALSE))) -> 56.5 | P65: 4266.8 | Q65: 4271.8 | R65: 4271.8 | S65: 4266.8 | T65: 5 | U65: 149.5 | V65: =MAX(BN65,BR65,BV65) -> 0 | W65: =BW65 -> 149.5 | X65: =IF(ISNA(VLOOKUP($CZ65,'Audit Values'!$A$2:$AE$346,2,FALSE)),'Preliminary SO66'!D62,VLOOKUP($CZ65,'Audit Values'!$A$2:$AE$346,4,FALSE)) -> 595.3 | Y65: =ROUND((X65/6)*Weightings!$M$6,1) -> 49.6 | Z65: =IF(ISNA(VLOOKUP($CZ65,'Audit Values'!$A$2:$AE$346,2,FALSE)),'Preliminary SO66'!F62,VLOOKUP($CZ65,'Audit Values'!$A$2:$AE$346,6,FALSE)) -> 5423.7 | AA65: =ROUND((Z65/6)*Weightings!$M$7,1) -> 357.1 | AB65: =IF(ISNA(VLOOKUP($CZ65,'Audit Values'!$A$2:$AE$346,2,FALSE)),'Preliminary SO66'!H62,VLOOKUP($CZ65,'Audit Values'!$A$2:$AE$346,9,FALSE)) -> 2376 | AC65: =ROUND(AB65*Weightings!$M$8,1) -> 1083.5 | AD65: 249.5 | AE65: 0 | AF65: =AE65*Weightings!$M$9 -> 0 | AG65: =IF(ISNA(VLOOKUP($CZ65,'Audit Values'!$A$2:$AE$346,2,FALSE)),'Preliminary SO66'!L62,VLOOKUP($CZ65,'Audit Values'!$A$2:$AE$346,12,FALSE)) -> 0 | AH65: =ROUND(AG65*Weightings!$M$10,1) -> 0 | AI65: =IF(ISNA(VLOOKUP($CZ65,'Audit Values'!$A$2:$AE$346,2,FALSE)),'Preliminary SO66'!O62,VLOOKUP($CZ65,'Audit Values'!$A$2:$AE$346,15,FALSE)) -> 1560 | AJ65: 247.7 | AK65: =CC65/Weightings!$M$5 -> 0 | AL65: =CD65/Weightings!$M$5 -> 0 | AM65: =CH65/Weightings!$M$5 -> 0 | AN65: 5.3 | AO65: =IF(ISNA(VLOOKUP($CZ65,'Audit Values'!$A$2:$AE$346,2,FALSE)),'Preliminary SO66'!X62,VLOOKUP($CZ65,'Audit Values'!$A$2:$AE$346,24,FALSE)) -> 1 | AP65: 3048574 | AQ65: =AP65/Weightings!$M$5 -> 791.4 | AR65: 6410 | AS65: 7201.4 | AT65: 7201.4 | AU65: 25000 | AV65: =IF(ISNA(VLOOKUP($CZ65,'Audit Values'!$A$2:$AC$355,2,FALSE)),"",IF(AND(Weightings!H65>0,VLOOKUP($CZ65,'Audit Values'!$A$2:$AC$355,29,FALSE)<Weightings!H65),Weightings!H65,VLOOKUP($CZ65,'Audit Values'!$A$2:$AC$355,29,FALSE))) -> 19 | AW65: =IF(ISNA(VLOOKUP($CZ65,'Audit Values'!$A$2:$AD$355,2,FALSE)),"",VLOOKUP($CZ65,'Audit Values'!$A$2:$AD$355,30,FALSE)) -> A | AX65: =IF(Weightings!G65="","",IF(Weightings!I65="Pending","PX","R")) ->  | AY65: =AR65*Weightings!$M$5+AU65 -> 24716320 | AZ65: =AT65*Weightings!$M$5+AU65 -> 27764793 | BA65: =IF(Weightings!G65>0,Weightings!G65,'Preliminary SO66'!AB62) -> 28819470 | BB65: 27764793 | BD65: =Weightings!E65 -> 0 | BE65: =Weightings!F65 -> 0 | BF65: 0 | BG65: 27764793 | BH65: =MAX(ROUND(((AR65-AO65-AN65)*Weightings!$M$12)+AP65,0),ROUND(((AR65-AO65-AN65)*Weightings!$M$12)+Weightings!B65,0)) -> 31860405 | BI65: 0.3 | BJ65: 9558122 | BK65: 9894012 | BL65: 9558122 | BM65: 0.3 | BN65: 0 | BO65: FALSE | BP65: 0 | BQ65: =IF(BO65=TRUE,ROUND(((7337-BP65)/3642.4)-1,6),0) -> 0 | BR65: 0 | BS65: FALSE | BT65: 0 | BU65: =IF(BS65=TRUE,ROUND(((5406-BT65)/3642.4)-1,6),0) -> 0 | BV65: 0 | BW65: 149.5 | BX65: 135 | BY65: 11.56 | BZ65: =IF(ROUND((Weightings!$P$5*BY65^Weightings!$P$6*Weightings!$P$8 ),2)<Weightings!$P$7,Weightings!$P$7,ROUND((Weightings!$P$5*BY65^Weightings!$P$6*Weightings!$P$8 ),2)) -> 611.55 | CA65: =ROUND(BZ65/Weightings!$M$5,4) -> 0.1588 | CB65: 247.7 | CC65: 0 | CD65: 0 | CE65: 0 | CF65: 0 | CG65: =AS65*Weightings!$M$5*CF65 -> 0 | CH65: 0 | CI65: 0.557 | CJ65: 31.6 | CK65: 249.5 | CL65: 0 | CM65: 0 | CN65: =IF(ISNA(VLOOKUP($CZ65,'Audit Values'!$A$2:$AE$346,2,FALSE)),'Preliminary SO66'!T62,VLOOKUP($CZ65,'Audit Values'!$A$2:$AE$346,20,FALSE)) -> 5 | CO65: 5.3 | CP65: 0 | CQ65: 0 | CR65: =IF(ISNA(VLOOKUP($CZ65,'Audit Values'!$A$2:$AE$346,2,FALSE)),'Preliminary SO66'!V62,VLOOKUP($CZ65,'Audit Values'!$A$2:$AE$346,22,FALSE)) -> 0 | CS65: 0 | CT65: =IF(ISNA(VLOOKUP($CZ65,'Audit Values'!$A$2:$AE$346,2,FALSE)),'Preliminary SO66'!W62,VLOOKUP($CZ65,'Audit Values'!$A$2:$AE$346,23,FALSE)) -> 0 | CU65: 0 | CV65: 5.3 | CW65: 25000 | CX65: =IF(CW65>0,Weightings!$M$11*AR65,0) -> 1602500 | CY65: 25000 | CZ65: D0253
A66: 254 | B66: Barber | C66: Barber County North | D66: 444 | E66: 0 | F66: 444 | G66: 446.5 | H66: 0 | I66: 446.5 | J66: 436.5 | K66: =IF(ISNA(VLOOKUP($CZ66,'Audit Values'!$A$2:$AE$346,2,FALSE)),'Preliminary SO66'!B63,VLOOKUP($CZ66,'Audit Values'!$A$2:$AE$346,31,FALSE)) -> 436.5 | L66: 446.5 | M66: =IF(ISNA(VLOOKUP($CZ66,'Audit Values'!$A$2:$AE$346,2,FALSE)),'Preliminary SO66'!Z63,VLOOKUP($CZ66,'Audit Values'!$A$2:$AE$346,26,FALSE)) -> 0 | N66: 446.5 | O66: =IF(ISNA(VLOOKUP($CZ66,'Audit Values'!$A$2:$AE$346,2,FALSE)),'Preliminary SO66'!C63,IF(VLOOKUP($CZ66,'Audit Values'!$A$2:$AE$346,28,FALSE)="",VLOOKUP($CZ66,'Audit Values'!$A$2:$AE$346,3,FALSE),VLOOKUP($CZ66,'Audit Values'!$A$2:$AE$346,28,FALSE))) -> 4.5 | P66: 441 | Q66: 441 | R66: 441 | S66: 451 | T66: 0 | U66: 195.2 | V66: 195.2 | W66: 0 | X66: =IF(ISNA(VLOOKUP($CZ66,'Audit Values'!$A$2:$AE$346,2,FALSE)),'Preliminary SO66'!D63,VLOOKUP($CZ66,'Audit Values'!$A$2:$AE$346,4,FALSE)) -> 52 | Y66: =ROUND((X66/6)*Weightings!$M$6,1) -> 4.3 | Z66: =IF(ISNA(VLOOKUP($CZ66,'Audit Values'!$A$2:$AE$346,2,FALSE)),'Preliminary SO66'!F63,VLOOKUP($CZ66,'Audit Values'!$A$2:$AE$346,6,FALSE)) -> 0 | AA66: =ROUND((Z66/6)*Weightings!$M$7,1) -> 0 | AB66: =IF(ISNA(VLOOKUP($CZ66,'Audit Values'!$A$2:$AE$346,2,FALSE)),'Preliminary SO66'!H63,VLOOKUP($CZ66,'Audit Values'!$A$2:$AE$346,9,FALSE)) -> 141 | AC66: =ROUND(AB66*Weightings!$M$8,1) -> 64.3 | AD66: 0 | AE66: 0 | AF66: =AE66*Weightings!$M$9 -> 0 | AG66: =IF(ISNA(VLOOKUP($CZ66,'Audit Values'!$A$2:$AE$346,2,FALSE)),'Preliminary SO66'!L63,VLOOKUP($CZ66,'Audit Values'!$A$2:$AE$346,12,FALSE)) -> 0 | AH66: =ROUND(AG66*Weightings!$M$10,1) -> 0 | AI66: =IF(ISNA(VLOOKUP($CZ66,'Audit Values'!$A$2:$AE$346,2,FALSE)),'Preliminary SO66'!O63,VLOOKUP($CZ66,'Audit Values'!$A$2:$AE$346,15,FALSE)) -> 124 | AJ66: 51.1 | AK66: =CC66/Weightings!$M$5 -> 0 | AL66: =CD66/Weightings!$M$5 -> 0 | AM66: =CH66/Weightings!$M$5 -> 0 | AN66: =CV66 -> 0 | AO66: =IF(ISNA(VLOOKUP($CZ66,'Audit Values'!$A$2:$AE$346,2,FALSE)),'Preliminary SO66'!X63,VLOOKUP($CZ66,'Audit Values'!$A$2:$AE$346,24,FALSE)) -> 0 | AP66: 532011 | AQ66: =AP66/Weightings!$M$5 -> 138.1 | AR66: 765.9 | AS66: 904 | AT66: 904 | AU66: 59000 | AV66: =IF(ISNA(VLOOKUP($CZ66,'Audit Values'!$A$2:$AC$355,2,FALSE)),"",IF(AND(Weightings!H66>0,VLOOKUP($CZ66,'Audit Values'!$A$2:$AC$355,29,FALSE)<Weightings!H66),Weightings!H66,VLOOKUP($CZ66,'Audit Values'!$A$2:$AC$355,29,FALSE))) -> 2 | AW66: =IF(ISNA(VLOOKUP($CZ66,'Audit Values'!$A$2:$AD$355,2,FALSE)),"",VLOOKUP($CZ66,'Audit Values'!$A$2:$AD$355,30,FALSE)) -> A | AX66: =IF(Weightings!G66="","",IF(Weightings!I66="Pending","PX","R")) ->  | AY66: =AR66*Weightings!$M$5+AU66 -> 3009247 | AZ66: =AT66*Weightings!$M$5+AU66 -> 3541208 | BA66: =IF(Weightings!G66>0,Weightings!G66,'Preliminary SO66'!AB63) -> 3766935 | BB66: 3541208 | BD66: =Weightings!E66 -> 0 | BE66: =Weightings!F66 -> 0 | BF66: 0 | BG66: 3541208 | BH66: =MAX(ROUND(((AR66-AO66-AN66)*Weightings!$M$12)+AP66,0),ROUND(((AR66-AO66-AN66)*Weightings!$M$12)+Weightings!B66,0)) -> 4025581 | BI66: 0.3 | BJ66: 1207674 | BK66: 1264943 | BL66: 1207674 | BM66: 0.3 | BN66: 0 | BO66: FALSE | BP66: 0 | BQ66: =IF(BO66=TRUE,ROUND(((7337-BP66)/3642.4)-1,6),0) -> 0 | BR66: 0 | BS66: TRUE | BT66: 186.8625 | BU66: =IF(BS66=TRUE,ROUND(((5406-BT66)/3642.4)-1,6),0) -> 0.432884 | BV66: 195.2 | BW66: 0 | BX66: 718 | BY66: 0.17 | BZ66: =IF(ROUND((Weightings!$P$5*BY66^Weightings!$P$6*Weightings!$P$8 ),2)<Weightings!$P$7,Weightings!$P$7,ROUND((Weightings!$P$5*BY66^Weightings!$P$6*Weightings!$P$8 ),2)) -> 1588.39 | CA66: =ROUND(BZ66/Weightings!$M$5,4) -> 0.4124 | CB66: 51.1 | CC66: 0 | CD66: 0 | CE66: 0 | CF66: 0 | CG66: =AS66*Weightings!$M$5*CF66 -> 0 | CH66: 0 | CI66: 0.313 | CJ66: 0.6 | CK66: 0 | CL66: 0 | CM66: 0 | CN66: =IF(ISNA(VLOOKUP($CZ66,'Audit Values'!$A$2:$AE$346,2,FALSE)),'Preliminary SO66'!T63,VLOOKUP($CZ66,'Audit Values'!$A$2:$AE$346,20,FALSE)) -> 0 | CO66: 0 | CP66: 0 | CQ66: 0 | CR66: =IF(ISNA(VLOOKUP($CZ66,'Audit Values'!$A$2:$AE$346,2,FALSE)),'Preliminary SO66'!V63,VLOOKUP($CZ66,'Audit Values'!$A$2:$AE$346,22,FALSE)) -> 0 | CS66: 0 | CT66: =IF(ISNA(VLOOKUP($CZ66,'Audit Values'!$A$2:$AE$346,2,FALSE)),'Preliminary SO66'!W63,VLOOKUP($CZ66,'Audit Values'!$A$2:$AE$346,23,FALSE)) -> 0 | CU66: 0 | CV66: 0 | CW66: 59000 | CX66: =IF(CW66>0,Weightings!$M$11*AR66,0) -> 191475 | CY66: 59000 | CZ66: D0254
A67: 255 | B67: Barber | C67: South Barber | D67: 220.5 | E67: 0 | F67: 220.5 | G67: 235 | H67: 0 | I67: 235 | J67: 223.5 | K67: =IF(ISNA(VLOOKUP($CZ67,'Audit Values'!$A$2:$AE$346,2,FALSE)),'Preliminary SO66'!B64,VLOOKUP($CZ67,'Audit Values'!$A$2:$AE$346,31,FALSE)) -> 223.5 | L67: 235 | M67: =IF(ISNA(VLOOKUP($CZ67,'Audit Values'!$A$2:$AE$346,2,FALSE)),'Preliminary SO66'!Z64,VLOOKUP($CZ67,'Audit Values'!$A$2:$AE$346,26,FALSE)) -> 0 | N67: 235 | O67: =IF(ISNA(VLOOKUP($CZ67,'Audit Values'!$A$2:$AE$346,2,FALSE)),'Preliminary SO66'!C64,IF(VLOOKUP($CZ67,'Audit Values'!$A$2:$AE$346,28,FALSE)="",VLOOKUP($CZ67,'Audit Values'!$A$2:$AE$346,3,FALSE),VLOOKUP($CZ67,'Audit Values'!$A$2:$AE$346,28,FALSE))) -> 1.5 | P67: 225 | Q67: 225 | R67: 225 | S67: 236.5 | T67: 0 | U67: 154.3 | V67: 154.3 | W67: 0 | X67: =IF(ISNA(VLOOKUP($CZ67,'Audit Values'!$A$2:$AE$346,2,FALSE)),'Preliminary SO66'!D64,VLOOKUP($CZ67,'Audit Values'!$A$2:$AE$346,4,FALSE)) -> 70.3 | Y67: =ROUND((X67/6)*Weightings!$M$6,1) -> 5.9 | Z67: =IF(ISNA(VLOOKUP($CZ67,'Audit Values'!$A$2:$AE$346,2,FALSE)),'Preliminary SO66'!F64,VLOOKUP($CZ67,'Audit Values'!$A$2:$AE$346,6,FALSE)) -> 7.9 | AA67: =ROUND((Z67/6)*Weightings!$M$7,1) -> 0.5 | AB67: =IF(ISNA(VLOOKUP($CZ67,'Audit Values'!$A$2:$AE$346,2,FALSE)),'Preliminary SO66'!H64,VLOOKUP($CZ67,'Audit Values'!$A$2:$AE$346,9,FALSE)) -> 60 | AC67: =ROUND(AB67*Weightings!$M$8,1) -> 27.4 | AD67: 0 | AE67: 0 | AF67: =AE67*Weightings!$M$9 -> 0 | AG67: =IF(ISNA(VLOOKUP($CZ67,'Audit Values'!$A$2:$AE$346,2,FALSE)),'Preliminary SO66'!L64,VLOOKUP($CZ67,'Audit Values'!$A$2:$AE$346,12,FALSE)) -> 0 | AH67: =ROUND(AG67*Weightings!$M$10,1) -> 0 | AI67: =IF(ISNA(VLOOKUP($CZ67,'Audit Values'!$A$2:$AE$346,2,FALSE)),'Preliminary SO66'!O64,VLOOKUP($CZ67,'Audit Values'!$A$2:$AE$346,15,FALSE)) -> 52 | AJ67: 23.2 | AK67: =CC67/Weightings!$M$5 -> 0 | AL67: =CD67/Weightings!$M$5 -> 0 | AM67: =CH67/Weightings!$M$5 -> 0 | AN67: 0 | AO67: =IF(ISNA(VLOOKUP($CZ67,'Audit Values'!$A$2:$AE$346,2,FALSE)),'Preliminary SO66'!X64,VLOOKUP($CZ67,'Audit Values'!$A$2:$AE$346,24,FALSE)) -> 0 | AP67: 281933 | AQ67: =AP67/Weightings!$M$5 -> 73.2 | AR67: 447.8 | AS67: 521 | AT67: 521 | AU67: 0 | AV67: =IF(ISNA(VLOOKUP($CZ67,'Audit Values'!$A$2:$AC$355,2,FALSE)),"",IF(AND(Weightings!H67>0,VLOOKUP($CZ67,'Audit Values'!$A$2:$AC$355,29,FALSE)<Weightings!H67),Weightings!H67,VLOOKUP($CZ67,'Audit Values'!$A$2:$AC$355,29,FALSE))) -> 2 | AW67: =IF(ISNA(VLOOKUP($CZ67,'Audit Values'!$A$2:$AD$355,2,FALSE)),"",VLOOKUP($CZ67,'Audit Values'!$A$2:$AD$355,30,FALSE)) -> A | AX67: =IF(Weightings!G67="","",IF(Weightings!I67="Pending","PX","R")) ->  | AY67: =AR67*Weightings!$M$5+AU67 -> 1724926 | AZ67: =AT67*Weightings!$M$5+AU67 -> 2006892 | BA67: =IF(Weightings!G67>0,Weightings!G67,'Preliminary SO66'!AB64) -> 2056968 | BB67: 2006892 | BD67: =Weightings!E67 -> 0 | BE67: =Weightings!F67 -> 0 | BF67: 0 | BG67: 2006892 | BH67: =MAX(ROUND(((AR67-AO67-AN67)*Weightings!$M$12)+AP67,0),ROUND(((AR67-AO67-AN67)*Weightings!$M$12)+Weightings!B67,0)) -> 2292555 | BI67: 0.3 | BJ67: 687767 | BK67: 704367 | BL67: 687767 | BM67: 0.3 | BN67: 0 | BO67: TRUE | BP67: 1317.908 | BQ67: 0.652507 | BR67: 154.3 | BS67: FALSE | BT67: 0 | BU67: 0 | BV67: 0 | BW67: 0 | BX67: 425.5 | BY67: 0.12 | BZ67: =IF(ROUND((Weightings!$P$5*BY67^Weightings!$P$6*Weightings!$P$8 ),2)<Weightings!$P$7,Weightings!$P$7,ROUND((Weightings!$P$5*BY67^Weightings!$P$6*Weightings!$P$8 ),2)) -> 1718.6 | CA67: =ROUND(BZ67/Weightings!$M$5,4) -> 0.4462 | CB67: 23.2 | CC67: 0 | CD67: 0 | CE67: 0 | CF67: 0 | CG67: =AS67*Weightings!$M$5*CF67 -> 0 | CH67: 0 | CI67: 0.254 | CJ67: 0.6 | CK67: 0 | CL67: 0 | CM67: 0 | CN67: =IF(ISNA(VLOOKUP($CZ67,'Audit Values'!$A$2:$AE$346,2,FALSE)),'Preliminary SO66'!T64,VLOOKUP($CZ67,'Audit Values'!$A$2:$AE$346,20,FALSE)) -> 0 | CO67: 0 | CP67: 0 | CQ67: 0 | CR67: =IF(ISNA(VLOOKUP($CZ67,'Audit Values'!$A$2:$AE$346,2,FALSE)),'Preliminary SO66'!V64,VLOOKUP($CZ67,'Audit Values'!$A$2:$AE$346,22,FALSE)) -> 0 | CS67: 0 | CT67: =IF(ISNA(VLOOKUP($CZ67,'Audit Values'!$A$2:$AE$346,2,FALSE)),'Preliminary SO66'!W64,VLOOKUP($CZ67,'Audit Values'!$A$2:$AE$346,23,FALSE)) -> 0 | CU67: 0 | CV67: 0 | CW67: 0 | CX67: =IF(CW67>0,Weightings!$M$11*AR67,0) -> 0 | CY67: 0 | CZ67: D0255
A68: 256 | B68: Allen | C68: Marmaton Valley | D68: 288 | E68: 0 | F68: 288 | G68: 277 | H68: 0 | I68: 277 | J68: 270.5 | K68: =IF(ISNA(VLOOKUP($CZ68,'Audit Values'!$A$2:$AE$346,2,FALSE)),'Preliminary SO66'!B65,VLOOKUP($CZ68,'Audit Values'!$A$2:$AE$346,31,FALSE)) -> 270.5 | L68: 278.5 | M68: =IF(ISNA(VLOOKUP($CZ68,'Audit Values'!$A$2:$AE$346,2,FALSE)),'Preliminary SO66'!Z65,VLOOKUP($CZ68,'Audit Values'!$A$2:$AE$346,26,FALSE)) -> 0 | N68: 278.5 | O68: =IF(ISNA(VLOOKUP($CZ68,'Audit Values'!$A$2:$AE$346,2,FALSE)),'Preliminary SO66'!C65,IF(VLOOKUP($CZ68,'Audit Values'!$A$2:$AE$346,28,FALSE)="",VLOOKUP($CZ68,'Audit Values'!$A$2:$AE$346,3,FALSE),VLOOKUP($CZ68,'Audit Values'!$A$2:$AE$346,28,FALSE))) -> 6 | P68: 276.5 | Q68: 276.5 | R68: 276.5 | S68: 284.5 | T68: 0 | U68: 149.4 | V68: 149.4 | W68: 0 | X68: =IF(ISNA(VLOOKUP($CZ68,'Audit Values'!$A$2:$AE$346,2,FALSE)),'Preliminary SO66'!D65,VLOOKUP($CZ68,'Audit Values'!$A$2:$AE$346,4,FALSE)) -> 113.3 | Y68: =ROUND((X68/6)*Weightings!$M$6,1) -> 9.4 | Z68: =IF(ISNA(VLOOKUP($CZ68,'Audit Values'!$A$2:$AE$346,2,FALSE)),'Preliminary SO66'!F65,VLOOKUP($CZ68,'Audit Values'!$A$2:$AE$346,6,FALSE)) -> 0 | AA68: =ROUND((Z68/6)*Weightings!$M$7,1) -> 0 | AB68: =IF(ISNA(VLOOKUP($CZ68,'Audit Values'!$A$2:$AE$346,2,FALSE)),'Preliminary SO66'!H65,VLOOKUP($CZ68,'Audit Values'!$A$2:$AE$346,9,FALSE)) -> 127 | AC68: =ROUND(AB68*Weightings!$M$8,1) -> 57.9 | AD68: 8.5 | AE68: 0 | AF68: =AE68*Weightings!$M$9 -> 0 | AG68: =IF(ISNA(VLOOKUP($CZ68,'Audit Values'!$A$2:$AE$346,2,FALSE)),'Preliminary SO66'!L65,VLOOKUP($CZ68,'Audit Values'!$A$2:$AE$346,12,FALSE)) -> 0 | AH68: =ROUND(AG68*Weightings!$M$10,1) -> 0 | AI68: =IF(ISNA(VLOOKUP($CZ68,'Audit Values'!$A$2:$AE$346,2,FALSE)),'Preliminary SO66'!O65,VLOOKUP($CZ68,'Audit Values'!$A$2:$AE$346,15,FALSE)) -> 115 | AJ68: 37 | AK68: =CC68/Weightings!$M$5 -> 0 | AL68: =CD68/Weightings!$M$5 -> 0 | AM68: =CH68/Weightings!$M$5 -> 0 | AN68: 0 | AO68: =IF(ISNA(VLOOKUP($CZ68,'Audit Values'!$A$2:$AE$346,2,FALSE)),'Preliminary SO66'!X65,VLOOKUP($CZ68,'Audit Values'!$A$2:$AE$346,24,FALSE)) -> 0 | AP68: 369965 | AQ68: =AP68/Weightings!$M$5 -> 96 | AR68: 546.7 | AS68: 642.7 | AT68: 642.7 | AU68: 0 | AV68: =IF(ISNA(VLOOKUP($CZ68,'Audit Values'!$A$2:$AC$355,2,FALSE)),"",IF(AND(Weightings!H68>0,VLOOKUP($CZ68,'Audit Values'!$A$2:$AC$355,29,FALSE)<Weightings!H68),Weightings!H68,VLOOKUP($CZ68,'Audit Values'!$A$2:$AC$355,29,FALSE))) -> 2 | AW68: =IF(ISNA(VLOOKUP($CZ68,'Audit Values'!$A$2:$AD$355,2,FALSE)),"",VLOOKUP($CZ68,'Audit Values'!$A$2:$AD$355,30,FALSE)) -> A | AX68: =IF(Weightings!G68="","",IF(Weightings!I68="Pending","PX","R")) ->  | AY68: =AR68*Weightings!$M$5+AU68 -> 2105888 | AZ68: =AT68*Weightings!$M$5+AU68 -> 2475680 | BA68: =IF(Weightings!G68>0,Weightings!G68,'Preliminary SO66'!AB65) -> 2592396 | BB68: 2475680 | BD68: =Weightings!E68 -> 0 | BE68: =Weightings!F68 -> 0 | BF68: 0 | BG68: 2475680 | BH68: =MAX(ROUND(((AR68-AO68-AN68)*Weightings!$M$12)+AP68,0),ROUND(((AR68-AO68-AN68)*Weightings!$M$12)+Weightings!B68,0)) -> 2897371 | BI68: 0.3 | BJ68: 869211 | BK68: 863200 | BL68: 863200 | BM68: 0.2979 | BN68: 0 | BO68: TRUE | BP68: 1781.348 | BQ68: 0.525272 | BR68: 149.4 | BS68: FALSE | BT68: 0 | BU68: 0 | BV68: 0 | BW68: 0 | BX68: 225 | BY68: 0.51 | BZ68: =IF(ROUND((Weightings!$P$5*BY68^Weightings!$P$6*Weightings!$P$8 ),2)<Weightings!$P$7,Weightings!$P$7,ROUND((Weightings!$P$5*BY68^Weightings!$P$6*Weightings!$P$8 ),2)) -> 1238.88 | CA68: =ROUND(BZ68/Weightings!$M$5,4) -> 0.3216 | CB68: 37 | CC68: 0 | CD68: 0 | CE68: 0 | CF68: 0 | CG68: =AS68*Weightings!$M$5*CF68 -> 0 | CH68: 0 | CI68: 0.446 | CJ68: 1.3 | CK68: 0 | CL68: 0 | CM68: 8.5 | CN68: =IF(ISNA(VLOOKUP($CZ68,'Audit Values'!$A$2:$AE$346,2,FALSE)),'Preliminary SO66'!T65,VLOOKUP($CZ68,'Audit Values'!$A$2:$AE$346,20,FALSE)) -> 0 | CO68: 0 | CP68: 0 | CQ68: 0 | CR68: =IF(ISNA(VLOOKUP($CZ68,'Audit Values'!$A$2:$AE$346,2,FALSE)),'Preliminary SO66'!V65,VLOOKUP($CZ68,'Audit Values'!$A$2:$AE$346,22,FALSE)) -> 0 | CS68: 0 | CT68: =IF(ISNA(VLOOKUP($CZ68,'Audit Values'!$A$2:$AE$346,2,FALSE)),'Preliminary SO66'!W65,VLOOKUP($CZ68,'Audit Values'!$A$2:$AE$346,23,FALSE)) -> 0 | CU68: 0 | CV68: 0 | CW68: 0 | CX68: =IF(CW68>0,Weightings!$M$11*AR68,0) -> 0 | CY68: 0 | CZ68: D0256
A69: 257 | B69: Allen | C69: Iola | D69: 1257 | E69: 0 | F69: 1257 | G69: 1258.5 | H69: 0 | I69: =G69+H69 -> 1258.5 | J69: =K69+T69 -> 1251.3 | K69: =IF(ISNA(VLOOKUP($CZ69,'Audit Values'!$A$2:$AE$346,2,FALSE)),'Preliminary SO66'!B66,VLOOKUP($CZ69,'Audit Values'!$A$2:$AE$346,31,FALSE)) -> 1251.3 | L69: =MAX(K69, I69,AVERAGE(F69, I69, K69)) -> 1258.5 | M69: =IF(ISNA(VLOOKUP($CZ69,'Audit Values'!$A$2:$AE$346,2,FALSE)),'Preliminary SO66'!Z66,VLOOKUP($CZ69,'Audit Values'!$A$2:$AE$346,26,FALSE)) -> 0 | N69: =L69+M69 -> 1258.5 | O69: =IF(ISNA(VLOOKUP($CZ69,'Audit Values'!$A$2:$AE$346,2,FALSE)),'Preliminary SO66'!C66,IF(VLOOKUP($CZ69,'Audit Values'!$A$2:$AE$346,28,FALSE)="",VLOOKUP($CZ69,'Audit Values'!$A$2:$AE$346,3,FALSE),VLOOKUP($CZ69,'Audit Values'!$A$2:$AE$346,28,FALSE))) -> 12 | P69: =K69+O69 -> 1263.3 | Q69: =J69+O69 -> 1263.3 | R69: =J69+O69+M69 -> 1263.3 | S69: =L69+M69+O69 -> 1270.5 | T69: 0 | U69: =IF(L69>0,MAX(BN69,BR69,BV69,BW69),0) -> 196.2 | V69: 196.2 | W69: 0 | X69: =IF(ISNA(VLOOKUP($CZ69,'Audit Values'!$A$2:$AE$346,2,FALSE)),'Preliminary SO66'!D66,VLOOKUP($CZ69,'Audit Values'!$A$2:$AE$346,4,FALSE)) -> 309.6 | Y69: =ROUND((X69/6)*Weightings!$M$6,1) -> 25.8 | Z69: =IF(ISNA(VLOOKUP($CZ69,'Audit Values'!$A$2:$AE$346,2,FALSE)),'Preliminary SO66'!F66,VLOOKUP($CZ69,'Audit Values'!$A$2:$AE$346,6,FALSE)) -> 0 | AA69: =ROUND((Z69/6)*Weightings!$M$7,1) -> 0 | AB69: =IF(ISNA(VLOOKUP($CZ69,'Audit Values'!$A$2:$AE$346,2,FALSE)),'Preliminary SO66'!H66,VLOOKUP($CZ69,'Audit Values'!$A$2:$AE$346,9,FALSE)) -> 689 | AC69: =ROUND(AB69*Weightings!$M$8,1) -> 314.2 | AD69: 72.3 | AE69: 0 | AF69: =AE69*Weightings!$M$9 -> 0 | AG69: =IF(ISNA(VLOOKUP($CZ69,'Audit Values'!$A$2:$AE$346,2,FALSE)),'Preliminary SO66'!L66,VLOOKUP($CZ69,'Audit Values'!$A$2:$AE$346,12,FALSE)) -> 0 | AH69: =ROUND(AG69*Weightings!$M$10,1) -> 0 | AI69: =IF(ISNA(VLOOKUP($CZ69,'Audit Values'!$A$2:$AE$346,2,FALSE)),'Preliminary SO66'!O66,VLOOKUP($CZ69,'Audit Values'!$A$2:$AE$346,15,FALSE)) -> 306 | AJ69: =CB69 -> 70.8 | AK69: =CC69/Weightings!$M$5 -> 0 | AL69: =CD69/Weightings!$M$5 -> 0 | AM69: =CH69/Weightings!$M$5 -> 0 | AN69: 0 | AO69: =IF(ISNA(VLOOKUP($CZ69,'Audit Values'!$A$2:$AE$346,2,FALSE)),'Preliminary SO66'!X66,VLOOKUP($CZ69,'Audit Values'!$A$2:$AE$346,24,FALSE)) -> 0 | AP69: 1577162 | AQ69: =AP69/Weightings!$M$5 -> 409.4 | AR69: =SUM(S69+ U69+ Y69+ AA69+ AC69+ AH69+ AJ69+ AK69+ AL69+ AD69+AF69+AM69+AN69+AO69) -> 1949.8 | AS69: =SUM(S69+U69+Y69+AA69+AC69+AH69+AJ69+AK69+AL69+AD69+AF69+AQ69+AN69+AO69) -> 2359.2 | AT69: =SUM(S69+U69+Y69+AA69+AC69+AH69+AJ69+AK69+AL69+AQ69+AD69+AF69+AM69+AN69+AO69) -> 2359.2 | AU69: 0 | AV69: =IF(ISNA(VLOOKUP($CZ69,'Audit Values'!$A$2:$AC$355,2,FALSE)),"",IF(AND(Weightings!H69>0,VLOOKUP($CZ69,'Audit Values'!$A$2:$AC$355,29,FALSE)<Weightings!H69),Weightings!H69,VLOOKUP($CZ69,'Audit Values'!$A$2:$AC$355,29,FALSE))) -> 17 | AW69: =IF(ISNA(VLOOKUP($CZ69,'Audit Values'!$A$2:$AD$355,2,FALSE)),"",VLOOKUP($CZ69,'Audit Values'!$A$2:$AD$355,30,FALSE)) -> A | AX69: =IF(Weightings!G69="","",IF(Weightings!I69="Pending","PX","R")) ->  | AY69: =AR69*Weightings!$M$5+AU69 -> 7510630 | AZ69: =AT69*Weightings!$M$5+AU69 -> 9087638 | BA69: =IF(Weightings!G69>0,Weightings!G69,'Preliminary SO66'!AB66) -> 9409280 | BB69: =MIN(AZ69,BA69) -> 9087638 | BD69: =Weightings!E69 -> 0 | BE69: =Weightings!F69 -> 0 | BF69: =SUM(BC69:BE69) -> 0 | BG69: =BB69+BF69 -> 9087638 | BH69: =MAX(ROUND(((AR69-AO69-AN69)*Weightings!$M$12)+AP69,0),ROUND(((AR69-AO69-AN69)*Weightings!$M$12)+Weightings!B69,0)) -> 10502939 | BI69: 0.3 | BJ69: 3150882 | BK69: 3198909 | BL69: =MIN(BJ69,BK69) -> 3150882 | BM69: 0.3 | BN69: =ROUND(IF(S69<=99.9,(S69*1.014331),0),1) -> 0 | BO69: =AND(S69>99.9,S69<=299.9) -> FALSE | BP69: =IF(BO69=TRUE,ROUND((S69-100)*9.655,3),0) -> 0 | BQ69: 0 | BR69: =ROUND(S69*BQ69,1) -> 0 | BS69: =AND(S69>299.9,S69<=1621.9) -> TRUE | BT69: =IF(BS69=TRUE,ROUND((S69-300)*1.2375,4),0) -> 1200.9938 | BU69: 0.15446 | BV69: =ROUND(BU69*S69,1) -> 196.2 | BW69: =ROUND(IF(S69>=1622,(S69*0.03504),0),1) -> 0 | BX69: 140.5 | BY69: 2.18 | BZ69: =IF(ROUND((Weightings!$P$5*BY69^Weightings!$P$6*Weightings!$P$8 ),2)<Weightings!$P$7,Weightings!$P$7,ROUND((Weightings!$P$5*BY69^Weightings!$P$6*Weightings!$P$8 ),2)) -> 891.9 | CA69: =ROUND(BZ69/Weightings!$M$5,4) -> 0.2315 | CB69: 70.8 | CC69: 0 | CD69: 0 | CE69: 0 | CF69: 0 | CG69: =AS69*Weightings!$M$5*CF69 -> 0 | CH69: 0 | CI69: =ROUND(AB69/S69,3) -> 0.542 | CJ69: =ROUND(S69/BX69,1) -> 9 | CK69: 72.3 | CL69: 0 | CM69: 0 | CN69: =IF(ISNA(VLOOKUP($CZ69,'Audit Values'!$A$2:$AE$346,2,FALSE)),'Preliminary SO66'!T66,VLOOKUP($CZ69,'Audit Values'!$A$2:$AE$346,20,FALSE)) -> 0 | CO69: 0 | CP69: 0 | CQ69: 0 | CR69: =IF(ISNA(VLOOKUP($CZ69,'Audit Values'!$A$2:$AE$346,2,FALSE)),'Preliminary SO66'!V66,VLOOKUP($CZ69,'Audit Values'!$A$2:$AE$346,22,FALSE)) -> 0 | CS69: 0 | CT69: =IF(ISNA(VLOOKUP($CZ69,'Audit Values'!$A$2:$AE$346,2,FALSE)),'Preliminary SO66'!W66,VLOOKUP($CZ69,'Audit Values'!$A$2:$AE$346,23,FALSE)) -> 0 | CU69: 0 | CV69: 0 | CW69: 0 | CX69: =IF(CW69>0,Weightings!$M$11*AR69,0) -> 0 | CY69: 0 | CZ69: D0257
A70: 258 | B70: Allen | C70: Humboldt | D70: 555.5 | E70: 0 | F70: 555.5 | G70: 586.6 | H70: 0 | I70: 586.6 | J70: 757.5 | K70: =IF(ISNA(VLOOKUP($CZ70,'Audit Values'!$A$2:$AE$346,2,FALSE)),'Preliminary SO66'!B67,VLOOKUP($CZ70,'Audit Values'!$A$2:$AE$346,31,FALSE)) -> 569 | L70: 586.6 | M70: =IF(ISNA(VLOOKUP($CZ70,'Audit Values'!$A$2:$AE$346,2,FALSE)),'Preliminary SO66'!Z67,VLOOKUP($CZ70,'Audit Values'!$A$2:$AE$346,26,FALSE)) -> 0 | N70: 586.6 | O70: =IF(ISNA(VLOOKUP($CZ70,'Audit Values'!$A$2:$AE$346,2,FALSE)),'Preliminary SO66'!C67,IF(VLOOKUP($CZ70,'Audit Values'!$A$2:$AE$346,28,FALSE)="",VLOOKUP($CZ70,'Audit Values'!$A$2:$AE$346,3,FALSE),VLOOKUP($CZ70,'Audit Values'!$A$2:$AE$346,28,FALSE))) -> 6 | P70: 575 | Q70: 763.5 | R70: 763.5 | S70: 592.6 | T70: 188.5 | U70: 228 | V70: 228 | W70: 0 | X70: =IF(ISNA(VLOOKUP($CZ70,'Audit Values'!$A$2:$AE$346,2,FALSE)),'Preliminary SO66'!D67,VLOOKUP($CZ70,'Audit Values'!$A$2:$AE$346,4,FALSE)) -> 272.2 | Y70: =ROUND((X70/6)*Weightings!$M$6,1) -> 22.7 | Z70: =IF(ISNA(VLOOKUP($CZ70,'Audit Values'!$A$2:$AE$346,2,FALSE)),'Preliminary SO66'!F67,VLOOKUP($CZ70,'Audit Values'!$A$2:$AE$346,6,FALSE)) -> 0 | AA70: =ROUND((Z70/6)*Weightings!$M$7,1) -> 0 | AB70: =IF(ISNA(VLOOKUP($CZ70,'Audit Values'!$A$2:$AE$346,2,FALSE)),'Preliminary SO66'!H67,VLOOKUP($CZ70,'Audit Values'!$A$2:$AE$346,9,FALSE)) -> 216 | AC70: =ROUND(AB70*Weightings!$M$8,1) -> 98.5 | AD70: =MAX(CK70,CL70,CM70) -> 2.1 | AE70: 0 | AF70: =AE70*Weightings!$M$9 -> 0 | AG70: =IF(ISNA(VLOOKUP($CZ70,'Audit Values'!$A$2:$AE$346,2,FALSE)),'Preliminary SO66'!L67,VLOOKUP($CZ70,'Audit Values'!$A$2:$AE$346,12,FALSE)) -> 0 | AH70: =ROUND(AG70*Weightings!$M$10,1) -> 0 | AI70: =IF(ISNA(VLOOKUP($CZ70,'Audit Values'!$A$2:$AE$346,2,FALSE)),'Preliminary SO66'!O67,VLOOKUP($CZ70,'Audit Values'!$A$2:$AE$346,15,FALSE)) -> 82 | AJ70: 25 | AK70: =CC70/Weightings!$M$5 -> 0 | AL70: =CD70/Weightings!$M$5 -> 0 | AM70: =CH70/Weightings!$M$5 -> 0 | AN70: 197.9 | AO70: =IF(ISNA(VLOOKUP($CZ70,'Audit Values'!$A$2:$AE$346,2,FALSE)),'Preliminary SO66'!X67,VLOOKUP($CZ70,'Audit Values'!$A$2:$AE$346,24,FALSE)) -> 0 | AP70: 700004 | AQ70: =AP70/Weightings!$M$5 -> 181.7 | AR70: 1166.8 | AS70: 1348.5 | AT70: 1348.5 | AU70: 0 | AV70: =IF(ISNA(VLOOKUP($CZ70,'Audit Values'!$A$2:$AC$355,2,FALSE)),"",IF(AND(Weightings!H70>0,VLOOKUP($CZ70,'Audit Values'!$A$2:$AC$355,29,FALSE)<Weightings!H70),Weightings!H70,VLOOKUP($CZ70,'Audit Values'!$A$2:$AC$355,29,FALSE))) -> 24 | AW70: =IF(ISNA(VLOOKUP($CZ70,'Audit Values'!$A$2:$AD$355,2,FALSE)),"",VLOOKUP($CZ70,'Audit Values'!$A$2:$AD$355,30,FALSE)) -> A | AX70: =IF(Weightings!G70="","",IF(Weightings!I70="Pending","PX","R")) -> R | AY70: =AR70*Weightings!$M$5+AU70 -> 4494514 | AZ70: =AT70*Weightings!$M$5+AU70 -> 5194422 | BA70: =IF(Weightings!G70>0,Weightings!G70,'Preliminary SO66'!AB67) -> 5554848 | BB70: 5194422 | BD70: =Weightings!E70 -> 0 | BE70: =Weightings!F70 -> 0 | BF70: 0 | BG70: 5194422 | BH70: =MAX(ROUND(((AR70-AO70-AN70)*Weightings!$M$12)+AP70,0),ROUND(((AR70-AO70-AN70)*Weightings!$M$12)+Weightings!B70,0)) -> 5050365 | BI70: 0.3 | BJ70: 1515110 | BK70: 1585622 | BL70: 1515110 | BM70: =BL70/BH70 -> 0.3 | BN70: 0 | BO70: FALSE | BP70: 0 | BQ70: 0 | BR70: 0 | BS70: TRUE | BT70: 362.0925 | BU70: 0.384776 | BV70: 228 | BW70: 0 | BX70: 126 | BY70: =AI70/BX70 -> 0.65 | BZ70: =IF(ROUND((Weightings!$P$5*BY70^Weightings!$P$6*Weightings!$P$8 ),2)<Weightings!$P$7,Weightings!$P$7,ROUND((Weightings!$P$5*BY70^Weightings!$P$6*Weightings!$P$8 ),2)) -> 1172.73 | CA70: =ROUND(BZ70/Weightings!$M$5,4) -> 0.3044 | CB70: =ROUND(IF(AI70>0,CA70*AI70,0),1) -> 25 | CC70: 0 | CD70: 0 | CE70: 0 | CF70: 0 | CG70: =AS70*Weightings!$M$5*CF70 -> 0 | CH70: =IF(CE70>CG70,CG70,CE70) -> 0 | CI70: 0.364 | CJ70: 4.7 | CK70: =IF(CI70>=50%,AB70*10.5%,0) -> 0 | CL70: =IF(AND(CI70>=35.1%,CJ70>212),AB70*0.105,0) -> 0 | CM70: =IF(AND((CI70-0.35)>0,CI70<0.5),AB70*(CI70-0.35)*0.7,0) -> 2.1 | CN70: =IF(ISNA(VLOOKUP($CZ70,'Audit Values'!$A$2:$AE$346,2,FALSE)),'Preliminary SO66'!T67,VLOOKUP($CZ70,'Audit Values'!$A$2:$AE$346,20,FALSE)) -> 188.5 | CO70: 197.9 | CP70: 0 | CQ70: 0 | CR70: =IF(ISNA(VLOOKUP($CZ70,'Audit Values'!$A$2:$AE$346,2,FALSE)),'Preliminary SO66'!V67,VLOOKUP($CZ70,'Audit Values'!$A$2:$AE$346,22,FALSE)) -> 0 | CS70: 0 | CT70: =IF(ISNA(VLOOKUP($CZ70,'Audit Values'!$A$2:$AE$346,2,FALSE)),'Preliminary SO66'!W67,VLOOKUP($CZ70,'Audit Values'!$A$2:$AE$346,23,FALSE)) -> 0 | CU70: 0 | CV70: 197.9 | CW70: 0 | CX70: =IF(CW70>0,Weightings!$M$11*AR70,0) -> 0 | CY70: =MIN(CW70,CX70) -> 0 | CZ70: D0258
A71: 259 | B71: Sedgwick | C71: Wichita | D71: 45287.9 | E71: 0 | F71: 45287.9 | G71: 45888.3 | H71: 0 | I71: 45888.3 | J71: 46298.4 | K71: =IF(ISNA(VLOOKUP($CZ71,'Audit Values'!$A$2:$AE$346,2,FALSE)),'Preliminary SO66'!B68,VLOOKUP($CZ71,'Audit Values'!$A$2:$AE$346,31,FALSE)) -> 46108.1 | L71: 46108.1 | M71: =IF(ISNA(VLOOKUP($CZ71,'Audit Values'!$A$2:$AE$346,2,FALSE)),'Preliminary SO66'!Z68,VLOOKUP($CZ71,'Audit Values'!$A$2:$AE$346,26,FALSE)) -> 0 | N71: 46108.1 | O71: =IF(ISNA(VLOOKUP($CZ71,'Audit Values'!$A$2:$AE$346,2,FALSE)),'Preliminary SO66'!C68,IF(VLOOKUP($CZ71,'Audit Values'!$A$2:$AE$346,28,FALSE)="",VLOOKUP($CZ71,'Audit Values'!$A$2:$AE$346,3,FALSE),VLOOKUP($CZ71,'Audit Values'!$A$2:$AE$346,28,FALSE))) -> 956 | P71: 47064.1 | Q71: 47254.4 | R71: 47254.4 | S71: 47064.1 | T71: 190.3 | U71: 1649.1 | V71: 0 | W71: 1649.1 | X71: =IF(ISNA(VLOOKUP($CZ71,'Audit Values'!$A$2:$AE$346,2,FALSE)),'Preliminary SO66'!D68,VLOOKUP($CZ71,'Audit Values'!$A$2:$AE$346,4,FALSE)) -> 9335.8 | Y71: =ROUND((X71/6)*Weightings!$M$6,1) -> 778 | Z71: =IF(ISNA(VLOOKUP($CZ71,'Audit Values'!$A$2:$AE$346,2,FALSE)),'Preliminary SO66'!F68,VLOOKUP($CZ71,'Audit Values'!$A$2:$AE$346,6,FALSE)) -> 35806.5 | AA71: =ROUND((Z71/6)*Weightings!$M$7,1) -> 2357.3 | AB71: =IF(ISNA(VLOOKUP($CZ71,'Audit Values'!$A$2:$AE$346,2,FALSE)),'Preliminary SO66'!H68,VLOOKUP($CZ71,'Audit Values'!$A$2:$AE$346,9,FALSE)) -> 33165 | AC71: =ROUND(AB71*Weightings!$M$8,1) -> 15123.2 | AD71: 3482.3 | AE71: 0 | AF71: =AE71*Weightings!$M$9 -> 0 | AG71: =IF(ISNA(VLOOKUP($CZ71,'Audit Values'!$A$2:$AE$346,2,FALSE)),'Preliminary SO66'!L68,VLOOKUP($CZ71,'Audit Values'!$A$2:$AE$346,12,FALSE)) -> 918.9 | AH71: =ROUND(AG71*Weightings!$M$10,1) -> 229.7 | AI71: =IF(ISNA(VLOOKUP($CZ71,'Audit Values'!$A$2:$AE$346,2,FALSE)),'Preliminary SO66'!O68,VLOOKUP($CZ71,'Audit Values'!$A$2:$AE$346,15,FALSE)) -> 14187 | AJ71: 2077 | AK71: =CC71/Weightings!$M$5 -> 0 | AL71: =CD71/Weightings!$M$5 -> 0 | AM71: =CH71/Weightings!$M$5 -> 0 | AN71: 199.8 | AO71: =IF(ISNA(VLOOKUP($CZ71,'Audit Values'!$A$2:$AE$346,2,FALSE)),'Preliminary SO66'!X68,VLOOKUP($CZ71,'Audit Values'!$A$2:$AE$346,24,FALSE)) -> 2 | AP71: 44536008 | AQ71: =AP71/Weightings!$M$5 -> 11561.8 | AR71: 72962.5 | AS71: 84524.3 | AT71: 84524.3 | AU71: 0 | AV71: =IF(ISNA(VLOOKUP($CZ71,'Audit Values'!$A$2:$AC$355,2,FALSE)),"",IF(AND(Weightings!H71>0,VLOOKUP($CZ71,'Audit Values'!$A$2:$AC$355,29,FALSE)<Weightings!H71),Weightings!H71,VLOOKUP($CZ71,'Audit Values'!$A$2:$AC$355,29,FALSE))) -> 22 | AW71: =IF(ISNA(VLOOKUP($CZ71,'Audit Values'!$A$2:$AD$355,2,FALSE)),"",VLOOKUP($CZ71,'Audit Values'!$A$2:$AD$355,30,FALSE)) -> A | AX71: =IF(Weightings!G71="","",IF(Weightings!I71="Pending","PX","R")) ->  | AY71: =AR71*Weightings!$M$5+AU71 -> 281051550 | AZ71: =AT71*Weightings!$M$5+AU71 -> 325587604 | BA71: =IF(Weightings!G71>0,Weightings!G71,'Preliminary SO66'!AB68) -> 328856026 | BB71: 325587604 | BD71: =Weightings!E71 -> -1755 | BE71: =Weightings!F71 -> 0 | BF71: -1755 | BG71: 325585849 | BH71: =MAX(ROUND(((AR71-AO71-AN71)*Weightings!$M$12)+AP71,0),ROUND(((AR71-AO71-AN71)*Weightings!$M$12)+Weightings!B71,0)) -> 371231551 | BI71: 0.3 | BJ71: 111369465 | BK71: 112565276 | BL71: 111369465 | BM71: 0.3 | BN71: 0 | BO71: FALSE | BP71: 0 | BQ71: 0 | BR71: 0 | BS71: FALSE | BT71: 0 | BU71: 0 | BV71: 0 | BW71: 1649.1 | BX71: 151 | BY71: 93.95 | BZ71: =IF(ROUND((Weightings!$P$5*BY71^Weightings!$P$6*Weightings!$P$8 ),2)<Weightings!$P$7,Weightings!$P$7,ROUND((Weightings!$P$5*BY71^Weightings!$P$6*Weightings!$P$8 ),2)) -> 564 | CA71: =ROUND(BZ71/Weightings!$M$5,4) -> 0.1464 | CB71: 2077 | CC71: 0 | CD71: 0 | CE71: 0 | CF71: 0 | CG71: =AS71*Weightings!$M$5*CF71 -> 0 | CH71: 0 | CI71: 0.705 | CJ71: 311.7 | CK71: 3482.3 | CL71: 3482.3 | CM71: 0 | CN71: =IF(ISNA(VLOOKUP($CZ71,'Audit Values'!$A$2:$AE$346,2,FALSE)),'Preliminary SO66'!T68,VLOOKUP($CZ71,'Audit Values'!$A$2:$AE$346,20,FALSE)) -> 190.3 | CO71: 199.8 | CP71: 0 | CQ71: 0 | CR71: =IF(ISNA(VLOOKUP($CZ71,'Audit Values'!$A$2:$AE$346,2,FALSE)),'Preliminary SO66'!V68,VLOOKUP($CZ71,'Audit Values'!$A$2:$AE$346,22,FALSE)) -> 0 | CS71: 0 | CT71: =IF(ISNA(VLOOKUP($CZ71,'Audit Values'!$A$2:$AE$346,2,FALSE)),'Preliminary SO66'!W68,VLOOKUP($CZ71,'Audit Values'!$A$2:$AE$346,23,FALSE)) -> 0 | CU71: 0 | CV71: 199.8 | CW71: 0 | CX71: =IF(CW71>0,Weightings!$M$11*AR71,0) -> 0 | CY71: 0 | CZ71: D0259
